Workbook

Sheet Classements
B1: Pilotes | C1: NAT | D1: INT | E1: SCRATCH | H1: Passagers | I1: Nat | J1: Inter | K1: Scratch
A2: 1 | B2: LESCAL Thierry | C2: 8518 | D2: 0 | E2: 8518 | G2: 1 | H2: PONT Patricia | I2: 8518 | J2: 0 | K2: 8518
A3: 2 | B3: JAMOTTE Jean | C3: 8023 | D3: 1470 | E3: 9493 | G3: 2 | H3: GREGORICS Kathy | I3: 0 | J3: 1462 | K3: 1462
A4: 3 | B4: NIHOUL Dany | C4: 5197 | D4: 1462 | E4: 6659 | G4: 3 | H4: DEL FABBRO Laurence | I4: 0 | J4: 1379 | K4: 1379
A5: 4 | B5: WOUTERS Olivier | C5: 4681 | D5: 0 | E5: 4681 | G5: 4 | H5: LAMIROY Anne | I5: 0 | J5: 532 | K5: 532
A6: 5 | B6: DAVIN Philippe | C6: 4300 | D6: 1407 | E6: 5707 | G6: 5 | H6: BRIATTE Joëlle | I6: 0 | J6: 0 | K6: 0
A7: 6 | B7: PARMENTIER Dominique | C7: 564 | D7: 0 | E7: 564 | G7: 6 | H7: ERVEN France | I7: 0 | J7: 0 | K7: 0
A8: 7 | B8: DONY Marc | C8: 0 | D8: 2682 | E8: 2682 | G8: 7 | H8: FIEVET Nathalie | I8: 0 | J8: 0 | K8: 0
A9: 8 | B9: URBAIN Philippe | C9: 0 | D9: 1417 | E9: 1417 | G9: 8 | H9: GIAUX Annie | I9: 0 | J9: 0 | K9: 0
A10: 9 | B10: BRUNEAU Denis-Claude | C10: 0 | D10: 1379 | E10: 1379 | G10: 9 | H10: GOFFIN Guillaume | I10: 0 | J10: 0 | K10: 0
A11: 10 | B11: MILET Benoit | C11: 0 | D11: 532 | E11: 532 | G11: 10 | H11: GRIGNET Audrey | I11: 0 | J11: 0 | K11: 0
A12: 11 | B12: BALFROID Pierre | C12: 0 | D12: 0 | E12: 0 | G12: 11 | H12: LAMBILLON Anne | I12: 0 | J12: 0 | K12: 0
A13: 12 | B13: BALLION Pierre | C13: 0 | D13: 0 | E13: 0 | G13: 12 | H13: LEROY Laure | I13: 0 | J13: 0 | K13: 0
A14: 13 | B14: BERDOYES Bruno | C14: 0 | D14: 0 | E14: 0 | G14: 13 | H14: NICLOUX Christine | I14: 0 | J14: 0 | K14: 0
A15: 14 | B15: BERDOYES Yannick | C15: 0 | D15: 0 | E15: 0 | G15: 14 | H15: THOMAS Isabelle | I15: 0 | J15: 0 | K15: 0
A16: 15 | B16: DE SCHEPPERS Jean-Claude | C16: 0 | D16: 0 | E16: 0 | G16: 15 | H16: 0 | I16: 0 | J16: 0 | K16: 0
A17: 16 | B17: DECUYPER Frédéric | C17: 0 | D17: 0 | E17: 0 | G17: 16 | H17: 0 | I17: 0 | J17: 0 | K17: 0
A18: 17 | B18: DEWAERSEGHERS Francis | C18: 0 | D18: 0 | E18: 0 | G18: 17 | H18: 0 | I18: 0 | J18: 0 | K18: 0
A19: 18 | B19: DHONDT Jerry | C19: 0 | D19: 0 | E19: 0 | G19: 18 | H19: 0 | I19: 0 | J19: 0 | K19: 0
A20: 19 | B20: DUMONT Christophe | C20: 0 | D20: 0 | E20: 0 | G20: 19 | H20: 0 | I20: 0 | J20: 0 | K20: 0
A21: 20 | B21: FAVRESSSE René | C21: 0 | D21: 0 | E21: 0 | G21: 20 | H21: 0 | I21: 0 | J21: 0 | K21: 0
A22: 21 | B22: GOFFIN Amaury | C22: 0 | D22: 0 | E22: 0 | G22: 21 | H22: 0 | I22: 0 | J22: 0 | K22: 0
A23: 22 | B23: LAMBOTTE Didier | C23: 0 | D23: 0 | E23: 0 | G23: 22 | H23: 0 | I23: 0 | J23: 0 | K23: 0
A24: 23 | B24: LEFEVRE Francis | C24: 0 | D24: 0 | E24: 0 | G24: 23 | H24: 0 | I24: 0 | J24: 0 | K24: 0
A25: 24 | B25: MALLIEN Philippe | C25: 0 | D25: 0 | E25: 0 | G25: 24 | H25: 0 | I25: 0 | J25: 0 | K25: 0
A26: 25 | B26: MARIEL Didier | C26: 0 | D26: 0 | E26: 0 | G26: 25 | H26: 0 | I26: 0 | J26: 0 | K26: 0
A27: 26 | B27: OVAERE Jimmy | C27: 0 | D27: 0 | E27: 0 | G27: 26 | H27: 0 | I27: 0 | J27: 0 | K27: 0
A28: 27 | B28: POCHET Jean-Dominique | C28: 0 | D28: 0 | E28: 0 | G28: 27 | H28: 0 | I28: 0 | J28: 0 | K28: 0
A29: 28 | B29: POMPIER Philippe | C29: 0 | D29: 0 | E29: 0 | G29: 28 | H29: 0 | I29: 0 | J29: 0 | K29: 0
A30: 29 | B30: RAMEAU Didier | C30: 0 | D30: 0 | E30: 0 | G30: 29 | H30: 0 | I30: 0 | J30: 0 | K30: 0
A31: 30 | B31: SPITAELS Bernard | C31: 0 | D31: 0 | E31: 0 | I31: =SUM(K2:K30) -> 11891 | J31: =SUM(J2:J30) -> 3373 | K31: =SUM(I31:J31) -> 15264
A32: 31 | B32: TERWAGNE Freddy | C32: 0 | D32: 0 | E32: 0 | I32: =SUM(I31/K31) -> 0.7790225367 | J32: =SUM(J31/K31) -> 0.2209774633
A33: 32 | B33: TERWAGNE Julien | C33: 0 | D33: 0 | E33: 0 | I33: NAT | J33: INT
A34: 33 | B34: THOMAS Isabelle | C34: 0 | D34: 0 | E34: 0
A35: 34 | B35: VANBELLINGEN Jean-Claude | C35: 0 | D35: 0 | E35: 0
A36: 35 | B36: VANDEN BOSSCHE Vincent | C36: 0 | D36: 0 | E36: 0
A37: 36 | B37: VANDEN WAEYENBERGH Michel | C37: 0 | D37: 0 | E37: 0
A38: 37 | B38: VANSTEYVOORT André | C38: 0 | D38: 0 | E38: 0 | H38: Classements vérifiés
A39: 38 | B39: DEMETS Eric | C39: 0 | D39: 0 | E39: 0
A40: 39 | B40: DECELLE Hubert | C40: 0 | D40: 0 | E40: 0
A41: 40 | B41: 0 | C41: 0 | D41: 0 | E41: 0
A42: 41 | B42: 0 | C42: 0 | D42: 0 | E42: 0
A43: 42 | B43: 0 | C43: 0 | D43: 0 | E43: 0
A44: 43 | B44: 0 | C44: 0 | D44: 0 | E44: 0
A45: 44 | B45: 0 | C45: 0 | D45: 0 | E45: 0
A46: 45 | B46: 0 | C46: 0 | D46: 0 | E46: 0
A47: 46 | B47: 0 | C47: 0 | D47: 0 | E47: 0
C49: =SUM(C2:C48) -> 31283 | D49: =SUM(D2:D48) -> 10349 | E49: =SUM(E2:E48) -> 41632
C50: =SUM(C49/E49) -> 0.7514171791 | D50: =SUM(D49/E49) -> 0.2485828209
C51: NAT | D51: INT

Sheet Classements non-confirmé
B1: Pilotes | C1: NAT | D1: INT | E1: SCRATCH | H1: Passagers | I1: Nat | J1: Inter | K1: Scratch
A2: 1 | B2: LESCAL Thierry | C2: 8518 | D2: 0 | E2: 8518 | G2: 1 | H2: PONT Patricia | I2: 8518 | J2: 0 | K2: 8518
A3: 2 | B3: JAMOTTE Jean | C3: 8023 | D3: 1470 | E3: 9493 | G3: 2 | H3: GREGORICS Kathy | I3: 200 | J3: 1462 | K3: 1662
A4: 3 | B4: NIHOUL Dany | C4: 5197 | D4: 1462 | E4: 6659 | G4: 3 | H4: DEL FABBRO Laurence | I4: 200 | J4: 1379 | K4: 1579
A5: 4 | B5: WOUTERS Olivier | C5: 4681 | D5: 0 | E5: 4681 | G5: 4 | H5: GIAUX Annie | I5: 846 | J5: 0 | K5: 846
A6: 5 | B6: DAVIN Philippe | C6: 4300 | D6: 1407 | E6: 5707 | G6: 5 | H6: LAMIROY Anne | I6: 0 | J6: 532 | K6: 532
A7: 6 | B7: DONY Marc | C7: 2338 | D7: 2682 | E7: 5020 | G7: 6 | H7: ERVEN France | I7: 517 | J7: 0 | K7: 517
A8: 7 | B8: DHONDT Jerry | C8: 2096 | D8: 0 | E8: 2096 | G8: 7 | H8: LAMBILLON Anne | I8: 200 | J8: 0 | K8: 200
A9: 8 | B9: RAMEAU Didier | C9: 1311 | D9: 0 | E9: 1311 | G9: 8 | H9: LEROY Laure | I9: 112 | J9: 0 | K9: 112
A10: 9 | B10: VANBELLINGEN Jean-Claude | C10: 863 | D10: 0 | E10: 863 | G10: 9 | H10: BRIATTE Joëlle | I10: 0 | J10: 0 | K10: 0
A11: 10 | B11: MARIEL Didier | C11: 808 | D11: 0 | E11: 808 | G11: 10 | H11: FIEVET Nathalie | I11: 0 | J11: 0 | K11: 0
A12: 11 | B12: FAVRESSSE René | C12: 751 | D12: 0 | E12: 751 | G12: 11 | H12: GOFFIN Guillaume | I12: 0 | J12: 0 | K12: 0
A13: 12 | B13: DEMETS Eric | C13: 751 | D13: 0 | E13: 751 | G13: 12 | H13: GRIGNET Audrey | I13: 0 | J13: 0 | K13: 0
A14: 13 | B14: DECELLE Hubert | C14: 751 | D14: 0 | E14: 751 | G14: 13 | H14: NICLOUX Christine | I14: 0 | J14: 0 | K14: 0
A15: 14 | B15: DEWAERSEGHERS Francis | C15: 589 | D15: 0 | E15: 589 | G15: 14 | H15: THOMAS Isabelle | I15: 0 | J15: 0 | K15: 0
A16: 15 | B16: PARMENTIER Dominique | C16: 564 | D16: 0 | E16: 564 | G16: 15 | H16: 0 | I16: 0 | J16: 0 | K16: 0
A17: 16 | B17: SPITAELS Bernard | C17: 517 | D17: 0 | E17: 517 | G17: 16 | H17: 0 | I17: 0 | J17: 0 | K17: 0
A18: 17 | B18: BALLION Pierre | C18: 200 | D18: 0 | E18: 200 | G18: 17 | H18: 0 | I18: 0 | J18: 0 | K18: 0
A19: 18 | B19: BERDOYES Yannick | C19: 200 | D19: 0 | E19: 200 | G19: 18 | H19: 0 | I19: 0 | J19: 0 | K19: 0
A20: 19 | B20: BRUNEAU Denis-Claude | C20: 200 | D20: 1379 | E20: 1579 | G20: 19 | H20: 0 | I20: 0 | J20: 0 | K20: 0
A21: 20 | B21: MALLIEN Philippe | C21: 200 | D21: 0 | E21: 200 | G21: 20 | H21: 0 | I21: 0 | J21: 0 | K21: 0
A22: 21 | B22: VANSTEYVOORT André | C22: 200 | D22: 0 | E22: 200 | G22: 21 | H22: 0 | I22: 0 | J22: 0 | K22: 0
A23: 22 | B23: URBAIN Philippe | C23: 156 | D23: 1417 | E23: 1573 | G23: 22 | H23: 0 | I23: 0 | J23: 0 | K23: 0
A24: 23 | B24: BALFROID Pierre | C24: 0 | D24: 0 | E24: 0 | G24: 23 | H24: 0 | I24: 0 | J24: 0 | K24: 0
A25: 24 | B25: BERDOYES Bruno | C25: 0 | D25: 0 | E25: 0 | G25: 24 | H25: 0 | I25: 0 | J25: 0 | K25: 0
A26: 25 | B26: DE SCHEPPERS Jean-Claude | C26: 0 | D26: 0 | E26: 0 | G26: 25 | H26: 0 | I26: 0 | J26: 0 | K26: 0
A27: 26 | B27: DECUYPER Frédéric | C27: 0 | D27: 0 | E27: 0 | G27: 26 | H27: 0 | I27: 0 | J27: 0 | K27: 0
A28: 27 | B28: DUMONT Christophe | C28: 0 | D28: 0 | E28: 0 | G28: 27 | H28: 0 | I28: 0 | J28: 0 | K28: 0
A29: 28 | B29: GOFFIN Amaury | C29: 0 | D29: 0 | E29: 0 | G29: 28 | H29: 0 | I29: 0 | J29: 0 | K29: 0
A30: 29 | B30: LAMBOTTE Didier | C30: 0 | D30: 0 | E30: 0 | G30: 29 | H30: 0 | I30: 0 | J30: 0 | K30: 0
A31: 30 | B31: LEFEVRE Francis | C31: 0 | D31: 0 | E31: 0 | I31: =SUM(K2:K30) -> 13966 | J31: =SUM(J2:J30) -> 3373 | K31: =SUM(I31:J31) -> 17339
A32: 31 | B32: MILET Benoit | C32: 0 | D32: 532 | E32: 532 | I32: =SUM(I31/K31) -> 0.8054674433 | J32: =SUM(J31/K31) -> 0.1945325567
A33: 32 | B33: OVAERE Jimmy | C33: 0 | D33: 0 | E33: 0 | I33: NAT | J33: INT
A34: 33 | B34: POCHET Jean-Dominique | C34: 0 | D34: 0 | E34: 0
A35: 34 | B35: POMPIER Philippe | C35: 0 | D35: 0 | E35: 0
A36: 35 | B36: TERWAGNE Freddy | C36: 0 | D36: 0 | E36: 0
A37: 36 | B37: TERWAGNE Julien | C37: 0 | D37: 0 | E37: 0
A38: 37 | B38: THOMAS Isabelle | C38: 0 | D38: 0 | E38: 0
A39: 38 | B39: VANDEN BOSSCHE Vincent | C39: 0 | D39: 0 | E39: 0
A40: 39 | B40: VANDEN WAEYENBERGH Michel | C40: 0 | D40: 0 | E40: 0
A41: 40 | B41: 0 | C41: 0 | D41: 0 | E41: 0
A42: 41 | B42: 0 | C42: 0 | D42: 0 | E42: 0
A43: 42 | B43: 0 | C43: 0 | D43: 0 | E43: 0
A44: 43 | B44: 0 | C44: 0 | D44: 0 | E44: 0
A45: 44 | B45: 0 | C45: 0 | D45: 0 | E45: 0
A46: 45 | B46: 0 | C46: 0 | D46: 0 | E46: 0
A47: 46 | B47: 0 | C47: 0 | D47: 0 | E47: 0
C49: =SUM(C2:C48) -> 43214 | D49: =SUM(D2:D48) -> 10349 | E49: =SUM(E2:E48) -> 53563
C50: =SUM(C49/E49) -> 0.806788268 | D50: =SUM(D49/E49) -> 0.193211732
C51: NAT | D51: INT

Sheet Résumé Pilotes
D1: PILOTES
B4: Aller-Retour | L4: Aller-Retour
B5: Ronde | D5: NATIONAL | G5: INTERNATIONAL | J5: SCRATCH | L5: Ronde | O5: Confirmé | U5: Non-confirmé
E6: TOTAL | H6: TOTAL | K6: TOTAL
A7: 1 | B7: =VLOOKUP(A7,'Numéro licences'!$H$4:$I$47,2) -> BALFROID Pierre | C7: Aller-Retour | D7: Km renseignés | E7: =SUM('Pilotes Nat'!CL8) -> 0 | G7: Km renseignés | H7: =SUM('Pilotes Inter'!CM7) -> 0 | J7: Km renseignés | K7: =SUM(E7+H7) -> 0 | N7: Colonne1 | O7: Pilotes | P7: NAT | Q7: INT | R7: SCRATCH | U7: Pilotes | V7: NAT | W7: INT | X7: SCRATCH
C8: Ronde | D8: Km confirmés | E8: =SUM('Pilotes Nat'!CL9) -> 0 | G8: Km confirmés | H8: =SUM('Pilotes Inter'!CM8) -> 0 | J8: Km confirmés | K8: =SUM(E8+H8) -> 0 | N8: 1 | O8: =VLOOKUP(N8,'Numéro licences'!$H$4:$I$47,2) -> BALFROID Pierre | P8: =SUM(E8) -> 0 | Q8: =SUM(H8) -> 0 | R8: =SUM(P8:Q8) -> 0 | T8: 1 | U8: =VLOOKUP(T8,'Numéro licences'!$H$4:$I$47,2) -> BALFROID Pierre | V8: =SUM(E7) -> 0 | W8: =SUM(H7) -> 0 | X8: =SUM(V8:W8) -> 0
D9: Rondes confirmées | E9: =SUM('Pilotes Nat'!CL10) -> 0 | G9: Rondes confirmées | H9: =SUM('Pilotes Inter'!CM9) -> 0 | J9: Rondes confirmées | K9: 0 | N9: 2 | O9: =VLOOKUP(N9,'Numéro licences'!$H$4:$I$47,2) -> BALLION Pierre | P9: =SUM(E12) -> 0 | Q9: =SUM(H12) -> 0 | R9: 0 | T9: 2 | U9: =VLOOKUP(T9,'Numéro licences'!$H$4:$I$47,2) -> BALLION Pierre | V9: =SUM(E11) -> 200 | W9: =SUM(H11) -> 0 | X9: =SUM(V9:W9) -> 200
D10: Rondes effectuées | E10: =SUM('Pilotes Nat'!CL11) -> 0 | G10: Rondes effectuées | H10: =SUM('Pilotes Inter'!CM10) -> 0 | J10: Rondes effectuées | K10: 0 | N10: 3 | O10: =VLOOKUP(N10,'Numéro licences'!$H$4:$I$47,2) -> BERDOYES Bruno | P10: =SUM(E16) -> 0 | Q10: =SUM(H16) -> 0 | R10: 0 | T10: 3 | U10: =VLOOKUP(T10,'Numéro licences'!$H$4:$I$47,2) -> BERDOYES Bruno | V10: =SUM(E15) -> 0 | W10: =SUM(H15) -> 0 | X10: 0
A11: 2 | B11: =VLOOKUP(A11,'Numéro licences'!$H$4:$I$47,2) -> BALLION Pierre | C11: Aller-Retour | D11: Km renseignés | E11: =SUM('Pilotes Nat'!CL12) -> 200 | G11: Km renseignés | H11: =SUM('Pilotes Inter'!CM11) -> 0 | J11: Km renseignés | K11: 200 | N11: 4 | O11: =VLOOKUP(N11,'Numéro licences'!$H$4:$I$47,2) -> BERDOYES Yannick | P11: =SUM(E20) -> 0 | Q11: =SUM(H20) -> 0 | R11: 0 | T11: 4 | U11: =VLOOKUP(T11,'Numéro licences'!$H$4:$I$47,2) -> BERDOYES Yannick | V11: =SUM(E19) -> 200 | W11: =SUM(H19) -> 0 | X11: 200
C12: Ronde | D12: Km confirmés | E12: =SUM('Pilotes Nat'!CL13) -> 0 | G12: Km confirmés | H12: =SUM('Pilotes Inter'!CM12) -> 0 | J12: Km confirmés | K12: 0 | N12: 5 | O12: =VLOOKUP(N12,'Numéro licences'!$H$4:$I$47,2) -> BRUNEAU Denis-Claude | P12: =SUM(E24) -> 0 | Q12: =SUM(H24) -> 1379 | R12: 1379 | T12: 5 | U12: =VLOOKUP(T12,'Numéro licences'!$H$4:$I$47,2) -> BRUNEAU Denis-Claude | V12: =SUM(E23) -> 200 | W12: =SUM(H23) -> 1379 | X12: 1579
D13: Rondes confirmées | E13: =SUM('Pilotes Nat'!CL14) -> 0 | G13: Rondes confirmées | H13: =SUM('Pilotes Inter'!CM13) -> 0 | J13: Rondes confirmées | K13: 0 | N13: 6 | O13: =VLOOKUP(N13,'Numéro licences'!$H$4:$I$47,2) -> DAVIN Philippe | P13: =SUM(E28) -> 4300 | Q13: =SUM(H28) -> 1407 | R13: 5707 | T13: 6 | U13: =VLOOKUP(T13,'Numéro licences'!$H$4:$I$47,2) -> DAVIN Philippe | V13: =SUM(E27) -> 4300 | W13: =SUM(H27) -> 1407 | X13: 5707
D14: Rondes effectuées | E14: =SUM('Pilotes Nat'!CL15) -> 0 | G14: Rondes effectuées | H14: =SUM('Pilotes Inter'!CM14) -> 0 | J14: Rondes effectuées | K14: 0 | N14: 7 | O14: =VLOOKUP(N14,'Numéro licences'!$H$4:$I$47,2) -> DE SCHEPPERS Jean-Claude | P14: =SUM(E32) -> 0 | Q14: =SUM(H32) -> 0 | R14: 0 | T14: 7 | U14: =VLOOKUP(T14,'Numéro licences'!$H$4:$I$47,2) -> DE SCHEPPERS Jean-Claude | V14: =SUM(E31) -> 0 | W14: =SUM(H31) -> 0 | X14: 0
A15: 3 | B15: =VLOOKUP(A15,'Numéro licences'!$H$4:$I$47,2) -> BERDOYES Bruno | C15: Aller-Retour | D15: Km renseignés | E15: =SUM('Pilotes Nat'!CL16) -> 0 | G15: Km renseignés | H15: =SUM('Pilotes Inter'!CM15) -> 0 | J15: Km renseignés | K15: 0 | N15: 8 | O15: =VLOOKUP(N15,'Numéro licences'!$H$4:$I$47,2) -> DECUYPER Frédéric | P15: =SUM(E36) -> 0 | Q15: =SUM(H36) -> 0 | R15: 0 | T15: 8 | U15: =VLOOKUP(T15,'Numéro licences'!$H$4:$I$47,2) -> DECUYPER Frédéric | V15: =SUM(E35) -> 0 | W15: =SUM(H35) -> 0 | X15: 0
C16: Ronde | D16: Km confirmés | E16: =SUM('Pilotes Nat'!CL17) -> 0 | G16: Km confirmés | H16: =SUM('Pilotes Inter'!CM16) -> 0 | J16: Km confirmés | K16: 0 | N16: 9 | O16: =VLOOKUP(N16,'Numéro licences'!$H$4:$I$47,2) -> DEWAERSEGHERS Francis | P16: =SUM(E40) -> 0 | Q16: =SUM(H40) -> 0 | R16: 0 | T16: 9 | U16: =VLOOKUP(T16,'Numéro licences'!$H$4:$I$47,2) -> DEWAERSEGHERS Francis | V16: =SUM(E39) -> 589 | W16: =SUM(H39) -> 0 | X16: 589
D17: Rondes confirmées | E17: =SUM('Pilotes Nat'!CL18) -> 0 | G17: Rondes confirmées | H17: =SUM('Pilotes Inter'!CM17) -> 0 | J17: Rondes confirmées | K17: 0 | N17: 10 | O17: =VLOOKUP(N17,'Numéro licences'!$H$4:$I$47,2) -> DHONDT Jerry | P17: =SUM(E44) -> 0 | Q17: =SUM(H44) -> 0 | R17: 0 | T17: 10 | U17: =VLOOKUP(T17,'Numéro licences'!$H$4:$I$47,2) -> DHONDT Jerry | V17: =SUM(E43) -> 2096 | W17: =SUM(H43) -> 0 | X17: 2096
D18: Rondes effectuées | E18: =SUM('Pilotes Nat'!CL19) -> 0 | G18: Rondes effectuées | H18: =SUM('Pilotes Inter'!CM18) -> 0 | J18: Rondes effectuées | K18: 0 | N18: 11 | O18: =VLOOKUP(N18,'Numéro licences'!$H$4:$I$47,2) -> DONY Marc | P18: =SUM(E48) -> 0 | Q18: =SUM(H48) -> 2682 | R18: 2682 | T18: 11 | U18: =VLOOKUP(T18,'Numéro licences'!$H$4:$I$47,2) -> DONY Marc | V18: =SUM(E47) -> 2338 | W18: =SUM(H47) -> 2682 | X18: 5020
A19: 4 | B19: =VLOOKUP(A19,'Numéro licences'!$H$4:$I$47,2) -> BERDOYES Yannick | C19: Aller-Retour | D19: Km renseignés | E19: =SUM('Pilotes Nat'!CL20) -> 200 | G19: Km renseignés | H19: =SUM('Pilotes Inter'!CM19) -> 0 | J19: Km renseignés | K19: 200 | N19: 12 | O19: =VLOOKUP(N19,'Numéro licences'!$H$4:$I$47,2) -> DUMONT Christophe | P19: =SUM(E52) -> 0 | Q19: =SUM(H52) -> 0 | R19: 0 | T19: 12 | U19: =VLOOKUP(T19,'Numéro licences'!$H$4:$I$47,2) -> DUMONT Christophe | V19: =SUM(E51) -> 0 | W19: =SUM(H51) -> 0 | X19: 0
C20: Ronde | D20: Km confirmés | E20: =SUM('Pilotes Nat'!CL21) -> 0 | G20: Km confirmés | H20: =SUM('Pilotes Inter'!CM20) -> 0 | J20: Km confirmés | K20: 0 | N20: 13 | O20: =VLOOKUP(N20,'Numéro licences'!$H$4:$I$47,2) -> FAVRESSSE René | P20: =SUM(E56) -> 0 | Q20: =SUM(H56) -> 0 | R20: 0 | T20: 13 | U20: =VLOOKUP(T20,'Numéro licences'!$H$4:$I$47,2) -> FAVRESSSE René | V20: =SUM(E55) -> 751 | W20: =SUM(H55) -> 0 | X20: 751
D21: Rondes confirmées | E21: =SUM('Pilotes Nat'!CL22) -> 0 | G21: Rondes confirmées | H21: =SUM('Pilotes Inter'!CM21) -> 0 | J21: Rondes confirmées | K21: 0 | N21: 14 | O21: =VLOOKUP(N21,'Numéro licences'!$H$4:$I$47,2) -> GOFFIN Amaury | P21: =SUM(E60) -> 0 | Q21: =SUM(H60) -> 0 | R21: 0 | T21: 14 | U21: =VLOOKUP(T21,'Numéro licences'!$H$4:$I$47,2) -> GOFFIN Amaury | V21: =SUM(E59) -> 0 | W21: =SUM(H59) -> 0 | X21: 0
D22: Rondes effectuées | E22: =SUM('Pilotes Nat'!CL23) -> 0 | G22: Rondes effectuées | H22: =SUM('Pilotes Inter'!CM22) -> 0 | J22: Rondes effectuées | K22: 0 | N22: 15 | O22: =VLOOKUP(N22,'Numéro licences'!$H$4:$I$47,2) -> JAMOTTE Jean | P22: =SUM(E64) -> 8023 | Q22: =SUM(H64) -> 1470 | R22: 9493 | T22: 15 | U22: =VLOOKUP(T22,'Numéro licences'!$H$4:$I$47,2) -> JAMOTTE Jean | V22: =SUM(E63) -> 8023 | W22: =SUM(H63) -> 1470 | X22: 9493
A23: 5 | B23: =VLOOKUP(A23,'Numéro licences'!$H$4:$I$47,2) -> BRUNEAU Denis-Claude | C23: Aller-Retour | D23: Km renseignés | E23: =SUM('Pilotes Nat'!CL24) -> 200 | G23: Km renseignés | H23: =SUM('Pilotes Inter'!CM23) -> 1379 | J23: Km renseignés | K23: 1579 | N23: 16 | O23: =VLOOKUP(N23,'Numéro licences'!$H$4:$I$47,2) -> LAMBOTTE Didier | P23: =SUM(E68) -> 0 | Q23: =SUM(H68) -> 0 | R23: 0 | T23: 16 | U23: =VLOOKUP(T23,'Numéro licences'!$H$4:$I$47,2) -> LAMBOTTE Didier | V23: =SUM(E67) -> 0 | W23: =SUM(H67) -> 0 | X23: 0
C24: Ronde | D24: Km confirmés | E24: =SUM('Pilotes Nat'!CL25) -> 0 | G24: Km confirmés | H24: =SUM('Pilotes Inter'!CM24) -> 1379 | J24: Km confirmés | K24: 1379 | N24: 17 | O24: =VLOOKUP(N24,'Numéro licences'!$H$4:$I$47,2) -> LEFEVRE Francis | P24: =SUM(E72) -> 0 | Q24: =SUM(H72) -> 0 | R24: 0 | T24: 17 | U24: =VLOOKUP(T24,'Numéro licences'!$H$4:$I$47,2) -> LEFEVRE Francis | V24: =SUM(E71) -> 0 | W24: =SUM(H71) -> 0 | X24: 0
D25: Rondes confirmées | E25: =SUM('Pilotes Nat'!CL26) -> 0 | G25: Rondes confirmées | H25: =SUM('Pilotes Inter'!CM25) -> 1 | J25: Rondes confirmées | K25: 1 | N25: 18 | O25: =VLOOKUP(N25,'Numéro licences'!$H$4:$I$47,2) -> LESCAL Thierry | P25: =SUM(E76) -> 8518 | Q25: =SUM(H76) -> 0 | R25: 8518 | T25: 18 | U25: =VLOOKUP(T25,'Numéro licences'!$H$4:$I$47,2) -> LESCAL Thierry | V25: =SUM(E75) -> 8518 | W25: =SUM(H75) -> 0 | X25: 8518
D26: Rondes effectuées | E26: =SUM('Pilotes Nat'!CL27) -> 0 | G26: Rondes effectuées | H26: =SUM('Pilotes Inter'!CM26) -> 1 | J26: Rondes effectuées | K26: 1 | N26: 19 | O26: =VLOOKUP(N26,'Numéro licences'!$H$4:$I$47,2) -> MALLIEN Philippe | P26: =SUM(E80) -> 200 | Q26: =SUM(H80) -> 0 | R26: 200 | T26: 19 | U26: =VLOOKUP(T26,'Numéro licences'!$H$4:$I$47,2) -> MALLIEN Philippe | V26: =SUM(E79) -> 200 | W26: =SUM(H79) -> 0 | X26: 200
A27: 6 | B27: =VLOOKUP(A27,'Numéro licences'!$H$4:$I$47,2) -> DAVIN Philippe | C27: Aller-Retour | D27: Km renseignés | E27: =SUM('Pilotes Nat'!CL28) -> 4300 | G27: Km renseignés | H27: =SUM('Pilotes Inter'!CM27) -> 1407 | J27: Km renseignés | K27: 5707 | N27: 20 | O27: =VLOOKUP(N27,'Numéro licences'!$H$4:$I$47,2) -> MARIEL Didier | P27: =SUM(E84) -> 0 | Q27: =SUM(H84) -> 0 | R27: 0 | T27: 20 | U27: =VLOOKUP(T27,'Numéro licences'!$H$4:$I$47,2) -> MARIEL Didier | V27: =SUM(E83) -> 808 | W27: =SUM(H83) -> 0 | X27: 808
C28: Ronde | D28: Km confirmés | E28: =SUM('Pilotes Nat'!CL29) -> 4300 | G28: Km confirmés | H28: =SUM('Pilotes Inter'!CM28) -> 1407 | J28: Km confirmés | K28: 5707 | N28: 21 | O28: =VLOOKUP(N28,'Numéro licences'!$H$4:$I$47,2) -> MILET Benoit | P28: =SUM(E88) -> 0 | Q28: =SUM(H88) -> 532 | R28: 532 | T28: 21 | U28: =VLOOKUP(T28,'Numéro licences'!$H$4:$I$47,2) -> MILET Benoit | V28: =SUM(E87) -> 0 | W28: =SUM(H87) -> 532 | X28: 532
D29: Rondes confirmées | E29: =SUM('Pilotes Nat'!CL30) -> 14 | G29: Rondes confirmées | H29: =SUM('Pilotes Inter'!CM29) -> 1 | J29: Rondes confirmées | K29: 15 | N29: 22 | O29: =VLOOKUP(N29,'Numéro licences'!$H$4:$I$47,2) -> NIHOUL Dany | P29: =SUM(E92) -> 5197 | Q29: =SUM(H92) -> 1462 | R29: 6659 | T29: 22 | U29: =VLOOKUP(T29,'Numéro licences'!$H$4:$I$47,2) -> NIHOUL Dany | V29: =SUM(E91) -> 5197 | W29: =SUM(H91) -> 1462 | X29: 6659
D30: Rondes effectuées | E30: =SUM('Pilotes Nat'!CL31) -> 12 | G30: Rondes effectuées | H30: =SUM('Pilotes Inter'!CM30) -> 1 | J30: Rondes effectuées | K30: 13 | N30: 23 | O30: =VLOOKUP(N30,'Numéro licences'!$H$4:$I$47,2) -> OVAERE Jimmy | P30: =SUM(E96) -> 0 | Q30: =SUM(H96) -> 0 | R30: 0 | T30: 23 | U30: =VLOOKUP(T30,'Numéro licences'!$H$4:$I$47,2) -> OVAERE Jimmy | V30: =SUM(E95) -> 0 | W30: =SUM(H95) -> 0 | X30: 0
A31: 7 | B31: =VLOOKUP(A31,'Numéro licences'!$H$4:$I$47,2) -> DE SCHEPPERS Jean-Claude | C31: Aller-Retour | D31: Km renseignés | E31: =SUM('Pilotes Nat'!CL32) -> 0 | G31: Km renseignés | H31: =SUM('Pilotes Inter'!CM31) -> 0 | J31: Km renseignés | K31: 0 | N31: 24 | O31: =VLOOKUP(N31,'Numéro licences'!$H$4:$I$47,2) -> PARMENTIER Dominique | P31: =SUM(E100) -> 564 | Q31: =SUM(H100) -> 0 | R31: 564 | T31: 24 | U31: =VLOOKUP(T31,'Numéro licences'!$H$4:$I$47,2) -> PARMENTIER Dominique | V31: =SUM(E99) -> 564 | W31: =SUM(H99) -> 0 | X31: 564
C32: Ronde | D32: Km confirmés | E32: =SUM('Pilotes Nat'!CL33) -> 0 | G32: Km confirmés | H32: =SUM('Pilotes Inter'!CM32) -> 0 | J32: Km confirmés | K32: 0 | N32: 25 | O32: =VLOOKUP(N32,'Numéro licences'!$H$4:$I$47,2) -> POCHET Jean-Dominique | P32: =SUM(E104) -> 0 | Q32: =SUM(H104) -> 0 | R32: 0 | T32: 25 | U32: =VLOOKUP(T32,'Numéro licences'!$H$4:$I$47,2) -> POCHET Jean-Dominique | V32: =SUM(E103) -> 0 | W32: =SUM(H103) -> 0 | X32: 0
D33: Rondes confirmées | E33: =SUM('Pilotes Nat'!CL34) -> 0 | G33: Rondes confirmées | H33: =SUM('Pilotes Inter'!CM33) -> 0 | J33: Rondes confirmées | K33: 0 | N33: 26 | O33: =VLOOKUP(N33,'Numéro licences'!$H$4:$I$47,2) -> POMPIER Philippe | P33: =SUM(E108) -> 0 | Q33: =SUM(H108) -> 0 | R33: 0 | T33: 26 | U33: =VLOOKUP(T33,'Numéro licences'!$H$4:$I$47,2) -> POMPIER Philippe | V33: =SUM(E107) -> 0 | W33: =SUM(H107) -> 0 | X33: 0
D34: Rondes effectuées | E34: =SUM('Pilotes Nat'!CL35) -> 0 | G34: Rondes effectuées | H34: =SUM('Pilotes Inter'!CM34) -> 0 | J34: Rondes effectuées | K34: 0 | N34: 27 | O34: =VLOOKUP(N34,'Numéro licences'!$H$4:$I$47,2) -> RAMEAU Didier | P34: =SUM(E112) -> 0 | Q34: =SUM(H112) -> 0 | R34: 0 | T34: 27 | U34: =VLOOKUP(T34,'Numéro licences'!$H$4:$I$47,2) -> RAMEAU Didier | V34: =SUM(E111) -> 1311 | W34: =SUM(H111) -> 0 | X34: 1311
A35: 8 | B35: =VLOOKUP(A35,'Numéro licences'!$H$4:$I$47,2) -> DECUYPER Frédéric | C35: Aller-Retour | D35: Km renseignés | E35: =SUM('Pilotes Nat'!CL36) -> 0 | G35: Km renseignés | H35: =SUM('Pilotes Inter'!CM35) -> 0 | J35: Km renseignés | K35: 0 | N35: 28 | O35: =VLOOKUP(N35,'Numéro licences'!$H$4:$I$47,2) -> SPITAELS Bernard | P35: =SUM(E116) -> 0 | Q35: =SUM(H116) -> 0 | R35: 0 | T35: 28 | U35: =VLOOKUP(T35,'Numéro licences'!$H$4:$I$47,2) -> SPITAELS Bernard | V35: =SUM(E115) -> 517 | W35: =SUM(H115) -> 0 | X35: 517
C36: Ronde | D36: Km confirmés | E36: =SUM('Pilotes Nat'!CL37) -> 0 | G36: Km confirmés | H36: =SUM('Pilotes Inter'!CM36) -> 0 | J36: Km confirmés | K36: 0 | N36: 29 | O36: =VLOOKUP(N36,'Numéro licences'!$H$4:$I$47,2) -> TERWAGNE Freddy | P36: =SUM(E120) -> 0 | Q36: =SUM(H120) -> 0 | R36: 0 | T36: 29 | U36: =VLOOKUP(T36,'Numéro licences'!$H$4:$I$47,2) -> TERWAGNE Freddy | V36: =SUM(E119) -> 0 | W36: =SUM(H119) -> 0 | X36: 0
D37: Rondes confirmées | E37: =SUM('Pilotes Nat'!CL38) -> 0 | G37: Rondes confirmées | H37: =SUM('Pilotes Inter'!CM37) -> 0 | J37: Rondes confirmées | K37: 0 | N37: 30 | O37: =VLOOKUP(N37,'Numéro licences'!$H$4:$I$47,2) -> TERWAGNE Julien | P37: =SUM(E124) -> 0 | Q37: =SUM(H124) -> 0 | R37: 0 | T37: 30 | U37: =VLOOKUP(T37,'Numéro licences'!$H$4:$I$47,2) -> TERWAGNE Julien | V37: =SUM(E123) -> 0 | W37: =SUM(H123) -> 0 | X37: 0
D38: Rondes effectuées | E38: =SUM('Pilotes Nat'!CL39) -> 0 | G38: Rondes effectuées | H38: =SUM('Pilotes Inter'!CM38) -> 0 | J38: Rondes effectuées | K38: 0 | N38: 31 | O38: =VLOOKUP(N38,'Numéro licences'!$H$4:$I$47,2) -> THOMAS Isabelle | P38: =SUM(E128) -> 0 | Q38: =SUM(H128) -> 0 | R38: 0 | T38: 31 | U38: =VLOOKUP(T38,'Numéro licences'!$H$4:$I$47,2) -> THOMAS Isabelle | V38: =SUM(E127) -> 0 | W38: =SUM(H127) -> 0 | X38: 0
A39: 9 | B39: =VLOOKUP(A39,'Numéro licences'!$H$4:$I$47,2) -> DEWAERSEGHERS Francis | C39: Aller-Retour | D39: Km renseignés | E39: =SUM('Pilotes Nat'!CL40) -> 589 | G39: Km renseignés | H39: =SUM('Pilotes Inter'!CM39) -> 0 | J39: Km renseignés | K39: 589 | N39: 32 | O39: =VLOOKUP(N39,'Numéro licences'!$H$4:$I$47,2) -> URBAIN Philippe | P39: =SUM(E132) -> 0 | Q39: =SUM(H132) -> 1417 | R39: 1417 | T39: 32 | U39: =VLOOKUP(T39,'Numéro licences'!$H$4:$I$47,2) -> URBAIN Philippe | V39: =SUM(E131) -> 156 | W39: =SUM(H131) -> 1417 | X39: 1573
C40: Ronde | D40: Km confirmés | E40: =SUM('Pilotes Nat'!CL41) -> 0 | G40: Km confirmés | H40: =SUM('Pilotes Inter'!CM40) -> 0 | J40: Km confirmés | K40: 0 | N40: 33 | O40: =VLOOKUP(N40,'Numéro licences'!$H$4:$I$47,2) -> VANBELLINGEN Jean-Claude | P40: =SUM(E136) -> 0 | Q40: =SUM(H136) -> 0 | R40: 0 | T40: 33 | U40: =VLOOKUP(T40,'Numéro licences'!$H$4:$I$47,2) -> VANBELLINGEN Jean-Claude | V40: =SUM(E135) -> 863 | W40: =SUM(H135) -> 0 | X40: 863
D41: Rondes confirmées | E41: =SUM('Pilotes Nat'!CL42) -> 0 | G41: Rondes confirmées | H41: =SUM('Pilotes Inter'!CM41) -> 0 | J41: Rondes confirmées | K41: 0 | N41: 34 | O41: =VLOOKUP(N41,'Numéro licences'!$H$4:$I$47,2) -> VANDEN BOSSCHE Vincent | P41: =SUM(E140) -> 0 | Q41: =SUM(H140) -> 0 | R41: 0 | T41: 34 | U41: =VLOOKUP(T41,'Numéro licences'!$H$4:$I$47,2) -> VANDEN BOSSCHE Vincent | V41: =SUM(E139) -> 0 | W41: =SUM(H139) -> 0 | X41: 0
D42: Rondes effectuées | E42: =SUM('Pilotes Nat'!CL43) -> 2 | G42: Rondes effectuées | H42: =SUM('Pilotes Inter'!CM42) -> 0 | J42: Rondes effectuées | K42: 2 | N42: 35 | O42: =VLOOKUP(N42,'Numéro licences'!$H$4:$I$47,2) -> VANDEN WAEYENBERGH Michel | P42: =SUM(E144) -> 0 | Q42: =SUM(H144) -> 0 | R42: 0 | T42: 35 | U42: =VLOOKUP(T42,'Numéro licences'!$H$4:$I$47,2) -> VANDEN WAEYENBERGH Michel | V42: =SUM(E143) -> 0 | W42: =SUM(H143) -> 0 | X42: 0
A43: 10 | B43: =VLOOKUP(A43,'Numéro licences'!$H$4:$I$47,2) -> DHONDT Jerry | C43: Aller-Retour | D43: Km renseignés | E43: =SUM('Pilotes Nat'!CL44) -> 2096 | G43: Km renseignés | H43: =SUM('Pilotes Inter'!CM43) -> 0 | J43: Km renseignés | K43: 2096 | N43: 36 | O43: =VLOOKUP(N43,'Numéro licences'!$H$4:$I$47,2) -> VANSTEYVOORT André | P43: =SUM(E148) -> 0 | Q43: =SUM(H148) -> 0 | R43: 0 | T43: 36 | U43: =VLOOKUP(T43,'Numéro licences'!$H$4:$I$47,2) -> VANSTEYVOORT André | V43: =SUM(E147) -> 200 | W43: =SUM(H147) -> 0 | X43: 200
C44: Ronde | D44: Km confirmés | E44: =SUM('Pilotes Nat'!CL45) -> 0 | G44: Km confirmés | H44: =SUM('Pilotes Inter'!CM44) -> 0 | J44: Km confirmés | K44: 0 | N44: 37 | O44: =VLOOKUP(N44,'Numéro licences'!$H$4:$I$47,2) -> WOUTERS Olivier | P44: =SUM(E152) -> 4681 | Q44: =SUM(H152) -> 0 | R44: 4681 | T44: 37 | U44: =VLOOKUP(T44,'Numéro licences'!$H$4:$I$47,2) -> WOUTERS Olivier | V44: =SUM(E151) -> 4681 | W44: =SUM(H151) -> 0 | X44: 4681
D45: Rondes confirmées | E45: =SUM('Pilotes Nat'!CL46) -> 0 | G45: Rondes confirmées | H45: =SUM('Pilotes Inter'!CM45) -> 0 | J45: Rondes confirmées | K45: 0 | N45: 38 | O45: =VLOOKUP(N45,'Numéro licences'!$H$4:$I$47,2) -> DEMETS Eric | P45: =SUM(E156) -> 0 | Q45: =SUM(H156) -> 0 | R45: 0 | T45: 38 | U45: =VLOOKUP(T45,'Numéro licences'!$H$4:$I$47,2) -> DEMETS Eric | V45: =SUM(E155) -> 751 | W45: =SUM(H155) -> 0 | X45: 751
D46: Rondes effectuées | E46: =SUM('Pilotes Nat'!CL47) -> 7 | G46: Rondes effectuées | H46: =SUM('Pilotes Inter'!CM46) -> 0 | J46: Rondes effectuées | K46: 7 | N46: 39 | O46: =VLOOKUP(N46,'Numéro licences'!$H$4:$I$47,2) -> DECELLE Hubert | P46: =SUM(E160) -> 0 | Q46: =SUM(H160) -> 0 | R46: 0 | T46: 39 | U46: =VLOOKUP(T46,'Numéro licences'!$H$4:$I$47,2) -> DECELLE Hubert | V46: =SUM(E159) -> 751 | W46: =SUM(H159) -> 0 | X46: 751
A47: 11 | B47: =VLOOKUP(A47,'Numéro licences'!$H$4:$I$47,2) -> DONY Marc | C47: Aller-Retour | D47: Km renseignés | E47: =SUM('Pilotes Nat'!CL48) -> 2338 | G47: Km renseignés | H47: =SUM('Pilotes Inter'!CM47) -> 2682 | J47: Km renseignés | K47: 5020 | N47: 40 | O47: =VLOOKUP(N47,'Numéro licences'!$H$4:$I$47,2) -> 0 | P47: =SUM(E164) -> 0 | Q47: =SUM(H164) -> 0 | R47: 0 | T47: 40 | U47: =VLOOKUP(T47,'Numéro licences'!$H$4:$I$47,2) -> 0 | V47: =SUM(E163) -> 0 | W47: =SUM(H163) -> 0 | X47: 0
C48: Ronde | D48: Km confirmés | E48: =SUM('Pilotes Nat'!CL49) -> 0 | G48: Km confirmés | H48: =SUM('Pilotes Inter'!CM48) -> 2682 | J48: Km confirmés | K48: 2682 | N48: 41 | O48: =VLOOKUP(N48,'Numéro licences'!$H$4:$I$47,2) -> 0 | P48: =SUM(E168) -> 0 | Q48: =SUM(H168) -> 0 | R48: 0 | T48: 41 | U48: =VLOOKUP(T48,'Numéro licences'!$H$4:$I$47,2) -> 0 | V48: =SUM(E167) -> 0 | W48: =SUM(H167) -> 0 | X48: 0
D49: Rondes confirmées | E49: =SUM('Pilotes Nat'!CL50) -> 0 | G49: Rondes confirmées | H49: =SUM('Pilotes Inter'!CM49) -> 2 | J49: Rondes confirmées | K49: 2 | N49: 42 | O49: =VLOOKUP(N49,'Numéro licences'!$H$4:$I$47,2) -> 0 | P49: =SUM(E172) -> 0 | Q49: =SUM(H172) -> 0 | R49: 0 | T49: 42 | U49: =VLOOKUP(T49,'Numéro licences'!$H$4:$I$47,2) -> 0 | V49: =SUM(E171) -> 0 | W49: =SUM(H171) -> 0 | X49: 0
D50: Rondes effectuées | E50: =SUM('Pilotes Nat'!CL51) -> 6 | G50: Rondes effectuées | H50: =SUM('Pilotes Inter'!CM50) -> 2 | J50: Rondes effectuées | K50: 8 | N50: 43 | O50: =VLOOKUP(N50,'Numéro licences'!$H$4:$I$47,2) -> 0 | P50: =SUM(E176) -> 0 | Q50: =SUM(H176) -> 0 | R50: 0 | T50: 43 | U50: =VLOOKUP(T50,'Numéro licences'!$H$4:$I$47,2) -> 0 | V50: =SUM(E175) -> 0 | W50: =SUM(H175) -> 0 | X50: 0
A51: 12 | B51: =VLOOKUP(A51,'Numéro licences'!$H$4:$I$47,2) -> DUMONT Christophe | C51: Aller-Retour | D51: Km renseignés | E51: =SUM('Pilotes Nat'!CL52) -> 0 | G51: Km renseignés | H51: =SUM('Pilotes Inter'!CM51) -> 0 | J51: Km renseignés | K51: 0 | N51: 44 | O51: =VLOOKUP(N51,'Numéro licences'!$H$4:$I$47,2) -> 0 | P51: =SUM(E180) -> 0 | Q51: =SUM(H180) -> 0 | R51: 0 | T51: 44 | U51: =VLOOKUP(T51,'Numéro licences'!$H$4:$I$47,2) -> 0 | V51: =SUM(E179) -> 0 | W51: =SUM(H179) -> 0 | X51: 0
C52: Ronde | D52: Km confirmés | E52: =SUM('Pilotes Nat'!CL53) -> 0 | G52: Km confirmés | H52: =SUM('Pilotes Inter'!CM52) -> 0 | J52: Km confirmés | K52: 0 | N52: 45 | O52: =VLOOKUP(N52,'Numéro licences'!$H$4:$I$47,2) -> 0 | P52: =SUM(E184) -> 0 | Q52: =SUM(H184) -> 0 | R52: 0 | T52: 45 | U52: =VLOOKUP(T52,'Numéro licences'!$H$4:$I$47,2) -> 0 | V52: =SUM(E183) -> 0 | W52: =SUM(H183) -> 0 | X52: 0
D53: Rondes confirmées | E53: =SUM('Pilotes Nat'!CL54) -> 0 | G53: Rondes confirmées | H53: =SUM('Pilotes Inter'!CM53) -> 0 | J53: Rondes confirmées | K53: 0 | N53: 46 | O53: =VLOOKUP(N53,'Numéro licences'!$H$4:$I$47,2) -> 0 | P53: =SUM(E188) -> 0 | Q53: =SUM(H188) -> 0 | R53: 0 | T53: 46 | U53: =VLOOKUP(T53,'Numéro licences'!$H$4:$I$47,2) -> 0 | V53: =SUM(E187) -> 0 | W53: =SUM(H187) -> 0 | X53: 0
D54: Rondes effectuées | E54: =SUM('Pilotes Nat'!CL55) -> 0 | G54: Rondes effectuées | H54: =SUM('Pilotes Inter'!CM54) -> 0 | J54: Rondes effectuées | K54: 0
A55: 13 | B55: =VLOOKUP(A55,'Numéro licences'!$H$4:$I$47,2) -> FAVRESSSE René | C55: Aller-Retour | D55: Km renseignés | E55: =SUM('Pilotes Nat'!CL56) -> 751 | G55: Km renseignés | H55: =SUM('Pilotes Inter'!CM55) -> 0 | J55: Km renseignés | K55: 751
C56: Ronde | D56: Km confirmés | E56: =SUM('Pilotes Nat'!CL57) -> 0 | G56: Km confirmés | H56: =SUM('Pilotes Inter'!CM56) -> 0 | J56: Km confirmés | K56: 0
D57: Rondes confirmées | E57: =SUM('Pilotes Nat'!CL58) -> 0 | G57: Rondes confirmées | H57: =SUM('Pilotes Inter'!CM57) -> 0 | J57: Rondes confirmées | K57: 0
D58: Rondes effectuées | E58: =SUM('Pilotes Nat'!CL59) -> 1 | G58: Rondes effectuées | H58: =SUM('Pilotes Inter'!CM58) -> 0 | J58: Rondes effectuées | K58: 1
A59: 14 | B59: =VLOOKUP(A59,'Numéro licences'!$H$4:$I$47,2) -> GOFFIN Amaury | C59: Aller-Retour | D59: Km renseignés | E59: =SUM('Pilotes Nat'!CL60) -> 0 | G59: Km renseignés | H59: =SUM('Pilotes Inter'!CM59) -> 0 | J59: Km renseignés | K59: 0 | P59: =SUM(P8:P53) -> 31483 | Q59: =SUM(Q8:Q53) -> 10349 | R59: =SUM(P59:Q59) -> 41832 | V59: =SUM(V8:V53) -> 43214 | W59: =SUM(W8:W53) -> 10349 | X59: =SUM(V59:W59) -> 53563
C60: Ronde | D60: Km confirmés | E60: =SUM('Pilotes Nat'!CL61) -> 0 | G60: Km confirmés | H60: =SUM('Pilotes Inter'!CM60) -> 0 | J60: Km confirmés | K60: 0 | P60: =SUM(P59/R59) -> 0.7526056607 | Q60: =SUM(Q59/R59) -> 0.2473943393 | V60: =SUM(V59/X59) -> 0.806788268 | W60: =SUM(W59/X59) -> 0.193211732
D61: Rondes confirmées | E61: =SUM('Pilotes Nat'!CL62) -> 0 | G61: Rondes confirmées | H61: =SUM('Pilotes Inter'!CM61) -> 0 | J61: Rondes confirmées | K61: 0 | P61: NAT | Q61: INT | V61: NAT | W61: INT
D62: Rondes effectuées | E62: =SUM('Pilotes Nat'!CL63) -> 0 | G62: Rondes effectuées | H62: =SUM('Pilotes Inter'!CM62) -> 0 | J62: Rondes effectuées | K62: 0
A63: 15 | B63: =VLOOKUP(A63,'Numéro licences'!$H$4:$I$47,2) -> JAMOTTE Jean | C63: Aller-Retour | D63: Km renseignés | E63: =SUM('Pilotes Nat'!CL64) -> 8023 | G63: Km renseignés | H63: =SUM('Pilotes Inter'!CM63) -> 1470 | J63: Km renseignés | K63: 9493
C64: Ronde | D64: Km confirmés | E64: =SUM('Pilotes Nat'!CL65) -> 8023 | G64: Km confirmés | H64: =SUM('Pilotes Inter'!CM64) -> 1470 | J64: Km confirmés | K64: 9493
D65: Rondes confirmées | E65: =SUM('Pilotes Nat'!CL66) -> 25 | G65: Rondes confirmées | H65: =SUM('Pilotes Inter'!CM65) -> 1 | J65: Rondes confirmées | K65: 26
D66: Rondes effectuées | E66: =SUM('Pilotes Nat'!CL67) -> 23 | G66: Rondes effectuées | H66: =SUM('Pilotes Inter'!CM66) -> 1 | J66: Rondes effectuées | K66: 24
A67: 16 | B67: =VLOOKUP(A67,'Numéro licences'!$H$4:$I$47,2) -> LAMBOTTE Didier | C67: Aller-Retour | D67: Km renseignés | E67: =SUM('Pilotes Nat'!CL68) -> 0 | G67: Km renseignés | H67: =SUM('Pilotes Inter'!CM67) -> 0 | J67: Km renseignés | K67: 0
C68: Ronde | D68: Km confirmés | E68: =SUM('Pilotes Nat'!CL69) -> 0 | G68: Km confirmés | H68: =SUM('Pilotes Inter'!CM68) -> 0 | J68: Km confirmés | K68: 0
D69: Rondes confirmées | E69: =SUM('Pilotes Nat'!CL70) -> 0 | G69: Rondes confirmées | H69: =SUM('Pilotes Inter'!CM69) -> 0 | J69: Rondes confirmées | K69: 0
D70: Rondes effectuées | E70: =SUM('Pilotes Nat'!CL71) -> 0 | G70: Rondes effectuées | H70: =SUM('Pilotes Inter'!CM70) -> 0 | J70: Rondes effectuées | K70: 0
A71: 17 | B71: =VLOOKUP(A71,'Numéro licences'!$H$4:$I$47,2) -> LEFEVRE Francis | C71: Aller-Retour | D71: Km renseignés | E71: =SUM('Pilotes Nat'!CL72) -> 0 | G71: Km renseignés | H71: =SUM('Pilotes Inter'!CM71) -> 0 | J71: Km renseignés | K71: 0
C72: Ronde | D72: Km confirmés | E72: =SUM('Pilotes Nat'!CL73) -> 0 | G72: Km confirmés | H72: =SUM('Pilotes Inter'!CM72) -> 0 | J72: Km confirmés | K72: =SUM(E72+H72) -> 0
D73: Rondes confirmées | E73: =SUM('Pilotes Nat'!CL74) -> 0 | G73: Rondes confirmées | H73: =SUM('Pilotes Inter'!CM73) -> 0 | J73: Rondes confirmées | K73: 0
D74: Rondes effectuées | E74: =SUM('Pilotes Nat'!CL75) -> 0 | G74: Rondes effectuées | H74: =SUM('Pilotes Inter'!CM74) -> 0 | J74: Rondes effectuées | K74: 0
A75: 18 | B75: =VLOOKUP(A75,'Numéro licences'!$H$4:$I$47,2) -> LESCAL Thierry | C75: Aller-Retour | D75: Km renseignés | E75: =SUM('Pilotes Nat'!CL76) -> 8518 | G75: Km renseignés | H75: =SUM('Pilotes Inter'!CM75) -> 0 | J75: Km renseignés | K75: 8518
C76: Ronde | D76: Km confirmés | E76: =SUM('Pilotes Nat'!CL77) -> 8518 | G76: Km confirmés | H76: =SUM('Pilotes Inter'!CM76) -> 0 | J76: Km confirmés | K76: 8518
D77: Rondes confirmées | E77: =SUM('Pilotes Nat'!CL78) -> 26 | G77: Rondes confirmées | H77: =SUM('Pilotes Inter'!CM77) -> 0 | J77: Rondes confirmées | K77: 26
D78: Rondes effectuées | E78: =SUM('Pilotes Nat'!CL79) -> 24 | G78: Rondes effectuées | H78: =SUM('Pilotes Inter'!CM78) -> 0 | J78: Rondes effectuées | K78: 24
A79: 19 | B79: =VLOOKUP(A79,'Numéro licences'!$H$4:$I$47,2) -> MALLIEN Philippe | C79: Aller-Retour | D79: Km renseignés | E79: =SUM('Pilotes Nat'!CL80) -> 200 | G79: Km renseignés | H79: =SUM('Pilotes Inter'!CM79) -> 0 | J79: Km renseignés | K79: 200
C80: Ronde | D80: Km confirmés | E80: =SUM('Pilotes Nat'!CL81) -> 200 | G80: Km confirmés | H80: =SUM('Pilotes Inter'!CM80) -> 0 | J80: Km confirmés | K80: 200
D81: Rondes confirmées | E81: =SUM('Pilotes Nat'!CL82) -> 0 | G81: Rondes confirmées | H81: =SUM('Pilotes Inter'!CM81) -> 0 | J81: Rondes confirmées | K81: 0
D82: Rondes effectuées | E82: =SUM('Pilotes Nat'!CL83) -> 0 | G82: Rondes effectuées | H82: =SUM('Pilotes Inter'!CM82) -> 0 | J82: Rondes effectuées | K82: 0
A83: 20 | B83: =VLOOKUP(A83,'Numéro licences'!$H$4:$I$47,2) -> MARIEL Didier | C83: Aller-Retour | D83: Km renseignés | E83: =SUM('Pilotes Nat'!CL84) -> 808 | G83: Km renseignés | H83: =SUM('Pilotes Inter'!CM83) -> 0 | J83: Km renseignés | K83: 808
C84: Ronde | D84: Km confirmés | E84: =SUM('Pilotes Nat'!CL85) -> 0 | G84: Km confirmés | H84: =SUM('Pilotes Inter'!CM84) -> 0 | J84: Km confirmés | K84: 0
D85: Rondes confirmées | E85: =SUM('Pilotes Nat'!CL86) -> 0 | G85: Rondes confirmées | H85: =SUM('Pilotes Inter'!CM85) -> 0 | J85: Rondes confirmées | K85: 0
D86: Rondes effectuées | E86: =SUM('Pilotes Nat'!CL87) -> 3 | G86: Rondes effectuées | H86: =SUM('Pilotes Inter'!CM86) -> 0 | J86: Rondes effectuées | K86: 3
A87: 21 | B87: =VLOOKUP(A87,'Numéro licences'!$H$4:$I$47,2) -> MILET Benoit | C87: Aller-Retour | D87: Km renseignés | E87: =SUM('Pilotes Nat'!CL88) -> 0 | G87: Km renseignés | H87: =SUM('Pilotes Inter'!CM87) -> 532 | J87: Km renseignés | K87: 532
C88: Ronde | D88: Km confirmés | E88: =SUM('Pilotes Nat'!CL89) -> 0 | G88: Km confirmés | H88: =SUM('Pilotes Inter'!CM88) -> 532 | J88: Km confirmés | K88: 532
D89: Rondes confirmées | E89: =SUM('Pilotes Nat'!CL90) -> 0 | G89: Rondes confirmées | H89: =SUM('Pilotes Inter'!CM89) -> 1 | J89: Rondes confirmées | K89: 1
D90: Rondes effectuées | E90: =SUM('Pilotes Nat'!CL91) -> 0 | G90: Rondes effectuées | H90: =SUM('Pilotes Inter'!CM90) -> 1 | J90: Rondes effectuées | K90: 1
A91: 22 | B91: =VLOOKUP(A91,'Numéro licences'!$H$4:$I$47,2) -> NIHOUL Dany | C91: Aller-Retour | D91: Km renseignés | E91: =SUM('Pilotes Nat'!CL92) -> 5197 | G91: Km renseignés | H91: =SUM('Pilotes Inter'!CM91) -> 1462 | J91: Km renseignés | K91: 6659
C92: Ronde | D92: Km confirmés | E92: =SUM('Pilotes Nat'!CL93) -> 5197 | G92: Km confirmés | H92: =SUM('Pilotes Inter'!CM92) -> 1462 | J92: Km confirmés | K92: 6659
D93: Rondes confirmées | E93: =SUM('Pilotes Nat'!CL94) -> 16 | G93: Rondes confirmées | H93: =SUM('Pilotes Inter'!CM93) -> 1 | J93: Rondes confirmées | K93: 17
D94: Rondes effectuées | E94: =SUM('Pilotes Nat'!CL95) -> 14 | G94: Rondes effectuées | H94: =SUM('Pilotes Inter'!CM94) -> 1 | J94: Rondes effectuées | K94: 15
A95: 23 | B95: =VLOOKUP(A95,'Numéro licences'!$H$4:$I$47,2) -> OVAERE Jimmy | C95: Aller-Retour | D95: Km renseignés | E95: =SUM('Pilotes Nat'!CL96) -> 0 | G95: Km renseignés | H95: =SUM('Pilotes Inter'!CM95) -> 0 | J95: Km renseignés | K95: 0
C96: Ronde | D96: Km confirmés | E96: =SUM('Pilotes Nat'!CL97) -> 0 | G96: Km confirmés | H96: =SUM('Pilotes Inter'!CM96) -> 0 | J96: Km confirmés | K96: 0
D97: Rondes confirmées | E97: =SUM('Pilotes Nat'!CL98) -> 0 | G97: Rondes confirmées | H97: =SUM('Pilotes Inter'!CM97) -> 0 | J97: Rondes confirmées | K97: 0
D98: Rondes effectuées | E98: =SUM('Pilotes Nat'!CL99) -> 0 | G98: Rondes effectuées | H98: =SUM('Pilotes Inter'!CM98) -> 0 | J98: Rondes effectuées | K98: 0
A99: 24 | B99: =VLOOKUP(A99,'Numéro licences'!$H$4:$I$47,2) -> PARMENTIER Dominique | C99: Aller-Retour | D99: Km renseignés | E99: =SUM('Pilotes Nat'!CL100) -> 564 | G99: Km renseignés | H99: =SUM('Pilotes Inter'!CM99) -> 0 | J99: Km renseignés | K99: 564
C100: Ronde | D100: Km confirmés | E100: =SUM('Pilotes Nat'!CL101) -> 564 | G100: Km confirmés | H100: =SUM('Pilotes Inter'!CM100) -> 0 | J100: Km confirmés | K100: 564
D101: Rondes confirmées | E101: =SUM('Pilotes Nat'!CL102) -> 1 | G101: Rondes confirmées | H101: =SUM('Pilotes Inter'!CM101) -> 0 | J101: Rondes confirmées | K101: 1
D102: Rondes effectuées | E102: =SUM('Pilotes Nat'!CL103) -> 3 | G102: Rondes effectuées | H102: =SUM('Pilotes Inter'!CM102) -> 0 | J102: Rondes effectuées | K102: 3
A103: 25 | B103: =VLOOKUP(A103,'Numéro licences'!$H$4:$I$47,2) -> POCHET Jean-Dominique | C103: Aller-Retour | D103: Km renseignés | E103: =SUM('Pilotes Nat'!CL104) -> 0 | G103: Km renseignés | H103: =SUM('Pilotes Inter'!CM103) -> 0 | J103: Km renseignés | K103: 0
C104: Ronde | D104: Km confirmés | E104: =SUM('Pilotes Nat'!CL105) -> 0 | G104: Km confirmés | H104: =SUM('Pilotes Inter'!CM104) -> 0 | J104: Km confirmés | K104: 0
D105: Rondes confirmées | E105: =SUM('Pilotes Nat'!CL106) -> 0 | G105: Rondes confirmées | H105: =SUM('Pilotes Inter'!CM105) -> 0 | J105: Rondes confirmées | K105: 0
D106: Rondes effectuées | E106: =SUM('Pilotes Nat'!CL107) -> 0 | G106: Rondes effectuées | H106: =SUM('Pilotes Inter'!CM106) -> 0 | J106: Rondes effectuées | K106: 0
A107: 26 | B107: =VLOOKUP(A107,'Numéro licences'!$H$4:$I$47,2) -> POMPIER Philippe | C107: Aller-Retour | D107: Km renseignés | E107: =SUM('Pilotes Nat'!CL108) -> 0 | G107: Km renseignés | H107: =SUM('Pilotes Inter'!CM107) -> 0 | J107: Km renseignés | K107: 0
C108: Ronde | D108: Km confirmés | E108: =SUM('Pilotes Nat'!CL109) -> 0 | G108: Km confirmés | H108: =SUM('Pilotes Inter'!CM108) -> 0 | J108: Km confirmés | K108: 0
D109: Rondes confirmées | E109: =SUM('Pilotes Nat'!CL110) -> 0 | G109: Rondes confirmées | H109: =SUM('Pilotes Inter'!CM109) -> 0 | J109: Rondes confirmées | K109: 0
D110: Rondes effectuées | E110: =SUM('Pilotes Nat'!CL111) -> 0 | G110: Rondes effectuées | H110: =SUM('Pilotes Inter'!CM110) -> 0 | J110: Rondes effectuées | K110: 0
A111: 27 | B111: =VLOOKUP(A111,'Numéro licences'!$H$4:$I$47,2) -> RAMEAU Didier | C111: Aller-Retour | D111: Km renseignés | E111: =SUM('Pilotes Nat'!CL112) -> 1311 | G111: Km renseignés | H111: =SUM('Pilotes Inter'!CM111) -> 0 | J111: Km renseignés | K111: 1311
C112: Ronde | D112: Km confirmés | E112: =SUM('Pilotes Nat'!CL113) -> 0 | G112: Km confirmés | H112: =SUM('Pilotes Inter'!CM112) -> 0 | J112: Km confirmés | K112: 0
D113: Rondes confirmées | E113: =SUM('Pilotes Nat'!CL114) -> 0 | G113: Rondes confirmées | H113: =SUM('Pilotes Inter'!CM113) -> 0 | J113: Rondes confirmées | K113: 0
D114: Rondes effectuées | E114: =SUM('Pilotes Nat'!CL115) -> 4 | G114: Rondes effectuées | H114: =SUM('Pilotes Inter'!CM114) -> 0 | J114: Rondes effectuées | K114: 4
A115: 28 | B115: =VLOOKUP(A115,'Numéro licences'!$H$4:$I$47,2) -> SPITAELS Bernard | C115: Aller-Retour | D115: Km renseignés | E115: =SUM('Pilotes Nat'!CL116) -> 517 | G115: Km renseignés | H115: =SUM('Pilotes Inter'!CM115) -> 0 | J115: Km renseignés | K115: 517
C116: Ronde | D116: Km confirmés | E116: =SUM('Pilotes Nat'!CL117) -> 0 | G116: Km confirmés | H116: =SUM('Pilotes Inter'!CM116) -> 0 | J116: Km confirmés | K116: 0
D117: Rondes confirmées | E117: =SUM('Pilotes Nat'!CL118) -> 0 | G117: Rondes confirmées | H117: =SUM('Pilotes Inter'!CM117) -> 0 | J117: Rondes confirmées | K117: 0
D118: Rondes effectuées | E118: =SUM('Pilotes Nat'!CL119) -> 2 | G118: Rondes effectuées | H118: =SUM('Pilotes Inter'!CM118) -> 0 | J118: Rondes effectuées | K118: 2
A119: 29 | B119: =VLOOKUP(A119,'Numéro licences'!$H$4:$I$47,2) -> TERWAGNE Freddy | C119: Aller-Retour | D119: Km renseignés | E119: =SUM('Pilotes Nat'!CL120) -> 0 | G119: Km renseignés | H119: =SUM('Pilotes Inter'!CM119) -> 0 | J119: Km renseignés | K119: 0
C120: Ronde | D120: Km confirmés | E120: =SUM('Pilotes Nat'!CL121) -> 0 | G120: Km confirmés | H120: =SUM('Pilotes Inter'!CM120) -> 0 | J120: Km confirmés | K120: 0
D121: Rondes confirmées | E121: =SUM('Pilotes Nat'!CL122) -> 0 | G121: Rondes confirmées | H121: =SUM('Pilotes Inter'!CM121) -> 0 | J121: Rondes confirmées | K121: 0
D122: Rondes effectuées | E122: =SUM('Pilotes Nat'!CL123) -> 0 | G122: Rondes effectuées | H122: =SUM('Pilotes Inter'!CM122) -> 0 | J122: Rondes effectuées | K122: 0
A123: 30 | B123: =VLOOKUP(A123,'Numéro licences'!$H$4:$I$47,2) -> TERWAGNE Julien | C123: Aller-Retour | D123: Km renseignés | E123: =SUM('Pilotes Nat'!CL124) -> 0 | G123: Km renseignés | H123: =SUM('Pilotes Inter'!CM123) -> 0 | J123: Km renseignés | K123: 0
C124: Ronde | D124: Km confirmés | E124: =SUM('Pilotes Nat'!CL125) -> 0 | G124: Km confirmés | H124: =SUM('Pilotes Inter'!CM124) -> 0 | J124: Km confirmés | K124: 0
D125: Rondes confirmées | E125: =SUM('Pilotes Nat'!CL126) -> 0 | G125: Rondes confirmées | H125: =SUM('Pilotes Inter'!CM125) -> 0 | J125: Rondes confirmées | K125: 0
D126: Rondes effectuées | E126: =SUM('Pilotes Nat'!CL127) -> 0 | G126: Rondes effectuées | H126: =SUM('Pilotes Inter'!CM126) -> 0 | J126: Rondes effectuées | K126: 0
A127: 31 | B127: =VLOOKUP(A127,'Numéro licences'!$H$4:$I$47,2) -> THOMAS Isabelle | C127: Aller-Retour | D127: Km renseignés | E127: =SUM('Pilotes Nat'!CL128) -> 0 | G127: Km renseignés | H127: =SUM('Pilotes Inter'!CM127) -> 0 | J127: Km renseignés | K127: 0
C128: Ronde | D128: Km confirmés | E128: =SUM('Pilotes Nat'!CL129) -> 0 | G128: Km confirmés | H128: =SUM('Pilotes Inter'!CM128) -> 0 | J128: Km confirmés | K128: 0
D129: Rondes confirmées | E129: =SUM('Pilotes Nat'!CL130) -> 0 | G129: Rondes confirmées | H129: =SUM('Pilotes Inter'!CM129) -> 0 | J129: Rondes confirmées | K129: 0
D130: Rondes effectuées | E130: =SUM('Pilotes Nat'!CL131) -> 0 | G130: Rondes effectuées | H130: =SUM('Pilotes Inter'!CM130) -> 0 | J130: Rondes effectuées | K130: 0
A131: 32 | B131: =VLOOKUP(A131,'Numéro licences'!$H$4:$I$47,2) -> URBAIN Philippe | C131: Aller-Retour | D131: Km renseignés | E131: =SUM('Pilotes Nat'!CL132) -> 156 | G131: Km renseignés | H131: =SUM('Pilotes Inter'!CM131) -> 1417 | J131: Km renseignés | K131: 1573
C132: Ronde | D132: Km confirmés | E132: =SUM('Pilotes Nat'!CL133) -> 0 | G132: Km confirmés | H132: =SUM('Pilotes Inter'!CM132) -> 1417 | J132: Km confirmés | K132: 1417
D133: Rondes confirmées | E133: =SUM('Pilotes Nat'!CL134) -> 0 | G133: Rondes confirmées | H133: =SUM('Pilotes Inter'!CM133) -> 1 | J133: Rondes confirmées | K133: 1
D134: Rondes effectuées | E134: =SUM('Pilotes Nat'!CL135) -> 1 | G134: Rondes effectuées | H134: =SUM('Pilotes Inter'!CM134) -> 1 | J134: Rondes effectuées | K134: 2
A135: 33 | B135: =VLOOKUP(A135,'Numéro licences'!$H$4:$I$47,2) -> VANBELLINGEN Jean-Claude | C135: Aller-Retour | D135: Km renseignés | E135: =SUM('Pilotes Nat'!CL136) -> 863 | G135: Km renseignés | H135: =SUM('Pilotes Inter'!CM135) -> 0 | J135: Km renseignés | K135: 863
C136: Ronde | D136: Km confirmés | E136: =SUM('Pilotes Nat'!CL137) -> 0 | G136: Km confirmés | H136: =SUM('Pilotes Inter'!CM136) -> 0 | J136: Km confirmés | K136: =SUM(E136+H136) -> 0
D137: Rondes confirmées | E137: =SUM('Pilotes Nat'!CL138) -> 0 | G137: Rondes confirmées | H137: =SUM('Pilotes Inter'!CM137) -> 0 | J137: Rondes confirmées | K137: 0
D138: Rondes effectuées | E138: =SUM('Pilotes Nat'!CL139) -> 3 | G138: Rondes effectuées | H138: =SUM('Pilotes Inter'!CM138) -> 0 | J138: Rondes effectuées | K138: 3
A139: 34 | B139: =VLOOKUP(A139,'Numéro licences'!$H$4:$I$47,2) -> VANDEN BOSSCHE Vincent | C139: Aller-Retour | D139: Km renseignés | E139: =SUM('Pilotes Nat'!CL140) -> 0 | G139: Km renseignés | H139: =SUM('Pilotes Inter'!CM139) -> 0 | J139: Km renseignés | K139: 0
C140: Ronde | D140: Km confirmés | E140: =SUM('Pilotes Nat'!CL141) -> 0 | G140: Km confirmés | H140: =SUM('Pilotes Inter'!CM140) -> 0 | J140: Km confirmés | K140: 0
D141: Rondes confirmées | E141: =SUM('Pilotes Nat'!CL142) -> 0 | G141: Rondes confirmées | H141: =SUM('Pilotes Inter'!CM141) -> 0 | J141: Rondes confirmées | K141: 0
D142: Rondes effectuées | E142: =SUM('Pilotes Nat'!CL143) -> 0 | G142: Rondes effectuées | H142: =SUM('Pilotes Inter'!CM142) -> 0 | J142: Rondes effectuées | K142: 0
A143: 35 | B143: =VLOOKUP(A143,'Numéro licences'!$H$4:$I$47,2) -> VANDEN WAEYENBERGH Michel | C143: Aller-Retour | D143: Km renseignés | E143: =SUM('Pilotes Nat'!CL144) -> 0 | G143: Km renseignés | H143: =SUM('Pilotes Inter'!CM143) -> 0 | J143: Km renseignés | K143: 0
C144: Ronde | D144: Km confirmés | E144: =SUM('Pilotes Nat'!CL145) -> 0 | G144: Km confirmés | H144: =SUM('Pilotes Inter'!CM144) -> 0 | J144: Km confirmés | K144: 0
D145: Rondes confirmées | E145: =SUM('Pilotes Nat'!CL146) -> 0 | G145: Rondes confirmées | H145: =SUM('Pilotes Inter'!CM145) -> 0 | J145: Rondes confirmées | K145: 0
D146: Rondes effectuées | E146: =SUM('Pilotes Nat'!CL147) -> 0 | G146: Rondes effectuées | H146: =SUM('Pilotes Inter'!CM146) -> 0 | J146: Rondes effectuées | K146: 0
A147: 36 | B147: =VLOOKUP(A147,'Numéro licences'!$H$4:$I$47,2) -> VANSTEYVOORT André | C147: Aller-Retour | D147: Km renseignés | E147: =SUM('Pilotes Nat'!CL148) -> 200 | G147: Km renseignés | H147: =SUM('Pilotes Inter'!CM147) -> 0 | J147: Km renseignés | K147: 200
C148: Ronde | D148: Km confirmés | E148: =SUM('Pilotes Nat'!CL149) -> 0 | G148: Km confirmés | H148: =SUM('Pilotes Inter'!CM148) -> 0 | J148: Km confirmés | K148: 0
D149: Rondes confirmées | E149: =SUM('Pilotes Nat'!CL150) -> 0 | G149: Rondes confirmées | H149: =SUM('Pilotes Inter'!CM149) -> 0 | J149: Rondes confirmées | K149: 0
D150: Rondes effectuées | E150: =SUM('Pilotes Nat'!CL151) -> 0 | G150: Rondes effectuées | H150: =SUM('Pilotes Inter'!CM150) -> 0 | J150: Rondes effectuées | K150: 0
A151: 37 | B151: =VLOOKUP(A151,'Numéro licences'!$H$4:$I$47,2) -> WOUTERS Olivier | C151: Aller-Retour | D151: Km renseignés | E151: =SUM('Pilotes Nat'!CL152) -> 4681 | G151: Km renseignés | H151: =SUM('Pilotes Inter'!CM151) -> 0 | J151: Km renseignés | K151: 4681
C152: Ronde | D152: Km confirmés | E152: =SUM('Pilotes Nat'!CL153) -> 4681 | G152: Km confirmés | H152: =SUM('Pilotes Inter'!CM152) -> 0 | J152: Km confirmés | K152: 4681
D153: Rondes confirmées | E153: =SUM('Pilotes Nat'!CL154) -> 14 | G153: Rondes confirmées | H153: =SUM('Pilotes Inter'!CM153) -> 0 | J153: Rondes confirmées | K153: 14
D154: Rondes effectuées | E154: =SUM('Pilotes Nat'!CL155) -> 13 | G154: Rondes effectuées | H154: =SUM('Pilotes Inter'!CM154) -> 0 | J154: Rondes effectuées | K154: 13
A155: 38 | B155: =VLOOKUP(A155,'Numéro licences'!$H$4:$I$47,2) -> DEMETS Eric | C155: Aller-Retour | D155: Km renseignés | E155: =SUM('Pilotes Nat'!CL156) -> 751 | G155: Km renseignés | H155: =SUM('Pilotes Inter'!CM155) -> 0 | J155: Km renseignés | K155: 751
C156: Ronde | D156: Km confirmés | E156: =SUM('Pilotes Nat'!CL157) -> 0 | G156: Km confirmés | H156: =SUM('Pilotes Inter'!CM156) -> 0 | J156: Km confirmés | K156: 0
D157: Rondes confirmées | E157: =SUM('Pilotes Nat'!CL158) -> 0 | G157: Rondes confirmées | H157: =SUM('Pilotes Inter'!CM157) -> 0 | J157: Rondes confirmées | K157: 0
D158: Rondes effectuées | E158: =SUM('Pilotes Nat'!CL159) -> 1 | G158: Rondes effectuées | H158: =SUM('Pilotes Inter'!CM158) -> 0 | J158: Rondes effectuées | K158: 1
A159: 39 | B159: =VLOOKUP(A159,'Numéro licences'!$H$4:$I$47,2) -> DECELLE Hubert | C159: Aller-Retour | D159: Km renseignés | E159: =SUM('Pilotes Nat'!CL160) -> 751 | G159: Km renseignés | H159: =SUM('Pilotes Inter'!CM159) -> 0 | J159: Km renseignés | K159: 751
C160: Ronde | D160: Km confirmés | E160: =SUM('Pilotes Nat'!CL161) -> 0 | G160: Km confirmés | H160: =SUM('Pilotes Inter'!CM160) -> 0 | J160: Km confirmés | K160: 0
D161: Rondes confirmées | E161: =SUM('Pilotes Nat'!CL162) -> 0 | G161: Rondes confirmées | H161: =SUM('Pilotes Inter'!CM161) -> 0 | J161: Rondes confirmées | K161: 0
D162: Rondes effectuées | E162: =SUM('Pilotes Nat'!CL163) -> 1 | G162: Rondes effectuées | H162: =SUM('Pilotes Inter'!CM162) -> 0 | J162: Rondes effectuées | K162: 1
A163: 40 | B163: =VLOOKUP(A163,'Numéro licences'!$H$4:$I$47,2) -> 0 | C163: Aller-Retour | D163: Km renseignés | E163: =SUM('Pilotes Nat'!CL164) -> 0 | G163: Km renseignés | H163: =SUM('Pilotes Inter'!CM163) -> 0 | J163: Km renseignés | K163: 0
C164: Ronde | D164: Km confirmés | E164: =SUM('Pilotes Nat'!CL165) -> 0 | G164: Km confirmés | H164: =SUM('Pilotes Inter'!CM164) -> 0 | J164: Km confirmés | K164: 0
D165: Rondes confirmées | E165: =SUM('Pilotes Nat'!CL166) -> 0 | G165: Rondes confirmées | H165: =SUM('Pilotes Inter'!CM165) -> 0 | J165: Rondes confirmées | K165: 0
D166: Rondes effectuées | E166: =SUM('Pilotes Nat'!CL167) -> 0 | G166: Rondes effectuées | H166: =SUM('Pilotes Inter'!CM166) -> 0 | J166: Rondes effectuées | K166: 0
A167: 41 | B167: =VLOOKUP(A167,'Numéro licences'!$H$4:$I$47,2) -> 0 | C167: Aller-Retour | D167: Km renseignés | E167: =SUM('Pilotes Nat'!CL168) -> 0 | G167: Km renseignés | H167: =SUM('Pilotes Inter'!CM167) -> 0 | J167: Km renseignés | K167: 0
C168: Ronde | D168: Km confirmés | E168: =SUM('Pilotes Nat'!CL169) -> 0 | G168: Km confirmés | H168: =SUM('Pilotes Inter'!CM168) -> 0 | J168: Km confirmés | K168: 0
D169: Rondes confirmées | E169: =SUM('Pilotes Nat'!CL170) -> 0 | G169: Rondes confirmées | H169: =SUM('Pilotes Inter'!CM169) -> 0 | J169: Rondes confirmées | K169: 0
D170: Rondes effectuées | E170: =SUM('Pilotes Nat'!CL171) -> 0 | G170: Rondes effectuées | H170: =SUM('Pilotes Inter'!CM170) -> 0 | J170: Rondes effectuées | K170: 0
A171: 42 | B171: =VLOOKUP(A171,'Numéro licences'!$H$4:$I$47,2) -> 0 | C171: Aller-Retour | D171: Km renseignés | E171: =SUM('Pilotes Nat'!CL172) -> 0 | G171: Km renseignés | H171: =SUM('Pilotes Inter'!CM171) -> 0 | J171: Km renseignés | K171: 0
C172: Ronde | D172: Km confirmés | E172: =SUM('Pilotes Nat'!CL173) -> 0 | G172: Km confirmés | H172: =SUM('Pilotes Inter'!CM172) -> 0 | J172: Km confirmés | K172: 0
D173: Rondes confirmées | E173: =SUM('Pilotes Nat'!CL174) -> 0 | G173: Rondes confirmées | H173: =SUM('Pilotes Inter'!CM173) -> 0 | J173: Rondes confirmées | K173: 0
D174: Rondes effectuées | E174: =SUM('Pilotes Nat'!CL175) -> 0 | G174: Rondes effectuées | H174: =SUM('Pilotes Inter'!CM174) -> 0 | J174: Rondes effectuées | K174: 0
A175: 43 | B175: =VLOOKUP(A175,'Numéro licences'!$H$4:$I$47,2) -> 0 | C175: Aller-Retour | D175: Km renseignés | E175: =SUM('Pilotes Nat'!CL176) -> 0 | G175: Km renseignés | H175: =SUM('Pilotes Inter'!CM175) -> 0 | J175: Km renseignés | K175: 0
C176: Ronde | D176: Km confirmés | E176: =SUM('Pilotes Nat'!CL177) -> 0 | G176: Km confirmés | H176: =SUM('Pilotes Inter'!CM176) -> 0 | J176: Km confirmés | K176: 0
D177: Rondes confirmées | E177: =SUM('Pilotes Nat'!CL178) -> 0 | G177: Rondes confirmées | H177: =SUM('Pilotes Inter'!CM177) -> 0 | J177: Rondes confirmées | K177: 0
D178: Rondes effectuées | E178: =SUM('Pilotes Nat'!CL179) -> 0 | G178: Rondes effectuées | H178: =SUM('Pilotes Inter'!CM178) -> 0 | J178: Rondes effectuées | K178: 0
A179: 44 | B179: =VLOOKUP(A179,'Numéro licences'!$H$4:$I$47,2) -> 0 | C179: Aller-Retour | D179: Km renseignés | E179: =SUM('Pilotes Nat'!CL180) -> 0 | G179: Km renseignés | H179: =SUM('Pilotes Inter'!CM179) -> 0 | J179: Km renseignés | K179: 0
C180: Ronde | D180: Km confirmés | E180: =SUM('Pilotes Nat'!CL181) -> 0 | G180: Km confirmés | H180: =SUM('Pilotes Inter'!CM180) -> 0 | J180: Km confirmés | K180: 0
D181: Rondes confirmées | E181: =SUM('Pilotes Nat'!CL182) -> 0 | G181: Rondes confirmées | H181: =SUM('Pilotes Inter'!CM181) -> 0 | J181: Rondes confirmées | K181: 0
D182: Rondes effectuées | E182: =SUM('Pilotes Nat'!CL183) -> 0 | G182: Rondes effectuées | H182: =SUM('Pilotes Inter'!CM182) -> 0 | J182: Rondes effectuées | K182: 0
A183: 45 | B183: =VLOOKUP(A183,'Numéro licences'!$H$4:$I$47,2) -> 0 | C183: Aller-Retour | D183: Km renseignés | E183: =SUM('Pilotes Nat'!CL184) -> 0 | G183: Km renseignés | H183: =SUM('Pilotes Inter'!CM183) -> 0 | J183: Km renseignés | K183: 0
C184: Ronde | D184: Km confirmés | E184: =SUM('Pilotes Nat'!CL185) -> 0 | G184: Km confirmés | H184: =SUM('Pilotes Inter'!CM184) -> 0 | J184: Km confirmés | K184: 0
D185: Rondes confirmées | E185: =SUM('Pilotes Nat'!CL186) -> 0 | G185: Rondes confirmées | H185: =SUM('Pilotes Inter'!CM185) -> 0 | J185: Rondes confirmées | K185: 0
D186: Rondes effectuées | E186: =SUM('Pilotes Nat'!CL187) -> 0 | G186: Rondes effectuées | H186: =SUM('Pilotes Inter'!CM186) -> 0 | J186: Rondes effectuées | K186: 0
A187: 46 | B187: =VLOOKUP(A187,'Numéro licences'!$H$4:$I$47,2) -> 0 | C187: Aller-Retour | D187: Km renseignés | E187: =SUM('Pilotes Nat'!CL188) -> 0 | G187: Km renseignés | H187: =SUM('Pilotes Inter'!CM187) -> 0 | J187: Km renseignés | K187: 0
C188: Ronde | D188: Km confirmés | E188: =SUM('Pilotes Nat'!CL189) -> 0 | G188: Km confirmés | H188: =SUM('Pilotes Inter'!CM188) -> 0 | J188: Km confirmés | K188: 0
D189: Rondes confirmées | E189: =SUM('Pilotes Nat'!CL190) -> 0 | G189: Rondes confirmées | H189: =SUM('Pilotes Inter'!CM189) -> 0 | J189: Rondes confirmées | K189: 0
D190: Rondes effectuées | E190: =SUM('Pilotes Nat'!CL191) -> 0 | G190: Rondes effectuées | H190: =SUM('Pilotes Inter'!CM190) -> 0 | J190: Rondes effectuées | K190: 0
D193: Rondes confirmées | E193: =SUM(E9+E13+E17+E21+E25+E29+E33+E37+E41+E45+E49+E53+E57+E61+E65+E69+E73+E77+E81+E85+E89+E93+E97+E101+E105+E109+E113+E117+E121+E125+E129+E133+E137+E141+E145+E149+E153+E157+E161+E165+E169+E173+E177+E181+E185+E189) -> 96 | G193: Rondes confirmées | H193: =SUM(H9+H13+H17+H21+H25+H29+H33+H37+H41+H45+H49+H53+H57+H61+H65+H69+H73+H77+H81+H85+H89+H93+H97+H101+H105+H109+H113+H117+H121+H125+H129+H133+H137+H141+H145+H149+H153+H157+H161+H165+H169+H173+H177+H181+H185+H189) -> 8 | J193: Rondes confirmées | K193: =SUM(K9+K13+K17+K21+K25+K29+K33+K37+K41+K45+K49+K53+K57+K61+K65+K69+K73+K77+K81+K85+K89+K93+K97+K101+K105+K109+K113+K117+K121+K125+K129+K133+K137+K141+K145+K149+K153+K157+K161+K165+K169+K173+K177+K181+K185+K189) -> 104
D194: Rondes effectuées | E194: =SUM(E10+E14+E18+E22+E26+E30+E34+E38+E42+E46+E50+E54+E58+E62+E66+E70+E74+E78+E82+E86+E90+E94+E98+E102+E106+E110+E114+E118+E122+E126+E130+E134+E138+E142+E146+E150+E154+E158+E162+E166+E170+E174+E178+E182+E186+E190) -> 120 | G194: Rondes effectuées | H194: =SUM(H10+H14+H18+H22+H26+H30+H34+H38+H42+H46+H50+H54+H58+H62+H66+H70+H74+H78+H82+H86+H90+H94+H98+H102+H106+H110+H114+H118+H122+H126+H130+H134+H138+H142+H146+H150+H154+H158+H162+H166+H170+H174+H178+H182+H186+H190) -> 8 | J194: Rondes effectuées | K194: =SUM(K10+K14+K18+K22+K26+K30+K34+K38+K42+K46+K50+K54+K58+K62+K66+K70+K74+K78+K82+K86+K90+K94+K98+K102+K106+K110+K114+K118+K122+K126+K130+K134+K138+K142+K146+K150+K154+K158+K162+K166+K170+K174+K178+K182+K186+K190) -> 128
B200: Colonne1
A201: 1 | B201: BALLION Pierre
A202: =SUM(A201+1) -> 2 | B202: BERDOYES Yannick
A203: 3 | B203: CLAISSE Jean-Luc
A204: 4 | B204: DAVIN Philippe
A205: 5 | B205: DE BONDT Philippe
A206: 6 | B206: DE SCHEPPERS Jean-Claude
A207: 7 | B207: DECELLE Hubert
A208: 8 | B208: DEHAUT Didier
A209: 9 | B209: DELFORGE Patrice
... 37 more rows

Sheet Résumé Passagers
D1: PASSAGERS
O3: Confirmé | U3: Non-confirmé
B4: Aller-Retour
B5: Ronde | D5: NATIONAL | G5: INTERNATIONAL | J5: SCRATCH | O5: Passager | P5: National | Q5: International | R5: Total | U5: Passager | V5: National | W5: International | X5: Total
E6: TOTAL | H6: TOTAL | K6: TOTAL | N6: 1 | O6: =VLOOKUP(N6,'Numéro licences'!$A$4:$B$32,2) -> BRIATTE Joëlle | P6: =SUM(E8) -> 0 | Q6: =SUM(H8) -> 0 | R6: =SUM(P6:Q6) -> 0 | T6: 1 | U6: =VLOOKUP(T6,'Numéro licences'!$A$4:$B$32,2) -> BRIATTE Joëlle | V6: =SUM(E7) -> 0 | W6: =SUM(H7) -> 0 | X6: =SUM(V6:W6) -> 0
A7: 1 | B7: =VLOOKUP(A7,'Numéro licences'!$A$4:$B$32,2) -> BRIATTE Joëlle | C7: Aller-Retour | D7: Km renseignés | E7: =SUM('Passagers Nat'!CL8) -> 0 | G7: Km renseignés | H7: =SUM('Passagers Inter'!CM7) -> 0 | J7: Km renseignés | K7: =SUM(E7+H7) -> 0 | N7: 2 | O7: =VLOOKUP(N7,'Numéro licences'!$A$4:$B$32,2) -> DEL FABBRO Laurence | P7: =SUM(E12) -> 0 | Q7: =SUM(H12) -> 1379 | R7: =SUM(P7:Q7) -> 1379 | T7: 2 | U7: =VLOOKUP(T7,'Numéro licences'!$A$4:$B$32,2) -> DEL FABBRO Laurence | V7: =SUM(E11) -> 200 | W7: =SUM(H11) -> 1379 | X7: 1579
C8: Ronde | D8: Km confirmés | E8: =SUM('Passagers Nat'!CL9) -> 0 | G8: Km confirmés | H8: =SUM('Passagers Inter'!CM8) -> 0 | J8: Km confirmés | K8: =SUM(E8+H8) -> 0 | N8: 3 | O8: =VLOOKUP(N8,'Numéro licences'!$A$4:$B$32,2) -> ERVEN France | P8: =SUM(E16) -> 0 | Q8: =SUM(H16) -> 0 | R8: 0 | T8: 3 | U8: =VLOOKUP(T8,'Numéro licences'!$A$4:$B$32,2) -> ERVEN France | V8: =SUM(E15) -> 517 | W8: =SUM(H15) -> 0 | X8: 517
D9: Rondes confirmées | E9: =SUM('Passagers Nat'!CL10) -> 0 | G9: Rondes confirmées | H9: =SUM('Passagers Inter'!CM9) -> 0 | J9: Rondes confirmées | K9: 0 | N9: 4 | O9: =VLOOKUP(N9,'Numéro licences'!$A$4:$B$32,2) -> FIEVET Nathalie | P9: =SUM(E20) -> 0 | Q9: =SUM(H20) -> 0 | R9: 0 | T9: 4 | U9: =VLOOKUP(T9,'Numéro licences'!$A$4:$B$32,2) -> FIEVET Nathalie | V9: =SUM(E19) -> 0 | W9: =SUM(H19) -> 0 | X9: 0
D10: Rondes effectuées | E10: =SUM('Passagers Nat'!CL11) -> 0 | G10: Rondes effectuées | H10: =SUM('Passagers Inter'!CM10) -> 0 | J10: Rondes effectuées | K10: 0 | N10: 5 | O10: =VLOOKUP(N10,'Numéro licences'!$A$4:$B$32,2) -> GIAUX Annie | P10: =SUM(E24) -> 0 | Q10: =SUM(H24) -> 0 | R10: 0 | T10: 5 | U10: =VLOOKUP(T10,'Numéro licences'!$A$4:$B$32,2) -> GIAUX Annie | V10: =SUM(E23) -> 846 | W10: =SUM(H23) -> 0 | X10: 846
A11: 2 | B11: =VLOOKUP(A11,'Numéro licences'!$A$4:$B$32,2) -> DEL FABBRO Laurence | C11: Aller-Retour | D11: Km renseignés | E11: =SUM('Passagers Nat'!CL12) -> 200 | G11: Km renseignés | H11: =SUM('Passagers Inter'!CM11) -> 1379 | J11: Km renseignés | K11: 1579 | N11: 6 | O11: =VLOOKUP(N11,'Numéro licences'!$A$4:$B$32,2) -> GOFFIN Guillaume | P11: =SUM(E28) -> 0 | Q11: =SUM(H28) -> 0 | R11: 0 | T11: 6 | U11: =VLOOKUP(T11,'Numéro licences'!$A$4:$B$32,2) -> GOFFIN Guillaume | V11: =SUM(E27) -> 0 | W11: =SUM(H27) -> 0 | X11: 0
C12: Ronde | D12: Km confirmés | E12: =SUM('Passagers Nat'!CL13) -> 0 | G12: Km confirmés | H12: =SUM('Passagers Inter'!CM12) -> 1379 | J12: Km confirmés | K12: 1379 | N12: 7 | O12: =VLOOKUP(N12,'Numéro licences'!$A$4:$B$32,2) -> GREGORICS Kathy | P12: =SUM(E32) -> 0 | Q12: =SUM(H32) -> 1462 | R12: 1462 | T12: 7 | U12: =VLOOKUP(T12,'Numéro licences'!$A$4:$B$32,2) -> GREGORICS Kathy | V12: =SUM(E31) -> 200 | W12: =SUM(H31) -> 1462 | X12: 1662
D13: Rondes confirmées | E13: =SUM('Passagers Nat'!CL14) -> 0 | G13: Rondes confirmées | H13: =SUM('Passagers Inter'!CM13) -> 1 | J13: Rondes confirmées | K13: 1 | N13: 8 | O13: =VLOOKUP(N13,'Numéro licences'!$A$4:$B$32,2) -> GRIGNET Audrey | P13: =SUM(E36) -> 0 | Q13: =SUM(H36) -> 0 | R13: 0 | T13: 8 | U13: =VLOOKUP(T13,'Numéro licences'!$A$4:$B$32,2) -> GRIGNET Audrey | V13: =SUM(E35) -> 0 | W13: =SUM(H35) -> 0 | X13: 0
D14: Rondes effectuées | E14: =SUM('Passagers Nat'!CL15) -> 0 | G14: Rondes effectuées | H14: =SUM('Passagers Inter'!CM14) -> 1 | J14: Rondes effectuées | K14: 1 | N14: 9 | O14: =VLOOKUP(N14,'Numéro licences'!$A$4:$B$32,2) -> LAMBILLON Anne | P14: =SUM(E40) -> 0 | Q14: =SUM(H40) -> 0 | R14: 0 | T14: 9 | U14: =VLOOKUP(T14,'Numéro licences'!$A$4:$B$32,2) -> LAMBILLON Anne | V14: =SUM(E39) -> 200 | W14: =SUM(H39) -> 0 | X14: 200
A15: 3 | B15: =VLOOKUP(A15,'Numéro licences'!$A$4:$B$32,2) -> ERVEN France | C15: Aller-Retour | D15: Km renseignés | E15: =SUM('Passagers Nat'!CL16) -> 517 | G15: Km renseignés | H15: =SUM('Passagers Inter'!CM15) -> 0 | J15: Km renseignés | K15: 517 | N15: 10 | O15: =VLOOKUP(N15,'Numéro licences'!$A$4:$B$32,2) -> LAMIROY Anne | P15: =SUM(E44) -> 0 | Q15: =SUM(H44) -> 532 | R15: 532 | T15: 10 | U15: =VLOOKUP(T15,'Numéro licences'!$A$4:$B$32,2) -> LAMIROY Anne | V15: =SUM(E43) -> 0 | W15: =SUM(H43) -> 532 | X15: 532
C16: Ronde | D16: Km confirmés | E16: =SUM('Passagers Nat'!CL17) -> 0 | G16: Km confirmés | H16: =SUM('Passagers Inter'!CM16) -> 0 | J16: Km confirmés | K16: 0 | N16: 11 | O16: =VLOOKUP(N16,'Numéro licences'!$A$4:$B$32,2) -> LEROY Laure | P16: =SUM(E48) -> 0 | Q16: =SUM(H48) -> 0 | R16: 0 | T16: 11 | U16: =VLOOKUP(T16,'Numéro licences'!$A$4:$B$32,2) -> LEROY Laure | V16: =SUM(E47) -> 112 | W16: =SUM(H47) -> 0 | X16: 112
D17: Rondes confirmées | E17: =SUM('Passagers Nat'!CL18) -> 0 | G17: Rondes confirmées | H17: =SUM('Passagers Inter'!CM17) -> 0 | J17: Rondes confirmées | K17: 0 | N17: 12 | O17: =VLOOKUP(N17,'Numéro licences'!$A$4:$B$32,2) -> NICLOUX Christine | P17: =SUM(E52) -> 0 | Q17: =SUM(H52) -> 0 | R17: 0 | T17: 12 | U17: =VLOOKUP(T17,'Numéro licences'!$A$4:$B$32,2) -> NICLOUX Christine | V17: =SUM(E51) -> 0 | W17: =SUM(H51) -> 0 | X17: 0
D18: Rondes effectuées | E18: =SUM('Passagers Nat'!CL19) -> 2 | G18: Rondes effectuées | H18: =SUM('Passagers Inter'!CM18) -> 0 | J18: Rondes effectuées | K18: 2 | N18: 13 | O18: =VLOOKUP(N18,'Numéro licences'!$A$4:$B$32,2) -> PONT Patricia | P18: =SUM(E56) -> 8518 | Q18: =SUM(H56) -> 0 | R18: 8518 | T18: 13 | U18: =VLOOKUP(T18,'Numéro licences'!$A$4:$B$32,2) -> PONT Patricia | V18: =SUM(E55) -> 8518 | W18: =SUM(H55) -> 0 | X18: 8518
A19: 4 | B19: =VLOOKUP(A19,'Numéro licences'!$A$4:$B$32,2) -> FIEVET Nathalie | C19: Aller-Retour | D19: Km renseignés | E19: =SUM('Passagers Nat'!CL20) -> 0 | G19: Km renseignés | H19: =SUM('Passagers Inter'!CM19) -> 0 | J19: Km renseignés | K19: 0 | N19: 14 | O19: =VLOOKUP(N19,'Numéro licences'!$A$4:$B$32,2) -> THOMAS Isabelle | P19: =SUM(E60) -> 0 | Q19: =SUM(H60) -> 0 | R19: 0 | T19: 14 | U19: =VLOOKUP(T19,'Numéro licences'!$A$4:$B$32,2) -> THOMAS Isabelle | V19: =SUM(E59) -> 0 | W19: =SUM(H59) -> 0 | X19: 0
C20: Ronde | D20: Km confirmés | E20: =SUM('Passagers Nat'!CL21) -> 0 | G20: Km confirmés | H20: =SUM('Passagers Inter'!CM20) -> 0 | J20: Km confirmés | K20: 0 | N20: 15 | O20: =VLOOKUP(N20,'Numéro licences'!$A$4:$B$32,2) -> 0 | P20: =SUM(E64) -> 0 | Q20: =SUM(H64) -> 0 | R20: 0 | T20: 15 | U20: =VLOOKUP(T20,'Numéro licences'!$A$4:$B$32,2) -> 0 | V20: =SUM(E78) -> 0 | W20: =SUM(H78) -> 0 | X20: 0
D21: Rondes confirmées | E21: =SUM('Passagers Nat'!CL22) -> 0 | G21: Rondes confirmées | H21: =SUM('Passagers Inter'!CM21) -> 0 | J21: Rondes confirmées | K21: 0 | N21: 16 | O21: =VLOOKUP(N21,'Numéro licences'!$A$4:$B$32,2) -> 0 | P21: =SUM(E68) -> 0 | Q21: =SUM(H68) -> 0 | R21: 0 | T21: 16 | U21: =VLOOKUP(T21,'Numéro licences'!$A$4:$B$32,2) -> 0 | V21: =SUM(E64) -> 0 | W21: =SUM(H64) -> 0 | X21: 0
D22: Rondes effectuées | E22: =SUM('Passagers Nat'!CL23) -> 0 | G22: Rondes effectuées | H22: =SUM('Passagers Inter'!CM22) -> 0 | J22: Rondes effectuées | K22: 0 | N22: 17 | O22: =VLOOKUP(N22,'Numéro licences'!$A$4:$B$32,2) -> 0 | P22: =SUM(E72) -> 0 | Q22: =SUM(H72) -> 0 | R22: 0 | T22: 17 | U22: =VLOOKUP(T22,'Numéro licences'!$A$4:$B$32,2) -> 0 | V22: =SUM(E68) -> 0 | W22: =SUM(H68) -> 0 | X22: 0
A23: 5 | B23: =VLOOKUP(A23,'Numéro licences'!$A$4:$B$32,2) -> GIAUX Annie | C23: Aller-Retour | D23: Km renseignés | E23: =SUM('Passagers Nat'!CL24) -> 846 | G23: Km renseignés | H23: =SUM('Passagers Inter'!CM23) -> 0 | J23: Km renseignés | K23: 846 | N23: 18 | O23: =VLOOKUP(N23,'Numéro licences'!$A$4:$B$32,2) -> 0 | P23: =SUM(E76) -> 0 | Q23: =SUM(H76) -> 0 | R23: 0 | T23: 18 | U23: =VLOOKUP(T23,'Numéro licences'!$A$4:$B$32,2) -> 0 | V23: =SUM(E72) -> 0 | W23: =SUM(H72) -> 0 | X23: 0
C24: Ronde | D24: Km confirmés | E24: =SUM('Passagers Nat'!CL25) -> 0 | G24: Km confirmés | H24: =SUM('Passagers Inter'!CM24) -> 0 | J24: Km confirmés | K24: 0 | N24: 19 | O24: =VLOOKUP(N24,'Numéro licences'!$A$4:$B$32,2) -> 0 | P24: =SUM(E80) -> 0 | Q24: =SUM(H80) -> 0 | R24: 0 | T24: 19 | U24: =VLOOKUP(T24,'Numéro licences'!$A$4:$B$32,2) -> 0 | V24: =SUM(E76) -> 0 | W24: =SUM(H76) -> 0 | X24: 0
D25: Rondes confirmées | E25: =SUM('Passagers Nat'!CL26) -> 0 | G25: Rondes confirmées | H25: =SUM('Passagers Inter'!CM25) -> 0 | J25: Rondes confirmées | K25: 0 | N25: 20 | O25: =VLOOKUP(N25,'Numéro licences'!$A$4:$B$32,2) -> 0 | P25: =SUM(E84) -> 0 | Q25: =SUM(H84) -> 0 | R25: 0 | T25: 20 | U25: =VLOOKUP(T25,'Numéro licences'!$A$4:$B$32,2) -> 0 | V25: =SUM(E80) -> 0 | W25: =SUM(H80) -> 0 | X25: 0
D26: Rondes effectuées | E26: =SUM('Passagers Nat'!CL27) -> 3 | G26: Rondes effectuées | H26: =SUM('Passagers Inter'!CM26) -> 0 | J26: Rondes effectuées | K26: 3 | N26: 21 | O26: =VLOOKUP(N26,'Numéro licences'!$A$4:$B$32,2) -> 0 | P26: =SUM(E88) -> 0 | Q26: =SUM(H88) -> 0 | R26: 0 | T26: 21 | U26: =VLOOKUP(T26,'Numéro licences'!$A$4:$B$32,2) -> 0 | V26: =SUM(E87) -> 0 | W26: =SUM(H87) -> 0 | X26: 0
A27: 6 | B27: =VLOOKUP(A27,'Numéro licences'!$A$4:$B$32,2) -> GOFFIN Guillaume | C27: Aller-Retour | D27: Km renseignés | E27: =SUM('Passagers Nat'!CL28) -> 0 | G27: Km renseignés | H27: =SUM('Passagers Inter'!CM27) -> 0 | J27: Km renseignés | K27: 0 | N27: 22 | O27: =VLOOKUP(N27,'Numéro licences'!$A$4:$B$32,2) -> 0 | P27: =SUM(E92) -> 0 | Q27: =SUM(H92) -> 0 | R27: 0 | T27: 22 | U27: =VLOOKUP(T27,'Numéro licences'!$A$4:$B$32,2) -> 0 | V27: =SUM(E91) -> 0 | W27: =SUM(H91) -> 0 | X27: 0
C28: Ronde | D28: Km confirmés | E28: =SUM('Passagers Nat'!CL29) -> 0 | G28: Km confirmés | H28: =SUM('Passagers Inter'!CM28) -> 0 | J28: Km confirmés | K28: 0 | N28: 23 | O28: =VLOOKUP(N28,'Numéro licences'!$A$4:$B$32,2) -> 0 | P28: =SUM(E96) -> 0 | Q28: =SUM(H96) -> 0 | R28: 0 | T28: 23 | U28: =VLOOKUP(T28,'Numéro licences'!$A$4:$B$32,2) -> 0 | V28: =SUM(E95) -> 0 | W28: =SUM(H95) -> 0 | X28: 0
D29: Rondes confirmées | E29: =SUM('Passagers Nat'!CL30) -> 0 | G29: Rondes confirmées | H29: =SUM('Passagers Inter'!CM29) -> 0 | J29: Rondes confirmées | K29: 0 | N29: 24 | O29: =VLOOKUP(N29,'Numéro licences'!$A$4:$B$32,2) -> 0 | P29: =SUM(E100) -> 0 | Q29: =SUM(H100) -> 0 | R29: 0 | T29: 24 | U29: =VLOOKUP(T29,'Numéro licences'!$A$4:$B$32,2) -> 0 | V29: =SUM(E99) -> 0 | W29: =SUM(H99) -> 0 | X29: 0
D30: Rondes effectuées | E30: =SUM('Passagers Nat'!CL31) -> 0 | G30: Rondes effectuées | H30: =SUM('Passagers Inter'!CM30) -> 0 | J30: Rondes effectuées | K30: 0 | N30: 25 | O30: =VLOOKUP(N30,'Numéro licences'!$A$4:$B$32,2) -> 0 | P30: =SUM(E104) -> 0 | Q30: =SUM(H104) -> 0 | R30: 0 | T30: 25 | U30: =VLOOKUP(T30,'Numéro licences'!$A$4:$B$32,2) -> 0 | V30: =SUM(E103) -> 0 | W30: =SUM(H103) -> 0 | X30: 0
A31: 7 | B31: =VLOOKUP(A31,'Numéro licences'!$A$4:$B$32,2) -> GREGORICS Kathy | C31: Aller-Retour | D31: Km renseignés | E31: =SUM('Passagers Nat'!CL32) -> 200 | G31: Km renseignés | H31: =SUM('Passagers Inter'!CM31) -> 1462 | J31: Km renseignés | K31: 1662 | N31: 26 | O31: =VLOOKUP(N31,'Numéro licences'!$A$4:$B$32,2) -> 0 | P31: =SUM(E108) -> 0 | Q31: =SUM(H108) -> 0 | R31: 0 | T31: 26 | U31: =VLOOKUP(T31,'Numéro licences'!$A$4:$B$32,2) -> 0 | V31: =SUM(E107) -> 0 | W31: =SUM(H107) -> 0 | X31: 0
C32: Ronde | D32: Km confirmés | E32: =SUM('Passagers Nat'!CL33) -> 0 | G32: Km confirmés | H32: =SUM('Passagers Inter'!CM32) -> 1462 | J32: Km confirmés | K32: 1462 | N32: 27 | O32: =VLOOKUP(N32,'Numéro licences'!$A$4:$B$32,2) -> 0 | P32: =SUM(E112) -> 0 | Q32: =SUM(H112) -> 0 | R32: 0 | T32: 27 | U32: =VLOOKUP(T32,'Numéro licences'!$A$4:$B$32,2) -> 0 | V32: =SUM(E111) -> 0 | W32: =SUM(H111) -> 0 | X32: 0
D33: Rondes confirmées | E33: =SUM('Passagers Nat'!CL34) -> 0 | G33: Rondes confirmées | H33: =SUM('Passagers Inter'!CM33) -> 1 | J33: Rondes confirmées | K33: 1 | N33: 28 | O33: =VLOOKUP(N33,'Numéro licences'!$A$4:$B$32,2) -> 0 | P33: =SUM(E116) -> 0 | Q33: =SUM(H116) -> 0 | R33: 0 | T33: 28 | U33: =VLOOKUP(T33,'Numéro licences'!$A$4:$B$32,2) -> 0 | V33: =SUM(E115) -> 0 | W33: =SUM(H115) -> 0 | X33: 0
D34: Rondes effectuées | E34: =SUM('Passagers Nat'!CL35) -> 0 | G34: Rondes effectuées | H34: =SUM('Passagers Inter'!CM34) -> 1 | J34: Rondes effectuées | K34: 1 | N34: 29 | O34: =VLOOKUP(N34,'Numéro licences'!$A$4:$B$32,2) -> 0 | P34: =SUM(E120) -> 0 | Q34: =SUM(H120) -> 0 | R34: 0 | T34: 29 | U34: =VLOOKUP(T34,'Numéro licences'!$A$4:$B$32,2) -> 0 | V34: =SUM(E119) -> 0 | W34: =SUM(H119) -> 0 | X34: 0
A35: 8 | B35: =VLOOKUP(A35,'Numéro licences'!$A$4:$B$32,2) -> GRIGNET Audrey | C35: Aller-Retour | D35: Km renseignés | E35: =SUM('Passagers Nat'!CL36) -> 0 | G35: Km renseignés | H35: =SUM('Passagers Inter'!CM35) -> 0 | J35: Km renseignés | K35: 0 | P35: =SUM(R6:R34) -> 11891 | Q35: =SUM(Q6:Q34) -> 3373 | R35: =SUM(P35:Q35) -> 15264
C36: Ronde | D36: Km confirmés | E36: =SUM('Passagers Nat'!CL37) -> 0 | G36: Km confirmés | H36: =SUM('Passagers Inter'!CM36) -> 0 | J36: Km confirmés | K36: 0 | P36: =SUM(P35/R35) -> 0.7790225367 | Q36: =SUM(Q35/R35) -> 0.2209774633
D37: Rondes confirmées | E37: =SUM('Passagers Nat'!CL38) -> 0 | G37: Rondes confirmées | H37: =SUM('Passagers Inter'!CM37) -> 0 | J37: Rondes confirmées | K37: 0
D38: Rondes effectuées | E38: =SUM('Passagers Nat'!CL39) -> 0 | G38: Rondes effectuées | H38: =SUM('Passagers Inter'!CM38) -> 0 | J38: Rondes effectuées | K38: 0 | V38: =SUM(V6:V37) -> 10593 | W38: =SUM(W6:W37) -> 3373 | X38: =SUM(V38:W38) -> 13966
A39: 9 | B39: =VLOOKUP(A39,'Numéro licences'!$A$4:$B$32,2) -> LAMBILLON Anne | C39: Aller-Retour | D39: Km renseignés | E39: =SUM('Passagers Nat'!CL40) -> 200 | G39: Km renseignés | H39: =SUM('Passagers Inter'!CM39) -> 0 | J39: Km renseignés | K39: 200 | V39: =SUM(V38/X38) -> 0.7584848919 | W39: =SUM(W38/X38) -> 0.2415151081
C40: Ronde | D40: Km confirmés | E40: =SUM('Passagers Nat'!CL41) -> 0 | G40: Km confirmés | H40: =SUM('Passagers Inter'!CM40) -> 0 | J40: Km confirmés | K40: 0 | V40: NAT | W40: INT
D41: Rondes confirmées | E41: =SUM('Passagers Nat'!CL42) -> 0 | G41: Rondes confirmées | H41: =SUM('Passagers Inter'!CM41) -> 0 | J41: Rondes confirmées | K41: 0
D42: Rondes effectuées | E42: =SUM('Passagers Nat'!CL43) -> 0 | G42: Rondes effectuées | H42: =SUM('Passagers Inter'!CM42) -> 0 | J42: Rondes effectuées | K42: 0
A43: 10 | B43: =VLOOKUP(A43,'Numéro licences'!$A$4:$B$32,2) -> LAMIROY Anne | C43: Aller-Retour | D43: Km renseignés | E43: =SUM('Passagers Nat'!CL44) -> 0 | G43: Km renseignés | H43: =SUM('Passagers Inter'!CM43) -> 532 | J43: Km renseignés | K43: 532
C44: Ronde | D44: Km confirmés | E44: =SUM('Passagers Nat'!CL45) -> 0 | G44: Km confirmés | H44: =SUM('Passagers Inter'!CM44) -> 532 | J44: Km confirmés | K44: 532
D45: Rondes confirmées | E45: =SUM('Passagers Nat'!CL46) -> 0 | G45: Rondes confirmées | H45: =SUM('Passagers Inter'!CM45) -> 1 | J45: Rondes confirmées | K45: 1
D46: Rondes effectuées | E46: =SUM('Passagers Nat'!CL47) -> 0 | G46: Rondes effectuées | H46: =SUM('Passagers Inter'!CM46) -> 1 | J46: Rondes effectuées | K46: 1
A47: 11 | B47: =VLOOKUP(A47,'Numéro licences'!$A$4:$B$32,2) -> LEROY Laure | C47: Aller-Retour | D47: Km renseignés | E47: =SUM('Passagers Nat'!CL48) -> 112 | G47: Km renseignés | H47: =SUM('Passagers Inter'!CM47) -> 0 | J47: Km renseignés | K47: 112
C48: Ronde | D48: Km confirmés | E48: =SUM('Passagers Nat'!CL49) -> 0 | G48: Km confirmés | H48: =SUM('Passagers Inter'!CM48) -> 0 | J48: Km confirmés | K48: 0
D49: Rondes confirmées | E49: =SUM('Passagers Nat'!CL50) -> 0 | G49: Rondes confirmées | H49: =SUM('Passagers Inter'!CM49) -> 0 | J49: Rondes confirmées | K49: 0
D50: Rondes effectuées | E50: =SUM('Passagers Nat'!CL51) -> 2 | G50: Rondes effectuées | H50: =SUM('Passagers Inter'!CM50) -> 0 | J50: Rondes effectuées | K50: 2
A51: 12 | B51: =VLOOKUP(A51,'Numéro licences'!$A$4:$B$32,2) -> NICLOUX Christine | C51: Aller-Retour | D51: Km renseignés | E51: =SUM('Passagers Nat'!CL52) -> 0 | G51: Km renseignés | H51: =SUM('Passagers Inter'!CM51) -> 0 | J51: Km renseignés | K51: 0
C52: Ronde | D52: Km confirmés | E52: =SUM('Passagers Nat'!CL53) -> 0 | G52: Km confirmés | H52: =SUM('Passagers Inter'!CM52) -> 0 | J52: Km confirmés | K52: 0
D53: Rondes confirmées | E53: =SUM('Passagers Nat'!CL54) -> 0 | G53: Rondes confirmées | H53: =SUM('Passagers Inter'!CM53) -> 0 | J53: Rondes confirmées | K53: 0
D54: Rondes effectuées | E54: =SUM('Passagers Nat'!CL55) -> 0 | G54: Rondes effectuées | H54: =SUM('Passagers Inter'!CM54) -> 0 | J54: Rondes effectuées | K54: 0
A55: 13 | B55: =VLOOKUP(A55,'Numéro licences'!$A$4:$B$32,2) -> PONT Patricia | C55: Aller-Retour | D55: Km renseignés | E55: =SUM('Passagers Nat'!CL56) -> 8518 | G55: Km renseignés | H55: =SUM('Passagers Inter'!CM55) -> 0 | J55: Km renseignés | K55: 8518
C56: Ronde | D56: Km confirmés | E56: =SUM('Passagers Nat'!CL57) -> 8518 | G56: Km confirmés | H56: =SUM('Passagers Inter'!CM56) -> 0 | J56: Km confirmés | K56: 8518
D57: Rondes confirmées | E57: =SUM('Passagers Nat'!CL58) -> 26 | G57: Rondes confirmées | H57: =SUM('Passagers Inter'!CM57) -> 0 | J57: Rondes confirmées | K57: 26
D58: Rondes effectuées | E58: =SUM('Passagers Nat'!CL59) -> 24 | G58: Rondes effectuées | H58: =SUM('Passagers Inter'!CM58) -> 0 | J58: Rondes effectuées | K58: 24
A59: 14 | B59: =VLOOKUP(A59,'Numéro licences'!$A$4:$B$32,2) -> THOMAS Isabelle | C59: Aller-Retour | D59: Km renseignés | E59: =SUM('Passagers Nat'!CL60) -> 0 | G59: Km renseignés | H59: =SUM('Passagers Inter'!CM59) -> 0 | J59: Km renseignés | K59: 0
C60: Ronde | D60: Km confirmés | E60: =SUM('Passagers Nat'!CL61) -> 0 | G60: Km confirmés | H60: =SUM('Passagers Inter'!CM60) -> 0 | J60: Km confirmés | K60: 0
D61: Rondes confirmées | E61: =SUM('Passagers Nat'!CL62) -> 0 | G61: Rondes confirmées | H61: =SUM('Passagers Inter'!CM61) -> 0 | J61: Rondes confirmées | K61: 0
D62: Rondes effectuées | E62: =SUM('Passagers Nat'!CL63) -> 0 | G62: Rondes effectuées | H62: =SUM('Passagers Inter'!CM62) -> 0 | J62: Rondes effectuées | K62: 0
A63: 15 | B63: =VLOOKUP(A63,'Numéro licences'!$A$4:$B$32,2) -> 0 | C63: Aller-Retour | D63: Km renseignés | E63: =SUM('Passagers Nat'!CL64) -> 0 | G63: Km renseignés | H63: =SUM('Passagers Inter'!CM63) -> 0 | J63: Km renseignés | K63: 0
C64: Ronde | D64: Km confirmés | E64: =SUM('Passagers Nat'!CL65) -> 0 | G64: Km confirmés | H64: =SUM('Passagers Inter'!CM64) -> 0 | J64: Km confirmés | K64: 0
D65: Rondes confirmées | E65: =SUM('Passagers Nat'!CL66) -> 0 | G65: Rondes confirmées | H65: =SUM('Passagers Inter'!CM65) -> 0 | J65: Rondes confirmées | K65: 0
D66: Rondes effectuées | E66: =SUM('Passagers Nat'!CL67) -> 0 | G66: Rondes effectuées | H66: =SUM('Passagers Inter'!CM66) -> 0 | J66: Rondes effectuées | K66: 0
A67: 16 | B67: =VLOOKUP(A67,'Numéro licences'!$A$4:$B$32,2) -> 0 | C67: Aller-Retour | D67: Km renseignés | E67: =SUM('Passagers Nat'!CL68) -> 0 | G67: Km renseignés | H67: =SUM('Passagers Inter'!CM67) -> 0 | J67: Km renseignés | K67: 0
C68: Ronde | D68: Km confirmés | E68: =SUM('Passagers Nat'!CL69) -> 0 | G68: Km confirmés | H68: =SUM('Passagers Inter'!CM68) -> 0 | J68: Km confirmés | K68: 0
D69: Rondes confirmées | E69: =SUM('Passagers Nat'!CL70) -> 0 | G69: Rondes confirmées | H69: =SUM('Passagers Inter'!CM69) -> 0 | J69: Rondes confirmées | K69: 0
D70: Rondes effectuées | E70: =SUM('Passagers Nat'!CL71) -> 0 | G70: Rondes effectuées | H70: =SUM('Passagers Inter'!CM70) -> 0 | J70: Rondes effectuées | K70: 0
A71: 17 | B71: =VLOOKUP(A71,'Numéro licences'!$A$4:$B$32,2) -> 0 | C71: Aller-Retour | D71: Km renseignés | E71: =SUM('Passagers Nat'!CL72) -> 0 | G71: Km renseignés | H71: =SUM('Passagers Inter'!CM71) -> 0 | J71: Km renseignés | K71: 0
C72: Ronde | D72: Km confirmés | E72: =SUM('Passagers Nat'!CL73) -> 0 | G72: Km confirmés | H72: =SUM('Passagers Inter'!CM72) -> 0 | J72: Km confirmés | K72: =SUM(E72+H72) -> 0
D73: Rondes confirmées | E73: =SUM('Passagers Nat'!CL74) -> 0 | G73: Rondes confirmées | H73: =SUM('Passagers Inter'!CM73) -> 0 | J73: Rondes confirmées | K73: 0
D74: Rondes effectuées | E74: =SUM('Passagers Nat'!CL75) -> 0 | G74: Rondes effectuées | H74: =SUM('Passagers Inter'!CM74) -> 0 | J74: Rondes effectuées | K74: 0
A75: 18 | B75: =VLOOKUP(A75,'Numéro licences'!$A$4:$B$32,2) -> 0 | C75: Aller-Retour | D75: Km renseignés | E75: =SUM('Passagers Nat'!CL76) -> 0 | G75: Km renseignés | H75: =SUM('Passagers Inter'!CM75) -> 0 | J75: Km renseignés | K75: 0
C76: Ronde | D76: Km confirmés | E76: =SUM('Passagers Nat'!CL77) -> 0 | G76: Km confirmés | H76: =SUM('Passagers Inter'!CM76) -> 0 | J76: Km confirmés | K76: 0
D77: Rondes confirmées | E77: =SUM('Passagers Nat'!CL78) -> 0 | G77: Rondes confirmées | H77: =SUM('Passagers Inter'!CM77) -> 0 | J77: Rondes confirmées | K77: 0
D78: Rondes effectuées | E78: =SUM('Passagers Nat'!CL79) -> 0 | G78: Rondes effectuées | H78: =SUM('Passagers Inter'!CM78) -> 0 | J78: Rondes effectuées | K78: 0
A79: 19 | B79: =VLOOKUP(A79,'Numéro licences'!$A$4:$B$32,2) -> 0 | C79: Aller-Retour | D79: Km renseignés | E79: =SUM('Passagers Nat'!CL80) -> 0 | G79: Km renseignés | H79: =SUM('Passagers Inter'!CM79) -> 0 | J79: Km renseignés | K79: 0
C80: Ronde | D80: Km confirmés | E80: =SUM('Passagers Nat'!CL81) -> 0 | G80: Km confirmés | H80: =SUM('Passagers Inter'!CM80) -> 0 | J80: Km confirmés | K80: 0
D81: Rondes confirmées | E81: =SUM('Passagers Nat'!CL82) -> 0 | G81: Rondes confirmées | H81: =SUM('Passagers Inter'!CM81) -> 0 | J81: Rondes confirmées | K81: 0
D82: Rondes effectuées | E82: =SUM('Passagers Nat'!CL83) -> 0 | G82: Rondes effectuées | H82: =SUM('Passagers Inter'!CM82) -> 0 | J82: Rondes effectuées | K82: 0
A83: 20 | B83: =VLOOKUP(A83,'Numéro licences'!$A$4:$B$32,2) -> 0 | C83: Aller-Retour | D83: Km renseignés | E83: =SUM('Passagers Nat'!CL84) -> 0 | G83: Km renseignés | H83: =SUM('Passagers Inter'!CM83) -> 0 | J83: Km renseignés | K83: 0
C84: Ronde | D84: Km confirmés | E84: =SUM('Passagers Nat'!CL85) -> 0 | G84: Km confirmés | H84: =SUM('Passagers Inter'!CM84) -> 0 | J84: Km confirmés | K84: 0
D85: Rondes confirmées | E85: =SUM('Passagers Nat'!CL86) -> 0 | G85: Rondes confirmées | H85: =SUM('Passagers Inter'!CM85) -> 0 | J85: Rondes confirmées | K85: 0
D86: Rondes effectuées | E86: =SUM('Passagers Nat'!CL87) -> 0 | G86: Rondes effectuées | H86: =SUM('Passagers Inter'!CM86) -> 0 | J86: Rondes effectuées | K86: 0
A87: 21 | B87: =VLOOKUP(A87,'Numéro licences'!$A$4:$B$32,2) -> 0 | C87: Aller-Retour | D87: Km renseignés | E87: =SUM('Passagers Nat'!CL88) -> 0 | G87: Km renseignés | H87: =SUM('Passagers Inter'!CM87) -> 0 | J87: Km renseignés | K87: 0
C88: Ronde | D88: Km confirmés | E88: =SUM('Passagers Nat'!CL89) -> 0 | G88: Km confirmés | H88: =SUM('Passagers Inter'!CM88) -> 0 | J88: Km confirmés | K88: 0
D89: Rondes confirmées | E89: =SUM('Passagers Nat'!CL90) -> 0 | G89: Rondes confirmées | H89: =SUM('Passagers Inter'!CM89) -> 0 | J89: Rondes confirmées | K89: 0
D90: Rondes effectuées | E90: =SUM('Passagers Nat'!CL91) -> 0 | G90: Rondes effectuées | H90: =SUM('Passagers Inter'!CM90) -> 0 | J90: Rondes effectuées | K90: 0
A91: 22 | B91: =VLOOKUP(A91,'Numéro licences'!$A$4:$B$32,2) -> 0 | C91: Aller-Retour | D91: Km renseignés | E91: =SUM('Passagers Nat'!CL92) -> 0 | G91: Km renseignés | H91: =SUM('Passagers Inter'!CM91) -> 0 | J91: Km renseignés | K91: 0
C92: Ronde | D92: Km confirmés | E92: =SUM('Passagers Nat'!CL93) -> 0 | G92: Km confirmés | H92: =SUM('Passagers Inter'!CM92) -> 0 | J92: Km confirmés | K92: 0
D93: Rondes confirmées | E93: =SUM('Passagers Nat'!CL94) -> 0 | G93: Rondes confirmées | H93: =SUM('Passagers Inter'!CM93) -> 0 | J93: Rondes confirmées | K93: 0
D94: Rondes effectuées | E94: =SUM('Passagers Nat'!CL95) -> 0 | G94: Rondes effectuées | H94: =SUM('Passagers Inter'!CM94) -> 0 | J94: Rondes effectuées | K94: 0
A95: 23 | B95: =VLOOKUP(A95,'Numéro licences'!$A$4:$B$32,2) -> 0 | C95: Aller-Retour | D95: Km renseignés | E95: =SUM('Passagers Nat'!CL96) -> 0 | G95: Km renseignés | H95: =SUM('Passagers Inter'!CM95) -> 0 | J95: Km renseignés | K95: 0
C96: Ronde | D96: Km confirmés | E96: =SUM('Passagers Nat'!CL97) -> 0 | G96: Km confirmés | H96: =SUM('Passagers Inter'!CM96) -> 0 | J96: Km confirmés | K96: 0
D97: Rondes confirmées | E97: =SUM('Passagers Nat'!CL98) -> 0 | G97: Rondes confirmées | H97: =SUM('Passagers Inter'!CM97) -> 0 | J97: Rondes confirmées | K97: 0
D98: Rondes effectuées | E98: =SUM('Passagers Nat'!CL99) -> 0 | G98: Rondes effectuées | H98: =SUM('Passagers Inter'!CM98) -> 0 | J98: Rondes effectuées | K98: 0
A99: 24 | B99: =VLOOKUP(A99,'Numéro licences'!$A$4:$B$32,2) -> 0 | C99: Aller-Retour | D99: Km renseignés | E99: =SUM('Passagers Nat'!CL100) -> 0 | G99: Km renseignés | H99: =SUM('Passagers Inter'!CM99) -> 0 | J99: Km renseignés | K99: 0
C100: Ronde | D100: Km confirmés | E100: =SUM('Passagers Nat'!CL101) -> 0 | G100: Km confirmés | H100: =SUM('Passagers Inter'!CM100) -> 0 | J100: Km confirmés | K100: 0
D101: Rondes confirmées | E101: =SUM('Passagers Nat'!CL102) -> 0 | G101: Rondes confirmées | H101: =SUM('Passagers Inter'!CM101) -> 0 | J101: Rondes confirmées | K101: 0
D102: Rondes effectuées | E102: =SUM('Passagers Nat'!CL103) -> 0 | G102: Rondes effectuées | H102: =SUM('Passagers Inter'!CM102) -> 0 | J102: Rondes effectuées | K102: 0
A103: 25 | B103: =VLOOKUP(A103,'Numéro licences'!$A$4:$B$32,2) -> 0 | C103: Aller-Retour | D103: Km renseignés | E103: =SUM('Passagers Nat'!CL104) -> 0 | G103: Km renseignés | H103: =SUM('Passagers Inter'!CM103) -> 0 | J103: Km renseignés | K103: 0
C104: Ronde | D104: Km confirmés | E104: =SUM('Passagers Nat'!CL105) -> 0 | G104: Km confirmés | H104: =SUM('Passagers Inter'!CM104) -> 0 | J104: Km confirmés | K104: 0
D105: Rondes confirmées | E105: =SUM('Passagers Nat'!CL106) -> 0 | G105: Rondes confirmées | H105: =SUM('Passagers Inter'!CM105) -> 0 | J105: Rondes confirmées | K105: 0
D106: Rondes effectuées | E106: =SUM('Passagers Nat'!CL107) -> 0 | G106: Rondes effectuées | H106: =SUM('Passagers Inter'!CM106) -> 0 | J106: Rondes effectuées | K106: 0
A107: 26 | B107: =VLOOKUP(A107,'Numéro licences'!$A$4:$B$32,2) -> 0 | C107: Aller-Retour | D107: Km renseignés | E107: =SUM('Passagers Nat'!CL108) -> 0 | G107: Km renseignés | H107: =SUM('Passagers Inter'!CM107) -> 0 | J107: Km renseignés | K107: 0
C108: Ronde | D108: Km confirmés | E108: =SUM('Passagers Nat'!CL109) -> 0 | G108: Km confirmés | H108: =SUM('Passagers Inter'!CM108) -> 0 | J108: Km confirmés | K108: 0
D109: Rondes confirmées | E109: =SUM('Passagers Nat'!CL110) -> 0 | G109: Rondes confirmées | H109: =SUM('Passagers Inter'!CM109) -> 0 | J109: Rondes confirmées | K109: 0
D110: Rondes effectuées | E110: =SUM('Passagers Nat'!CL111) -> 0 | G110: Rondes effectuées | H110: =SUM('Passagers Inter'!CM110) -> 0 | J110: Rondes effectuées | K110: 0
A111: 27 | B111: =VLOOKUP(A111,'Numéro licences'!$A$4:$B$32,2) -> 0 | C111: Aller-Retour | D111: Km renseignés | E111: =SUM('Passagers Nat'!CL112) -> 0 | G111: Km renseignés | H111: =SUM('Passagers Inter'!CM111) -> 0 | J111: Km renseignés | K111: 0
C112: Ronde | D112: Km confirmés | E112: =SUM('Passagers Nat'!CL113) -> 0 | G112: Km confirmés | H112: =SUM('Passagers Inter'!CM112) -> 0 | J112: Km confirmés | K112: 0
D113: Rondes confirmées | E113: =SUM('Passagers Nat'!CL114) -> 0 | G113: Rondes confirmées | H113: =SUM('Passagers Inter'!CM113) -> 0 | J113: Rondes confirmées | K113: 0
D114: Rondes effectuées | E114: =SUM('Passagers Nat'!CL115) -> 0 | G114: Rondes effectuées | H114: =SUM('Passagers Inter'!CM114) -> 0 | J114: Rondes effectuées | K114: 0
A115: 28 | B115: =VLOOKUP(A115,'Numéro licences'!$A$4:$B$32,2) -> 0 | C115: Aller-Retour | D115: Km renseignés | E115: =SUM('Passagers Nat'!CL116) -> 0 | G115: Km renseignés | H115: =SUM('Passagers Inter'!CM115) -> 0 | J115: Km renseignés | K115: 0
C116: Ronde | D116: Km confirmés | E116: =SUM('Passagers Nat'!CL117) -> 0 | G116: Km confirmés | H116: =SUM('Passagers Inter'!CM116) -> 0 | J116: Km confirmés | K116: 0
D117: Rondes confirmées | E117: =SUM('Passagers Nat'!CL118) -> 0 | G117: Rondes confirmées | H117: =SUM('Passagers Inter'!CM117) -> 0 | J117: Rondes confirmées | K117: 0
D118: Rondes effectuées | E118: =SUM('Passagers Nat'!CL119) -> 0 | G118: Rondes effectuées | H118: =SUM('Passagers Inter'!CM118) -> 0 | J118: Rondes effectuées | K118: 0
A119: 29 | B119: =VLOOKUP(A119,'Numéro licences'!$A$4:$B$32,2) -> 0 | C119: Aller-Retour | D119: Km renseignés | E119: =SUM('Passagers Nat'!CL120) -> 0 | G119: Km renseignés | H119: =SUM('Passagers Inter'!CM119) -> 0 | J119: Km renseignés | K119: 0
C120: Ronde | D120: Km confirmés | E120: =SUM('Passagers Nat'!CL121) -> 0 | G120: Km confirmés | H120: =SUM('Passagers Inter'!CM120) -> 0 | J120: Km confirmés | K120: 0
D121: Rondes confirmées | E121: =SUM('Passagers Nat'!CL122) -> 0 | G121: Rondes confirmées | H121: =SUM('Passagers Inter'!CM121) -> 0 | J121: Rondes confirmées | K121: 0
D122: Rondes effectuées | E122: =SUM('Passagers Nat'!CL123) -> 0 | G122: Rondes effectuées | H122: =SUM('Passagers Inter'!CM122) -> 0 | J122: Rondes effectuées | K122: 0
D125: Rondes confirmées | E125: =SUM(E9+E13+E17+E21+E25+E29+E33+E37+E41+E45+E49+E53+E57+E61+E65+E69+E73+E77+E81+E85+E89+E93+E97+E101+E105+E109+E113+E117+E121) -> 26 | G125: Rondes confirmées | H125: =SUM(H9+H13+H17+H21+H25+H29+H33+H37+H41+H45+H49+H53+H57+H61+H65+H69+H73+H77+H81+H85+H89+H93+H97+H101+H105+H109+H113+H117+H121) -> 3 | J125: Rondes confirmées | K125: =SUM(K9+K13+K17+K21+K25+K29+K33+K37+K41+K45+K49+K53+K57+K61+K65+K69+K73+K77+K81+K85+K89+K93+K97+K101+K105+K109+K113+K117+K121) -> 29
D126: Rondes effectuées | E126: =SUM(E10+E14+E18+E22+E26+E30+E34+E38+E42+E46+E50+E54+E58+E62+E66+E70+E74+E78+E82+E86+E90+E94+E98+E102+E106+E110+E114+E118+E122) -> 31 | G126: Rondes effectuées | H126: =SUM(H10+H14+H18+H22+H26+H30+H34+H38+H42+H46+H50+H54+H58+H62+H66+H70+H74+H78+H82+H86+H90+H94+H98+H102+H106+H110+H114+H118+H122) -> 3 | J126: Rondes effectuées | K126: =SUM(K10+K14+K18+K22+K26+K30+K34+K38+K42+K46+K50+K54+K58+K62+K66+K70+K74+K78+K82+K86+K90+K94+K98+K102+K106+K110+K114+K118+K122) -> 34
B132: Colonne1
A133: 1 | B133: ALAIMO Rosa
A134: =SUM(A133+1) -> 2 | B134: BRIDOUX Jacqueline
A135: =SUM(A134+1) -> 3 | B135: COSYNS Carine
A136: 4 | B136: DEHAUT Stéphane
A137: 5 | B137: GREGORICS Kathy
A138: 6 | B138: INGELS Chantal
A139: 7 | B139: LAMBILLON Anne
A140: 8 | B140: LAMIROY Anne
A141: 9 | B141: LEQUEUX Anne
A142: 10 | B142: LEROY Laure
A143: 11 | B143: PIROTTE Daisy
A144: 12 | B144: THOMAS Isabelle
A145: 13
A146: 14
A147: 15
A148: 16
A149: 17
A150: 18
A151: 19
A152: 20
A153: 21
A154: 22
A155: 23
A156: 24
A157: 25
A158: 26
A159: 27
A160: 28
A161: 29
A162: 30
A163: 31
A164: 32
A165: 33
A166: 34
A167: 35
A168: 36
A169: 37
A170: 38
A171: 39
A172: 40
A173: 41
A174: 42
A175: 43
A176: =SUM(A175+1) -> 44
A177: 45
A178: 46

Sheet Pilotes Nat
D1: 1 | E1: =SUM(D1+1) -> 2 | F1: =SUM(E1+1) -> 3 | G1: 4 | H1: 5 | I1: 6 | J1: 7 | K1: 8 | L1: 9 | M1: 10 | N1: 11 | O1: 12 | P1: 13 | Q1: 14 | R1: 15 | S1: 16 | T1: 17 | U1: 18 | V1: 19 | W1: 20 | X1: 21 | Y1: 22 | Z1: 23 | AA1: 24 | AB1: 25 | AC1: 26 | AD1: 27 | AE1: 28 | AF1: 29 | AG1: 30 | AH1: 31 | AI1: 32 | AJ1: 33 | AK1: 34 | AL1: 35 | AM1: 36 | AN1: 37 | AO1: 38 | AP1: 39 | AQ1: 40 | AR1: 41 | AS1: 42 | AT1: 43 | AU1: 44 | AV1: 45 | AW1: 46 | AX1: 47 | AY1: 48 | AZ1: 49 | BA1: 50 | BB1: 51 | BC1: 52 | BD1: 53 | BE1: 54 | BF1: 55 | BG1: 56 | BH1: 57 | BI1: 58 | BJ1: =SUM(BI1+1) -> 59 | BK1: =SUM(BJ1+1) -> 60 | BL1: =SUM(BK1+1) -> 61 | BM1: 62 | BR1: Hors FMB
D2: 902 | E2: 531 | F2: 516 | G2: 103 | H2: 206 | I2: 904 | J2: 713 | K2: 912 | L2: 721 | M2: 730 | N2: 726 | O2: 426 | P2: 716 | Q2: 533 | R2: 549 | S2: 806 | T2: 126 | U2: 427 | V2: 729 | W2: 721 | X2: 729 | Y2: 419 | Z2: 0 | AA2: 312 | AB2: 508 | AC2: 713 | AD2: 137 | AE2: 705 | AF2: 516 | AG2: 703 | AH2: 531 | AI2: 903 | AJ2: 427 | AK2: 710 | AL2: 921 | AM2: 614 | AN2: 810 | AO2: 103 | AP2: 818 | AQ2: 920 | AR2: 922 | AS2: 406 | AT2: 902 | AU2: 138 | AV2: 730 | AW2: 426 | AX2: 703 | AY2: 908 | AZ2: 705 | BA2: 136 | BB2: 729 | BC2: 907 | BD2: 137 | BE2: 531 | BF2: 126 | BG2: 910 | BH2: 422 | BI2: 427 | BJ2: 332 | BK2: 508 | BL2: 332 | BM2: 710
D3: 2021-02-14 | E3: 2021-02-28 | F3: 2021-03-07 | G3: 2021-03-14 | H3: 2021-03-14 | I3: 2021-03-20 | J3: 2021-03-21 | K3: 2021-03-28 | L3: 2021-04-04 | M3: 2021-04-05 | N3: 2021-04-10 | O3: 2021-04-11 | P3: 2021-04-18 | Q3: 2021-04-25 | R3: 2021-05-01 | S3: 2021-05-01 | T3: 2021-05-02 | U3: 2021-05-09 | V3: 2021-05-16 | W3: 2021-05-23 | X3: 2021-05-24 | Y3: 2021-05-29 | Z3: 2021-06-05 | AA3: 2021-06-12 | AB3: 2021-06-20 | AC3: 2021-06-26 | AD3: 2021-06-27 | AE3: 2021-06-27 | AF3: 2021-07-03 | AG3: 2021-07-04 | AH3: 2021-07-10 | AI3: 2021-07-17 | AJ3: 2021-07-18 | AK3: 2021-07-21 | AL3: 2021-07-24 | AM3: 2021-07-31 | AN3: 2021-08-01 | AO3: 2021-08-08 | AP3: 2021-08-14 | AQ3: 2021-08-14 | AR3: 2021-08-21 | AS3: 2021-08-22 | AT3: 2021-08-28 | AU3: 2021-08-28 | AV3: 2021-08-29 | AW3: 2021-09-04 | AX3: 2021-09-05 | AY3: 2021-09-11 | AZ3: 2021-09-12 | BA3: 2021-09-18 | BB3: 2021-09-19 | BC3: 2021-09-19 | BD3: 2021-09-25 | BE3: 2021-09-26 | BF3: 2021-10-02 | BG3: 2021-10-03 | BH3: 2021-10-10 | BI3: 2021-10-17 | BJ3: 2021-10-31 | BK3: 2021-11-01 | BL3: 2021-11-07 | BM3: 2021-11-11 | BQ3: 2021-05-09 | BR3: 2021-06-06 | BS3: 2021-06-27 | BT3: 2021-10-17
D4: =VLOOKUP(D2,'Kilomètre AR'!$A$1:$B$58,2) -> AMC GIJVERINKHOVE | E4: =VLOOKUP(E2,'Kilomètre AR'!$A$1:$B$58,2) -> MC HOESELT | F4: =VLOOKUP(F2,'Kilomètre AR'!$A$1:$B$58,2) -> MC LOTUS Bilzen | G4: =VLOOKUP(G2,'Kilomètre AR'!$A$1:$B$58,2) -> KAMC HERENTALS | H4: =VLOOKUP(H2,'Kilomètre AR'!$A$1:$B$58,2) -> MC L'EQUIPE Bruxelles | I4: =VLOOKUP(I2,'Kilomètre AR'!$A$1:$B$58,2) -> KAMC MENEN | J4: =VLOOKUP(J2,'Kilomètre AR'!$A$1:$B$58,2) -> MC ST SERVAIS | K4: =VLOOKUP(K2,'Kilomètre AR'!$A$1:$B$58,2) -> MTC ZEDELGEM | L4: =VLOOKUP(L2,'Kilomètre AR'!$A$1:$B$58,2) -> MC LES PETITS GRIS Warisoulx | M4: =VLOOKUP(M2,'Kilomètre AR'!$A$1:$B$58,2) -> MC LES 4 & CO Assesse | N4: =VLOOKUP(N2,'Kilomètre AR'!$A$1:$B$58,2) -> MC BIKE AND TRIKE BELGIUM Dhuy | O4: =VLOOKUP(O2,'Kilomètre AR'!$A$1:$B$58,2) -> MTC WELKENRAEDT | P4: =VLOOKUP(P2,'Kilomètre AR'!$A$1:$B$58,2) -> AMC FLOREFFE | Q4: =VLOOKUP(Q2,'Kilomètre AR'!$A$1:$B$58,2) -> MTC 13 Leopoldsburg | R4: =VLOOKUP(R2,'Kilomètre AR'!$A$1:$B$58,2) -> MTC WELLEN Wellen | S4: =VLOOKUP(S2,'Kilomètre AR'!$A$1:$B$58,2) -> MC SCHELDELAND Wichelen | T4: =VLOOKUP(T2,'Kilomètre AR'!$A$1:$B$58,2) -> MTC TOERVRIENDEN Brasschaat | U4: =VLOOKUP(U2,'Kilomètre AR'!$A$1:$B$58,2) -> MC ZEBUS Flémalle | V4: =VLOOKUP(V2,'Kilomètre AR'!$A$1:$B$58,2) -> VIROINVAL MOTOR SPORT Dourbes | W4: =VLOOKUP(W2,'Kilomètre AR'!$A$1:$B$58,2) -> MC LES PETITS GRIS Warisoulx | X4: =VLOOKUP(X2,'Kilomètre AR'!$A$1:$B$58,2) -> VIROINVAL MOTOR SPORT Dourbes | Y4: =VLOOKUP(Y2,'Kilomètre AR'!$A$1:$B$58,2) -> AMC ST VITH | Z4: =VLOOKUP(Z2,'Kilomètre AR'!$A$1:$B$58,2) -> RONDE FMB | AA4: =VLOOKUP(AA2,'Kilomètre AR'!$A$1:$B$58,2) -> MC RESSAIX | AB4: =VLOOKUP(AB2,'Kilomètre AR'!$A$1:$B$58,2) -> AMC KOERSEL | AC4: =VLOOKUP(AC2,'Kilomètre AR'!$A$1:$B$58,2) -> MC ST SERVAIS | AD4: =VLOOKUP(AD2,'Kilomètre AR'!$A$1:$B$58,2) -> MTC YELLS ARMY Berchem | AE4: =VLOOKUP(AE2,'Kilomètre AR'!$A$1:$B$58,2) -> MC DINANT | AF4: =VLOOKUP(AF2,'Kilomètre AR'!$A$1:$B$58,2) -> MC LOTUS Bilzen | AG4: =VLOOKUP(AG2,'Kilomètre AR'!$A$1:$B$58,2) -> R CINEY MC | AH4: =VLOOKUP(AH2,'Kilomètre AR'!$A$1:$B$58,2) -> MC HOESELT | AI4: =VLOOKUP(AI2,'Kilomètre AR'!$A$1:$B$58,2) -> AMSC LEIELAND Wervik | AJ4: =VLOOKUP(AJ2,'Kilomètre AR'!$A$1:$B$58,2) -> MC ZEBUS Flémalle | AK4: =VLOOKUP(AK2,'Kilomètre AR'!$A$1:$B$58,2) -> MC MOLIGNARD Warnant | AL4: =VLOOKUP(AL2,'Kilomètre AR'!$A$1:$B$58,2) -> MTC VRIJBOS Houthulst | AM4: =VLOOKUP(AM2,'Kilomètre AR'!$A$1:$B$58,2) -> MC CHEVY RACING Libramont-Chevigny | AN4: =VLOOKUP(AN2,'Kilomètre AR'!$A$1:$B$58,2) -> BMW MC VLAANDEREN Lede | AO4: =VLOOKUP(AO2,'Kilomètre AR'!$A$1:$B$58,2) -> KAMC HERENTALS | AP4: =VLOOKUP(AP2,'Kilomètre AR'!$A$1:$B$58,2) -> MTC VLAANDEREN Aalst | AQ4: =VLOOKUP(AQ2,'Kilomètre AR'!$A$1:$B$58,2) -> WESTHOEK BIKERS Houtem | AR4: =VLOOKUP(AR2,'Kilomètre AR'!$A$1:$B$58,2) -> MTC REDBONE Wevezele | AS4: =VLOOKUP(AS2,'Kilomètre AR'!$A$1:$B$58,2) -> RAMC EUPEN | AT4: =VLOOKUP(AT2,'Kilomètre AR'!$A$1:$B$58,2) -> AMC GIJVERINKHOVE | AU4: =VLOOKUP(AU2,'Kilomètre AR'!$A$1:$B$58,2) -> MC TIGRIS PANTERA Brasschaat | AV4: =VLOOKUP(AV2,'Kilomètre AR'!$A$1:$B$58,2) -> MC LES 4 & CO Assesse | AW4: =VLOOKUP(AW2,'Kilomètre AR'!$A$1:$B$58,2) -> MTC WELKENRAEDT | AX4: =VLOOKUP(AX2,'Kilomètre AR'!$A$1:$B$58,2) -> R CINEY MC | AY4: =VLOOKUP(AY2,'Kilomètre AR'!$A$1:$B$58,2) -> AMC POPERINGE | AZ4: =VLOOKUP(AZ2,'Kilomètre AR'!$A$1:$B$58,2) -> MC DINANT | BA4: =VLOOKUP(BA2,'Kilomètre AR'!$A$1:$B$58,2) -> MTC AMIGO'S Schoten | BB4: =VLOOKUP(BB2,'Kilomètre AR'!$A$1:$B$58,2) -> VIROINVAL MOTOR SPORT Dourbes | BC4: =VLOOKUP(BC2,'Kilomètre AR'!$A$1:$B$58,2) -> KV OSTEND MS | BD4: =VLOOKUP(BD2,'Kilomètre AR'!$A$1:$B$58,2) -> MTC YELLS ARMY Berchem | BE4: =VLOOKUP(BE2,'Kilomètre AR'!$A$1:$B$58,2) -> MC HOESELT | BF4: =VLOOKUP(BF2,'Kilomètre AR'!$A$1:$B$58,2) -> MTC TOERVRIENDEN Brasschaat | BG4: =VLOOKUP(BG2,'Kilomètre AR'!$A$1:$B$58,2) -> AMC EENDRACHT TORHOUT | BH4: =VLOOKUP(BH2,'Kilomètre AR'!$A$1:$B$58,2) -> MC THEUX-FRANCHIMONT | BI4: =VLOOKUP(BI2,'Kilomètre AR'!$A$1:$B$58,2) -> MC ZEBUS Flémalle | BJ4: =VLOOKUP(BJ2,'Kilomètre AR'!$A$1:$B$58,2) -> MC BUTZ BIKERS 95 Ecaussinnes | BK4: =VLOOKUP(BK2,'Kilomètre AR'!$A$1:$B$58,2) -> AMC KOERSEL | BL4: =VLOOKUP(BL2,'Kilomètre AR'!$A$1:$B$58,2) -> MC BUTZ BIKERS 95 Ecaussinnes | BM4: =VLOOKUP(BM2,'Kilomètre AR'!$A$1:$B$58,2) -> MC MOLIGNARD Warnant | BQ4: MC Theux | BR4: MCSS | BS4: MCSS - DINANT | BT4: Moto Retro Flemalle
B5: Aller-Retour | D5: =VLOOKUP(D2,'Kilomètre AR'!$A$1:$D$58,4) -> 380 | E5: =VLOOKUP(E2,'Kilomètre AR'!$A$1:$D$58,4) -> 140 | F5: =VLOOKUP(F2,'Kilomètre AR'!$A$1:$D$58,4) -> 148 | G5: =VLOOKUP(G2,'Kilomètre AR'!$A$1:$D$58,4) -> 190 | H5: =VLOOKUP(H2,'Kilomètre AR'!$A$1:$D$58,4) -> 116 | I5: =VLOOKUP(I2,'Kilomètre AR'!$A$1:$D$58,4) -> 296 | J5: =VLOOKUP(J2,'Kilomètre AR'!$A$1:$D$58,4) -> 0 | K5: =VLOOKUP(K2,'Kilomètre AR'!$A$1:$D$58,4) -> 312 | L5: =VLOOKUP(L2,'Kilomètre AR'!$A$1:$D$58,4) -> 20 | M5: =VLOOKUP(M2,'Kilomètre AR'!$A$1:$D$58,4) -> 38 | N5: =VLOOKUP(N2,'Kilomètre AR'!$A$1:$D$58,4) -> 34 | O5: =VLOOKUP(O2,'Kilomètre AR'!$A$1:$D$58,4) -> 186 | P5: =VLOOKUP(P2,'Kilomètre AR'!$A$1:$D$58,4) -> 20 | Q5: =VLOOKUP(Q2,'Kilomètre AR'!$A$1:$D$58,4) -> 184 | R5: =VLOOKUP(R2,'Kilomètre AR'!$A$1:$D$58,4) -> 130 | S5: =VLOOKUP(S2,'Kilomètre AR'!$A$1:$D$58,4) -> 194 | T5: =VLOOKUP(T2,'Kilomètre AR'!$A$1:$D$58,4) -> 218 | U5: =VLOOKUP(U2,'Kilomètre AR'!$A$1:$D$58,4) -> 104 | V5: =VLOOKUP(V2,'Kilomètre AR'!$A$1:$D$58,4) -> 124 | W5: =VLOOKUP(W2,'Kilomètre AR'!$A$1:$D$58,4) -> 20 | X5: =VLOOKUP(X2,'Kilomètre AR'!$A$1:$D$58,4) -> 124 | Y5: =VLOOKUP(Y2,'Kilomètre AR'!$A$1:$D$58,4) -> 262 | Z5: 38 | AA5: =VLOOKUP(AA2,'Kilomètre AR'!$A$1:$D$58,4) -> 104 | AB5: =VLOOKUP(AB2,'Kilomètre AR'!$A$1:$D$58,4) -> 176 | AC5: =VLOOKUP(AC2,'Kilomètre AR'!$A$1:$D$58,4) -> 0 | AD5: =VLOOKUP(AD2,'Kilomètre AR'!$A$1:$D$58,4) -> 192 | AE5: =VLOOKUP(AE2,'Kilomètre AR'!$A$1:$D$58,4) -> 60 | AF5: =VLOOKUP(AF2,'Kilomètre AR'!$A$1:$D$58,4) -> 148 | AG5: =VLOOKUP(AG2,'Kilomètre AR'!$A$1:$D$58,4) -> 60 | AH5: =VLOOKUP(AH2,'Kilomètre AR'!$A$1:$D$58,4) -> 140 | AI5: =VLOOKUP(AI2,'Kilomètre AR'!$A$1:$D$58,4) -> 296 | AJ5: =VLOOKUP(AJ2,'Kilomètre AR'!$A$1:$D$58,4) -> 104 | AK5: =VLOOKUP(AK2,'Kilomètre AR'!$A$1:$D$58,4) -> 52 | AL5: =VLOOKUP(AL2,'Kilomètre AR'!$A$1:$D$58,4) -> 344 | AM5: =VLOOKUP(AM2,'Kilomètre AR'!$A$1:$D$58,4) -> 162 | AN5: =VLOOKUP(AN2,'Kilomètre AR'!$A$1:$D$58,4) -> 184 | AO5: =VLOOKUP(AO2,'Kilomètre AR'!$A$1:$D$58,4) -> 190 | AP5: =VLOOKUP(AP2,'Kilomètre AR'!$A$1:$D$58,4) -> 176 | AQ5: =VLOOKUP(AQ2,'Kilomètre AR'!$A$1:$D$58,4) -> 386 | AR5: =VLOOKUP(AR2,'Kilomètre AR'!$A$1:$D$58,4) -> 292 | AS5: =VLOOKUP(AS2,'Kilomètre AR'!$A$1:$D$58,4) -> 194 | AT5: =VLOOKUP(AT2,'Kilomètre AR'!$A$1:$D$58,4) -> 380 | AU5: =VLOOKUP(AU2,'Kilomètre AR'!$A$1:$D$58,4) -> 218 | AV5: =VLOOKUP(AV2,'Kilomètre AR'!$A$1:$D$58,4) -> 38 | AW5: =VLOOKUP(AW2,'Kilomètre AR'!$A$1:$D$58,4) -> 186 | AX5: =VLOOKUP(AX2,'Kilomètre AR'!$A$1:$D$58,4) -> 60 | AY5: =VLOOKUP(AY2,'Kilomètre AR'!$A$1:$D$58,4) -> 356 | AZ5: =VLOOKUP(AZ2,'Kilomètre AR'!$A$1:$D$58,4) -> 60 | BA5: =VLOOKUP(BA2,'Kilomètre AR'!$A$1:$D$58,4) -> 208 | BB5: =VLOOKUP(BB2,'Kilomètre AR'!$A$1:$D$58,4) -> 124 | BC5: =VLOOKUP(BC2,'Kilomètre AR'!$A$1:$D$58,4) -> 344 | BD5: =VLOOKUP(BD2,'Kilomètre AR'!$A$1:$D$58,4) -> 192 | BE5: =VLOOKUP(BE2,'Kilomètre AR'!$A$1:$D$58,4) -> 140 | BF5: =VLOOKUP(BF2,'Kilomètre AR'!$A$1:$D$58,4) -> 218 | BG5: =VLOOKUP(BG2,'Kilomètre AR'!$A$1:$D$58,4) -> 324 | BH5: =VLOOKUP(BH2,'Kilomètre AR'!$A$1:$D$58,4) -> 166 | BI5: =VLOOKUP(BI2,'Kilomètre AR'!$A$1:$D$58,4) -> 104 | BJ5: =VLOOKUP(BJ2,'Kilomètre AR'!$A$1:$D$58,4) -> 108 | BK5: =VLOOKUP(BK2,'Kilomètre AR'!$A$1:$D$58,4) -> 176 | BL5: =VLOOKUP(BL2,'Kilomètre AR'!$A$1:$D$58,4) -> 108 | BM5: =VLOOKUP(BM2,'Kilomètre AR'!$A$1:$D$58,4) -> 52 | BQ5: 166 | BR5: 0 | BS5: 79 | BT5: 36 | BW5: -1 | BX5: -1 | BY5: -1 | BZ5: -1 | CA5: -1 | CB5: -1 | CC5: -1 | CD5: -1 | CE5: -1 | CF5: -1 | CG5: -1
B6: Ronde | V6: 215 | X6: 195 | Z6: 513 | AC6: 200 | AF6: 200 | AG6: 210 | AH6: 180 | AK6: 200 | AL6: 300 | AM6: 220 | AP6: 250 | AT6: 220 | AV6: 220 | AW6: 166 | AX6: 220 | AY6: 165 | AZ6: 194 | BA6: 180 | BB6: 180 | BC6: 165 | BD6: 150 | BE6: 165 | BF6: 170 | BG6: 160 | BH6: 220 | BJ6: 165 | BK6: 140 | BL6: 150 | BM6: 130 | BQ6: 216 | BR6: 200 | BS6: 186 | BT6: 120 | BW6: -1 | BX6: -1 | BY6: -1 | BZ6: -1 | CA6: -1 | CB6: -1 | CC6: -1 | CD6: -1 | CE6: -1 | CF6: -1 | CG6: -1
D7: ANNULEE COVID-19 | E7: ANNULEE COVID-19 | F7: ANNULEE COVID-19 | G7: ANNULEE COVID-19 | H7: ANNULEE COVID-19 | I7: ANNULEE COVID-19 | J7: ANNULEE COVID-19 | K7: ANNULEE COVID-19 | L7: ANNULEE COVID-19 | M7: ANNULEE COVID-19 | N7: ANNULEE COVID-19 | O7: ANNULEE COVID-19 | P7: ANNULEE COVID-19 | Q7: ANNULEE COVID-19 | R7: ANNULEE COVID-19 | S7: ANNULEE COVID-19 | T7: ANNULEE COVID-19 | U7: ANNULEE COVID-19 | W7: ANNULEE COVID-19 | Y7: ANNULEE COVID-19 | AA7: ANNULEE COVID-19 | AD7: ANNULEE COVID-19 | AE7: ANNULEE COVID-19 | AI7: ANNULEE COVID-19 | AJ7: ANNULEE COVID-19 | AN7: Hors Championnat | AO7: ANNULEE COVID-19 | AQ7: ANNULEE COVID-19 | AR7: ANNULEE COVID-19 | AS7: ANNULEE COVID-19 | AT7: Inter | AU7: ANNULEE COVID-19 | AW7: Inter | BH7: Hors Championnat | BI7: Annulée | BJ7: 174 Km A/R !! Adresse Salle déportée | BN7: Sous-Total FMB | BP7: Total FMB | CH7: Sous-Totaux Pirates | CJ7: Total Pirates | CL7: TOTAL | CP7: FMB | CQ7: Hors FMB | CR7: Total
A8: 1 | B8: =VLOOKUP(A8,'Numéro licences'!$H$4:$I$47,2) -> BALFROID Pierre | C8: Aller-Retour | BN8: =SUM(D8:BM8) -> 0 | BO8: Km renseignés | BP8: =SUM(BN8+BN9) -> 0 | CH8: =SUM(BQ8:CG8) -> 0 | CI8: Km renseignés | CJ8: =SUM(CH8+CH9) -> 0 | CK8: Km renseignés | CL8: =SUM(BP8+CJ8) -> 0 | CN8: 1 | CO8: =VLOOKUP(CN8,A8:B188,2) -> BALFROID Pierre | CP8: =SUM(BP8) -> 0 | CQ8: =SUM(CJ8) -> 0 | CR8: =SUM(CP8+CQ8) -> 0
C9: Ronde | BN9: =SUM(D9:BM9) -> 0 | BO9: Km confirmés | BP9: =SUM(D11:BM11) -> 0 | CH9: =SUM(BQ9:CG9) -> 0 | CI9: Km confirmés | CJ9: =SUM(BQ11:CG11) -> 0 | CK9: Km confirmés | CL9: =SUM(CJ9+BP9) -> 0 | CN9: 2 | CO9: =VLOOKUP(CN9,A8:B188,2) -> BALLION Pierre | CP9: =SUM(BP12) -> 200 | CQ9: =SUM(CJ12) -> 0 | CR9: =SUM(CP9+CQ9) -> 200
D10: 0 | E10: 0 | F10: 0 | G10: 0 | H10: 0 | I10: 0 | J10: 0 | K10: 0 | L10: 0 | M10: 0 | N10: 0 | O10: 0 | P10: 0 | Q10: 0 | R10: 0 | S10: 0 | T10: 0 | U10: 0 | V10: 0 | W10: 0 | X10: 0 | Y10: 0 | Z10: 0 | AA10: 0 | AB10: 0 | AC10: 0 | AD10: 0 | AE10: 0 | AF10: 0 | AG10: 0 | AH10: 0 | AI10: 0 | AJ10: 0 | AK10: 0 | AL10: 0 | AM10: 0 | AN10: 0 | AO10: 0 | AP10: 0 | AQ10: 0 | AR10: 0 | AS10: 0 | AT10: 0 | AU10: 0 | AV10: 0 | AW10: 0 | AX10: 0 | AY10: 0 | AZ10: 0 | BA10: 0 | BB10: 0 | BC10: 0 | BD10: 0 | BE10: 0 | BF10: 0 | BG10: 0 | BH10: 0 | BI10: 0 | BJ10: 0 | BK10: 0 | BL10: 0 | BM10: 0 | BO10: Rondes confirmées | BP10: =SUM(C10:BM10) -> 0 | BQ10: 0 | BR10: 0 | BS10: 0 | BT10: 0 | BU10: 0 | BV10: 0 | BW10: 0 | BX10: 0 | BY10: 0 | BZ10: 0 | CA10: 0 | CB10: 0 | CC10: 0 | CD10: 0 | CE10: 0 | CF10: 0 | CG10: 0 | CI10: Rondes confirmées | CJ10: =SUM(BQ10:CH10) -> 0 | CK10: Rondes confirmées | CL10: =SUM(CJ10+BP10) -> 0 | CN10: 3 | CO10: =VLOOKUP(CN10,A8:B188,2) -> BERDOYES Bruno | CP10: =SUM(BP16) -> 0 | CQ10: =SUM(CJ16) -> 0 | CR10: =SUM(CP10+CQ10) -> 0
D11: =SUM((D8+D9)*D10) -> 0 | E11: 0 | F11: 0 | G11: 0 | H11: 0 | I11: 0 | J11: 0 | K11: 0 | L11: 0 | M11: 0 | N11: 0 | O11: 0 | P11: 0 | Q11: 0 | R11: 0 | S11: 0 | T11: 0 | U11: 0 | V11: 0 | W11: 0 | X11: 0 | Y11: 0 | Z11: 0 | AA11: 0 | AB11: 0 | AC11: 0 | AD11: 0 | AE11: 0 | AF11: 0 | AG11: 0 | AH11: 0 | AI11: 0 | AJ11: 0 | AK11: 0 | AL11: 0 | AM11: 0 | AN11: 0 | AO11: 0 | AP11: 0 | AQ11: 0 | AR11: 0 | AS11: 0 | AT11: 0 | AU11: 0 | AV11: 0 | AW11: 0 | AX11: 0 | AY11: 0 | AZ11: 0 | BA11: 0 | BB11: 0 | BC11: 0 | BD11: 0 | BE11: 0 | BF11: 0 | BG11: 0 | BH11: 0 | BI11: 0 | BJ11: =SUM((BJ8+BJ9)*BJ10) -> 0 | BK11: =SUM((BK8+BK9)*BK10) -> 0 | BL11: =SUM((BL8+BL9)*BL10) -> 0 | BM11: 0 | BO11: Rondes effectuées | BP11: =COUNTIF(D8:BM8,">0") -> 0 | BQ11: =SUM((BQ8+BQ9)*BQ10) -> 0 | BR11: 0 | BS11: 0 | BT11: 0 | BU11: 0 | BV11: 0 | BW11: 0 | BX11: 0 | BY11: 0 | BZ11: 0 | CA11: 0 | CB11: 0 | CC11: 0 | CD11: 0 | CE11: 0 | CF11: 0 | CG11: 0 | CI11: Rondes Effectuées | CJ11: =COUNTIF(BQ8:CG8,">0") -> 0 | CK11: Rondes effectuées | CL11: =SUM(CJ11+BP11) -> 0 | CN11: 4 | CO11: =VLOOKUP(CN11,A8:B188,2) -> BERDOYES Yannick | CP11: =SUM(BP20) -> 0 | CQ11: =SUM(CJ20) -> 200 | CR11: 200
A12: 2 | B12: =VLOOKUP(A12,'Numéro licences'!$H$4:$I$47,2) -> BALLION Pierre | C12: Aller-Retour | AC12: 0 | BN12: =SUM(D12:BM12) -> 0 | BO12: Km renseignés | BP12: =SUM(BN12+BN13) -> 200 | CH12: =SUM(BQ12:CG12) -> 0 | CI12: Km renseignés | CJ12: =SUM(CH12+CH13) -> 0 | CK12: Km renseignés | CL12: =SUM(BP12+CJ12) -> 200 | CN12: 5 | CO12: =VLOOKUP(CN12,A8:B188,2) -> BRUNEAU Denis-Claude | CP12: =SUM(BP24) -> 200 | CQ12: =SUM(CJ24) -> 0 | CR12: 200
C13: Ronde | AC13: 200 | BN13: =SUM(D13:BM13) -> 200 | BO13: Km confirmés | BP13: =SUM(D15:BM15) -> 0 | CH13: =SUM(BQ13:CG13) -> 0 | CI13: Km confirmés | CJ13: =SUM(BQ15:CG15) -> 0 | CK13: Km confirmés | CL13: =SUM(CJ13+BP13) -> 0 | CN13: 6 | CO13: =VLOOKUP(CN13,A8:B188,2) -> DAVIN Philippe | CP13: =SUM(BP28) -> 3835 | CQ13: =SUM(CJ28) -> 465 | CR13: 4300
D14: 0 | E14: 0 | F14: 0 | G14: 0 | H14: 0 | I14: 0 | J14: 0 | K14: 0 | L14: 0 | M14: 0 | N14: 0 | O14: 0 | P14: 0 | Q14: 0 | R14: 0 | S14: 0 | T14: 0 | U14: 0 | V14: 0 | W14: 0 | X14: 0 | Y14: 0 | Z14: 0 | AA14: 0 | AB14: 0 | AC14: 0 | AD14: 0 | AE14: 0 | AF14: 0 | AG14: 0 | AH14: 0 | AI14: 0 | AJ14: 0 | AK14: 0 | AL14: 0 | AM14: 0 | AN14: 0 | AO14: 0 | AP14: 0 | AQ14: 0 | AR14: 0 | AS14: 0 | AT14: 0 | AU14: 0 | AV14: 0 | AW14: 0 | AX14: 0 | AY14: 0 | AZ14: 0 | BA14: 0 | BB14: 0 | BC14: 0 | BD14: 0 | BE14: 0 | BF14: 0 | BG14: 0 | BH14: 0 | BI14: 0 | BJ14: 0 | BK14: 0 | BL14: 0 | BM14: 0 | BO14: Rondes confirmées | BP14: 0 | BQ14: 0 | BR14: 0 | BS14: 0 | BT14: 0 | BU14: 0 | BV14: 0 | BW14: 0 | BX14: 0 | BY14: 0 | BZ14: 0 | CA14: 0 | CB14: 0 | CC14: 0 | CD14: 0 | CE14: 0 | CF14: 0 | CG14: 0 | CI14: Rondes confirmées | CJ14: =SUM(BQ14:CH14) -> 0 | CK14: Rondes confirmées | CL14: =SUM(CJ14+BP14) -> 0 | CN14: 7 | CO14: =VLOOKUP(CN14,A8:B188,2) -> DE SCHEPPERS Jean-Claude | CP14: =SUM(BP32) -> 0 | CQ14: =SUM(CJ32) -> 0 | CR14: 0
D15: =SUM((D12+D13)*D14) -> 0 | E15: 0 | F15: 0 | G15: 0 | H15: 0 | I15: 0 | J15: 0 | K15: 0 | L15: 0 | M15: 0 | N15: 0 | O15: 0 | P15: 0 | Q15: 0 | R15: 0 | S15: 0 | T15: 0 | U15: 0 | V15: 0 | W15: 0 | X15: 0 | Y15: 0 | Z15: 0 | AA15: 0 | AB15: 0 | AC15: 0 | AD15: 0 | AE15: 0 | AF15: 0 | AG15: 0 | AH15: 0 | AI15: 0 | AJ15: 0 | AK15: 0 | AL15: 0 | AM15: 0 | AN15: 0 | AO15: 0 | AP15: 0 | AQ15: 0 | AR15: 0 | AS15: 0 | AT15: 0 | AU15: 0 | AV15: 0 | AW15: 0 | AX15: 0 | AY15: 0 | AZ15: 0 | BA15: 0 | BB15: 0 | BC15: 0 | BD15: 0 | BE15: 0 | BF15: 0 | BG15: 0 | BH15: 0 | BI15: 0 | BJ15: =SUM((BJ12+BJ13)*BJ14) -> 0 | BK15: =SUM((BK12+BK13)*BK14) -> 0 | BL15: =SUM((BL12+BL13)*BL14) -> 0 | BM15: 0 | BO15: Rondes effectuées | BP15: =COUNTIF(D12:BM12,">0") -> 0 | BQ15: =SUM((BQ12+BQ13)*BQ14) -> 0 | BR15: 0 | BS15: 0 | BT15: 0 | BU15: 0 | BV15: 0 | BW15: 0 | BX15: 0 | BY15: 0 | BZ15: 0 | CA15: 0 | CB15: 0 | CC15: 0 | CD15: 0 | CE15: 0 | CF15: 0 | CG15: 0 | CI15: Rondes Effectuées | CJ15: =COUNTIF(BQ12:CG12,">0") -> 0 | CK15: Rondes effectuées | CL15: =SUM(CJ15+BP15) -> 0 | CN15: 8 | CO15: =VLOOKUP(CN15,A8:B188,2) -> DECUYPER Frédéric | CP15: =SUM(BP36) -> 0 | CQ15: =SUM(CJ36) -> 0 | CR15: 0
A16: 3 | B16: =VLOOKUP(A16,'Numéro licences'!$H$4:$I$47,2) -> BERDOYES Bruno | C16: Aller-Retour | BN16: =SUM(D16:BM16) -> 0 | BO16: Km renseignés | BP16: =SUM(BN16+BN17) -> 0 | CH16: =SUM(BQ16:CG16) -> 0 | CI16: Km renseignés | CJ16: =SUM(CH16+CH17) -> 0 | CK16: Km renseignés | CL16: =SUM(BP16+CJ16) -> 0 | CN16: 9 | CO16: =VLOOKUP(CN16,A8:B188,2) -> DEWAERSEGHERS Francis | CP16: =SUM(BP40) -> 589 | CQ16: =SUM(CJ40) -> 0 | CR16: 589
C17: Ronde | BN17: =SUM(D17:BM17) -> 0 | BO17: Km confirmés | BP17: =SUM(D19:BM19) -> 0 | CH17: =SUM(BQ17:CG17) -> 0 | CI17: Km confirmés | CJ17: =SUM(BQ19:CG19) -> 0 | CK17: Km confirmés | CL17: =SUM(CJ17+BP17) -> 0 | CN17: 10 | CO17: =VLOOKUP(CN17,A8:B188,2) -> DHONDT Jerry | CP17: =SUM(BP44) -> 1514 | CQ17: =SUM(CJ44) -> 582 | CR17: 2096
D18: 0 | E18: 0 | F18: 0 | G18: 0 | H18: 0 | I18: 0 | J18: 0 | K18: 0 | L18: 0 | M18: 0 | N18: 0 | O18: 0 | P18: 0 | Q18: 0 | R18: 0 | S18: 0 | T18: 0 | U18: 0 | V18: 0 | W18: 0 | X18: 0 | Y18: 0 | Z18: 0 | AA18: 0 | AB18: 0 | AC18: 0 | AD18: 0 | AE18: 0 | AF18: 0 | AG18: 0 | AH18: 0 | AI18: 0 | AJ18: 0 | AK18: 0 | AL18: 0 | AM18: 0 | AN18: 0 | AO18: 0 | AP18: 0 | AQ18: 0 | AR18: 0 | AS18: 0 | AT18: 0 | AU18: 0 | AV18: 0 | AW18: 0 | AX18: 0 | AY18: 0 | AZ18: 0 | BA18: 0 | BB18: 0 | BC18: 0 | BD18: 0 | BE18: 0 | BF18: 0 | BG18: 0 | BH18: 0 | BI18: 0 | BJ18: 0 | BK18: 0 | BL18: 0 | BM18: 0 | BO18: Rondes confirmées | BP18: 0 | BQ18: 0 | BR18: 0 | BS18: 0 | BT18: 0 | BU18: 0 | BV18: 0 | BW18: 0 | BX18: 0 | BY18: 0 | BZ18: 0 | CA18: 0 | CB18: 0 | CC18: 0 | CD18: 0 | CE18: 0 | CF18: 0 | CG18: 0 | CI18: Rondes confirmées | CJ18: =SUM(BQ18:CH18) -> 0 | CK18: Rondes confirmées | CL18: =SUM(CJ18+BP18) -> 0 | CN18: 11 | CO18: =VLOOKUP(CN18,A8:B188,2) -> DONY Marc | CP18: =SUM(BP48) -> 1756 | CQ18: =SUM(CJ48) -> 582 | CR18: 2338
D19: =SUM((D16+D17)*D18) -> 0 | E19: 0 | F19: 0 | G19: 0 | H19: 0 | I19: 0 | J19: 0 | K19: 0 | L19: 0 | M19: 0 | N19: 0 | O19: 0 | P19: 0 | Q19: 0 | R19: 0 | S19: 0 | T19: 0 | U19: 0 | V19: 0 | W19: 0 | X19: 0 | Y19: 0 | Z19: 0 | AA19: 0 | AB19: 0 | AC19: 0 | AD19: 0 | AE19: 0 | AF19: 0 | AG19: 0 | AH19: 0 | AI19: 0 | AJ19: 0 | AK19: 0 | AL19: 0 | AM19: 0 | AN19: 0 | AO19: 0 | AP19: 0 | AQ19: 0 | AR19: 0 | AS19: 0 | AT19: 0 | AU19: 0 | AV19: 0 | AW19: 0 | AX19: 0 | AY19: 0 | AZ19: 0 | BA19: 0 | BB19: 0 | BC19: 0 | BD19: 0 | BE19: 0 | BF19: 0 | BG19: 0 | BH19: 0 | BI19: 0 | BJ19: =SUM((BJ16+BJ17)*BJ18) -> 0 | BK19: =SUM((BK16+BK17)*BK18) -> 0 | BL19: =SUM((BL16+BL17)*BL18) -> 0 | BM19: 0 | BO19: Rondes effectuées | BP19: =COUNTIF(D16:BM16,">0") -> 0 | BQ19: =SUM((BQ16+BQ17)*BQ18) -> 0 | BR19: 0 | BS19: 0 | BT19: 0 | BU19: 0 | BV19: 0 | BW19: 0 | BX19: 0 | BY19: 0 | BZ19: 0 | CA19: 0 | CB19: 0 | CC19: 0 | CD19: 0 | CE19: 0 | CF19: 0 | CG19: 0 | CI19: Rondes Effectuées | CJ19: =COUNTIF(BQ16:CG16,">0") -> 0 | CK19: Rondes effectuées | CL19: =SUM(CJ19+BP19) -> 0 | CN19: 12 | CO19: =VLOOKUP(CN19,A8:B188,2) -> DUMONT Christophe | CP19: =SUM(BP52) -> 0 | CQ19: =SUM(CJ52) -> 0 | CR19: 0
A20: 4 | B20: =VLOOKUP(A20,'Numéro licences'!$H$4:$I$47,2) -> BERDOYES Yannick | C20: Aller-Retour | BN20: =SUM(D20:BM20) -> 0 | BO20: Km renseignés | BP20: =SUM(BN20:BN21) -> 0 | BR20: 0 | CH20: =SUM(BQ20:CG20) -> 0 | CI20: Km renseignés | CJ20: =SUM(CH20+CH21) -> 200 | CK20: Km renseignés | CL20: =SUM(BP20+CJ20) -> 200 | CN20: 13 | CO20: =VLOOKUP(CN20,A8:B188,2) -> FAVRESSSE René | CP20: =SUM(BP56) -> 751 | CQ20: =SUM(CJ56) -> 0 | CR20: 751
C21: Ronde | BN21: =SUM(D21:BM21) -> 0 | BO21: Km confirmés | BP21: =SUM(D23:BM23) -> 0 | BR21: 200 | CH21: =SUM(BQ21:CG21) -> 200 | CI21: Km confirmés | CJ21: =SUM(BQ23:CG23) -> 0 | CK21: Km confirmés | CL21: =SUM(CJ21+BP21) -> 0 | CN21: 14 | CO21: =VLOOKUP(CN21,A8:B188,2) -> GOFFIN Amaury | CP21: =SUM(BP60) -> 0 | CQ21: =SUM(CJ60) -> 0 | CR21: 0
D22: 0 | E22: 0 | F22: 0 | G22: 0 | H22: 0 | I22: 0 | J22: 0 | K22: 0 | L22: 0 | M22: 0 | N22: 0 | O22: 0 | P22: 0 | Q22: 0 | R22: 0 | S22: 0 | T22: 0 | U22: 0 | V22: 0 | W22: 0 | X22: 0 | Y22: 0 | Z22: 0 | AA22: 0 | AB22: 0 | AC22: 0 | AD22: 0 | AE22: 0 | AF22: 0 | AG22: 0 | AH22: 0 | AI22: 0 | AJ22: 0 | AK22: 0 | AL22: 0 | AM22: 0 | AN22: 0 | AO22: 0 | AP22: 0 | AQ22: 0 | AR22: 0 | AS22: 0 | AT22: 0 | AU22: 0 | AV22: 0 | AW22: 0 | AX22: 0 | AY22: 0 | AZ22: 0 | BA22: 0 | BB22: 0 | BC22: 0 | BD22: 0 | BE22: 0 | BF22: 0 | BG22: 0 | BH22: 0 | BI22: 0 | BJ22: 0 | BK22: 0 | BL22: 0 | BM22: 0 | BO22: Rondes confirmées | BP22: 0 | BQ22: 0 | BR22: 0 | BS22: 0 | BT22: 0 | BU22: 0 | BV22: 0 | BW22: 0 | BX22: 0 | BY22: 0 | BZ22: 0 | CA22: 0 | CB22: 0 | CC22: 0 | CD22: 0 | CE22: 0 | CF22: 0 | CG22: 0 | CI22: Rondes confirmées | CJ22: =SUM(BQ22:CH22) -> 0 | CK22: Rondes confirmées | CL22: =SUM(CJ22+BP22) -> 0 | CN22: 15 | CO22: =VLOOKUP(CN22,A8:B188,2) -> JAMOTTE Jean | CP22: =SUM(BP64) -> 7020 | CQ22: =SUM(CJ64) -> 1003 | CR22: 8023
D23: =SUM((D20+D21)*D22) -> 0 | E23: 0 | F23: 0 | G23: 0 | H23: 0 | I23: 0 | J23: 0 | K23: 0 | L23: 0 | M23: 0 | N23: 0 | O23: 0 | P23: 0 | Q23: 0 | R23: 0 | S23: 0 | T23: 0 | U23: 0 | V23: 0 | W23: 0 | X23: 0 | Y23: 0 | Z23: 0 | AA23: 0 | AB23: 0 | AC23: 0 | AD23: 0 | AE23: 0 | AF23: 0 | AG23: 0 | AH23: 0 | AI23: 0 | AJ23: 0 | AK23: 0 | AL23: 0 | AM23: 0 | AN23: 0 | AO23: 0 | AP23: 0 | AQ23: 0 | AR23: 0 | AS23: 0 | AT23: 0 | AU23: 0 | AV23: 0 | AW23: 0 | AX23: 0 | AY23: 0 | AZ23: 0 | BA23: 0 | BB23: 0 | BC23: 0 | BD23: 0 | BE23: 0 | BF23: 0 | BG23: 0 | BH23: 0 | BI23: 0 | BJ23: =SUM((BJ20+BJ21)*BJ22) -> 0 | BK23: =SUM((BK20+BK21)*BK22) -> 0 | BL23: =SUM((BL20+BL21)*BL22) -> 0 | BM23: 0 | BO23: Rondes effectuées | BP23: =COUNTIF(D20:BM20,">0") -> 0 | BQ23: =SUM((BQ20+BQ21)*BQ22) -> 0 | BR23: 0 | BS23: 0 | BT23: 0 | BU23: 0 | BV23: 0 | BW23: 0 | BX23: 0 | BY23: 0 | BZ23: 0 | CA23: 0 | CB23: 0 | CC23: 0 | CD23: 0 | CE23: 0 | CF23: 0 | CG23: 0 | CI23: Rondes Effectuées | CJ23: =COUNTIF(BQ20:CG20,">0") -> 0 | CK23: Rondes effectuées | CL23: =SUM(CJ23+BP23) -> 0 | CN23: 16 | CO23: =VLOOKUP(CN23,A8:B188,2) -> LAMBOTTE Didier | CP23: =SUM(BP68) -> 0 | CQ23: =SUM(CJ68) -> 0 | CR23: 0
A24: 5 | B24: =VLOOKUP(A24,'Numéro licences'!$H$4:$I$47,2) -> BRUNEAU Denis-Claude | C24: Aller-Retour | AC24: 0 | BN24: =SUM(D24:BM24) -> 0 | BO24: Km renseignés | BP24: =SUM(BN24:BN25) -> 200 | CH24: =SUM(BQ24:CG24) -> 0 | CI24: Km renseignés | CJ24: =SUM(CH24+CH25) -> 0 | CK24: Km renseignés | CL24: =SUM(BP24+CJ24) -> 200 | CN24: 17 | CO24: =VLOOKUP(CN24,A8:B188,2) -> LEFEVRE Francis | CP24: =SUM(BP72) -> 0 | CQ24: =SUM(CJ72) -> 0 | CR24: 0
C25: Ronde | AC25: 200 | BN25: =SUM(D25:BM25) -> 200 | BO25: Km confirmés | BP25: =SUM(D27:BM27) -> 0 | CH25: =SUM(BQ25:CG25) -> 0 | CI25: Km confirmés | CJ25: =SUM(BQ27:CG27) -> 0 | CK25: Km confirmés | CL25: =SUM(CJ25+BP25) -> 0 | CN25: 18 | CO25: =VLOOKUP(CN25,A8:B188,2) -> LESCAL Thierry | CP25: =SUM(BP76) -> 7515 | CQ25: =SUM(CJ76) -> 1003 | CR25: 8518
D26: 0 | E26: 0 | F26: 0 | G26: 0 | H26: 0 | I26: 0 | J26: 0 | K26: 0 | L26: 0 | M26: 0 | N26: 0 | O26: 0 | P26: 0 | Q26: 0 | R26: 0 | S26: 0 | T26: 0 | U26: 0 | V26: 0 | W26: 0 | X26: 0 | Y26: 0 | Z26: 0 | AA26: 0 | AB26: 0 | AC26: 0 | AD26: 0 | AE26: 0 | AF26: 0 | AG26: 0 | AH26: 0 | AI26: 0 | AJ26: 0 | AK26: 0 | AL26: 0 | AM26: 0 | AN26: 0 | AO26: 0 | AP26: 0 | AQ26: 0 | AR26: 0 | AS26: 0 | AT26: 0 | AU26: 0 | AV26: 0 | AW26: 0 | AX26: 0 | AY26: 0 | AZ26: 0 | BA26: 0 | BB26: 0 | BC26: 0 | BD26: 0 | BE26: 0 | BF26: 0 | BG26: 0 | BH26: 0 | BI26: 0 | BJ26: 0 | BK26: 0 | BL26: 0 | BM26: 0 | BO26: Rondes confirmées | BP26: =SUM(C26:BM26) -> 0 | BQ26: 0 | BR26: 0 | BS26: 0 | BT26: 0 | BU26: 0 | BV26: 0 | BW26: 0 | BX26: 0 | BY26: 0 | BZ26: 0 | CA26: 0 | CB26: 0 | CC26: 0 | CD26: 0 | CE26: 0 | CF26: 0 | CG26: 0 | CI26: Rondes confirmées | CJ26: =SUM(BQ26:CH26) -> 0 | CK26: Rondes confirmées | CL26: =SUM(CJ26+BP26) -> 0 | CN26: 19 | CO26: =VLOOKUP(CN26,A8:B188,2) -> MALLIEN Philippe | CP26: =SUM(BP80) -> 200 | CQ26: =SUM(CJ80) -> 0 | CR26: 200
D27: =SUM((D24+D25)*D26) -> 0 | E27: 0 | F27: 0 | G27: 0 | H27: 0 | I27: 0 | J27: 0 | K27: 0 | L27: 0 | M27: 0 | N27: 0 | O27: 0 | P27: 0 | Q27: 0 | R27: 0 | S27: 0 | T27: 0 | U27: 0 | V27: 0 | W27: 0 | X27: 0 | Y27: 0 | Z27: 0 | AA27: 0 | AB27: 0 | AC27: 0 | AD27: 0 | AE27: 0 | AF27: 0 | AG27: 0 | AH27: 0 | AI27: 0 | AJ27: 0 | AK27: 0 | AL27: 0 | AM27: 0 | AN27: 0 | AO27: 0 | AP27: 0 | AQ27: 0 | AR27: 0 | AS27: 0 | AT27: 0 | AU27: 0 | AV27: 0 | AW27: 0 | AX27: 0 | AY27: 0 | AZ27: 0 | BA27: 0 | BB27: 0 | BC27: 0 | BD27: 0 | BE27: 0 | BF27: 0 | BG27: 0 | BH27: 0 | BI27: 0 | BJ27: =SUM((BJ24+BJ25)*BJ26) -> 0 | BK27: =SUM((BK24+BK25)*BK26) -> 0 | BL27: =SUM((BL24+BL25)*BL26) -> 0 | BM27: 0 | BO27: Rondes effectuées | BP27: =COUNTIF(D24:BM24,">0") -> 0 | BQ27: =SUM((BQ24+BQ25)*BQ26) -> 0 | BR27: 0 | BS27: 0 | BT27: 0 | BU27: 0 | BV27: 0 | BW27: 0 | BX27: 0 | BY27: 0 | BZ27: 0 | CA27: 0 | CB27: 0 | CC27: 0 | CD27: 0 | CE27: 0 | CF27: 0 | CG27: 0 | CI27: Rondes Effectuées | CJ27: =COUNTIF(BQ24:CG24,">0") -> 0 | CK27: Rondes effectuées | CL27: =SUM(CJ27+BP27) -> 0 | CN27: 20 | CO27: =VLOOKUP(CN27,A8:B188,2) -> MARIEL Didier | CP27: =SUM(BP84) -> 452 | CQ27: =SUM(CJ84) -> 356 | CR27: 808
A28: 6 | B28: =VLOOKUP(A28,'Numéro licences'!$H$4:$I$47,2) -> DAVIN Philippe | C28: Aller-Retour | V28: 124 | X28: 124 | Z28: 38 | AC28: 0 | AF28: 148 | AG28: 60 | AK28: 52 | AL28: 344 | AM28: 162 | AZ28: 60 | BB28: 124 | BM28: 52 | BN28: =SUM(D28:BM28) -> 1288 | BO28: Km renseignés | BP28: =SUM(BN28:BN29) -> 3835 | BR28: 0 | BS28: 79 | CH28: =SUM(BQ28:CG28) -> 79 | CI28: Km renseignés | CJ28: =SUM(CH28+CH29) -> 465 | CK28: Km renseignés | CL28: =SUM(BP28+CJ28) -> 4300 | CN28: 21 | CO28: =VLOOKUP(CN28,A8:B188,2) -> MILET Benoit | CP28: =SUM(BP88) -> 0 | CQ28: =SUM(CJ88) -> 0 | CR28: 0
C29: Ronde | V29: 215 | X29: 195 | Z29: 513 | AC29: 200 | AF29: 200 | AG29: 0 | AK29: 200 | AL29: 300 | AM29: 220 | AZ29: 194 | BB29: 180 | BM29: 130 | BN29: =SUM(D29:BM29) -> 2547 | BO29: Km confirmés | BP29: =SUM(D31:BM31) -> 3835 | BR29: 200 | BS29: 186 | CH29: =SUM(BQ29:CG29) -> 386 | CI29: Km confirmés | CJ29: =SUM(BQ31:CG31) -> 465 | CK29: Km confirmés | CL29: =SUM(CJ29+BP29) -> 4300 | CN29: 22 | CO29: =VLOOKUP(CN29,A8:B188,2) -> NIHOUL Dany | CP29: =SUM(BP92) -> 4194 | CQ29: =SUM(CJ92) -> 1003 | CR29: 5197
D30: 0 | E30: 0 | F30: 0 | G30: 0 | H30: 0 | I30: 0 | J30: 0 | K30: 0 | L30: 0 | M30: 0 | N30: 0 | O30: 0 | P30: 0 | Q30: 0 | R30: 0 | S30: 0 | T30: 0 | U30: 0 | V30: 1 | W30: 0 | X30: 1 | Y30: 0 | Z30: 1 | AA30: 0 | AB30: 0 | AC30: 1 | AD30: 0 | AE30: 0 | AF30: 1 | AG30: 1 | AH30: 0 | AI30: 0 | AJ30: 0 | AK30: 1 | AL30: 1 | AM30: 1 | AN30: 0 | AO30: 0 | AP30: 0 | AQ30: 0 | AR30: 0 | AS30: 0 | AT30: 0 | AU30: 0 | AV30: 0 | AW30: 0 | AX30: 0 | AY30: 0 | AZ30: 1 | BA30: 0 | BB30: 1 | BC30: 0 | BD30: 0 | BE30: 0 | BF30: 0 | BG30: 0 | BH30: 0 | BI30: 0 | BJ30: 0 | BK30: 0 | BL30: 0 | BM30: 1 | BO30: Rondes confirmées | BP30: =SUM(C30:BM30) -> 12 | BQ30: 0 | BR30: 1 | BS30: 1 | BT30: 0 | BU30: 0 | BV30: 0 | BW30: 0 | BX30: 0 | BY30: 0 | BZ30: 0 | CA30: 0 | CB30: 0 | CC30: 0 | CD30: 0 | CE30: 0 | CF30: 0 | CG30: 0 | CI30: Rondes confirmées | CJ30: =SUM(BQ30:CH30) -> 2 | CK30: Rondes confirmées | CL30: =SUM(CJ30+BP30) -> 14 | CN30: 23 | CO30: =VLOOKUP(CN30,A8:B188,2) -> OVAERE Jimmy | CP30: =SUM(BP96) -> 0 | CQ30: =SUM(CJ96) -> 0 | CR30: 0
D31: =SUM((D28+D29)*D30) -> 0 | E31: 0 | F31: 0 | G31: 0 | H31: 0 | I31: 0 | J31: 0 | K31: 0 | L31: 0 | M31: 0 | N31: 0 | O31: 0 | P31: 0 | Q31: 0 | R31: 0 | S31: 0 | T31: 0 | U31: 0 | V31: 339 | W31: 0 | X31: 319 | Y31: 0 | Z31: 551 | AA31: 0 | AB31: 0 | AC31: 200 | AD31: 0 | AE31: 0 | AF31: 348 | AG31: 60 | AH31: 0 | AI31: 0 | AJ31: 0 | AK31: 252 | AL31: 644 | AM31: 382 | AN31: 0 | AO31: 0 | AP31: 0 | AQ31: 0 | AR31: 0 | AS31: 0 | AT31: 0 | AU31: 0 | AV31: 0 | AW31: 0 | AX31: 0 | AY31: 0 | AZ31: 254 | BA31: 0 | BB31: 304 | BC31: 0 | BD31: 0 | BE31: 0 | BF31: 0 | BG31: 0 | BH31: 0 | BI31: 0 | BJ31: =SUM((BJ28+BJ29)*BJ30) -> 0 | BK31: =SUM((BK28+BK29)*BK30) -> 0 | BL31: =SUM((BL28+BL29)*BL30) -> 0 | BM31: 182 | BO31: Rondes effectuées | BP31: =COUNTIF(D28:BM28,">0") -> 11 | BQ31: =SUM((BQ28+BQ29)*BQ30) -> 0 | BR31: 200 | BS31: 265 | BT31: 0 | BU31: 0 | BV31: 0 | BW31: 0 | BX31: 0 | BY31: 0 | BZ31: 0 | CA31: 0 | CB31: 0 | CC31: 0 | CD31: 0 | CE31: 0 | CF31: 0 | CG31: 0 | CI31: Rondes Effectuées | CJ31: =COUNTIF(BQ28:CG28,">0") -> 1 | CK31: Rondes effectuées | CL31: =SUM(CJ31+BP31) -> 12 | CN31: 24 | CO31: =VLOOKUP(CN31,A8:B188,2) -> PARMENTIER Dominique | CP31: =SUM(BP100) -> 364 | CQ31: =SUM(CJ100) -> 200 | CR31: 564
A32: 7 | B32: =VLOOKUP(A32,'Numéro licences'!$H$4:$I$47,2) -> DE SCHEPPERS Jean-Claude | C32: Aller-Retour | BN32: =SUM(D32:BM32) -> 0 | BO32: Km renseignés | BP32: =SUM(BN32:BN33) -> 0 | CH32: =SUM(BQ32:CG32) -> 0 | CI32: Km renseignés | CJ32: =SUM(CH32+CH33) -> 0 | CK32: Km renseignés | CL32: =SUM(BP32+CJ32) -> 0 | CN32: 25 | CO32: =VLOOKUP(CN32,A8:B188,2) -> POCHET Jean-Dominique | CP32: =SUM(BP104) -> 0 | CQ32: =SUM(CJ104) -> 0 | CR32: 0
C33: Ronde | BN33: =SUM(D33:BM33) -> 0 | BO33: Km confirmés | BP33: =SUM(D35:BM35) -> 0 | CH33: =SUM(BQ33:CG33) -> 0 | CI33: Km confirmés | CJ33: =SUM(BQ35:CG35) -> 0 | CK33: Km confirmés | CL33: =SUM(CJ33+BP33) -> 0 | CN33: 26 | CO33: =VLOOKUP(CN33,A8:B188,2) -> POMPIER Philippe | CP33: =SUM(BP108) -> 0 | CQ33: =SUM(CJ108) -> 0 | CR33: 0
D34: 0 | E34: 0 | F34: 0 | G34: 0 | H34: 0 | I34: 0 | J34: 0 | K34: 0 | L34: 0 | M34: 0 | N34: 0 | O34: 0 | P34: 0 | Q34: 0 | R34: 0 | S34: 0 | T34: 0 | U34: 0 | V34: 0 | W34: 0 | X34: 0 | Y34: 0 | Z34: 0 | AA34: 0 | AB34: 0 | AC34: 0 | AD34: 0 | AE34: 0 | AF34: 0 | AG34: 0 | AH34: 0 | AI34: 0 | AJ34: 0 | AK34: 0 | AL34: 0 | AM34: 0 | AN34: 0 | AO34: 0 | AP34: 0 | AQ34: 0 | AR34: 0 | AS34: 0 | AT34: 0 | AU34: 0 | AV34: 0 | AW34: 0 | AX34: 0 | AY34: 0 | AZ34: 0 | BA34: 0 | BB34: 0 | BC34: 0 | BD34: 0 | BE34: 0 | BF34: 0 | BG34: 0 | BH34: 0 | BI34: 0 | BJ34: 0 | BK34: 0 | BL34: 0 | BM34: 0 | BO34: Rondes confirmées | BP34: 0 | BQ34: 0 | BR34: 0 | BS34: 0 | BT34: 0 | BU34: 0 | BV34: 0 | BW34: 0 | BX34: 0 | BY34: 0 | BZ34: 0 | CA34: 0 | CB34: 0 | CC34: 0 | CD34: 0 | CE34: 0 | CF34: 0 | CG34: 0 | CI34: Rondes confirmées | CJ34: =SUM(BQ34:CH34) -> 0 | CK34: Rondes confirmées | CL34: =SUM(CJ34+BP34) -> 0 | CN34: 27 | CO34: =VLOOKUP(CN34,A8:B188,2) -> RAMEAU Didier | CP34: =SUM(BP112) -> 690 | CQ34: =SUM(CJ112) -> 621 | CR34: 1311
D35: =SUM((D32+D33)*D34) -> 0 | E35: 0 | F35: 0 | G35: 0 | H35: 0 | I35: 0 | J35: 0 | K35: 0 | L35: 0 | M35: 0 | N35: 0 | O35: 0 | P35: 0 | Q35: 0 | R35: 0 | S35: 0 | T35: 0 | U35: 0 | V35: 0 | W35: 0 | X35: 0 | Y35: 0 | Z35: 0 | AA35: 0 | AB35: 0 | AC35: 0 | AD35: 0 | AE35: 0 | AF35: 0 | AG35: 0 | AH35: 0 | AI35: 0 | AJ35: 0 | AK35: 0 | AL35: 0 | AM35: 0 | AN35: 0 | AO35: 0 | AP35: 0 | AQ35: 0 | AR35: 0 | AS35: 0 | AT35: 0 | AU35: 0 | AV35: 0 | AW35: 0 | AX35: 0 | AY35: 0 | AZ35: 0 | BA35: 0 | BB35: 0 | BC35: 0 | BD35: 0 | BE35: 0 | BF35: 0 | BG35: 0 | BH35: 0 | BI35: 0 | BJ35: =SUM((BJ32+BJ33)*BJ34) -> 0 | BK35: =SUM((BK32+BK33)*BK34) -> 0 | BL35: =SUM((BL32+BL33)*BL34) -> 0 | BM35: 0 | BO35: Rondes effectuées | BP35: =COUNTIF(D32:BM32,">0") -> 0 | BQ35: =SUM((BQ32+BQ33)*BQ34) -> 0 | BR35: 0 | BS35: 0 | BT35: 0 | BU35: 0 | BV35: 0 | BW35: 0 | BX35: 0 | BY35: 0 | BZ35: 0 | CA35: 0 | CB35: 0 | CC35: 0 | CD35: 0 | CE35: 0 | CF35: 0 | CG35: 0 | CI35: Rondes Effectuées | CJ35: =COUNTIF(BQ32:CG32,">0") -> 0 | CK35: Rondes effectuées | CL35: =SUM(CJ35+BP35) -> 0 | CN35: 28 | CO35: =VLOOKUP(CN35,A8:B188,2) -> SPITAELS Bernard | CP35: =SUM(BP116) -> 252 | CQ35: =SUM(CJ116) -> 265 | CR35: 517
A36: 8 | B36: =VLOOKUP(A36,'Numéro licences'!$H$4:$I$47,2) -> DECUYPER Frédéric | C36: Aller-Retour | BN36: =SUM(D36:BM36) -> 0 | BO36: Km renseignés | BP36: =SUM(BN36:BN37) -> 0 | CH36: =SUM(BQ36:CG36) -> 0 | CI36: Km renseignés | CJ36: =SUM(CH36+CH37) -> 0 | CK36: Km renseignés | CL36: =SUM(BP36+CJ36) -> 0 | CN36: 29 | CO36: =VLOOKUP(CN36,A8:B188,2) -> TERWAGNE Freddy | CP36: =SUM(BP120) -> 0 | CQ36: =SUM(CJ120) -> 0 | CR36: 0
C37: Ronde | BN37: =SUM(D37:BM37) -> 0 | BO37: Km confirmés | BP37: =SUM(D39:BM39) -> 0 | CH37: =SUM(BQ37:CG37) -> 0 | CI37: Km confirmés | CJ37: =SUM(BQ39:CG39) -> 0 | CK37: Km confirmés | CL37: =SUM(CJ37+BP37) -> 0 | CN37: 30 | CO37: =VLOOKUP(CN37,A8:B188,2) -> TERWAGNE Julien | CP37: =SUM(BP124) -> 0 | CQ37: =SUM(CJ124) -> 0 | CR37: 0
D38: 0 | E38: 0 | F38: 0 | G38: 0 | H38: 0 | I38: 0 | J38: 0 | K38: 0 | L38: 0 | M38: 0 | N38: 0 | O38: 0 | P38: 0 | Q38: 0 | R38: 0 | S38: 0 | T38: 0 | U38: 0 | V38: 0 | W38: 0 | X38: 0 | Y38: 0 | Z38: 0 | AA38: 0 | AB38: 0 | AC38: 0 | AD38: 0 | AE38: 0 | AF38: 0 | AG38: 0 | AH38: 0 | AI38: 0 | AJ38: 0 | AK38: 0 | AL38: 0 | AM38: 0 | AN38: 0 | AO38: 0 | AP38: 0 | AQ38: 0 | AR38: 0 | AS38: 0 | AT38: 0 | AU38: 0 | AV38: 0 | AW38: 0 | AX38: 0 | AY38: 0 | AZ38: 0 | BA38: 0 | BB38: 0 | BC38: 0 | BD38: 0 | BE38: 0 | BF38: 0 | BG38: 0 | BH38: 0 | BI38: 0 | BJ38: 0 | BK38: 0 | BL38: 0 | BM38: 0 | BO38: Rondes confirmées | BP38: 0 | BQ38: 0 | BR38: 0 | BS38: 0 | BT38: 0 | BU38: 0 | BV38: 0 | BW38: 0 | BX38: 0 | BY38: 0 | BZ38: 0 | CA38: 0 | CB38: 0 | CC38: 0 | CD38: 0 | CE38: 0 | CF38: 0 | CG38: 0 | CI38: Rondes confirmées | CJ38: =SUM(BQ38:CH38) -> 0 | CK38: Rondes confirmées | CL38: =SUM(CJ38+BP38) -> 0 | CN38: 31 | CO38: =VLOOKUP(CN38,A8:B188,2) -> THOMAS Isabelle | CP38: =SUM(BP128) -> 0 | CQ38: =SUM(CJ128) -> 0 | CR38: 0
D39: =SUM((D36+D37)*D38) -> 0 | E39: 0 | F39: 0 | G39: 0 | H39: 0 | I39: 0 | J39: 0 | K39: 0 | L39: 0 | M39: 0 | N39: 0 | O39: 0 | P39: 0 | Q39: 0 | R39: 0 | S39: 0 | T39: 0 | U39: 0 | V39: 0 | W39: 0 | X39: 0 | Y39: 0 | Z39: 0 | AA39: 0 | AB39: 0 | AC39: 0 | AD39: 0 | AE39: 0 | AF39: 0 | AG39: 0 | AH39: 0 | AI39: 0 | AJ39: 0 | AK39: 0 | AL39: 0 | AM39: 0 | AN39: 0 | AO39: 0 | AP39: 0 | AQ39: 0 | AR39: 0 | AS39: 0 | AT39: 0 | AU39: 0 | AV39: 0 | AW39: 0 | AX39: 0 | AY39: 0 | AZ39: 0 | BA39: 0 | BB39: 0 | BC39: 0 | BD39: 0 | BE39: 0 | BF39: 0 | BG39: 0 | BH39: 0 | BI39: 0 | BJ39: =SUM((BJ36+BJ37)*BJ38) -> 0 | BK39: =SUM((BK36+BK37)*BK38) -> 0 | BL39: =SUM((BL36+BL37)*BL38) -> 0 | BM39: 0 | BO39: Rondes effectuées | BP39: =COUNTIF(D36:BM36,">0") -> 0 | BQ39: =SUM((BQ36+BQ37)*BQ38) -> 0 | BR39: 0 | BS39: 0 | BT39: 0 | BU39: 0 | BV39: 0 | BW39: 0 | BX39: 0 | BY39: 0 | BZ39: 0 | CA39: 0 | CB39: 0 | CC39: 0 | CD39: 0 | CE39: 0 | CF39: 0 | CG39: 0 | CI39: Rondes Effectuées | CJ39: =COUNTIF(BQ36:CG36,">0") -> 0 | CK39: Rondes effectuées | CL39: =SUM(CJ39+BP39) -> 0 | CN39: 32 | CO39: =VLOOKUP(CN39,A8:B188,2) -> URBAIN Philippe | CP39: =SUM(BP132) -> 0 | CQ39: =SUM(CJ132) -> 156 | CR39: 156
A40: 9 | B40: =VLOOKUP(A40,'Numéro licences'!$H$4:$I$47,2) -> DEWAERSEGHERS Francis | C40: Aller-Retour | Z40: 38 | AV40: 38 | BN40: =SUM(D40:BM40) -> 76 | BO40: Km renseignés | BP40: =SUM(BN40:BN41) -> 589 | CH40: =SUM(BQ40:CG40) -> 0 | CI40: Km renseignés | CJ40: =SUM(CH40+CH41) -> 0 | CK40: Km renseignés | CL40: =SUM(BP40+CJ40) -> 589 | CN40: 33 | CO40: =VLOOKUP(CN40,A8:B188,2) -> VANBELLINGEN Jean-Claude | CP40: =SUM(BP136) -> 863 | CQ40: =SUM(CJ136) -> 0 | CR40: 863
C41: Ronde | Z41: 513 | AV41: 0 | BN41: =SUM(D41:BM41) -> 513 | BO41: Km confirmés | BP41: =SUM(D43:BM43) -> 0 | CH41: =SUM(BQ41:CG41) -> 0 | CI41: Km confirmés | CJ41: =SUM(BQ43:CG43) -> 0 | CK41: Km confirmés | CL41: =SUM(CJ41+BP41) -> 0 | CN41: 34 | CO41: =VLOOKUP(CN41,A8:B188,2) -> VANDEN BOSSCHE Vincent | CP41: =SUM(BP140) -> 0 | CQ41: =SUM(CJ140) -> 0 | CR41: 0
D42: 0 | E42: 0 | F42: 0 | G42: 0 | H42: 0 | I42: 0 | J42: 0 | K42: 0 | L42: 0 | M42: 0 | N42: 0 | O42: 0 | P42: 0 | Q42: 0 | R42: 0 | S42: 0 | T42: 0 | U42: 0 | V42: 0 | W42: 0 | X42: 0 | Y42: 0 | Z42: 0 | AA42: 0 | AB42: 0 | AC42: 0 | AD42: 0 | AE42: 0 | AF42: 0 | AG42: 0 | AH42: 0 | AI42: 0 | AJ42: 0 | AK42: 0 | AL42: 0 | AM42: 0 | AN42: 0 | AO42: 0 | AP42: 0 | AQ42: 0 | AR42: 0 | AS42: 0 | AT42: 0 | AU42: 0 | AV42: 0 | AW42: 0 | AX42: 0 | AY42: 0 | AZ42: 0 | BA42: 0 | BB42: 0 | BC42: 0 | BD42: 0 | BE42: 0 | BF42: 0 | BG42: 0 | BH42: 0 | BI42: 0 | BJ42: 0 | BK42: 0 | BL42: 0 | BM42: 0 | BO42: Rondes confirmées | BP42: 0 | BQ42: 0 | BR42: 0 | BS42: 0 | BT42: 0 | BU42: 0 | BV42: 0 | BW42: 0 | BX42: 0 | BY42: 0 | BZ42: 0 | CA42: 0 | CB42: 0 | CC42: 0 | CD42: 0 | CE42: 0 | CF42: 0 | CG42: 0 | CI42: Rondes confirmées | CJ42: =SUM(BQ42:CH42) -> 0 | CK42: Rondes confirmées | CL42: =SUM(CJ42+BP42) -> 0 | CN42: 35 | CO42: =VLOOKUP(CN42,A8:B188,2) -> VANDEN WAEYENBERGH Michel | CP42: =SUM(BP144) -> 0 | CQ42: =SUM(CJ144) -> 0 | CR42: 0
D43: =SUM((D40+D41)*D42) -> 0 | E43: 0 | F43: 0 | G43: 0 | H43: 0 | I43: 0 | J43: 0 | K43: 0 | L43: 0 | M43: 0 | N43: 0 | O43: 0 | P43: 0 | Q43: 0 | R43: 0 | S43: 0 | T43: 0 | U43: 0 | V43: 0 | W43: 0 | X43: 0 | Y43: 0 | Z43: 0 | AA43: 0 | AB43: 0 | AC43: 0 | AD43: 0 | AE43: 0 | AF43: 0 | AG43: 0 | AH43: 0 | AI43: 0 | AJ43: 0 | AK43: 0 | AL43: 0 | AM43: 0 | AN43: 0 | AO43: 0 | AP43: 0 | AQ43: 0 | AR43: 0 | AS43: 0 | AT43: 0 | AU43: 0 | AV43: 0 | AW43: 0 | AX43: 0 | AY43: 0 | AZ43: 0 | BA43: 0 | BB43: 0 | BC43: 0 | BD43: 0 | BE43: 0 | BF43: 0 | BG43: 0 | BH43: 0 | BI43: 0 | BJ43: =SUM((BJ40+BJ41)*BJ42) -> 0 | BK43: =SUM((BK40+BK41)*BK42) -> 0 | BL43: =SUM((BL40+BL41)*BL42) -> 0 | BM43: 0 | BO43: Rondes effectuées | BP43: =COUNTIF(D40:BM40,">0") -> 2 | BQ43: =SUM((BQ40+BQ41)*BQ42) -> 0 | BR43: 0 | BS43: 0 | BT43: 0 | BU43: 0 | BV43: 0 | BW43: 0 | BX43: 0 | BY43: 0 | BZ43: 0 | CA43: 0 | CB43: 0 | CC43: 0 | CD43: 0 | CE43: 0 | CF43: 0 | CG43: 0 | CI43: Rondes Effectuées | CJ43: =COUNTIF(BQ40:CG40,">0") -> 0 | CK43: Rondes effectuées | CL43: =SUM(CJ43+BP43) -> 2 | CN43: 36 | CO43: =VLOOKUP(CN43,A8:B188,2) -> VANSTEYVOORT André | CP43: =SUM(BP148) -> 200 | CQ43: =SUM(CJ148) -> 0 | CR43: 200
A44: 10 | B44: =VLOOKUP(A44,'Numéro licences'!$H$4:$I$47,2) -> DHONDT Jerry | C44: Aller-Retour | AK44: 52 | AV44: 38 | AX44: 60 | AZ44: 60 | BB44: 124 | BH44: 166 | BN44: =SUM(D44:BM44) -> 500 | BO44: Km renseignés | BP44: =SUM(BN44:BN45) -> 1514 | BQ44: 166 | BR44: 0 | CH44: =SUM(BQ44:CG44) -> 166 | CI44: Km renseignés | CJ44: =SUM(CH44+CH45) -> 582 | CK44: Km renseignés | CL44: =SUM(BP44+CJ44) -> 2096 | CN44: 37 | CO44: =VLOOKUP(CN44,A8:B188,2) -> WOUTERS Olivier | CP44: =SUM(BP152) -> 4099 | CQ44: =SUM(CJ152) -> 582 | CR44: 4681
C45: Ronde | AK45: 200 | AV45: 220 | AX45: 0 | AZ45: 194 | BB45: 180 | BH45: 220 | BN45: =SUM(D45:BM45) -> 1014 | BO45: Km confirmés | BP45: =SUM(D47:BM47) -> 0 | BQ45: 216 | BR45: 200 | CH45: =SUM(BQ45:CG45) -> 416 | CI45: Km confirmés | CJ45: =SUM(BQ47:CG47) -> 0 | CK45: Km confirmés | CL45: =SUM(CJ45+BP45) -> 0 | CN45: 38 | CO45: =VLOOKUP(CN45,A8:B188,2) -> DEMETS Eric | CP45: =SUM(BP156) -> 551 | CQ45: =SUM(CJ156) -> 200 | CR45: 751
D46: 0 | E46: 0 | F46: 0 | G46: 0 | H46: 0 | I46: 0 | J46: 0 | K46: 0 | L46: 0 | M46: 0 | N46: 0 | O46: 0 | P46: 0 | Q46: 0 | R46: 0 | S46: 0 | T46: 0 | U46: 0 | V46: 0 | W46: 0 | X46: 0 | Y46: 0 | Z46: 0 | AA46: 0 | AB46: 0 | AC46: 0 | AD46: 0 | AE46: 0 | AF46: 0 | AG46: 0 | AH46: 0 | AI46: 0 | AJ46: 0 | AK46: 0 | AL46: 0 | AM46: 0 | AN46: 0 | AO46: 0 | AP46: 0 | AQ46: 0 | AR46: 0 | AS46: 0 | AT46: 0 | AU46: 0 | AV46: 0 | AW46: 0 | AX46: 0 | AY46: 0 | AZ46: 0 | BA46: 0 | BB46: 0 | BC46: 0 | BD46: 0 | BE46: 0 | BF46: 0 | BG46: 0 | BH46: 0 | BI46: 0 | BJ46: 0 | BK46: 0 | BL46: 0 | BM46: 0 | BO46: Rondes confirmées | BP46: 0 | BQ46: 0 | BR46: 0 | BS46: 0 | BT46: 0 | BU46: 0 | BV46: 0 | BW46: 0 | BX46: 0 | BY46: 0 | BZ46: 0 | CA46: 0 | CB46: 0 | CC46: 0 | CD46: 0 | CE46: 0 | CF46: 0 | CG46: 0 | CI46: Rondes confirmées | CJ46: =SUM(BQ46:CH46) -> 0 | CK46: Rondes confirmées | CL46: =SUM(CJ46+BP46) -> 0 | CN46: 39 | CO46: =VLOOKUP(CN46,A8:B188,2) -> DECELLE Hubert | CP46: =SUM(BP160) -> 551 | CQ46: =SUM(CJ160) -> 200 | CR46: 751
D47: =SUM((D44+D45)*D46) -> 0 | E47: 0 | F47: 0 | G47: 0 | H47: 0 | I47: 0 | J47: 0 | K47: 0 | L47: 0 | M47: 0 | N47: 0 | O47: 0 | P47: 0 | Q47: 0 | R47: 0 | S47: 0 | T47: 0 | U47: 0 | V47: 0 | W47: 0 | X47: 0 | Y47: 0 | Z47: 0 | AA47: 0 | AB47: 0 | AC47: 0 | AD47: 0 | AE47: 0 | AF47: 0 | AG47: 0 | AH47: 0 | AI47: 0 | AJ47: 0 | AK47: 0 | AL47: 0 | AM47: 0 | AN47: 0 | AO47: 0 | AP47: 0 | AQ47: 0 | AR47: 0 | AS47: 0 | AT47: 0 | AU47: 0 | AV47: 0 | AW47: 0 | AX47: 0 | AY47: 0 | AZ47: 0 | BA47: 0 | BB47: 0 | BC47: 0 | BD47: 0 | BE47: 0 | BF47: 0 | BG47: 0 | BH47: 0 | BI47: 0 | BJ47: =SUM((BJ44+BJ45)*BJ46) -> 0 | BK47: =SUM((BK44+BK45)*BK46) -> 0 | BL47: =SUM((BL44+BL45)*BL46) -> 0 | BM47: 0 | BO47: Rondes effectuées | BP47: =COUNTIF(D44:BM44,">0") -> 6 | BQ47: =SUM((BQ44+BQ45)*BQ46) -> 0 | BR47: 0 | BS47: 0 | BT47: 0 | BU47: 0 | BV47: 0 | BW47: 0 | BX47: 0 | BY47: 0 | BZ47: 0 | CA47: 0 | CB47: 0 | CC47: 0 | CD47: 0 | CE47: 0 | CF47: 0 | CG47: 0 | CI47: Rondes Effectuées | CJ47: =COUNTIF(BQ44:CG44,">0") -> 1 | CK47: Rondes effectuées | CL47: =SUM(CJ47+BP47) -> 7 | CN47: 40 | CO47: =VLOOKUP(CN47,A8:B188,2) -> 0 | CP47: =SUM(BP164) -> 0 | CQ47: =SUM(CJ164) -> 0 | CR47: 0
A48: 11 | B48: =VLOOKUP(A48,'Numéro licences'!$H$4:$I$47,2) -> DONY Marc | C48: Aller-Retour | AC48: 0 | AH48: 140 | AK48: 52 | AP48: 176 | AZ48: 60 | BB48: 124 | BN48: =SUM(D48:BM48) -> 552 | BO48: Km renseignés | BP48: =SUM(BN48:BN49) -> 1756 | BQ48: 166 | BR48: 0 | CH48: =SUM(BQ48:CG48) -> 166 | CI48: Km renseignés | CJ48: =SUM(CH48+CH49) -> 582 | CK48: Km renseignés | CL48: =SUM(BP48+CJ48) -> 2338 | CN48: 41 | CO48: =VLOOKUP(CN48,A8:B188,2) -> 0 | CP48: =SUM(BP168) -> 0 | CQ48: =SUM(CJ168) -> 0 | CR48: 0
C49: Ronde | AC49: 200 | AH49: 180 | AK49: 200 | AP49: 250 | AZ49: 194 | BB49: 180 | BN49: =SUM(D49:BM49) -> 1204 | BO49: Km confirmés | BP49: =SUM(D51:BM51) -> 0 | BQ49: 216 | BR49: 200 | CH49: =SUM(BQ49:CG49) -> 416 | CI49: Km confirmés | CJ49: =SUM(BQ51:CG51) -> 0 | CK49: Km confirmés | CL49: =SUM(CJ49+BP49) -> 0 | CN49: 42 | CO49: =VLOOKUP(CN49,A8:B188,2) -> 0 | CP49: =SUM(BP172) -> 0 | CQ49: =SUM(CJ172) -> 0 | CR49: 0
D50: 0 | E50: 0 | F50: 0 | G50: 0 | H50: 0 | I50: 0 | J50: 0 | K50: 0 | L50: 0 | M50: 0 | N50: 0 | O50: 0 | P50: 0 | Q50: 0 | R50: 0 | S50: 0 | T50: 0 | U50: 0 | V50: 0 | W50: 0 | X50: 0 | Y50: 0 | Z50: 0 | AA50: 0 | AB50: 0 | AC50: 0 | AD50: 0 | AE50: 0 | AF50: 0 | AG50: 0 | AH50: 0 | AI50: 0 | AJ50: 0 | AK50: 0 | AL50: 0 | AM50: 0 | AN50: 0 | AO50: 0 | AP50: 0 | AQ50: 0 | AR50: 0 | AS50: 0 | AT50: 0 | AU50: 0 | AV50: 0 | AW50: 0 | AX50: 0 | AY50: 0 | AZ50: 0 | BA50: 0 | BB50: 0 | BC50: 0 | BD50: 0 | BE50: 0 | BF50: 0 | BG50: 0 | BH50: 0 | BI50: 0 | BJ50: 0 | BK50: 0 | BL50: 0 | BM50: 0 | BO50: Rondes confirmées | BP50: 0 | BQ50: 0 | BR50: 0 | BS50: 0 | BT50: 0 | BU50: 0 | BV50: 0 | BW50: 0 | BX50: 0 | BY50: 0 | BZ50: 0 | CA50: 0 | CB50: 0 | CC50: 0 | CD50: 0 | CE50: 0 | CF50: 0 | CG50: 0 | CI50: Rondes confirmées | CJ50: =SUM(BQ50:CH50) -> 0 | CK50: Rondes confirmées | CL50: =SUM(CJ50+BP50) -> 0 | CN50: 43 | CO50: =VLOOKUP(CN50,A8:B188,2) -> 0 | CP50: =SUM(BP176) -> 0 | CQ50: =SUM(CJ176) -> 0 | CR50: 0
D51: =SUM((D48+D49)*D50) -> 0 | E51: 0 | F51: 0 | G51: 0 | H51: 0 | I51: 0 | J51: 0 | K51: 0 | L51: 0 | M51: 0 | N51: 0 | O51: 0 | P51: 0 | Q51: 0 | R51: 0 | S51: 0 | T51: 0 | U51: 0 | V51: 0 | W51: 0 | X51: 0 | Y51: 0 | Z51: 0 | AA51: 0 | AB51: 0 | AC51: 0 | AD51: 0 | AE51: 0 | AF51: 0 | AG51: 0 | AH51: 0 | AI51: 0 | AJ51: 0 | AK51: 0 | AL51: 0 | AM51: 0 | AN51: 0 | AO51: 0 | AP51: 0 | AQ51: 0 | AR51: 0 | AS51: 0 | AT51: 0 | AU51: 0 | AV51: 0 | AW51: 0 | AX51: 0 | AY51: 0 | AZ51: 0 | BA51: 0 | BB51: 0 | BC51: 0 | BD51: 0 | BE51: 0 | BF51: 0 | BG51: 0 | BH51: 0 | BI51: 0 | BJ51: =SUM((BJ48+BJ49)*BJ50) -> 0 | BK51: =SUM((BK48+BK49)*BK50) -> 0 | BL51: =SUM((BL48+BL49)*BL50) -> 0 | BM51: 0 | BO51: Rondes effectuées | BP51: =COUNTIF(D48:BM48,">0") -> 5 | BQ51: =SUM((BQ48+BQ49)*BQ50) -> 0 | BR51: 0 | BS51: 0 | BT51: 0 | BU51: 0 | BV51: 0 | BW51: 0 | BX51: 0 | BY51: 0 | BZ51: 0 | CA51: 0 | CB51: 0 | CC51: 0 | CD51: 0 | CE51: 0 | CF51: 0 | CG51: 0 | CI51: Rondes Effectuées | CJ51: =COUNTIF(BQ48:CG48,">0") -> 1 | CK51: Rondes effectuées | CL51: =SUM(CJ51+BP51) -> 6 | CN51: 44 | CO51: =VLOOKUP(CN51,A8:B188,2) -> 0 | CP51: =SUM(BP180) -> 0 | CQ51: =SUM(CJ180) -> 0 | CR51: 0
A52: 12 | B52: =VLOOKUP(A52,'Numéro licences'!$H$4:$I$47,2) -> DUMONT Christophe | C52: Aller-Retour | BN52: =SUM(D52:BM52) -> 0 | BO52: Km renseignés | BP52: =SUM(BN52:BN53) -> 0 | CH52: =SUM(BQ52:CG52) -> 0 | CI52: Km renseignés | CJ52: =SUM(CH52+CH53) -> 0 | CK52: Km renseignés | CL52: =SUM(BP52+CJ52) -> 0 | CN52: 45 | CO52: =VLOOKUP(CN52,A8:B188,2) -> 0 | CP52: =SUM(BP184) -> 0 | CQ52: =SUM(CJ184) -> 0 | CR52: 0
C53: Ronde | BN53: =SUM(D53:BM53) -> 0 | BO53: Km confirmés | BP53: =SUM(D55:BM55) -> 0 | CH53: =SUM(BQ53:CG53) -> 0 | CI53: Km confirmés | CJ53: =SUM(BQ55:CG55) -> 0 | CK53: Km confirmés | CL53: =SUM(CJ53+BP53) -> 0 | CN53: 46 | CO53: =VLOOKUP(CN53,A8:B188,2) -> 0 | CP53: =SUM(BP188) -> 0 | CQ53: =SUM(CJ188) -> 0 | CR53: 0
D54: 0 | E54: 0 | F54: 0 | G54: 0 | H54: 0 | I54: 0 | J54: 0 | K54: 0 | L54: 0 | M54: 0 | N54: 0 | O54: 0 | P54: 0 | Q54: 0 | R54: 0 | S54: 0 | T54: 0 | U54: 0 | V54: 0 | W54: 0 | X54: 0 | Y54: 0 | Z54: 0 | AA54: 0 | AB54: 0 | AC54: 0 | AD54: 0 | AE54: 0 | AF54: 0 | AG54: 0 | AH54: 0 | AI54: 0 | AJ54: 0 | AK54: 0 | AL54: 0 | AM54: 0 | AN54: 0 | AO54: 0 | AP54: 0 | AQ54: 0 | AR54: 0 | AS54: 0 | AT54: 0 | AU54: 0 | AV54: 0 | AW54: 0 | AX54: 0 | AY54: 0 | AZ54: 0 | BA54: 0 | BB54: 0 | BC54: 0 | BD54: 0 | BE54: 0 | BF54: 0 | BG54: 0 | BH54: 0 | BI54: 0 | BJ54: 0 | BK54: 0 | BL54: 0 | BM54: 0 | BO54: Rondes confirmées | BP54: 0 | BQ54: 0 | BR54: 0 | BS54: 0 | BT54: 0 | BU54: 0 | BV54: 0 | BW54: 0 | BX54: 0 | BY54: 0 | BZ54: 0 | CA54: 0 | CB54: 0 | CC54: 0 | CD54: 0 | CE54: 0 | CF54: 0 | CG54: 0 | CI54: Rondes confirmées | CJ54: =SUM(BQ54:CH54) -> 0 | CK54: Rondes confirmées | CL54: =SUM(CJ54+BP54) -> 0
D55: =SUM((D52+D53)*D54) -> 0 | E55: 0 | F55: 0 | G55: 0 | H55: 0 | I55: 0 | J55: 0 | K55: 0 | L55: 0 | M55: 0 | N55: 0 | O55: 0 | P55: 0 | Q55: 0 | R55: 0 | S55: 0 | T55: 0 | U55: 0 | V55: 0 | W55: 0 | X55: 0 | Y55: 0 | Z55: 0 | AA55: 0 | AB55: 0 | AC55: 0 | AD55: 0 | AE55: 0 | AF55: 0 | AG55: 0 | AH55: 0 | AI55: 0 | AJ55: 0 | AK55: 0 | AL55: 0 | AM55: 0 | AN55: 0 | AO55: 0 | AP55: 0 | AQ55: 0 | AR55: 0 | AS55: 0 | AT55: 0 | AU55: 0 | AV55: 0 | AW55: 0 | AX55: 0 | AY55: 0 | AZ55: 0 | BA55: 0 | BB55: 0 | BC55: 0 | BD55: 0 | BE55: 0 | BF55: 0 | BG55: 0 | BH55: 0 | BI55: 0 | BJ55: =SUM((BJ52+BJ53)*BJ54) -> 0 | BK55: =SUM((BK52+BK53)*BK54) -> 0 | BL55: =SUM((BL52+BL53)*BL54) -> 0 | BM55: 0 | BO55: Rondes effectuées | BP55: =COUNTIF(D52:BM52,">0") -> 0 | BQ55: =SUM((BQ52+BQ53)*BQ54) -> 0 | BR55: 0 | BS55: 0 | BT55: 0 | BU55: 0 | BV55: 0 | BW55: 0 | BX55: 0 | BY55: 0 | BZ55: 0 | CA55: 0 | CB55: 0 | CC55: 0 | CD55: 0 | CE55: 0 | CF55: 0 | CG55: 0 | CI55: Rondes Effectuées | CJ55: =COUNTIF(BQ52:CG52,">0") -> 0 | CK55: Rondes effectuées | CL55: =SUM(CJ55+BP55) -> 0
A56: 13 | B56: =VLOOKUP(A56,'Numéro licences'!$H$4:$I$47,2) -> FAVRESSSE René | C56: Aller-Retour | Z56: 38 | AC56: 0 | BN56: =SUM(D56:BM56) -> 38 | BO56: Km renseignés | BP56: =SUM(BN56:BN57) -> 751 | CH56: =SUM(BQ56:CG56) -> 0 | CI56: Km renseignés | CJ56: =SUM(CH56+CH57) -> 0 | CK56: Km renseignés | CL56: =SUM(BP56+CJ56) -> 751
C57: Ronde | Z57: 513 | AC57: 200 | BN57: =SUM(D57:BM57) -> 713 | BO57: Km confirmés | BP57: =SUM(D59:BM59) -> 0 | CH57: =SUM(BQ57:CG57) -> 0 | CI57: Km confirmés | CJ57: =SUM(BQ59:CG59) -> 0 | CK57: Km confirmés | CL57: =SUM(CJ57+BP57) -> 0
D58: 0 | E58: 0 | F58: 0 | G58: 0 | H58: 0 | I58: 0 | J58: 0 | K58: 0 | L58: 0 | M58: 0 | N58: 0 | O58: 0 | P58: 0 | Q58: 0 | R58: 0 | S58: 0 | T58: 0 | U58: 0 | V58: 0 | W58: 0 | X58: 0 | Y58: 0 | Z58: 0 | AA58: 0 | AB58: 0 | AC58: 0 | AD58: 0 | AE58: 0 | AF58: 0 | AG58: 0 | AH58: 0 | AI58: 0 | AJ58: 0 | AK58: 0 | AL58: 0 | AM58: 0 | AN58: 0 | AO58: 0 | AP58: 0 | AQ58: 0 | AR58: 0 | AS58: 0 | AT58: 0 | AU58: 0 | AV58: 0 | AW58: 0 | AX58: 0 | AY58: 0 | AZ58: 0 | BA58: 0 | BB58: 0 | BC58: 0 | BD58: 0 | BE58: 0 | BF58: 0 | BG58: 0 | BH58: 0 | BI58: 0 | BJ58: 0 | BK58: 0 | BL58: 0 | BM58: 0 | BO58: Rondes confirmées | BP58: 0 | BQ58: 0 | BR58: 0 | BS58: 0 | BT58: 0 | BU58: 0 | BV58: 0 | BW58: 0 | BX58: 0 | BY58: 0 | BZ58: 0 | CA58: 0 | CB58: 0 | CC58: 0 | CD58: 0 | CE58: 0 | CF58: 0 | CG58: 0 | CI58: Rondes confirmées | CJ58: =SUM(BQ58:CH58) -> 0 | CK58: Rondes confirmées | CL58: =SUM(CJ58+BP58) -> 0
D59: =SUM((D56+D57)*D58) -> 0 | E59: 0 | F59: 0 | G59: 0 | H59: 0 | I59: 0 | J59: 0 | K59: 0 | L59: 0 | M59: 0 | N59: 0 | O59: 0 | P59: 0 | Q59: 0 | R59: 0 | S59: 0 | T59: 0 | U59: 0 | V59: 0 | W59: 0 | X59: 0 | Y59: 0 | Z59: 0 | AA59: 0 | AB59: 0 | AC59: 0 | AD59: 0 | AE59: 0 | AF59: 0 | AG59: 0 | AH59: 0 | AI59: 0 | AJ59: 0 | AK59: 0 | AL59: 0 | AM59: 0 | AN59: 0 | AO59: 0 | AP59: 0 | AQ59: 0 | AR59: 0 | AS59: 0 | AT59: 0 | AU59: 0 | AV59: 0 | AW59: 0 | AX59: 0 | AY59: 0 | AZ59: 0 | BA59: 0 | BB59: 0 | BC59: 0 | BD59: 0 | BE59: 0 | BF59: 0 | BG59: 0 | BH59: 0 | BI59: 0 | BJ59: =SUM((BJ56+BJ57)*BJ58) -> 0 | BK59: =SUM((BK56+BK57)*BK58) -> 0 | BL59: =SUM((BL56+BL57)*BL58) -> 0 | BM59: 0 | BO59: Rondes effectuées | BP59: =COUNTIF(D56:BM56,">0") -> 1 | BQ59: =SUM((BQ56+BQ57)*BQ58) -> 0 | BR59: 0 | BS59: 0 | BT59: 0 | BU59: 0 | BV59: 0 | BW59: 0 | BX59: 0 | BY59: 0 | BZ59: 0 | CA59: 0 | CB59: 0 | CC59: 0 | CD59: 0 | CE59: 0 | CF59: 0 | CG59: 0 | CI59: Rondes Effectuées | CJ59: =COUNTIF(BQ56:CG56,">0") -> 0 | CK59: Rondes effectuées | CL59: =SUM(CJ59+BP59) -> 1 | CP59: =SUM(CP9:CP53) -> 35796 | CQ59: =SUM(CQ9:CQ53) -> 7418 | CR59: =SUM(CR8:CR53) -> 43214
A60: 14 | B60: =VLOOKUP(A60,'Numéro licences'!$H$4:$I$47,2) -> GOFFIN Amaury | C60: Aller-Retour | BN60: =SUM(D60:BM60) -> 0 | BO60: Km renseignés | BP60: =SUM(BN60:BN61) -> 0 | CH60: 0 | CI60: Km renseignés | CJ60: =SUM(CH60+CH61) -> 0 | CK60: Km renseignés | CL60: =SUM(BP60+CJ60) -> 0 | CP60: =SUM(CP59/CR59) -> 0.8283426667 | CQ60: =SUM(CQ59/CR59) -> 0.1716573333
C61: Ronde | BN61: =SUM(D61:BM61) -> 0 | BO61: Km confirmés | BP61: =SUM(D63:BM63) -> 0 | CH61: 0 | CI61: Km confirmés | CJ61: =SUM(BQ63:CG63) -> 0 | CK61: Km confirmés | CL61: =SUM(CJ61+BP61) -> 0 | CP61: FMB | CQ61: Hors FMB
D62: 0 | E62: 0 | F62: 0 | G62: 0 | H62: 0 | I62: 0 | J62: 0 | K62: 0 | L62: 0 | M62: 0 | N62: 0 | O62: 0 | P62: 0 | Q62: 0 | R62: 0 | S62: 0 | T62: 0 | U62: 0 | V62: 0 | W62: 0 | X62: 0 | Y62: 0 | Z62: 0 | AA62: 0 | AB62: 0 | AC62: 0 | AD62: 0 | AE62: 0 | AF62: 0 | AG62: 0 | AH62: 0 | AI62: 0 | AJ62: 0 | AK62: 0 | AL62: 0 | AM62: 0 | AN62: 0 | AO62: 0 | AP62: 0 | AQ62: 0 | AR62: 0 | AS62: 0 | AT62: 0 | AU62: 0 | AV62: 0 | AW62: 0 | AX62: 0 | AY62: 0 | AZ62: 0 | BA62: 0 | BB62: 0 | BC62: 0 | BD62: 0 | BE62: 0 | BF62: 0 | BG62: 0 | BH62: 0 | BI62: 0 | BJ62: 0 | BK62: 0 | BL62: 0 | BM62: 0 | BO62: Rondes confirmées | BP62: 0 | BQ62: 0 | BR62: 0 | BS62: 0 | BT62: 0 | BU62: 0 | BV62: 0 | BW62: 0 | BX62: 0 | BY62: 0 | BZ62: 0 | CA62: 0 | CB62: 0 | CC62: 0 | CD62: 0 | CE62: 0 | CF62: 0 | CG62: 0 | CI62: Rondes confirmées | CJ62: =SUM(BQ62:CH62) -> 0 | CK62: Rondes confirmées | CL62: =SUM(CJ62+BP62) -> 0
D63: =SUM((D60+D61)*D62) -> 0 | E63: 0 | F63: 0 | G63: 0 | H63: 0 | I63: 0 | J63: 0 | K63: 0 | L63: 0 | M63: 0 | N63: 0 | O63: 0 | P63: 0 | Q63: 0 | R63: 0 | S63: 0 | T63: 0 | U63: 0 | V63: 0 | W63: 0 | X63: 0 | Y63: 0 | Z63: 0 | AA63: 0 | AB63: 0 | AC63: 0 | AD63: 0 | AE63: 0 | AF63: 0 | AG63: 0 | AH63: 0 | AI63: 0 | AJ63: 0 | AK63: 0 | AL63: 0 | AM63: 0 | AN63: 0 | AO63: 0 | AP63: 0 | AQ63: 0 | AR63: 0 | AS63: 0 | AT63: 0 | AU63: 0 | AV63: 0 | AW63: 0 | AX63: 0 | AY63: 0 | AZ63: 0 | BA63: 0 | BB63: 0 | BC63: 0 | BD63: 0 | BE63: 0 | BF63: 0 | BG63: 0 | BH63: 0 | BI63: 0 | BJ63: =SUM((BJ60+BJ61)*BJ62) -> 0 | BK63: =SUM((BK60+BK61)*BK62) -> 0 | BL63: =SUM((BL60+BL61)*BL62) -> 0 | BM63: 0 | BO63: Rondes effectuées | BP63: =COUNTIF(D60:BM60,">0") -> 0 | BQ63: =SUM((BQ60+BQ61)*BQ62) -> 0 | BR63: 0 | BS63: 0 | BT63: 0 | BU63: 0 | BV63: 0 | BW63: 0 | BX63: 0 | BY63: 0 | BZ63: 0 | CA63: 0 | CB63: 0 | CC63: 0 | CD63: 0 | CE63: 0 | CF63: 0 | CG63: 0 | CI63: Rondes Effectuées | CJ63: =COUNTIF(BQ60:CG60,">0") -> 0 | CK63: Rondes effectuées | CL63: =SUM(CJ63+BP63) -> 0
A64: 15 | B64: =VLOOKUP(A64,'Numéro licences'!$H$4:$I$47,2) -> JAMOTTE Jean | C64: Aller-Retour | V64: 124 | X64: 124 | Z64: 38 | AC64: 0 | AF64: 148 | AG64: 60 | AH64: 140 | AK64: 52 | AL64: 344 | AM64: 162 | AT64: 380 | AV64: 38 | AZ64: 60 | BB64: 124 | BE64: 140 | BF64: 218 | BH64: 166 | BJ64: 174 | BK64: 176 | BL64: 108 | BM64: 52 | BN64: =SUM(D64:BM64) -> 2828 | BO64: Km renseignés | BP64: =SUM(BN64:BN65) -> 7020 | BQ64: 166 | BR64: 0 | BS64: 79 | BT64: 36 | CH64: =SUM(BQ64:CG64) -> 281 | CI64: Km renseignés | CJ64: =SUM(CH64+CH65) -> 1003 | CK64: Km renseignés | CL64: =SUM(BP64+CJ64) -> 8023
C65: Ronde | V65: 215 | X65: 195 | Z65: 513 | AC65: 200 | AF65: 200 | AG65: 210 | AH65: 180 | AK65: 200 | AL65: 300 | AM65: 220 | AT65: 220 | AV65: 0 | AZ65: 194 | BB65: 180 | BE65: 165 | BF65: 170 | BH65: 220 | BJ65: 165 | BK65: 165 | BL65: 150 | BM65: 130 | BN65: =SUM(D65:BM65) -> 4192 | BO65: Km confirmés | BP65: =SUM(D67:BM67) -> 7020 | BQ65: 216 | BR65: 200 | BS65: 186 | BT65: 120 | CH65: =SUM(BQ65:CG65) -> 722 | CI65: Km confirmés | CJ65: =SUM(BQ67:CG67) -> 1003 | CK65: Km confirmés | CL65: =SUM(CJ65+BP65) -> 8023
D66: 0 | E66: 0 | F66: 0 | G66: 0 | H66: 0 | I66: 0 | J66: 0 | K66: 0 | L66: 0 | M66: 0 | N66: 0 | O66: 0 | P66: 0 | Q66: 0 | R66: 0 | S66: 0 | T66: 0 | U66: 0 | V66: 1 | W66: 0 | X66: 1 | Y66: 0 | Z66: 1 | AA66: 0 | AB66: 0 | AC66: 1 | AD66: 0 | AE66: 0 | AF66: 1 | AG66: 1 | AH66: 1 | AI66: 0 | AJ66: 0 | AK66: 1 | AL66: 1 | AM66: 1 | AN66: 0 | AO66: 0 | AP66: 0 | AQ66: 0 | AR66: 0 | AS66: 0 | AT66: 1 | AU66: 0 | AV66: 1 | AW66: 0 | AX66: 0 | AY66: 0 | AZ66: 1 | BA66: 0 | BB66: 1 | BC66: 0 | BD66: 0 | BE66: 1 | BF66: 1 | BG66: 0 | BH66: 1 | BI66: 0 | BJ66: 1 | BK66: 1 | BL66: 1 | BM66: 1 | BO66: Rondes confirmées | BP66: =SUM(C66:BM66) -> 21 | BQ66: 1 | BR66: 1 | BS66: 1 | BT66: 1 | BU66: 0 | BV66: 0 | BW66: 0 | BX66: 0 | BY66: 0 | BZ66: 0 | CA66: 0 | CB66: 0 | CC66: 0 | CD66: 0 | CE66: 0 | CF66: 0 | CG66: 0 | CI66: Rondes confirmées | CJ66: =SUM(BQ66:CH66) -> 4 | CK66: Rondes confirmées | CL66: =SUM(CJ66+BP66) -> 25
D67: =SUM((D64+D65)*D66) -> 0 | E67: 0 | F67: 0 | G67: 0 | H67: 0 | I67: 0 | J67: 0 | K67: 0 | L67: 0 | M67: 0 | N67: 0 | O67: 0 | P67: 0 | Q67: 0 | R67: 0 | S67: 0 | T67: 0 | U67: 0 | V67: 339 | W67: 0 | X67: 319 | Y67: 0 | Z67: 551 | AA67: 0 | AB67: 0 | AC67: 200 | AD67: 0 | AE67: 0 | AF67: 348 | AG67: 270 | AH67: 320 | AI67: 0 | AJ67: 0 | AK67: 252 | AL67: 644 | AM67: 382 | AN67: 0 | AO67: 0 | AP67: 0 | AQ67: 0 | AR67: 0 | AS67: 0 | AT67: 600 | AU67: 0 | AV67: 38 | AW67: 0 | AX67: 0 | AY67: 0 | AZ67: 254 | BA67: 0 | BB67: 304 | BC67: 0 | BD67: 0 | BE67: 305 | BF67: 388 | BG67: 0 | BH67: 386 | BI67: 0 | BJ67: =SUM((BJ64+BJ65)*BJ66) -> 339 | BK67: =SUM((BK64+BK65)*BK66) -> 341 | BL67: =SUM((BL64+BL65)*BL66) -> 258 | BM67: 182 | BO67: Rondes effectuées | BP67: =COUNTIF(D64:BM64,">0") -> 20 | BQ67: =SUM((BQ64+BQ65)*BQ66) -> 382 | BR67: 200 | BS67: 265 | BT67: 156 | BU67: 0 | BV67: 0 | BW67: 0 | BX67: 0 | BY67: 0 | BZ67: 0 | CA67: 0 | CB67: 0 | CC67: 0 | CD67: 0 | CE67: 0 | CF67: 0 | CG67: 0 | CI67: Rondes Effectuées | CJ67: =COUNTIF(BQ64:CG64,">0") -> 3 | CK67: Rondes effectuées | CL67: =SUM(CJ67+BP67) -> 23
A68: 16 | B68: =VLOOKUP(A68,'Numéro licences'!$H$4:$I$47,2) -> LAMBOTTE Didier | C68: Aller-Retour | BN68: =SUM(D68:BM68) -> 0 | BO68: Km renseignés | BP68: =SUM(BN68:BN69) -> 0 | CH68: =SUM(BQ68:CG68) -> 0 | CI68: Km renseignés | CJ68: =SUM(CH68+CH69) -> 0 | CK68: Km renseignés | CL68: =SUM(BP68+CJ68) -> 0
C69: Ronde | BN69: =SUM(D69:BM69) -> 0 | BO69: Km confirmés | BP69: =SUM(D71:BM71) -> 0 | CH69: =SUM(BQ69:CG69) -> 0 | CI69: Km confirmés | CJ69: =SUM(BQ71:CG71) -> 0 | CK69: Km confirmés | CL69: =SUM(CJ69+BP69) -> 0
D70: 0 | E70: 0 | F70: 0 | G70: 0 | H70: 0 | I70: 0 | J70: 0 | K70: 0 | L70: 0 | M70: 0 | N70: 0 | O70: 0 | P70: 0 | Q70: 0 | R70: 0 | S70: 0 | T70: 0 | U70: 0 | V70: 0 | W70: 0 | X70: 0 | Y70: 0 | Z70: 0 | AA70: 0 | AB70: 0 | AC70: 0 | AD70: 0 | AE70: 0 | AF70: 0 | AG70: 0 | AH70: 0 | AI70: 0 | AJ70: 0 | AK70: 0 | AL70: 0 | AM70: 0 | AN70: 0 | AO70: 0 | AP70: 0 | AQ70: 0 | AR70: 0 | AS70: 0 | AT70: 0 | AU70: 0 | AV70: 0 | AW70: 0 | AX70: 0 | AY70: 0 | AZ70: 0 | BA70: 0 | BB70: 0 | BC70: 0 | BD70: 0 | BE70: 0 | BF70: 0 | BG70: 0 | BH70: 0 | BI70: 0 | BJ70: 0 | BK70: 0 | BL70: 0 | BM70: 0 | BO70: Rondes confirmées | BP70: 0 | BQ70: 0 | BR70: 0 | BS70: 0 | BT70: 0 | BU70: 0 | BV70: 0 | BW70: 0 | BX70: 0 | BY70: 0 | BZ70: 0 | CA70: 0 | CB70: 0 | CC70: 0 | CD70: 0 | CE70: 0 | CF70: 0 | CG70: 0 | CI70: Rondes confirmées | CJ70: =SUM(BQ70:CH70) -> 0 | CK70: Rondes confirmées | CL70: =SUM(CJ70+BP70) -> 0
D71: =SUM((D68+D69)*D70) -> 0 | E71: 0 | F71: 0 | G71: 0 | H71: 0 | I71: 0 | J71: 0 | K71: 0 | L71: 0 | M71: 0 | N71: 0 | O71: 0 | P71: 0 | Q71: 0 | R71: 0 | S71: 0 | T71: 0 | U71: 0 | V71: 0 | W71: 0 | X71: 0 | Y71: 0 | Z71: 0 | AA71: 0 | AB71: 0 | AC71: 0 | AD71: 0 | AE71: 0 | AF71: 0 | AG71: 0 | AH71: 0 | AI71: 0 | AJ71: 0 | AK71: 0 | AL71: 0 | AM71: 0 | AN71: 0 | AO71: 0 | AP71: 0 | AQ71: 0 | AR71: 0 | AS71: 0 | AT71: 0 | AU71: 0 | AV71: 0 | AW71: 0 | AX71: 0 | AY71: 0 | AZ71: 0 | BA71: 0 | BB71: 0 | BC71: 0 | BD71: 0 | BE71: 0 | BF71: 0 | BG71: 0 | BH71: 0 | BI71: 0 | BJ71: =SUM((BJ68+BJ69)*BJ70) -> 0 | BK71: =SUM((BK68+BK69)*BK70) -> 0 | BL71: =SUM((BL68+BL69)*BL70) -> 0 | BM71: 0 | BO71: Rondes effectuées | BP71: =COUNTIF(D68:BM68,">0") -> 0 | BQ71: =SUM((BQ68+BQ69)*BQ70) -> 0 | BR71: 0 | BS71: 0 | BT71: 0 | BU71: 0 | BV71: 0 | BW71: 0 | BX71: 0 | BY71: 0 | BZ71: 0 | CA71: 0 | CB71: 0 | CC71: 0 | CD71: 0 | CE71: 0 | CF71: 0 | CG71: 0 | CI71: Rondes Effectuées | CJ71: =COUNTIF(BQ68:CG68,">0") -> 0 | CK71: Rondes effectuées | CL71: =SUM(CJ71+BP71) -> 0
A72: 17 | B72: =VLOOKUP(A72,'Numéro licences'!$H$4:$I$47,2) -> LEFEVRE Francis | C72: Aller-Retour | BN72: =SUM(D72:BM72) -> 0 | BO72: Km renseignés | BP72: =SUM(BN72:BN73) -> 0 | CH72: =SUM(BQ72:CG72) -> 0 | CI72: Km renseignés | CJ72: =SUM(CH72+CH73) -> 0 | CK72: Km renseignés | CL72: =SUM(BP72+CJ72) -> 0
C73: Ronde | BN73: =SUM(D73:BM73) -> 0 | BO73: Km confirmés | BP73: =SUM(D75:BM75) -> 0 | CH73: =SUM(BQ73:CG73) -> 0 | CI73: Km confirmés | CJ73: =SUM(BQ75:CG75) -> 0 | CK73: Km confirmés | CL73: =SUM(CJ73+BP73) -> 0
D74: 0 | E74: 0 | F74: 0 | G74: 0 | H74: 0 | I74: 0 | J74: 0 | K74: 0 | L74: 0 | M74: 0 | N74: 0 | O74: 0 | P74: 0 | Q74: 0 | R74: 0 | S74: 0 | T74: 0 | U74: 0 | V74: 0 | W74: 0 | X74: 0 | Y74: 0 | Z74: 0 | AA74: 0 | AB74: 0 | AC74: 0 | AD74: 0 | AE74: 0 | AF74: 0 | AG74: 0 | AH74: 0 | AI74: 0 | AJ74: 0 | AK74: 0 | AL74: 0 | AM74: 0 | AN74: 0 | AO74: 0 | AP74: 0 | AQ74: 0 | AR74: 0 | AS74: 0 | AT74: 0 | AU74: 0 | AV74: 0 | AW74: 0 | AX74: 0 | AY74: 0 | AZ74: 0 | BA74: 0 | BB74: 0 | BC74: 0 | BD74: 0 | BE74: 0 | BF74: 0 | BG74: 0 | BH74: 0 | BI74: 0 | BJ74: 0 | BK74: 0 | BL74: 0 | BM74: 0 | BO74: Rondes confirmées | BP74: 0 | BQ74: 0 | BR74: 0 | BS74: 0 | BT74: 0 | BU74: 0 | BV74: 0 | BW74: 0 | BX74: 0 | BY74: 0 | BZ74: 0 | CA74: 0 | CB74: 0 | CC74: 0 | CD74: 0 | CE74: 0 | CF74: 0 | CG74: 0 | CI74: Rondes confirmées | CJ74: =SUM(BQ74:CH74) -> 0 | CK74: Rondes confirmées | CL74: =SUM(CJ74+BP74) -> 0
D75: =SUM((D72+D73)*D74) -> 0 | E75: 0 | F75: 0 | G75: 0 | H75: 0 | I75: 0 | J75: 0 | K75: 0 | L75: 0 | M75: 0 | N75: 0 | O75: 0 | P75: 0 | Q75: 0 | R75: 0 | S75: 0 | T75: 0 | U75: 0 | V75: 0 | W75: 0 | X75: 0 | Y75: 0 | Z75: 0 | AA75: 0 | AB75: 0 | AC75: 0 | AD75: 0 | AE75: 0 | AF75: 0 | AG75: 0 | AH75: 0 | AI75: 0 | AJ75: 0 | AK75: 0 | AL75: 0 | AM75: 0 | AN75: 0 | AO75: 0 | AP75: 0 | AQ75: 0 | AR75: 0 | AS75: 0 | AT75: 0 | AU75: 0 | AV75: 0 | AW75: 0 | AX75: 0 | AY75: 0 | AZ75: 0 | BA75: 0 | BB75: 0 | BC75: 0 | BD75: 0 | BE75: 0 | BF75: 0 | BG75: 0 | BH75: 0 | BI75: 0 | BJ75: =SUM((BJ72+BJ73)*BJ74) -> 0 | BK75: =SUM((BK72+BK73)*BK74) -> 0 | BL75: =SUM((BL72+BL73)*BL74) -> 0 | BM75: 0 | BO75: Rondes effectuées | BP75: =COUNTIF(D72:BM72,">0") -> 0 | BQ75: =SUM((BQ72+BQ73)*BQ74) -> 0 | BR75: 0 | BS75: 0 | BT75: 0 | BU75: 0 | BV75: 0 | BW75: 0 | BX75: 0 | BY75: 0 | BZ75: 0 | CA75: 0 | CB75: 0 | CC75: 0 | CD75: 0 | CE75: 0 | CF75: 0 | CG75: 0 | CI75: Rondes Effectuées | CJ75: =COUNTIF(BQ72:CG72,">0") -> 0 | CK75: Rondes effectuées | CL75: =SUM(CJ75+BP75) -> 0
A76: 18 | B76: =VLOOKUP(A76,'Numéro licences'!$H$4:$I$47,2) -> LESCAL Thierry | C76: Aller-Retour | V76: 124 | X76: 124 | Z76: 38 | AC76: 0 | AF76: 148 | AG76: 60 | AH76: 140 | AK76: 52 | AL76: 344 | AM76: 162 | AP76: 176 | AT76: 380 | AW76: 186 | AZ76: 60 | BB76: 124 | BE76: 140 | BF76: 218 | BH76: 166 | BJ76: 174 | BK76: 176 | BL76: 108 | BM76: 52 | BN76: =SUM(D76:BM76) -> 3152 | BO76: Km renseignés | BP76: =SUM(BN76:BN77) -> 7515 | BQ76: 166 | BR76: 0 | BS76: 79 | BT76: 36 | CH76: =SUM(BQ76:CG76) -> 281 | CI76: Km renseignés | CJ76: =SUM(CH76+CH77) -> 1003 | CK76: Km renseignés | CL76: =SUM(BP76+CJ76) -> 8518
C77: Ronde | V77: 215 | X77: 195 | Z77: 513 | AC77: 200 | AF77: 200 | AG77: 210 | AH77: 180 | AK77: 200 | AL77: 300 | AM77: 220 | AP77: 250 | AT77: 0 | AW77: 166 | AZ77: 194 | BB77: 180 | BE77: 165 | BF77: 170 | BH77: 220 | BJ77: 165 | BK77: 140 | BL77: 150 | BM77: 130 | BN77: =SUM(D77:BM77) -> 4363 | BO77: Km confirmés | BP77: =SUM(D79:BM79) -> 7515 | BQ77: 216 | BR77: 200 | BS77: 186 | BT77: 120 | CH77: =SUM(BQ77:CG77) -> 722 | CI77: Km confirmés | CJ77: =SUM(BQ79:CG79) -> 1003 | CK77: Km confirmés | CL77: =SUM(CJ77+BP77) -> 8518
D78: 0 | E78: 0 | F78: 0 | G78: 0 | H78: 0 | I78: 0 | J78: 0 | K78: 0 | L78: 0 | M78: 0 | N78: 0 | O78: 0 | P78: 0 | Q78: 0 | R78: 0 | S78: 0 | T78: 0 | U78: 0 | V78: 1 | W78: 0 | X78: 1 | Y78: 0 | Z78: 1 | AA78: 0 | AB78: 0 | AC78: 1 | AD78: 0 | AE78: 0 | AF78: 1 | AG78: 1 | AH78: 1 | AI78: 0 | AJ78: 0 | AK78: 1 | AL78: 1 | AM78: 1 | AN78: 0 | AO78: 0 | AP78: 1 | AQ78: 0 | AR78: 0 | AS78: 0 | AT78: 1 | AU78: 0 | AV78: 0 | AW78: 1 | AX78: 0 | AY78: 0 | AZ78: 1 | BA78: 0 | BB78: 1 | BC78: 0 | BD78: 0 | BE78: 1 | BF78: 1 | BG78: 0 | BH78: 1 | BI78: 0 | BJ78: 1 | BK78: 1 | BL78: 1 | BM78: 1 | BO78: Rondes confirmées | BP78: =SUM(C78:BM78) -> 22 | BQ78: 1 | BR78: 1 | BS78: 1 | BT78: 1 | BU78: 0 | BV78: 0 | BW78: 0 | BX78: 0 | BY78: 0 | BZ78: 0 | CA78: 0 | CB78: 0 | CC78: 0 | CD78: 0 | CE78: 0 | CF78: 0 | CG78: 0 | CI78: Rondes confirmées | CJ78: =SUM(BQ78:CH78) -> 4 | CK78: Rondes confirmées | CL78: =SUM(CJ78+BP78) -> 26
D79: =SUM((D76+D77)*D78) -> 0 | E79: 0 | F79: 0 | G79: 0 | H79: 0 | I79: 0 | J79: 0 | K79: 0 | L79: 0 | M79: 0 | N79: 0 | O79: 0 | P79: 0 | Q79: 0 | R79: 0 | S79: 0 | T79: 0 | U79: 0 | V79: 339 | W79: 0 | X79: 319 | Y79: 0 | Z79: 551 | AA79: 0 | AB79: 0 | AC79: 200 | AD79: 0 | AE79: 0 | AF79: 348 | AG79: 270 | AH79: 320 | AI79: 0 | AJ79: 0 | AK79: 252 | AL79: 644 | AM79: 382 | AN79: 0 | AO79: 0 | AP79: 426 | AQ79: 0 | AR79: 0 | AS79: 0 | AT79: 380 | AU79: 0 | AV79: 0 | AW79: 352 | AX79: 0 | AY79: 0 | AZ79: 254 | BA79: 0 | BB79: 304 | BC79: 0 | BD79: 0 | BE79: 305 | BF79: 388 | BG79: 0 | BH79: 386 | BI79: 0 | BJ79: =SUM((BJ76+BJ77)*BJ78) -> 339 | BK79: =SUM((BK76+BK77)*BK78) -> 316 | BL79: =SUM((BL76+BL77)*BL78) -> 258 | BM79: 182 | BO79: Rondes effectuées | BP79: =COUNTIF(D76:BM76,">0") -> 21 | BQ79: =SUM((BQ76+BQ77)*BQ78) -> 382 | BR79: 200 | BS79: 265 | BT79: 156 | BU79: 0 | BV79: 0 | BW79: 0 | BX79: 0 | BY79: 0 | BZ79: 0 | CA79: 0 | CB79: 0 | CC79: 0 | CD79: 0 | CE79: 0 | CF79: 0 | CG79: 0 | CI79: Rondes Effectuées | CJ79: =COUNTIF(BQ76:CG76,">0") -> 3 | CK79: Rondes effectuées | CL79: =SUM(CJ79+BP79) -> 24
A80: 19 | B80: =VLOOKUP(A80,'Numéro licences'!$H$4:$I$47,2) -> MALLIEN Philippe | C80: Aller-Retour | AC80: 0 | BN80: =SUM(D80:BM80) -> 0 | BO80: Km renseignés | BP80: =SUM(BN80:BN81) -> 200 | CH80: =SUM(BQ80:CG80) -> 0 | CI80: Km renseignés | CJ80: =SUM(CH80+CH81) -> 0 | CK80: Km renseignés | CL80: =SUM(BP80+CJ80) -> 200
C81: Ronde | AC81: 200 | BN81: =SUM(D81:BM81) -> 200 | BO81: Km confirmés | BP81: =SUM(D83:BM83) -> 200 | CH81: =SUM(BQ81:CG81) -> 0 | CI81: Km confirmés | CJ81: =SUM(BQ83:CG83) -> 0 | CK81: Km confirmés | CL81: =SUM(CJ81+BP81) -> 200
D82: 0 | E82: 0 | F82: 0 | G82: 0 | H82: 0 | I82: 0 | J82: 0 | K82: 0 | L82: 0 | M82: 0 | N82: 0 | O82: 0 | P82: 0 | Q82: 0 | R82: 0 | S82: 0 | T82: 0 | U82: 0 | V82: 0 | W82: 0 | X82: 0 | Y82: 0 | Z82: 0 | AA82: 0 | AB82: 0 | AC82: 1 | AD82: 0 | AE82: 0 | AF82: 0 | AG82: 0 | AH82: 0 | AI82: 0 | AJ82: 0 | AK82: 0 | AL82: 0 | AM82: 0 | AN82: 0 | AO82: 0 | AP82: 0 | AQ82: 0 | AR82: 0 | AS82: 0 | AT82: 0 | AU82: 0 | AV82: 0 | AW82: 0 | AX82: 0 | AY82: 0 | AZ82: 0 | BA82: 0 | BB82: 0 | BC82: 0 | BD82: 0 | BE82: 0 | BF82: 0 | BG82: 0 | BH82: 0 | BI82: 0 | BJ82: 0 | BK82: 0 | BL82: 0 | BM82: 0 | BO82: Rondes confirmées | BP82: 0 | BQ82: 0 | BR82: 0 | BS82: 0 | BT82: 0 | BU82: 0 | BV82: 0 | BW82: 0 | BX82: 0 | BY82: 0 | BZ82: 0 | CA82: 0 | CB82: 0 | CC82: 0 | CD82: 0 | CE82: 0 | CF82: 0 | CG82: 0 | CI82: Rondes confirmées | CJ82: =SUM(BQ82:CH82) -> 0 | CK82: Rondes confirmées | CL82: =SUM(CJ82+BP82) -> 0
D83: =SUM((D80+D81)*D82) -> 0 | E83: 0 | F83: 0 | G83: 0 | H83: 0 | I83: 0 | J83: 0 | K83: 0 | L83: 0 | M83: 0 | N83: 0 | O83: 0 | P83: 0 | Q83: 0 | R83: 0 | S83: 0 | T83: 0 | U83: 0 | V83: 0 | W83: 0 | X83: 0 | Y83: 0 | Z83: 0 | AA83: 0 | AB83: 0 | AC83: 200 | AD83: 0 | AE83: 0 | AF83: 0 | AG83: 0 | AH83: 0 | AI83: 0 | AJ83: 0 | AK83: 0 | AL83: 0 | AM83: 0 | AN83: 0 | AO83: 0 | AP83: 0 | AQ83: 0 | AR83: 0 | AS83: 0 | AT83: 0 | AU83: 0 | AV83: 0 | AW83: 0 | AX83: 0 | AY83: 0 | AZ83: 0 | BA83: 0 | BB83: 0 | BC83: 0 | BD83: 0 | BE83: 0 | BF83: 0 | BG83: 0 | BH83: 0 | BI83: 0 | BJ83: =SUM((BJ80+BJ81)*BJ82) -> 0 | BK83: =SUM((BK80+BK81)*BK82) -> 0 | BL83: =SUM((BL80+BL81)*BL82) -> 0 | BM83: 0 | BO83: Rondes effectuées | BP83: =COUNTIF(D80:BM80,">0") -> 0 | BQ83: =SUM((BQ80+BQ81)*BQ82) -> 0 | BR83: 0 | BS83: 0 | BT83: 0 | BU83: 0 | BV83: 0 | BW83: 0 | BX83: 0 | BY83: 0 | BZ83: 0 | CA83: 0 | CB83: 0 | CC83: 0 | CD83: 0 | CE83: 0 | CF83: 0 | CG83: 0 | CI83: Rondes Effectuées | CJ83: =COUNTIF(BQ80:CG80,">0") -> 0 | CK83: Rondes effectuées | CL83: =SUM(CJ83+BP83) -> 0
A84: 20 | B84: =VLOOKUP(A84,'Numéro licences'!$H$4:$I$47,2) -> MARIEL Didier | C84: Aller-Retour | AG84: 60 | BM84: 52 | BN84: =SUM(D84:BM84) -> 112 | BO84: Km renseignés | BP84: =SUM(BN84:BN85) -> 452 | BR84: 0 | BT84: 36 | CH84: =SUM(BQ84:CG84) -> 36 | CI84: Km renseignés | CJ84: =SUM(CH84+CH85) -> 356 | CK84: Km renseignés | CL84: =SUM(BP84+CJ84) -> 808
C85: Ronde | AG85: 210 | BM85: 130 | BN85: =SUM(D85:BM85) -> 340 | BO85: Km confirmés | BP85: =SUM(D87:BM87) -> 0 | BR85: 200 | BT85: 120 | CH85: =SUM(BQ85:CG85) -> 320 | CI85: Km confirmés | CJ85: =SUM(BQ87:CG87) -> 0 | CK85: Km confirmés | CL85: =SUM(CJ85+BP85) -> 0
D86: 0 | E86: 0 | F86: 0 | G86: 0 | H86: 0 | I86: 0 | J86: 0 | K86: 0 | L86: 0 | M86: 0 | N86: 0 | O86: 0 | P86: 0 | Q86: 0 | R86: 0 | S86: 0 | T86: 0 | U86: 0 | V86: 0 | W86: 0 | X86: 0 | Y86: 0 | Z86: 0 | AA86: 0 | AB86: 0 | AC86: 0 | AD86: 0 | AE86: 0 | AF86: 0 | AG86: 0 | AH86: 0 | AI86: 0 | AJ86: 0 | AK86: 0 | AL86: 0 | AM86: 0 | AN86: 0 | AO86: 0 | AP86: 0 | AQ86: 0 | AR86: 0 | AS86: 0 | AT86: 0 | AU86: 0 | AV86: 0 | AW86: 0 | AX86: 0 | AY86: 0 | AZ86: 0 | BA86: 0 | BB86: 0 | BC86: 0 | BD86: 0 | BE86: 0 | BF86: 0 | BG86: 0 | BH86: 0 | BI86: 0 | BJ86: 0 | BK86: 0 | BL86: 0 | BM86: 0 | BO86: Rondes confirmées | BP86: 0 | BQ86: 0 | BR86: 0 | BS86: 0 | BT86: 0 | BU86: 0 | BV86: 0 | BW86: 0 | BX86: 0 | BY86: 0 | BZ86: 0 | CA86: 0 | CB86: 0 | CC86: 0 | CD86: 0 | CE86: 0 | CF86: 0 | CG86: 0 | CI86: Rondes confirmées | CJ86: =SUM(BQ86:CH86) -> 0 | CK86: Rondes confirmées | CL86: =SUM(CJ86+BP86) -> 0
D87: =SUM((D84+D85)*D86) -> 0 | E87: 0 | F87: 0 | G87: 0 | H87: 0 | I87: 0 | J87: 0 | K87: 0 | L87: 0 | M87: 0 | N87: 0 | O87: 0 | P87: 0 | Q87: 0 | R87: 0 | S87: 0 | T87: 0 | U87: 0 | V87: 0 | W87: 0 | X87: 0 | Y87: 0 | Z87: 0 | AA87: 0 | AB87: 0 | AC87: 0 | AD87: 0 | AE87: 0 | AF87: 0 | AG87: 0 | AH87: 0 | AI87: 0 | AJ87: 0 | AK87: 0 | AL87: 0 | AM87: 0 | AN87: 0 | AO87: 0 | AP87: 0 | AQ87: 0 | AR87: 0 | AS87: 0 | AT87: 0 | AU87: 0 | AV87: 0 | AW87: 0 | AX87: 0 | AY87: 0 | AZ87: 0 | BA87: 0 | BB87: 0 | BC87: 0 | BD87: 0 | BE87: 0 | BF87: 0 | BG87: 0 | BH87: 0 | BI87: 0 | BJ87: =SUM((BJ84+BJ85)*BJ86) -> 0 | BK87: =SUM((BK84+BK85)*BK86) -> 0 | BL87: =SUM((BL84+BL85)*BL86) -> 0 | BM87: 0 | BO87: Rondes effectuées | BP87: =COUNTIF(D84:BM84,">0") -> 2 | BQ87: =SUM((BQ84+BQ85)*BQ86) -> 0 | BR87: 0 | BS87: 0 | BT87: 0 | BU87: 0 | BV87: 0 | BW87: 0 | BX87: 0 | BY87: 0 | BZ87: 0 | CA87: 0 | CB87: 0 | CC87: 0 | CD87: 0 | CE87: 0 | CF87: 0 | CG87: 0 | CI87: Rondes Effectuées | CJ87: =COUNTIF(BQ84:CG84,">0") -> 1 | CK87: Rondes effectuées | CL87: =SUM(CJ87+BP87) -> 3
A88: 21 | B88: =VLOOKUP(A88,'Numéro licences'!$H$4:$I$47,2) -> MILET Benoit | C88: Aller-Retour | BN88: =SUM(D88:BM88) -> 0 | BO88: Km renseignés | BP88: =SUM(BN88:BN89) -> 0 | CH88: =SUM(BQ88:CG88) -> 0 | CI88: Km renseignés | CJ88: =SUM(CH88+CH89) -> 0 | CK88: Km renseignés | CL88: =SUM(BP88+CJ88) -> 0
C89: Ronde | BN89: =SUM(D89:BM89) -> 0 | BO89: Km confirmés | BP89: =SUM(D91:BM91) -> 0 | CH89: =SUM(BQ89:CG89) -> 0 | CI89: Km confirmés | CJ89: =SUM(BQ91:CG91) -> 0 | CK89: Km confirmés | CL89: =SUM(CJ89+BP89) -> 0
D90: 0 | E90: 0 | F90: 0 | G90: 0 | H90: 0 | I90: 0 | J90: 0 | K90: 0 | L90: 0 | M90: 0 | N90: 0 | O90: 0 | P90: 0 | Q90: 0 | R90: 0 | S90: 0 | T90: 0 | U90: 0 | V90: 0 | W90: 0 | X90: 0 | Y90: 0 | Z90: 0 | AA90: 0 | AB90: 0 | AC90: 0 | AD90: 0 | AE90: 0 | AF90: 0 | AG90: 0 | AH90: 0 | AI90: 0 | AJ90: 0 | AK90: 0 | AL90: 0 | AM90: 0 | AN90: 0 | AO90: 0 | AP90: 0 | AQ90: 0 | AR90: 0 | AS90: 0 | AT90: 0 | AU90: 0 | AV90: 0 | AW90: 0 | AX90: 0 | AY90: 0 | AZ90: 0 | BA90: 0 | BB90: 0 | BC90: 0 | BD90: 0 | BE90: 0 | BF90: 0 | BG90: 0 | BH90: 0 | BI90: 0 | BJ90: 0 | BK90: 0 | BL90: 0 | BM90: 0 | BO90: Rondes confirmées | BP90: 0 | BQ90: 0 | BR90: 0 | BS90: 0 | BT90: 0 | BU90: 0 | BV90: 0 | BW90: 0 | BX90: 0 | BY90: 0 | BZ90: 0 | CA90: 0 | CB90: 0 | CC90: 0 | CD90: 0 | CE90: 0 | CF90: 0 | CG90: 0 | CI90: Rondes confirmées | CJ90: =SUM(BQ90:CH90) -> 0 | CK90: Rondes confirmées | CL90: =SUM(CJ90+BP90) -> 0
D91: =SUM((D88+D89)*D90) -> 0 | E91: 0 | F91: 0 | G91: 0 | H91: 0 | I91: 0 | J91: 0 | K91: 0 | L91: 0 | M91: 0 | N91: 0 | O91: 0 | P91: 0 | Q91: 0 | R91: 0 | S91: 0 | T91: 0 | U91: 0 | V91: 0 | W91: 0 | X91: 0 | Y91: 0 | Z91: 0 | AA91: 0 | AB91: 0 | AC91: 0 | AD91: 0 | AE91: 0 | AF91: 0 | AG91: 0 | AH91: 0 | AI91: 0 | AJ91: 0 | AK91: 0 | AL91: 0 | AM91: 0 | AN91: 0 | AO91: 0 | AP91: 0 | AQ91: 0 | AR91: 0 | AS91: 0 | AT91: 0 | AU91: 0 | AV91: 0 | AW91: 0 | AX91: 0 | AY91: 0 | AZ91: 0 | BA91: 0 | BB91: 0 | BC91: 0 | BD91: 0 | BE91: 0 | BF91: 0 | BG91: 0 | BH91: 0 | BI91: 0 | BJ91: =SUM((BJ88+BJ89)*BJ90) -> 0 | BK91: =SUM((BK88+BK89)*BK90) -> 0 | BL91: =SUM((BL88+BL89)*BL90) -> 0 | BM91: 0 | BO91: Rondes effectuées | BP91: =COUNTIF(D88:BM88,">0") -> 0 | BQ91: =SUM((BQ88+BQ89)*BQ90) -> 0 | BR91: 0 | BS91: 0 | BT91: 0 | BU91: 0 | BV91: 0 | BW91: 0 | BX91: 0 | BY91: 0 | BZ91: 0 | CA91: 0 | CB91: 0 | CC91: 0 | CD91: 0 | CE91: 0 | CF91: 0 | CG91: 0 | CI91: Rondes Effectuées | CJ91: =COUNTIF(BQ88:CG88,">0") -> 0 | CK91: Rondes effectuées | CL91: =SUM(CJ91+BP91) -> 0
A92: 22 | B92: =VLOOKUP(A92,'Numéro licences'!$H$4:$I$47,2) -> NIHOUL Dany | C92: Aller-Retour | V92: 124 | X92: 124 | Z92: 38 | AC92: 0 | AF92: 148 | AG92: 60 | AH92: 140 | AP92: 176 | AT92: 380 | AV92: 38 | BE92: 140 | BL92: 108 | BN92: =SUM(D92:BM92) -> 1476 | BO92: Km renseignés | BP92: =SUM(BN92:BN93) -> 4194 | BQ92: 166 | BR92: 0 | BS92: 79 | BT92: 36 | CH92: =SUM(BQ92:CG92) -> 281 | CI92: Km renseignés | CJ92: =SUM(CH92+CH93) -> 1003 | CK92: Km renseignés | CL92: =SUM(BP92+CJ92) -> 5197
C93: Ronde | V93: 215 | X93: 195 | Z93: 513 | AC93: 200 | AF93: 200 | AG93: 210 | AH93: 180 | AP93: 250 | AT93: 220 | AV93: 220 | BE93: 165 | BL93: 150 | BN93: =SUM(D93:BM93) -> 2718 | BO93: Km confirmés | BP93: =SUM(D95:BM95) -> 4194 | BQ93: 216 | BR93: 200 | BS93: 186 | BT93: 120 | CH93: =SUM(BQ93:CG93) -> 722 | CI93: Km confirmés | CJ93: =SUM(BQ95:CG95) -> 1003 | CK93: Km confirmés | CL93: =SUM(CJ93+BP93) -> 5197
D94: 0 | E94: 0 | F94: 0 | G94: 0 | H94: 0 | I94: 0 | J94: 0 | K94: 0 | L94: 0 | M94: 0 | N94: 0 | O94: 0 | P94: 0 | Q94: 0 | R94: 0 | S94: 0 | T94: 0 | U94: 0 | V94: 1 | W94: 0 | X94: 1 | Y94: 0 | Z94: 1 | AA94: 0 | AB94: 0 | AC94: 1 | AD94: 0 | AE94: 0 | AF94: 1 | AG94: 1 | AH94: 1 | AI94: 0 | AJ94: 0 | AK94: 0 | AL94: 0 | AM94: 0 | AN94: 0 | AO94: 0 | AP94: 1 | AQ94: 0 | AR94: 0 | AS94: 0 | AT94: 1 | AU94: 0 | AV94: 1 | AW94: 0 | AX94: 0 | AY94: 0 | AZ94: 0 | BA94: 0 | BB94: 0 | BC94: 0 | BD94: 0 | BE94: 1 | BF94: 0 | BG94: 0 | BH94: 0 | BI94: 0 | BJ94: 0 | BK94: 0 | BL94: 1 | BM94: 0 | BO94: Rondes confirmées | BP94: =SUM(C94:BM94) -> 12 | BQ94: 1 | BR94: 1 | BS94: 1 | BT94: 1 | BU94: 0 | BV94: 0 | BW94: 0 | BX94: 0 | BY94: 0 | BZ94: 0 | CA94: 0 | CB94: 0 | CC94: 0 | CD94: 0 | CE94: 0 | CF94: 0 | CG94: 0 | CI94: Rondes confirmées | CJ94: =SUM(BQ94:CH94) -> 4 | CK94: Rondes confirmées | CL94: =SUM(CJ94+BP94) -> 16
D95: =SUM((D92+D93)*D94) -> 0 | E95: 0 | F95: 0 | G95: 0 | H95: 0 | I95: 0 | J95: 0 | K95: 0 | L95: 0 | M95: 0 | N95: 0 | O95: 0 | P95: 0 | Q95: 0 | R95: 0 | S95: 0 | T95: 0 | U95: 0 | V95: 339 | W95: 0 | X95: 319 | Y95: 0 | Z95: 551 | AA95: 0 | AB95: 0 | AC95: 200 | AD95: 0 | AE95: 0 | AF95: 348 | AG95: 270 | AH95: 320 | AI95: 0 | AJ95: 0 | AK95: 0 | AL95: 0 | AM95: 0 | AN95: 0 | AO95: 0 | AP95: 426 | AQ95: 0 | AR95: 0 | AS95: 0 | AT95: 600 | AU95: 0 | AV95: 258 | AW95: 0 | AX95: 0 | AY95: 0 | AZ95: 0 | BA95: 0 | BB95: 0 | BC95: 0 | BD95: 0 | BE95: 305 | BF95: 0 | BG95: 0 | BH95: 0 | BI95: 0 | BJ95: =SUM((BJ92+BJ93)*BJ94) -> 0 | BK95: =SUM((BK92+BK93)*BK94) -> 0 | BL95: =SUM((BL92+BL93)*BL94) -> 258 | BM95: 0 | BO95: Rondes effectuées | BP95: =COUNTIF(D92:BM92,">0") -> 11 | BQ95: =SUM((BQ92+BQ93)*BQ94) -> 382 | BR95: 200 | BS95: 265 | BT95: 156 | BU95: 0 | BV95: 0 | BW95: 0 | BX95: 0 | BY95: 0 | BZ95: 0 | CA95: 0 | CB95: 0 | CC95: 0 | CD95: 0 | CE95: 0 | CF95: 0 | CG95: 0 | CI95: Rondes Effectuées | CJ95: =COUNTIF(BQ92:CG92,">0") -> 3 | CK95: Rondes effectuées | CL95: =SUM(CJ95+BP95) -> 14
A96: 23 | B96: =VLOOKUP(A96,'Numéro licences'!$H$4:$I$47,2) -> OVAERE Jimmy | C96: Aller-Retour | BN96: =SUM(D96:BM96) -> 0 | BO96: Km renseignés | BP96: =SUM(BN96:BN97) -> 0 | CH96: =SUM(BQ96:CG96) -> 0 | CI96: Km renseignés | CJ96: =SUM(CH96+CH97) -> 0 | CK96: Km renseignés | CL96: =SUM(BP96+CJ96) -> 0
C97: Ronde | BN97: =SUM(D97:BM97) -> 0 | BO97: Km confirmés | BP97: =SUM(D99:BM99) -> 0 | CH97: =SUM(BQ97:CG97) -> 0 | CI97: Km confirmés | CJ97: =SUM(BQ99:CG99) -> 0 | CK97: Km confirmés | CL97: =SUM(CJ97+BP97) -> 0
D98: 0 | E98: 0 | F98: 0 | G98: 0 | H98: 0 | I98: 0 | J98: 0 | K98: 0 | L98: 0 | M98: 0 | N98: 0 | O98: 0 | P98: 0 | Q98: 0 | R98: 0 | S98: 0 | T98: 0 | U98: 0 | V98: 0 | W98: 0 | X98: 0 | Y98: 0 | Z98: 0 | AA98: 0 | AB98: 0 | AC98: 0 | AD98: 0 | AE98: 0 | AF98: 0 | AG98: 0 | AH98: 0 | AI98: 0 | AJ98: 0 | AK98: 0 | AL98: 0 | AM98: 0 | AN98: 0 | AO98: 0 | AP98: 0 | AQ98: 0 | AR98: 0 | AS98: 0 | AT98: 0 | AU98: 0 | AV98: 0 | AW98: 0 | AX98: 0 | AY98: 0 | AZ98: 0 | BA98: 0 | BB98: 0 | BC98: 0 | BD98: 0 | BE98: 0 | BF98: 0 | BG98: 0 | BH98: 0 | BI98: 0 | BJ98: 0 | BK98: 0 | BL98: 0 | BM98: 0 | BO98: Rondes confirmées | BP98: 0 | BQ98: 0 | BR98: 0 | BS98: 0 | BT98: 0 | BU98: 0 | BV98: 0 | BW98: 0 | BX98: 0 | BY98: 0 | BZ98: 0 | CA98: 0 | CB98: 0 | CC98: 0 | CD98: 0 | CE98: 0 | CF98: 0 | CG98: 0 | CI98: Rondes confirmées | CJ98: =SUM(BQ98:CH98) -> 0 | CK98: Rondes confirmées | CL98: =SUM(CJ98+BP98) -> 0
D99: =SUM((D96+D97)*D98) -> 0 | E99: 0 | F99: 0 | G99: 0 | H99: 0 | I99: 0 | J99: 0 | K99: 0 | L99: 0 | M99: 0 | N99: 0 | O99: 0 | P99: 0 | Q99: 0 | R99: 0 | S99: 0 | T99: 0 | U99: 0 | V99: 0 | W99: 0 | X99: 0 | Y99: 0 | Z99: 0 | AA99: 0 | AB99: 0 | AC99: 0 | AD99: 0 | AE99: 0 | AF99: 0 | AG99: 0 | AH99: 0 | AI99: 0 | AJ99: 0 | AK99: 0 | AL99: 0 | AM99: 0 | AN99: 0 | AO99: 0 | AP99: 0 | AQ99: 0 | AR99: 0 | AS99: 0 | AT99: 0 | AU99: 0 | AV99: 0 | AW99: 0 | AX99: 0 | AY99: 0 | AZ99: 0 | BA99: 0 | BB99: 0 | BC99: 0 | BD99: 0 | BE99: 0 | BF99: 0 | BG99: 0 | BH99: 0 | BI99: 0 | BJ99: =SUM((BJ96+BJ97)*BJ98) -> 0 | BK99: =SUM((BK96+BK97)*BK98) -> 0 | BL99: =SUM((BL96+BL97)*BL98) -> 0 | BM99: 0 | BO99: Rondes effectuées | BP99: =COUNTIF(D96:BM96,">0") -> 0 | BQ99: =SUM((BQ96+BQ97)*BQ98) -> 0 | BR99: 0 | BS99: 0 | BT99: 0 | BU99: 0 | BV99: 0 | BW99: 0 | BX99: 0 | BY99: 0 | BZ99: 0 | CA99: 0 | CB99: 0 | CC99: 0 | CD99: 0 | CE99: 0 | CF99: 0 | CG99: 0 | CI99: Rondes Effectuées | CJ99: =COUNTIF(BQ96:CG96,">0") -> 0 | CK99: Rondes effectuées | CL99: =SUM(CJ99+BP99) -> 0
A100: 24 | B100: =VLOOKUP(A100,'Numéro licences'!$H$4:$I$47,2) -> PARMENTIER Dominique | C100: Aller-Retour | AC100: 0 | AK100: 52 | AZ100: 60 | BM100: 52 | BN100: =SUM(D100:BM100) -> 164 | BO100: Km renseignés | BP100: =SUM(BN100:BN101) -> 364 | BR100: 0 | CH100: =SUM(BQ100:CG100) -> 0 | CI100: Km renseignés | CJ100: =SUM(CH100+CH101) -> 200 | CK100: Km renseignés | CL100: =SUM(BP100+CJ100) -> 564
C101: Ronde | AC101: 200 | AK101: 0 | AZ101: 0 | BM101: 0 | BN101: =SUM(D101:BM101) -> 200 | BO101: Km confirmés | BP101: =SUM(D103:BM103) -> 364 | BR101: 200 | CH101: =SUM(BQ101:CG101) -> 200 | CI101: Km confirmés | CJ101: =SUM(BQ103:CG103) -> 200 | CK101: Km confirmés | CL101: =SUM(CJ101+BP101) -> 564
D102: 0 | E102: 0 | F102: 0 | G102: 0 | H102: 0 | I102: 0 | J102: 0 | K102: 0 | L102: 0 | M102: 0 | N102: 0 | O102: 0 | P102: 0 | Q102: 0 | R102: 0 | S102: 0 | T102: 0 | U102: 0 | V102: 0 | W102: 0 | X102: 0 | Y102: 0 | Z102: 0 | AA102: 0 | AB102: 0 | AC102: 1 | AD102: 0 | AE102: 0 | AF102: 0 | AG102: 0 | AH102: 0 | AI102: 0 | AJ102: 0 | AK102: 1 | AL102: 0 | AM102: 0 | AN102: 0 | AO102: 0 | AP102: 0 | AQ102: 0 | AR102: 0 | AS102: 0 | AT102: 0 | AU102: 0 | AV102: 0 | AW102: 0 | AX102: 0 | AY102: 0 | AZ102: 1 | BA102: 0 | BB102: 0 | BC102: 0 | BD102: 0 | BE102: 0 | BF102: 0 | BG102: 0 | BH102: 0 | BI102: 0 | BJ102: 0 | BK102: 0 | BL102: 0 | BM102: 1 | BO102: Rondes confirmées | BP102: 0 | BQ102: 0 | BR102: 1 | BS102: 0 | BT102: 0 | BU102: 0 | BV102: 0 | BW102: 0 | BX102: 0 | BY102: 0 | BZ102: 0 | CA102: 0 | CB102: 0 | CC102: 0 | CD102: 0 | CE102: 0 | CF102: 0 | CG102: 0 | CI102: Rondes confirmées | CJ102: =SUM(BQ102:CH102) -> 1 | CK102: Rondes confirmées | CL102: =SUM(CJ102+BP102) -> 1
D103: =SUM((D100+D101)*D102) -> 0 | E103: 0 | F103: 0 | G103: 0 | H103: 0 | I103: 0 | J103: 0 | K103: 0 | L103: 0 | M103: 0 | N103: 0 | O103: 0 | P103: 0 | Q103: 0 | R103: 0 | S103: 0 | T103: 0 | U103: 0 | V103: 0 | W103: 0 | X103: 0 | Y103: 0 | Z103: 0 | AA103: 0 | AB103: 0 | AC103: 200 | AD103: 0 | AE103: 0 | AF103: 0 | AG103: 0 | AH103: 0 | AI103: 0 | AJ103: 0 | AK103: 52 | AL103: 0 | AM103: 0 | AN103: 0 | AO103: 0 | AP103: 0 | AQ103: 0 | AR103: 0 | AS103: 0 | AT103: 0 | AU103: 0 | AV103: 0 | AW103: 0 | AX103: 0 | AY103: 0 | AZ103: 60 | BA103: 0 | BB103: 0 | BC103: 0 | BD103: 0 | BE103: 0 | BF103: 0 | BG103: 0 | BH103: 0 | BI103: 0 | BJ103: =SUM((BJ100+BJ101)*BJ102) -> 0 | BK103: =SUM((BK100+BK101)*BK102) -> 0 | BL103: =SUM((BL100+BL101)*BL102) -> 0 | BM103: 52 | BO103: Rondes effectuées | BP103: =COUNTIF(D100:BM100,">0") -> 3 | BQ103: =SUM((BQ100+BQ101)*BQ102) -> 0 | BR103: 200 | BS103: 0 | BT103: 0 | BU103: 0 | BV103: 0 | BW103: 0 | BX103: 0 | BY103: 0 | BZ103: 0 | CA103: 0 | CB103: 0 | CC103: 0 | CD103: 0 | CE103: 0 | CF103: 0 | CG103: 0 | CI103: Rondes Effectuées | CJ103: =COUNTIF(BQ100:CG100,">0") -> 0 | CK103: Rondes effectuées | CL103: =SUM(CJ103+BP103) -> 3
A104: 25 | B104: =VLOOKUP(A104,'Numéro licences'!$H$4:$I$47,2) -> POCHET Jean-Dominique | C104: Aller-Retour | BN104: =SUM(D104:BM104) -> 0 | BO104: Km renseignés | BP104: =SUM(BN104:BN105) -> 0 | CH104: =SUM(BQ104:CG104) -> 0 | CI104: Km renseignés | CJ104: =SUM(CH104+CH105) -> 0 | CK104: Km renseignés | CL104: =SUM(BP104+CJ104) -> 0
C105: Ronde | BN105: =SUM(D105:BM105) -> 0 | BO105: Km confirmés | BP105: =SUM(D107:BM107) -> 0 | CH105: =SUM(BQ105:CG105) -> 0 | CI105: Km confirmés | CJ105: =SUM(BQ107:CG107) -> 0 | CK105: Km confirmés | CL105: =SUM(CJ105+BP105) -> 0
D106: 0 | E106: 0 | F106: 0 | G106: 0 | H106: 0 | I106: 0 | J106: 0 | K106: 0 | L106: 0 | M106: 0 | N106: 0 | O106: 0 | P106: 0 | Q106: 0 | R106: 0 | S106: 0 | T106: 0 | U106: 0 | V106: 0 | W106: 0 | X106: 0 | Y106: 0 | Z106: 0 | AA106: 0 | AB106: 0 | AC106: 0 | AD106: 0 | AE106: 0 | AF106: 0 | AG106: 0 | AH106: 0 | AI106: 0 | AJ106: 0 | AK106: 0 | AL106: 0 | AM106: 0 | AN106: 0 | AO106: 0 | AP106: 0 | AQ106: 0 | AR106: 0 | AS106: 0 | AT106: 0 | AU106: 0 | AV106: 0 | AW106: 0 | AX106: 0 | AY106: 0 | AZ106: 0 | BA106: 0 | BB106: 0 | BC106: 0 | BD106: 0 | BE106: 0 | BF106: 0 | BG106: 0 | BH106: 0 | BI106: 0 | BJ106: 0 | BK106: 0 | BL106: 0 | BM106: 0 | BO106: Rondes confirmées | BP106: 0 | BQ106: 0 | BR106: 0 | BS106: 0 | BT106: 0 | BU106: 0 | BV106: 0 | BW106: 0 | BX106: 0 | BY106: 0 | BZ106: 0 | CA106: 0 | CB106: 0 | CC106: 0 | CD106: 0 | CE106: 0 | CF106: 0 | CG106: 0 | CI106: Rondes confirmées | CJ106: =SUM(BQ106:CH106) -> 0 | CK106: Rondes confirmées | CL106: =SUM(CJ106+BP106) -> 0
D107: =SUM((D104+D105)*D106) -> 0 | E107: 0 | F107: 0 | G107: 0 | H107: 0 | I107: 0 | J107: 0 | K107: 0 | L107: 0 | M107: 0 | N107: 0 | O107: 0 | P107: 0 | Q107: 0 | R107: 0 | S107: 0 | T107: 0 | U107: 0 | V107: 0 | W107: 0 | X107: 0 | Y107: 0 | Z107: 0 | AA107: 0 | AB107: 0 | AC107: 0 | AD107: 0 | AE107: 0 | AF107: 0 | AG107: 0 | AH107: 0 | AI107: 0 | AJ107: 0 | AK107: 0 | AL107: 0 | AM107: 0 | AN107: 0 | AO107: 0 | AP107: 0 | AQ107: 0 | AR107: 0 | AS107: 0 | AT107: 0 | AU107: 0 | AV107: 0 | AW107: 0 | AX107: 0 | AY107: 0 | AZ107: 0 | BA107: 0 | BB107: 0 | BC107: 0 | BD107: 0 | BE107: 0 | BF107: 0 | BG107: 0 | BH107: 0 | BI107: 0 | BJ107: =SUM((BJ104+BJ105)*BJ106) -> 0 | BK107: =SUM((BK104+BK105)*BK106) -> 0 | BL107: =SUM((BL104+BL105)*BL106) -> 0 | BM107: 0 | BO107: Rondes effectuées | BP107: =COUNTIF(D104:BM104,">0") -> 0 | BQ107: =SUM((BQ104+BQ105)*BQ106) -> 0 | BR107: 0 | BS107: 0 | BT107: 0 | BU107: 0 | BV107: 0 | BW107: 0 | BX107: 0 | BY107: 0 | BZ107: 0 | CA107: 0 | CB107: 0 | CC107: 0 | CD107: 0 | CE107: 0 | CF107: 0 | CG107: 0 | CI107: Rondes Effectuées | CJ107: =COUNTIF(BQ104:CG104,">0") -> 0 | CK107: Rondes effectuées | CL107: =SUM(CJ107+BP107) -> 0
A108: 26 | B108: =VLOOKUP(A108,'Numéro licences'!$H$4:$I$47,2) -> POMPIER Philippe | C108: Aller-Retour | BN108: =SUM(D108:BM108) -> 0 | BO108: Km renseignés | BP108: =SUM(BN108:BN109) -> 0 | CH108: =SUM(BQ108:CG108) -> 0 | CI108: Km renseignés | CJ108: =SUM(CH108+CH109) -> 0 | CK108: Km renseignés | CL108: =SUM(BP108+CJ108) -> 0
C109: Ronde | BN109: =SUM(D109:BM109) -> 0 | BO109: Km confirmés | BP109: =SUM(D111:BM111) -> 0 | CH109: =SUM(BQ109:CG109) -> 0 | CI109: Km confirmés | CJ109: =SUM(BQ111:CG111) -> 0 | CK109: Km confirmés | CL109: =SUM(CJ109+BP109) -> 0
D110: 0 | E110: 0 | F110: 0 | G110: 0 | H110: 0 | I110: 0 | J110: 0 | K110: 0 | L110: 0 | M110: 0 | N110: 0 | O110: 0 | P110: 0 | Q110: 0 | R110: 0 | S110: 0 | T110: 0 | U110: 0 | V110: 0 | W110: 0 | X110: 0 | Y110: 0 | Z110: 0 | AA110: 0 | AB110: 0 | AC110: 0 | AD110: 0 | AE110: 0 | AF110: 0 | AG110: 0 | AH110: 0 | AI110: 0 | AJ110: 0 | AK110: 0 | AL110: 0 | AM110: 0 | AN110: 0 | AO110: 0 | AP110: 0 | AQ110: 0 | AR110: 0 | AS110: 0 | AT110: 0 | AU110: 0 | AV110: 0 | AW110: 0 | AX110: 0 | AY110: 0 | AZ110: 0 | BA110: 0 | BB110: 0 | BC110: 0 | BD110: 0 | BE110: 0 | BF110: 0 | BG110: 0 | BH110: 0 | BI110: 0 | BJ110: 0 | BK110: 0 | BL110: 0 | BM110: 0 | BO110: Rondes confirmées | BP110: 0 | BQ110: 0 | BR110: 0 | BS110: 0 | BT110: 0 | BU110: 0 | BV110: 0 | BW110: 0 | BX110: 0 | BY110: 0 | BZ110: 0 | CA110: 0 | CB110: 0 | CC110: 0 | CD110: 0 | CE110: 0 | CF110: 0 | CG110: 0 | CI110: Rondes confirmées | CJ110: =SUM(BQ110:CH110) -> 0 | CK110: Rondes confirmées | CL110: =SUM(CJ110+BP110) -> 0
D111: =SUM((D108+D109)*D110) -> 0 | E111: 0 | F111: 0 | G111: 0 | H111: 0 | I111: 0 | J111: 0 | K111: 0 | L111: 0 | M111: 0 | N111: 0 | O111: 0 | P111: 0 | Q111: 0 | R111: 0 | S111: 0 | T111: 0 | U111: 0 | V111: 0 | W111: 0 | X111: 0 | Y111: 0 | Z111: 0 | AA111: 0 | AB111: 0 | AC111: 0 | AD111: 0 | AE111: 0 | AF111: 0 | AG111: 0 | AH111: 0 | AI111: 0 | AJ111: 0 | AK111: 0 | AL111: 0 | AM111: 0 | AN111: 0 | AO111: 0 | AP111: 0 | AQ111: 0 | AR111: 0 | AS111: 0 | AT111: 0 | AU111: 0 | AV111: 0 | AW111: 0 | AX111: 0 | AY111: 0 | AZ111: 0 | BA111: 0 | BB111: 0 | BC111: 0 | BD111: 0 | BE111: 0 | BF111: 0 | BG111: 0 | BH111: 0 | BI111: 0 | BJ111: =SUM((BJ108+BJ109)*BJ110) -> 0 | BK111: =SUM((BK108+BK109)*BK110) -> 0 | BL111: =SUM((BL108+BL109)*BL110) -> 0 | BM111: 0 | BO111: Rondes effectuées | BP111: =COUNTIF(D108:BM108,">0") -> 0 | BQ111: =SUM((BQ108+BQ109)*BQ110) -> 0 | BR111: 0 | BS111: 0 | BT111: 0 | BU111: 0 | BV111: 0 | BW111: 0 | BX111: 0 | BY111: 0 | BZ111: 0 | CA111: 0 | CB111: 0 | CC111: 0 | CD111: 0 | CE111: 0 | CF111: 0 | CG111: 0 | CI111: Rondes Effectuées | CJ111: =COUNTIF(BQ108:CG108,">0") -> 0 | CK111: Rondes effectuées | CL111: =SUM(CJ111+BP111) -> 0
A112: 27 | B112: =VLOOKUP(A112,'Numéro licences'!$H$4:$I$47,2) -> RAMEAU Didier | C112: Aller-Retour | BB112: 124 | BH112: 166 | BN112: =SUM(D112:BM112) -> 290 | BO112: Km renseignés | BP112: =SUM(BN112:BN113) -> 690 | BR112: 0 | BS112: 79 | BT112: 36 | CH112: =SUM(BQ112:CG112) -> 115 | CI112: Km renseignés | CJ112: =SUM(CH112+CH113) -> 621 | CK112: Km renseignés | CL112: =SUM(BP112+CJ112) -> 1311
C113: Ronde | BB113: 180 | BH113: 220 | BN113: =SUM(D113:BM113) -> 400 | BO113: Km confirmés | BP113: =SUM(D115:BM115) -> 0 | BR113: 200 | BS113: 186 | BT113: 120 | CH113: =SUM(BQ113:CG113) -> 506 | CI113: Km confirmés | CJ113: =SUM(BQ115:CG115) -> 0 | CK113: Km confirmés | CL113: =SUM(CJ113+BP113) -> 0
D114: 0 | E114: 0 | F114: 0 | G114: 0 | H114: 0 | I114: 0 | J114: 0 | K114: 0 | L114: 0 | M114: 0 | N114: 0 | O114: 0 | P114: 0 | Q114: 0 | R114: 0 | S114: 0 | T114: 0 | U114: 0 | V114: 0 | W114: 0 | X114: 0 | Y114: 0 | Z114: 0 | AA114: 0 | AB114: 0 | AC114: 0 | AD114: 0 | AE114: 0 | AF114: 0 | AG114: 0 | AH114: 0 | AI114: 0 | AJ114: 0 | AK114: 0 | AL114: 0 | AM114: 0 | AN114: 0 | AO114: 0 | AP114: 0 | AQ114: 0 | AR114: 0 | AS114: 0 | AT114: 0 | AU114: 0 | AV114: 0 | AW114: 0 | AX114: 0 | AY114: 0 | AZ114: 0 | BA114: 0 | BB114: 0 | BC114: 0 | BD114: 0 | BE114: 0 | BF114: 0 | BG114: 0 | BH114: 0 | BI114: 0 | BJ114: 0 | BK114: 0 | BL114: 0 | BM114: 0 | BO114: Rondes confirmées | BP114: 0 | BQ114: 0 | BR114: 0 | BS114: 0 | BT114: 0 | BU114: 0 | BV114: 0 | BW114: 0 | BX114: 0 | BY114: 0 | BZ114: 0 | CA114: 0 | CB114: 0 | CC114: 0 | CD114: 0 | CE114: 0 | CF114: 0 | CG114: 0 | CI114: Rondes confirmées | CJ114: =SUM(BQ114:CH114) -> 0 | CK114: Rondes confirmées | CL114: =SUM(CJ114+BP114) -> 0
D115: =SUM((D112+D113)*D114) -> 0 | E115: 0 | F115: 0 | G115: 0 | H115: 0 | I115: 0 | J115: 0 | K115: 0 | L115: 0 | M115: 0 | N115: 0 | O115: 0 | P115: 0 | Q115: 0 | R115: 0 | S115: 0 | T115: 0 | U115: 0 | V115: 0 | W115: 0 | X115: 0 | Y115: 0 | Z115: 0 | AA115: 0 | AB115: 0 | AC115: 0 | AD115: 0 | AE115: 0 | AF115: 0 | AG115: 0 | AH115: 0 | AI115: 0 | AJ115: 0 | AK115: 0 | AL115: 0 | AM115: 0 | AN115: 0 | AO115: 0 | AP115: 0 | AQ115: 0 | AR115: 0 | AS115: 0 | AT115: 0 | AU115: 0 | AV115: 0 | AW115: 0 | AX115: 0 | AY115: 0 | AZ115: 0 | BA115: 0 | BB115: 0 | BC115: 0 | BD115: 0 | BE115: 0 | BF115: 0 | BG115: 0 | BH115: 0 | BI115: 0 | BJ115: =SUM((BJ112+BJ113)*BJ114) -> 0 | BK115: =SUM((BK112+BK113)*BK114) -> 0 | BL115: =SUM((BL112+BL113)*BL114) -> 0 | BM115: 0 | BO115: Rondes effectuées | BP115: =COUNTIF(D112:BM112,">0") -> 2 | BQ115: =SUM((BQ112+BQ113)*BQ114) -> 0 | BR115: 0 | BS115: 0 | BT115: 0 | BU115: 0 | BV115: 0 | BW115: 0 | BX115: 0 | BY115: 0 | BZ115: 0 | CA115: 0 | CB115: 0 | CC115: 0 | CD115: 0 | CE115: 0 | CF115: 0 | CG115: 0 | CI115: Rondes Effectuées | CJ115: =COUNTIF(BQ112:CG112,">0") -> 2 | CK115: Rondes effectuées | CL115: =SUM(CJ115+BP115) -> 4
A116: 28 | B116: =VLOOKUP(A116,'Numéro licences'!$H$4:$I$47,2) -> SPITAELS Bernard | C116: Aller-Retour | AK116: 52 | BN116: =SUM(D116:BM116) -> 52 | BO116: Km renseignés | BP116: =SUM(BN116:BN117) -> 252 | BS116: 79 | CH116: =SUM(BQ116:CG116) -> 79 | CI116: Km renseignés | CJ116: =SUM(CH116+CH117) -> 265 | CK116: Km renseignés | CL116: =SUM(BP116+CJ116) -> 517
C117: Ronde | AK117: 200 | BN117: =SUM(D117:BM117) -> 200 | BO117: Km confirmés | BP117: =SUM(D119:BM119) -> 0 | BS117: 186 | CH117: =SUM(BQ117:CG117) -> 186 | CI117: Km confirmés | CJ117: =SUM(BQ119:CG119) -> 0 | CK117: Km confirmés | CL117: =SUM(CJ117+BP117) -> 0
D118: 0 | E118: 0 | F118: 0 | G118: 0 | H118: 0 | I118: 0 | J118: 0 | K118: 0 | L118: 0 | M118: 0 | N118: 0 | O118: 0 | P118: 0 | Q118: 0 | R118: 0 | S118: 0 | T118: 0 | U118: 0 | V118: 0 | W118: 0 | X118: 0 | Y118: 0 | Z118: 0 | AA118: 0 | AB118: 0 | AC118: 0 | AD118: 0 | AE118: 0 | AF118: 0 | AG118: 0 | AH118: 0 | AI118: 0 | AJ118: 0 | AK118: 0 | AL118: 0 | AM118: 0 | AN118: 0 | AO118: 0 | AP118: 0 | AQ118: 0 | AR118: 0 | AS118: 0 | AT118: 0 | AU118: 0 | AV118: 0 | AW118: 0 | AX118: 0 | AY118: 0 | AZ118: 0 | BA118: 0 | BB118: 0 | BC118: 0 | BD118: 0 | BE118: 0 | BF118: 0 | BG118: 0 | BH118: 0 | BI118: 0 | BJ118: 0 | BK118: 0 | BL118: 0 | BM118: 0 | BO118: Rondes confirmées | BP118: 0 | BQ118: 0 | BR118: 0 | BS118: 0 | BT118: 0 | BU118: 0 | BV118: 0 | BW118: 0 | BX118: 0 | BY118: 0 | BZ118: 0 | CA118: 0 | CB118: 0 | CC118: 0 | CD118: 0 | CE118: 0 | CF118: 0 | CG118: 0 | CI118: Rondes confirmées | CJ118: =SUM(BQ118:CH118) -> 0 | CK118: Rondes confirmées | CL118: =SUM(CJ118+BP118) -> 0
D119: =SUM((D116+D117)*D118) -> 0 | E119: 0 | F119: 0 | G119: 0 | H119: 0 | I119: 0 | J119: 0 | K119: 0 | L119: 0 | M119: 0 | N119: 0 | O119: 0 | P119: 0 | Q119: 0 | R119: 0 | S119: 0 | T119: 0 | U119: 0 | V119: 0 | W119: 0 | X119: 0 | Y119: 0 | Z119: 0 | AA119: 0 | AB119: 0 | AC119: 0 | AD119: 0 | AE119: 0 | AF119: 0 | AG119: 0 | AH119: 0 | AI119: 0 | AJ119: 0 | AK119: 0 | AL119: 0 | AM119: 0 | AN119: 0 | AO119: 0 | AP119: 0 | AQ119: 0 | AR119: 0 | AS119: 0 | AT119: 0 | AU119: 0 | AV119: 0 | AW119: 0 | AX119: 0 | AY119: 0 | AZ119: 0 | BA119: 0 | BB119: 0 | BC119: 0 | BD119: 0 | BE119: 0 | BF119: 0 | BG119: 0 | BH119: 0 | BI119: 0 | BJ119: =SUM((BJ116+BJ117)*BJ118) -> 0 | BK119: =SUM((BK116+BK117)*BK118) -> 0 | BL119: =SUM((BL116+BL117)*BL118) -> 0 | BM119: 0 | BO119: Rondes effectuées | BP119: =COUNTIF(D116:BM116,">0") -> 1 | BQ119: =SUM((BQ116+BQ117)*BQ118) -> 0 | BR119: 0 | BS119: 0 | BT119: 0 | BU119: 0 | BV119: 0 | BW119: 0 | BX119: 0 | BY119: 0 | BZ119: 0 | CA119: 0 | CB119: 0 | CC119: 0 | CD119: 0 | CE119: 0 | CF119: 0 | CG119: 0 | CI119: Rondes Effectuées | CJ119: =COUNTIF(BQ116:CG116,">0") -> 1 | CK119: Rondes effectuées | CL119: =SUM(CJ119+BP119) -> 2
A120: 29 | B120: =VLOOKUP(A120,'Numéro licences'!$H$4:$I$47,2) -> TERWAGNE Freddy | C120: Aller-Retour | BN120: =SUM(D120:BM120) -> 0 | BO120: Km renseignés | BP120: =SUM(BN120:BN121) -> 0 | CH120: =SUM(BQ120:CG120) -> 0 | CI120: Km renseignés | CJ120: =SUM(CH120+CH121) -> 0 | CK120: Km renseignés | CL120: =SUM(BP120+CJ120) -> 0
C121: Ronde | BN121: =SUM(D121:BM121) -> 0 | BO121: Km confirmés | BP121: =SUM(D123:BM123) -> 0 | CH121: =SUM(BQ121:CG121) -> 0 | CI121: Km confirmés | CJ121: =SUM(BQ123:CG123) -> 0 | CK121: Km confirmés | CL121: =SUM(CJ121+BP121) -> 0
D122: 0 | E122: 0 | F122: 0 | G122: 0 | H122: 0 | I122: 0 | J122: 0 | K122: 0 | L122: 0 | M122: 0 | N122: 0 | O122: 0 | P122: 0 | Q122: 0 | R122: 0 | S122: 0 | T122: 0 | U122: 0 | V122: 0 | W122: 0 | X122: 0 | Y122: 0 | Z122: 0 | AA122: 0 | AB122: 0 | AC122: 0 | AD122: 0 | AE122: 0 | AF122: 0 | AG122: 0 | AH122: 0 | AI122: 0 | AJ122: 0 | AK122: 0 | AL122: 0 | AM122: 0 | AN122: 0 | AO122: 0 | AP122: 0 | AQ122: 0 | AR122: 0 | AS122: 0 | AT122: 0 | AU122: 0 | AV122: 0 | AW122: 0 | AX122: 0 | AY122: 0 | AZ122: 0 | BA122: 0 | BB122: 0 | BC122: 0 | BD122: 0 | BE122: 0 | BF122: 0 | BG122: 0 | BH122: 0 | BI122: 0 | BJ122: 0 | BK122: 0 | BL122: 0 | BM122: 0 | BO122: Rondes confirmées | BP122: 0 | BQ122: 0 | BR122: 0 | BS122: 0 | BT122: 0 | BU122: 0 | BV122: 0 | BW122: 0 | BX122: 0 | BY122: 0 | BZ122: 0 | CA122: 0 | CB122: 0 | CC122: 0 | CD122: 0 | CE122: 0 | CF122: 0 | CG122: 0 | CI122: Rondes confirmées | CJ122: =SUM(BQ122:CH122) -> 0 | CK122: Rondes confirmées | CL122: =SUM(CJ122+BP122) -> 0
D123: =SUM((D120+D121)*D122) -> 0 | E123: 0 | F123: 0 | G123: 0 | H123: 0 | I123: 0 | J123: 0 | K123: 0 | L123: 0 | M123: 0 | N123: 0 | O123: 0 | P123: 0 | Q123: 0 | R123: 0 | S123: 0 | T123: 0 | U123: 0 | V123: 0 | W123: 0 | X123: 0 | Y123: 0 | Z123: 0 | AA123: 0 | AB123: 0 | AC123: 0 | AD123: 0 | AE123: 0 | AF123: 0 | AG123: 0 | AH123: 0 | AI123: 0 | AJ123: 0 | AK123: 0 | AL123: 0 | AM123: 0 | AN123: 0 | AO123: 0 | AP123: 0 | AQ123: 0 | AR123: 0 | AS123: 0 | AT123: 0 | AU123: 0 | AV123: 0 | AW123: 0 | AX123: 0 | AY123: 0 | AZ123: 0 | BA123: 0 | BB123: 0 | BC123: 0 | BD123: 0 | BE123: 0 | BF123: 0 | BG123: 0 | BH123: 0 | BI123: 0 | BJ123: =SUM((BJ120+BJ121)*BJ122) -> 0 | BK123: =SUM((BK120+BK121)*BK122) -> 0 | BL123: 0 | BM123: 0 | BO123: Rondes effectuées | BP123: =COUNTIF(D120:BM120,">0") -> 0 | BQ123: =SUM((BQ120+BQ121)*BQ122) -> 0 | BR123: 0 | BS123: 0 | BT123: 0 | BU123: 0 | BV123: 0 | BW123: 0 | BX123: 0 | BY123: 0 | BZ123: 0 | CA123: 0 | CB123: 0 | CC123: 0 | CD123: 0 | CE123: 0 | CF123: 0 | CG123: 0 | CI123: Rondes Effectuées | CJ123: =COUNTIF(BQ120:CG120,">0") -> 0 | CK123: Rondes effectuées | CL123: =SUM(CJ123+BP123) -> 0
A124: 30 | B124: =VLOOKUP(A124,'Numéro licences'!$H$4:$I$47,2) -> TERWAGNE Julien | C124: Aller-Retour | BN124: =SUM(D124:BM124) -> 0 | BO124: Km renseignés | BP124: =SUM(BN124:BN125) -> 0 | CH124: =SUM(BQ124:CG124) -> 0 | CI124: Km renseignés | CJ124: =SUM(CH124+CH125) -> 0 | CK124: Km renseignés | CL124: =SUM(BP124+CJ124) -> 0
C125: Ronde | BN125: =SUM(D125:BM125) -> 0 | BO125: Km confirmés | BP125: =SUM(D127:BM127) -> 0 | CH125: =SUM(BQ125:CG125) -> 0 | CI125: Km confirmés | CJ125: =SUM(BQ127:CG127) -> 0 | CK125: Km confirmés | CL125: =SUM(CJ125+BP125) -> 0
D126: 0 | E126: 0 | F126: 0 | G126: 0 | H126: 0 | I126: 0 | J126: 0 | K126: 0 | L126: 0 | M126: 0 | N126: 0 | O126: 0 | P126: 0 | Q126: 0 | R126: 0 | S126: 0 | T126: 0 | U126: 0 | V126: 0 | W126: 0 | X126: 0 | Y126: 0 | Z126: 0 | AA126: 0 | AB126: 0 | AC126: 0 | AD126: 0 | AE126: 0 | AF126: 0 | AG126: 0 | AH126: 0 | AI126: 0 | AJ126: 0 | AK126: 0 | AL126: 0 | AM126: 0 | AN126: 0 | AO126: 0 | AP126: 0 | AQ126: 0 | AR126: 0 | AS126: 0 | AT126: 0 | AU126: 0 | AV126: 0 | AW126: 0 | AX126: 0 | AY126: 0 | AZ126: 0 | BA126: 0 | BB126: 0 | BC126: 0 | BD126: 0 | BE126: 0 | BF126: 0 | BG126: 0 | BH126: 0 | BI126: 0 | BJ126: 0 | BK126: 0 | BL126: 0 | BM126: 0 | BO126: Rondes confirmées | BP126: 0 | BQ126: 0 | BR126: 0 | BS126: 0 | BT126: 0 | BU126: 0 | BV126: 0 | BW126: 0 | BX126: 0 | BY126: 0 | BZ126: 0 | CA126: 0 | CB126: 0 | CC126: 0 | CD126: 0 | CE126: 0 | CF126: 0 | CG126: 0 | CI126: Rondes confirmées | CJ126: =SUM(BQ126:CH126) -> 0 | CK126: Rondes confirmées | CL126: =SUM(CJ126+BP126) -> 0
D127: =SUM((D124+D125)*D126) -> 0 | E127: 0 | F127: 0 | G127: 0 | H127: 0 | I127: 0 | J127: 0 | K127: 0 | L127: 0 | M127: 0 | N127: 0 | O127: 0 | P127: 0 | Q127: 0 | R127: 0 | S127: 0 | T127: 0 | U127: 0 | V127: 0 | W127: 0 | X127: 0 | Y127: 0 | Z127: 0 | AA127: 0 | AB127: 0 | AC127: 0 | AD127: 0 | AE127: 0 | AF127: 0 | AG127: 0 | AH127: 0 | AI127: 0 | AJ127: 0 | AK127: 0 | AL127: 0 | AM127: 0 | AN127: 0 | AO127: 0 | AP127: 0 | AQ127: 0 | AR127: 0 | AS127: 0 | AT127: 0 | AU127: 0 | AV127: 0 | AW127: 0 | AX127: 0 | AY127: 0 | AZ127: 0 | BA127: 0 | BB127: 0 | BC127: 0 | BD127: 0 | BE127: 0 | BF127: 0 | BG127: 0 | BH127: 0 | BI127: 0 | BJ127: =SUM((BJ124+BJ125)*BJ126) -> 0 | BK127: =SUM((BK124+BK125)*BK126) -> 0 | BL127: =SUM((BL124+BL125)*BL126) -> 0 | BM127: 0 | BO127: Rondes effectuées | BP127: =COUNTIF(D124:BM124,">0") -> 0 | BQ127: =SUM((BQ124+BQ125)*BQ126) -> 0 | BR127: 0 | BS127: 0 | BT127: 0 | BU127: 0 | BV127: 0 | BW127: 0 | BX127: 0 | BY127: 0 | BZ127: 0 | CA127: 0 | CB127: 0 | CC127: 0 | CD127: 0 | CE127: 0 | CF127: 0 | CG127: 0 | CI127: Rondes Effectuées | CJ127: =COUNTIF(BQ124:CG124,">0") -> 0 | CK127: Rondes effectuées | CL127: =SUM(CJ127+BP127) -> 0
A128: 31 | B128: =VLOOKUP(A128,'Numéro licences'!$H$4:$I$47,2) -> THOMAS Isabelle | C128: Aller-Retour | BN128: =SUM(D128:BM128) -> 0 | BO128: Km renseignés | BP128: =SUM(BN128:BN129) -> 0 | CH128: =SUM(BQ128:CG128) -> 0 | CI128: Km renseignés | CJ128: =SUM(CH128+CH129) -> 0 | CK128: Km renseignés | CL128: =SUM(BP128+CJ128) -> 0
C129: Ronde | BN129: =SUM(D129:BM129) -> 0 | BO129: Km confirmés | BP129: =SUM(D131:BM131) -> 0 | CH129: =SUM(BQ129:CG129) -> 0 | CI129: Km confirmés | CJ129: =SUM(BQ131:CG131) -> 0 | CK129: Km confirmés | CL129: =SUM(CJ129+BP129) -> 0
D130: 0 | E130: 0 | F130: 0 | G130: 0 | H130: 0 | I130: 0 | J130: 0 | K130: 0 | L130: 0 | M130: 0 | N130: 0 | O130: 0 | P130: 0 | Q130: 0 | R130: 0 | S130: 0 | T130: 0 | U130: 0 | V130: 0 | W130: 0 | X130: 0 | Y130: 0 | Z130: 0 | AA130: 0 | AB130: 0 | AC130: 0 | AD130: 0 | AE130: 0 | AF130: 0 | AG130: 0 | AH130: 0 | AI130: 0 | AJ130: 0 | AK130: 0 | AL130: 0 | AM130: 0 | AN130: 0 | AO130: 0 | AP130: 0 | AQ130: 0 | AR130: 0 | AS130: 0 | AT130: 0 | AU130: 0 | AV130: 0 | AW130: 0 | AX130: 0 | AY130: 0 | AZ130: 0 | BA130: 0 | BB130: 0 | BC130: 0 | BD130: 0 | BE130: 0 | BF130: 0 | BG130: 0 | BH130: 0 | BI130: 0 | BJ130: 0 | BK130: 0 | BL130: 0 | BM130: 0 | BO130: Rondes confirmées | BP130: 0 | BQ130: 0 | BR130: 0 | BS130: 0 | BT130: 0 | BU130: 0 | BV130: 0 | BW130: 0 | BX130: 0 | BY130: 0 | BZ130: 0 | CA130: 0 | CB130: 0 | CC130: 0 | CD130: 0 | CE130: 0 | CF130: 0 | CG130: 0 | CI130: Rondes confirmées | CJ130: =SUM(BQ130:CH130) -> 0 | CK130: Rondes confirmées | CL130: =SUM(CJ130+BP130) -> 0
D131: =SUM((D128+D129)*D130) -> 0 | E131: 0 | F131: 0 | G131: 0 | H131: 0 | I131: 0 | J131: 0 | K131: 0 | L131: 0 | M131: 0 | N131: 0 | O131: 0 | P131: 0 | Q131: 0 | R131: 0 | S131: 0 | T131: 0 | U131: 0 | V131: 0 | W131: 0 | X131: 0 | Y131: 0 | Z131: 0 | AA131: 0 | AB131: 0 | AC131: 0 | AD131: 0 | AE131: 0 | AF131: 0 | AG131: 0 | AH131: 0 | AI131: 0 | AJ131: 0 | AK131: 0 | AL131: 0 | AM131: 0 | AN131: 0 | AO131: 0 | AP131: 0 | AQ131: 0 | AR131: 0 | AS131: 0 | AT131: 0 | AU131: 0 | AV131: 0 | AW131: 0 | AX131: 0 | AY131: 0 | AZ131: 0 | BA131: 0 | BB131: 0 | BC131: 0 | BD131: 0 | BE131: 0 | BF131: 0 | BG131: 0 | BH131: 0 | BI131: 0 | BJ131: =SUM((BJ128+BJ129)*BJ130) -> 0 | BK131: =SUM((BK128+BK129)*BK130) -> 0 | BL131: =SUM((BL128+BL129)*BL130) -> 0 | BM131: 0 | BO131: Rondes effectuées | BP131: =COUNTIF(D128:BM128,">0") -> 0 | BQ131: =SUM((BQ128+BQ129)*BQ130) -> 0 | BR131: 0 | BS131: 0 | BT131: 0 | BU131: 0 | BV131: 0 | BW131: 0 | BX131: 0 | BY131: 0 | BZ131: 0 | CA131: 0 | CB131: 0 | CC131: 0 | CD131: 0 | CE131: 0 | CF131: 0 | CG131: 0 | CI131: Rondes Effectuées | CJ131: =COUNTIF(BQ128:CG128,">0") -> 0 | CK131: Rondes effectuées | CL131: =SUM(CJ131+BP131) -> 0
A132: 32 | B132: =VLOOKUP(A132,'Numéro licences'!$H$4:$I$47,2) -> URBAIN Philippe | C132: Aller-Retour | BN132: =SUM(D132:BM132) -> 0 | BO132: Km renseignés | BP132: =SUM(BN132:BN133) -> 0 | BT132: 36 | CH132: =SUM(BQ132:CG132) -> 36 | CI132: Km renseignés | CJ132: =SUM(CH132+CH133) -> 156 | CK132: Km renseignés | CL132: =SUM(BP132+CJ132) -> 156
C133: Ronde | BN133: =SUM(D133:BM133) -> 0 | BO133: Km confirmés | BP133: =SUM(D135:BM135) -> 0 | BT133: 120 | CH133: =SUM(BQ133:CG133) -> 120 | CI133: Km confirmés | CJ133: =SUM(BQ135:CG135) -> 0 | CK133: Km confirmés | CL133: =SUM(CJ133+BP133) -> 0
D134: 0 | E134: 0 | F134: 0 | G134: 0 | H134: 0 | I134: 0 | J134: 0 | K134: 0 | L134: 0 | M134: 0 | N134: 0 | O134: 0 | P134: 0 | Q134: 0 | R134: 0 | S134: 0 | T134: 0 | U134: 0 | V134: 0 | W134: 0 | X134: 0 | Y134: 0 | Z134: 0 | AA134: 0 | AB134: 0 | AC134: 0 | AD134: 0 | AE134: 0 | AF134: 0 | AG134: 0 | AH134: 0 | AI134: 0 | AJ134: 0 | AK134: 0 | AL134: 0 | AM134: 0 | AN134: 0 | AO134: 0 | AP134: 0 | AQ134: 0 | AR134: 0 | AS134: 0 | AT134: 0 | AU134: 0 | AV134: 0 | AW134: 0 | AX134: 0 | AY134: 0 | AZ134: 0 | BA134: 0 | BB134: 0 | BC134: 0 | BD134: 0 | BE134: 0 | BF134: 0 | BG134: 0 | BH134: 0 | BI134: 0 | BJ134: 0 | BK134: 0 | BL134: 0 | BM134: 0 | BO134: Rondes confirmées | BP134: 0 | BQ134: 0 | BR134: 0 | BS134: 0 | BT134: 0 | BU134: 0 | BV134: 0 | BW134: 0 | BX134: 0 | BY134: 0 | BZ134: 0 | CA134: 0 | CB134: 0 | CC134: 0 | CD134: 0 | CE134: 0 | CF134: 0 | CG134: 0 | CI134: Rondes confirmées | CJ134: =SUM(BQ134:CH134) -> 0 | CK134: Rondes confirmées | CL134: =SUM(CJ134+BP134) -> 0
D135: =SUM((D132+D133)*D134) -> 0 | E135: 0 | F135: 0 | G135: 0 | H135: 0 | I135: 0 | J135: 0 | K135: 0 | L135: 0 | M135: 0 | N135: 0 | O135: 0 | P135: 0 | Q135: 0 | R135: 0 | S135: 0 | T135: 0 | U135: 0 | V135: 0 | W135: 0 | X135: 0 | Y135: 0 | Z135: 0 | AA135: 0 | AB135: 0 | AC135: 0 | AD135: 0 | AE135: 0 | AF135: 0 | AG135: 0 | AH135: 0 | AI135: 0 | AJ135: 0 | AK135: 0 | AL135: 0 | AM135: 0 | AN135: 0 | AO135: 0 | AP135: 0 | AQ135: 0 | AR135: 0 | AS135: 0 | AT135: 0 | AU135: 0 | AV135: 0 | AW135: 0 | AX135: 0 | AY135: 0 | AZ135: 0 | BA135: 0 | BB135: 0 | BC135: 0 | BD135: 0 | BE135: 0 | BF135: 0 | BG135: 0 | BH135: 0 | BI135: 0 | BJ135: =SUM((BJ132+BJ133)*BJ134) -> 0 | BK135: =SUM((BK132+BK133)*BK134) -> 0 | BL135: =SUM((BL132+BL133)*BL134) -> 0 | BM135: 0 | BO135: Rondes effectuées | BP135: =COUNTIF(D132:BM132,">0") -> 0 | BQ135: =SUM((BQ132+BQ133)*BQ134) -> 0 | BR135: 0 | BS135: 0 | BT135: 0 | BU135: 0 | BV135: 0 | BW135: 0 | BX135: 0 | BY135: 0 | BZ135: 0 | CA135: 0 | CB135: 0 | CC135: 0 | CD135: 0 | CE135: 0 | CF135: 0 | CG135: 0 | CI135: Rondes Effectuées | CJ135: =COUNTIF(BQ132:CG132,">0") -> 1 | CK135: Rondes effectuées | CL135: =SUM(CJ135+BP135) -> 1
A136: 33 | B136: =VLOOKUP(A136,'Numéro licences'!$H$4:$I$47,2) -> VANBELLINGEN Jean-Claude | C136: Aller-Retour | Z136: 38 | AC136: 0 | AG136: 60 | AK136: 52 | BN136: =SUM(D136:BM136) -> 150 | BO136: Km renseignés | BP136: =SUM(BN136:BN137) -> 863 | CH136: =SUM(BQ136:CG136) -> 0 | CI136: Km renseignés | CJ136: =SUM(CH136+CH137) -> 0 | CK136: Km renseignés | CL136: =SUM(BP136+CJ136) -> 863
C137: Ronde | Z137: 513 | AC137: 200 | AG137: 0 | AK137: 0 | BN137: =SUM(D137:BM137) -> 713 | BO137: Km confirmés | BP137: =SUM(D139:BM139) -> 0 | CH137: =SUM(BQ137:CG137) -> 0 | CI137: Km confirmés | CJ137: =SUM(BQ139:CG139) -> 0 | CK137: Km confirmés | CL137: =SUM(CJ137+BP137) -> 0
D138: 0 | E138: 0 | F138: 0 | G138: 0 | H138: 0 | I138: 0 | J138: 0 | K138: 0 | L138: 0 | M138: 0 | N138: 0 | O138: 0 | P138: 0 | Q138: 0 | R138: 0 | S138: 0 | T138: 0 | U138: 0 | V138: 0 | W138: 0 | X138: 0 | Y138: 0 | Z138: 0 | AA138: 0 | AB138: 0 | AC138: 0 | AD138: 0 | AE138: 0 | AF138: 0 | AG138: 0 | AH138: 0 | AI138: 0 | AJ138: 0 | AK138: 0 | AL138: 0 | AM138: 0 | AN138: 0 | AO138: 0 | AP138: 0 | AQ138: 0 | AR138: 0 | AS138: 0 | AT138: 0 | AU138: 0 | AV138: 0 | AW138: 0 | AX138: 0 | AY138: 0 | AZ138: 0 | BA138: 0 | BB138: 0 | BC138: 0 | BD138: 0 | BE138: 0 | BF138: 0 | BG138: 0 | BH138: 0 | BI138: 0 | BJ138: 0 | BK138: 0 | BL138: 0 | BM138: 0 | BO138: Rondes confirmées | BP138: 0 | BQ138: 0 | BR138: 0 | BS138: 0 | BT138: 0 | BU138: 0 | BV138: 0 | BW138: 0 | BX138: 0 | BY138: 0 | BZ138: 0 | CA138: 0 | CB138: 0 | CC138: 0 | CD138: 0 | CE138: 0 | CF138: 0 | CG138: 0 | CI138: Rondes confirmées | CJ138: =SUM(BQ138:CH138) -> 0 | CK138: Rondes confirmées | CL138: =SUM(CJ138+BP138) -> 0
D139: =SUM((D136+D137)*D138) -> 0 | E139: 0 | F139: 0 | G139: 0 | H139: 0 | I139: 0 | J139: 0 | K139: 0 | L139: 0 | M139: 0 | N139: 0 | O139: 0 | P139: 0 | Q139: 0 | R139: 0 | S139: 0 | T139: 0 | U139: 0 | V139: 0 | W139: 0 | X139: 0 | Y139: 0 | Z139: 0 | AA139: 0 | AB139: 0 | AC139: 0 | AD139: 0 | AE139: 0 | AF139: 0 | AG139: 0 | AH139: 0 | AI139: 0 | AJ139: 0 | AK139: 0 | AL139: 0 | AM139: 0 | AN139: 0 | AO139: 0 | AP139: 0 | AQ139: 0 | AR139: 0 | AS139: 0 | AT139: 0 | AU139: 0 | AV139: 0 | AW139: 0 | AX139: 0 | AY139: 0 | AZ139: 0 | BA139: 0 | BB139: 0 | BC139: 0 | BD139: 0 | BE139: 0 | BF139: 0 | BG139: 0 | BH139: 0 | BI139: 0 | BJ139: =SUM((BJ136+BJ137)*BJ138) -> 0 | BK139: =SUM((BK136+BK137)*BK138) -> 0 | BL139: 0 | BM139: 0 | BO139: Rondes effectuées | BP139: =COUNTIF(D136:BM136,">0") -> 3 | BQ139: =SUM((BQ136+BQ137)*BQ138) -> 0 | BR139: 0 | BS139: 0 | BT139: 0 | BU139: 0 | BV139: 0 | BW139: 0 | BX139: 0 | BY139: 0 | BZ139: 0 | CA139: 0 | CB139: 0 | CC139: 0 | CD139: 0 | CE139: 0 | CF139: 0 | CG139: 0 | CI139: Rondes Effectuées | CJ139: =COUNTIF(BQ136:CG136,">0") -> 0 | CK139: Rondes effectuées | CL139: =SUM(CJ139+BP139) -> 3
A140: 34 | B140: =VLOOKUP(A140,'Numéro licences'!$H$4:$I$47,2) -> VANDEN BOSSCHE Vincent | C140: Aller-Retour | BN140: =SUM(D140:BM140) -> 0 | BO140: Km renseignés | BP140: =SUM(BN140:BN141) -> 0 | CH140: =SUM(BQ140:CG140) -> 0 | CI140: Km renseignés | CJ140: =SUM(CH140+CH141) -> 0 | CK140: Km renseignés | CL140: =SUM(BP140+CJ140) -> 0
C141: Ronde | AL141: 0 | BN141: =SUM(D141:BM141) -> 0 | BO141: Km confirmés | BP141: =SUM(D143:BM143) -> 0 | CH141: =SUM(BQ141:CG141) -> 0 | CI141: Km confirmés | CJ141: =SUM(BQ143:CG143) -> 0 | CK141: Km confirmés | CL141: =SUM(CJ141+BP141) -> 0
D142: 0 | E142: 0 | F142: 0 | G142: 0 | H142: 0 | I142: 0 | J142: 0 | K142: 0 | L142: 0 | M142: 0 | N142: 0 | O142: 0 | P142: 0 | Q142: 0 | R142: 0 | S142: 0 | T142: 0 | U142: 0 | V142: 0 | W142: 0 | X142: 0 | Y142: 0 | Z142: 0 | AA142: 0 | AB142: 0 | AC142: 0 | AD142: 0 | AE142: 0 | AF142: 0 | AG142: 0 | AH142: 0 | AI142: 0 | AJ142: 0 | AK142: 0 | AL142: 0 | AM142: 0 | AN142: 0 | AO142: 0 | AP142: 0 | AQ142: 0 | AR142: 0 | AS142: 0 | AT142: 0 | AU142: 0 | AV142: 0 | AW142: 0 | AX142: 0 | AY142: 0 | AZ142: 0 | BA142: 0 | BB142: 0 | BC142: 0 | BD142: 0 | BE142: 0 | BF142: 0 | BG142: 0 | BH142: 0 | BI142: 0 | BJ142: 0 | BK142: 0 | BL142: 0 | BM142: 0 | BO142: Rondes confirmées | BP142: =SUM(C142:BM142) -> 0 | BQ142: 0 | BR142: 0 | BS142: 0 | BT142: 0 | BU142: 0 | BV142: 0 | BW142: 0 | BX142: 0 | BY142: 0 | BZ142: 0 | CA142: 0 | CB142: 0 | CC142: 0 | CD142: 0 | CE142: 0 | CF142: 0 | CG142: 0 | CI142: Rondes confirmées | CJ142: =SUM(BQ142:CH142) -> 0 | CK142: Rondes confirmées | CL142: =SUM(CJ142+BP142) -> 0
D143: =SUM((D140+D141)*D142) -> 0 | E143: 0 | F143: 0 | G143: 0 | H143: 0 | I143: 0 | J143: 0 | K143: 0 | L143: 0 | M143: 0 | N143: 0 | O143: 0 | P143: 0 | Q143: 0 | R143: 0 | S143: 0 | T143: 0 | U143: 0 | V143: 0 | W143: 0 | X143: 0 | Y143: 0 | Z143: 0 | AA143: 0 | AB143: 0 | AC143: 0 | AD143: 0 | AE143: 0 | AF143: 0 | AG143: 0 | AH143: 0 | AI143: 0 | AJ143: 0 | AK143: 0 | AL143: 0 | AM143: 0 | AN143: 0 | AO143: 0 | AP143: 0 | AQ143: 0 | AR143: 0 | AS143: 0 | AT143: 0 | AU143: 0 | AV143: 0 | AW143: 0 | AX143: 0 | AY143: 0 | AZ143: 0 | BA143: 0 | BB143: 0 | BC143: 0 | BD143: 0 | BE143: 0 | BF143: 0 | BG143: 0 | BH143: 0 | BI143: 0 | BJ143: =SUM((BJ140+BJ141)*BJ142) -> 0 | BK143: =SUM((BK140+BK141)*BK142) -> 0 | BL143: 0 | BM143: 0 | BO143: Rondes effectuées | BP143: =COUNTIF(D140:BM140,">0") -> 0 | BQ143: =SUM((BQ140+BQ141)*BQ142) -> 0 | BR143: 0 | BS143: 0 | BT143: 0 | BU143: 0 | BV143: 0 | BW143: 0 | BX143: 0 | BY143: 0 | BZ143: 0 | CA143: 0 | CB143: 0 | CC143: 0 | CD143: 0 | CE143: 0 | CF143: 0 | CG143: 0 | CI143: Rondes Effectuées | CJ143: =COUNTIF(BQ140:CG140,">0") -> 0 | CK143: Rondes effectuées | CL143: =SUM(CJ143+BP143) -> 0
A144: 35 | B144: =VLOOKUP(A144,'Numéro licences'!$H$4:$I$47,2) -> VANDEN WAEYENBERGH Michel | C144: Aller-Retour | BN144: =SUM(D144:BM144) -> 0 | BO144: Km renseignés | BP144: =SUM(BN144+BN145) -> 0 | CH144: =SUM(BQ144:CG144) -> 0 | CI144: Km renseignés | CJ144: =SUM(CH144+CH145) -> 0 | CK144: Km renseignés | CL144: =SUM(BP144+CJ144) -> 0
C145: Ronde | BN145: =SUM(D145:BM145) -> 0 | BO145: Km confirmés | BP145: =SUM(D147:BM147) -> 0 | CH145: =SUM(BQ145:CG145) -> 0 | CI145: Km confirmés | CJ145: =SUM(BQ147:CG147) -> 0 | CK145: Km confirmés | CL145: =SUM(CJ145+BP145) -> 0
D146: 0 | E146: 0 | F146: 0 | G146: 0 | H146: 0 | I146: 0 | J146: 0 | K146: 0 | L146: 0 | M146: 0 | N146: 0 | O146: 0 | P146: 0 | Q146: 0 | R146: 0 | S146: 0 | T146: 0 | U146: 0 | V146: 0 | W146: 0 | X146: 0 | Y146: 0 | Z146: 0 | AA146: 0 | AB146: 0 | AC146: 0 | AD146: 0 | AE146: 0 | AF146: 0 | AG146: 0 | AH146: 0 | AI146: 0 | AJ146: 0 | AK146: 0 | AL146: 0 | AM146: 0 | AN146: 0 | AO146: 0 | AP146: 0 | AQ146: 0 | AR146: 0 | AS146: 0 | AT146: 0 | AU146: 0 | AV146: 0 | AW146: 0 | AX146: 0 | AY146: 0 | AZ146: 0 | BA146: 0 | BB146: 0 | BC146: 0 | BD146: 0 | BE146: 0 | BF146: 0 | BG146: 0 | BH146: 0 | BI146: 0 | BJ146: 0 | BK146: 0 | BL146: 0 | BM146: 0 | BO146: Rondes confirmées | BP146: =SUM(C146:BM146) -> 0 | BQ146: 0 | BR146: 0 | BS146: 0 | BT146: 0 | BU146: 0 | BV146: 0 | BW146: 0 | BX146: 0 | BY146: 0 | BZ146: 0 | CA146: 0 | CB146: 0 | CC146: 0 | CD146: 0 | CE146: 0 | CF146: 0 | CG146: 0 | CI146: Rondes confirmées | CJ146: =SUM(BQ146:CH146) -> 0 | CK146: Rondes confirmées | CL146: =SUM(CJ146+BP146) -> 0
D147: =SUM((D144+D145)*D146) -> 0 | E147: 0 | F147: 0 | G147: 0 | H147: 0 | I147: 0 | J147: 0 | K147: 0 | L147: 0 | M147: 0 | N147: 0 | O147: 0 | P147: 0 | Q147: 0 | R147: 0 | S147: 0 | T147: 0 | U147: 0 | V147: 0 | W147: 0 | X147: 0 | Y147: 0 | Z147: 0 | AA147: 0 | AB147: 0 | AC147: 0 | AD147: 0 | AE147: 0 | AF147: 0 | AG147: 0 | AH147: 0 | AI147: 0 | AJ147: 0 | AK147: 0 | AL147: 0 | AM147: 0 | AN147: 0 | AO147: 0 | AP147: 0 | AQ147: 0 | AR147: 0 | AS147: 0 | AT147: 0 | AU147: 0 | AV147: 0 | AW147: 0 | AX147: 0 | AY147: 0 | AZ147: 0 | BA147: 0 | BB147: 0 | BC147: 0 | BD147: 0 | BE147: 0 | BF147: 0 | BG147: 0 | BH147: 0 | BI147: 0 | BJ147: =SUM((BJ144+BJ145)*BJ146) -> 0 | BK147: =SUM((BK144+BK145)*BK146) -> 0 | BL147: 0 | BM147: 0 | BO147: Rondes effectuées | BP147: =COUNTIF(D144:BM144,">0") -> 0 | BQ147: =SUM((BQ144+BQ145)*BQ146) -> 0 | BR147: 0 | BS147: 0 | BT147: 0 | BU147: 0 | BV147: 0 | BW147: 0 | BX147: 0 | BY147: 0 | BZ147: 0 | CA147: 0 | CB147: 0 | CC147: 0 | CD147: 0 | CE147: 0 | CF147: 0 | CG147: 0 | CI147: Rondes Effectuées | CJ147: =COUNTIF(BQ144:CG144,">0") -> 0 | CK147: Rondes effectuées | CL147: =SUM(CJ147+BP147) -> 0
A148: 36 | B148: =VLOOKUP(A148,'Numéro licences'!$H$4:$I$47,2) -> VANSTEYVOORT André | C148: Aller-Retour | AC148: 0 | BN148: =SUM(D148:BM148) -> 0 | BO148: Km renseignés | BP148: =SUM(BN148+BN149) -> 200 | CH148: =SUM(BQ148:CG148) -> 0 | CI148: Km renseignés | CJ148: =SUM(CH148+CH149) -> 0 | CK148: Km renseignés | CL148: =SUM(BP148+CJ148) -> 200
C149: Ronde | AC149: 200 | BN149: =SUM(D149:BM149) -> 200 | BO149: Km confirmés | BP149: =SUM(D151:BM151) -> 0 | CH149: =SUM(BQ149:CG149) -> 0 | CI149: Km confirmés | CJ149: =SUM(BQ151:CG151) -> 0 | CK149: Km confirmés | CL149: =SUM(CJ149+BP149) -> 0
D150: 0 | E150: 0 | F150: 0 | G150: 0 | H150: 0 | I150: 0 | J150: 0 | K150: 0 | L150: 0 | M150: 0 | N150: 0 | O150: 0 | P150: 0 | Q150: 0 | R150: 0 | S150: 0 | T150: 0 | U150: 0 | V150: 0 | W150: 0 | X150: 0 | Y150: 0 | Z150: 0 | AA150: 0 | AB150: 0 | AC150: 0 | AD150: 0 | AE150: 0 | AF150: 0 | AG150: 0 | AH150: 0 | AI150: 0 | AJ150: 0 | AK150: 0 | AL150: 0 | AM150: 0 | AN150: 0 | AO150: 0 | AP150: 0 | AQ150: 0 | AR150: 0 | AS150: 0 | AT150: 0 | AU150: 0 | AV150: 0 | AW150: 0 | AX150: 0 | AY150: 0 | AZ150: 0 | BA150: 0 | BB150: 0 | BC150: 0 | BD150: 0 | BE150: 0 | BF150: 0 | BG150: 0 | BH150: 0 | BI150: 0 | BJ150: 0 | BK150: 0 | BL150: 0 | BM150: 0 | BO150: Rondes confirmées | BP150: =SUM(C150:BM150) -> 0 | BQ150: 0 | BR150: 0 | BS150: 0 | BT150: 0 | BU150: 0 | BV150: 0 | BW150: 0 | BX150: 0 | BY150: 0 | BZ150: 0 | CA150: 0 | CB150: 0 | CC150: 0 | CD150: 0 | CE150: 0 | CF150: 0 | CG150: 0 | CI150: Rondes confirmées | CJ150: =SUM(BQ150:CH150) -> 0 | CK150: Rondes confirmées | CL150: =SUM(CJ150+BP150) -> 0
D151: =SUM((D148+D149)*D150) -> 0 | E151: 0 | F151: 0 | G151: 0 | H151: 0 | I151: 0 | J151: 0 | K151: 0 | L151: 0 | M151: 0 | N151: 0 | O151: 0 | P151: 0 | Q151: 0 | R151: 0 | S151: 0 | T151: 0 | U151: 0 | V151: 0 | W151: 0 | X151: 0 | Y151: 0 | Z151: 0 | AA151: 0 | AB151: 0 | AC151: 0 | AD151: 0 | AE151: 0 | AF151: 0 | AG151: 0 | AH151: 0 | AI151: 0 | AJ151: 0 | AK151: 0 | AL151: 0 | AM151: 0 | AN151: 0 | AO151: 0 | AP151: 0 | AQ151: 0 | AR151: 0 | AS151: 0 | AT151: 0 | AU151: 0 | AV151: 0 | AW151: 0 | AX151: 0 | AY151: 0 | AZ151: 0 | BA151: 0 | BB151: 0 | BC151: 0 | BD151: 0 | BE151: 0 | BF151: 0 | BG151: 0 | BH151: 0 | BI151: 0 | BJ151: =SUM((BJ148+BJ149)*BJ150) -> 0 | BK151: =SUM((BK148+BK149)*BK150) -> 0 | BL151: 0 | BM151: 0 | BO151: Rondes effectuées | BP151: =COUNTIF(D148:BM148,">0") -> 0 | BQ151: =SUM((BQ148+BQ149)*BQ150) -> 0 | BR151: 0 | BS151: 0 | BT151: 0 | BU151: 0 | BV151: 0 | BW151: 0 | BX151: 0 | BY151: 0 | BZ151: 0 | CA151: 0 | CB151: 0 | CC151: 0 | CD151: 0 | CE151: 0 | CF151: 0 | CG151: 0 | CI151: Rondes Effectuées | CJ151: =COUNTIF(BQ148:CG148,">0") -> 0 | CK151: Rondes effectuées | CL151: =SUM(CJ151+BP151) -> 0
A152: 37 | B152: =VLOOKUP(A152,'Numéro licences'!$H$4:$I$47,2) -> WOUTERS Olivier | C152: Aller-Retour | V152: 124 | Z152: 38 | AF152: 148 | AG152: 148 | AT152: 380 | AX152: 60 | AZ152: 60 | BB152: 124 | BJ152: 174 | BK152: 176 | BL152: 108 | BM152: 52 | BN152: =SUM(D152:BM152) -> 1592 | BO152: Km renseignés | BP152: =SUM(BN152+BN153) -> 4099 | BQ152: 166 | BR152: 0 | CH152: =SUM(BQ152:CG152) -> 166 | CI152: Km renseignés | CJ152: =SUM(CH152+CH153) -> 582 | CK152: Km renseignés | CL152: =SUM(BP152+CJ152) -> 4681
C153: Ronde | V153: 215 | Z153: 513 | AF153: 200 | AG153: 200 | AT153: 220 | AX153: 200 | AZ153: 194 | BB153: 180 | BJ153: 165 | BK153: 140 | BL153: 150 | BM153: 130 | BN153: =SUM(D153:BM153) -> 2507 | BO153: Km confirmés | BP153: =SUM(D155:BM155) -> 4099 | BQ153: 216 | BR153: 200 | CH153: =SUM(BQ153:CG153) -> 416 | CI153: Km confirmés | CJ153: =SUM(BQ155:CG155) -> 582 | CK153: Km confirmés | CL153: =SUM(CJ153+BP153) -> 4681
D154: 0 | E154: 0 | F154: 0 | G154: 0 | H154: 0 | I154: 0 | J154: 0 | K154: 0 | L154: 0 | M154: 0 | N154: 0 | O154: 0 | P154: 0 | Q154: 0 | R154: 0 | S154: 0 | T154: 0 | U154: 0 | V154: 1 | W154: 0 | X154: 0 | Y154: 0 | Z154: 1 | AA154: 0 | AB154: 0 | AC154: 0 | AD154: 0 | AE154: 0 | AF154: 1 | AG154: 1 | AH154: 0 | AI154: 0 | AJ154: 0 | AK154: 0 | AL154: 0 | AM154: 0 | AN154: 0 | AO154: 0 | AP154: 0 | AQ154: 0 | AR154: 0 | AS154: 0 | AT154: 1 | AU154: 0 | AV154: 0 | AW154: 0 | AX154: 1 | AY154: 0 | AZ154: 1 | BA154: 0 | BB154: 1 | BC154: 0 | BD154: 0 | BE154: 0 | BF154: 0 | BG154: 0 | BH154: 0 | BI154: 0 | BJ154: 1 | BK154: 1 | BL154: 1 | BM154: 1 | BO154: Rondes confirmées | BP154: =SUM(C154:BM154) -> 12 | BQ154: 1 | BR154: 1 | BS154: 0 | BT154: 0 | BU154: 0 | BV154: 0 | BW154: 0 | BX154: 0 | BY154: 0 | BZ154: 0 | CA154: 0 | CB154: 0 | CC154: 0 | CD154: 0 | CE154: 0 | CF154: 0 | CG154: 0 | CI154: Rondes confirmées | CJ154: =SUM(BQ154:CH154) -> 2 | CK154: Rondes confirmées | CL154: =SUM(CJ154+BP154) -> 14
D155: =SUM((D152+D153)*D154) -> 0 | E155: 0 | F155: 0 | G155: 0 | H155: 0 | I155: 0 | J155: 0 | K155: 0 | L155: 0 | M155: 0 | N155: 0 | O155: 0 | P155: 0 | Q155: 0 | R155: 0 | S155: 0 | T155: 0 | U155: 0 | V155: 339 | W155: 0 | X155: 0 | Y155: 0 | Z155: 551 | AA155: 0 | AB155: 0 | AC155: 0 | AD155: 0 | AE155: 0 | AF155: 348 | AG155: 348 | AH155: 0 | AI155: 0 | AJ155: 0 | AK155: 0 | AL155: 0 | AM155: 0 | AN155: 0 | AO155: 0 | AP155: 0 | AQ155: 0 | AR155: 0 | AS155: 0 | AT155: 600 | AU155: 0 | AV155: 0 | AW155: 0 | AX155: 260 | AY155: 0 | AZ155: 254 | BA155: 0 | BB155: 304 | BC155: 0 | BD155: 0 | BE155: 0 | BF155: 0 | BG155: 0 | BH155: 0 | BI155: 0 | BJ155: =SUM((BJ152+BJ153)*BJ154) -> 339 | BK155: =SUM((BK152+BK153)*BK154) -> 316 | BL155: 258 | BM155: 182 | BO155: Rondes effectuées | BP155: =COUNTIF(D152:BM152,">0") -> 12 | BQ155: =SUM((BQ152+BQ153)*BQ154) -> 382 | BR155: 200 | BS155: 0 | BT155: 0 | BU155: 0 | BV155: 0 | BW155: 0 | BX155: 0 | BY155: 0 | BZ155: 0 | CA155: 0 | CB155: 0 | CC155: 0 | CD155: 0 | CE155: 0 | CF155: 0 | CG155: 0 | CI155: Rondes Effectuées | CJ155: =COUNTIF(BQ152:CG152,">0") -> 1 | CK155: Rondes effectuées | CL155: =SUM(CJ155+BP155) -> 13
A156: 38 | B156: =VLOOKUP(A156,'Numéro licences'!$H$4:$I$47,2) -> DEMETS Eric | C156: Aller-Retour | Z156: 38 | BN156: =SUM(D156:BM156) -> 38 | BO156: Km renseignés | BP156: =SUM(BN156+BN157) -> 551 | BR156: 0 | CH156: =SUM(BQ156:CG156) -> 0 | CI156: Km renseignés | CJ156: =SUM(CH156+CH157) -> 200 | CK156: Km renseignés | CL156: =SUM(BP156+CJ156) -> 751
C157: Ronde | J157: 0 | Z157: 513 | BN157: =SUM(D157:BM157) -> 513 | BO157: Km confirmés | BP157: =SUM(D159:BM159) -> 0 | BR157: 200 | CH157: =SUM(BQ157:CG157) -> 200 | CI157: Km confirmés | CJ157: =SUM(BQ159:CG159) -> 0 | CK157: Km confirmés | CL157: =SUM(CJ157+BP157) -> 0
D158: 0 | E158: 0 | F158: 0 | G158: 0 | H158: 0 | I158: 0 | J158: 0 | K158: 0 | L158: 0 | M158: 0 | N158: 0 | O158: 0 | P158: 0 | Q158: 0 | R158: 0 | S158: 0 | T158: 0 | U158: 0 | V158: 0 | W158: 0 | X158: 0 | Y158: 0 | Z158: 0 | AA158: 0 | AB158: 0 | AC158: 0 | AD158: 0 | AE158: 0 | AF158: 0 | AG158: 0 | AH158: 0 | AI158: 0 | AJ158: 0 | AK158: 0 | AL158: 0 | AM158: 0 | AN158: 0 | AO158: 0 | AP158: 0 | AQ158: 0 | AR158: 0 | AS158: 0 | AT158: 0 | AU158: 0 | AV158: 0 | AW158: 0 | AX158: 0 | AY158: 0 | AZ158: 0 | BA158: 0 | BB158: 0 | BC158: 0 | BD158: 0 | BE158: 0 | BF158: 0 | BG158: 0 | BH158: 0 | BI158: 0 | BJ158: 0 | BK158: 0 | BL158: 0 | BM158: 0 | BO158: Rondes confirmées | BP158: =SUM(C158:BM158) -> 0 | BQ158: 0 | BR158: 0 | BS158: 0 | BT158: 0 | BU158: 0 | BV158: 0 | BW158: 0 | BX158: 0 | BY158: 0 | BZ158: 0 | CA158: 0 | CB158: 0 | CC158: 0 | CD158: 0 | CE158: 0 | CF158: 0 | CG158: 0 | CI158: Rondes confirmées | CJ158: =SUM(BQ158:CH158) -> 0 | CK158: Rondes confirmées | CL158: =SUM(CJ158+BP158) -> 0
D159: =SUM((D156+D157)*D158) -> 0 | E159: 0 | F159: 0 | G159: 0 | H159: 0 | I159: 0 | J159: 0 | K159: 0 | L159: 0 | M159: 0 | N159: 0 | O159: 0 | P159: 0 | Q159: 0 | R159: 0 | S159: 0 | T159: 0 | U159: 0 | V159: 0 | W159: 0 | X159: 0 | Y159: 0 | Z159: 0 | AA159: 0 | AB159: 0 | AC159: 0 | AD159: 0 | AE159: 0 | AF159: 0 | AG159: 0 | AH159: 0 | AI159: 0 | AJ159: 0 | AK159: 0 | AL159: 0 | AM159: 0 | AN159: 0 | AO159: 0 | AP159: 0 | AQ159: 0 | AR159: 0 | AS159: 0 | AT159: 0 | AU159: 0 | AV159: 0 | AW159: 0 | AX159: 0 | AY159: 0 | AZ159: 0 | BA159: 0 | BB159: 0 | BC159: 0 | BD159: 0 | BE159: 0 | BF159: 0 | BG159: 0 | BH159: 0 | BI159: 0 | BJ159: =SUM((BJ156+BJ157)*BJ158) -> 0 | BK159: =SUM((BK156+BK157)*BK158) -> 0 | BL159: 0 | BM159: 0 | BO159: Rondes effectuées | BP159: =COUNTIF(D156:BM156,">0") -> 1 | BQ159: =SUM((BQ156+BQ157)*BQ158) -> 0 | BR159: 0 | BS159: 0 | BT159: 0 | BU159: 0 | BV159: 0 | BW159: 0 | BX159: 0 | BY159: 0 | BZ159: 0 | CA159: 0 | CB159: 0 | CC159: 0 | CD159: 0 | CE159: 0 | CF159: 0 | CG159: 0 | CI159: Rondes Effectuées | CJ159: =COUNTIF(BQ156:CG156,">0") -> 0 | CK159: Rondes effectuées | CL159: =SUM(CJ159+BP159) -> 1
A160: 39 | B160: =VLOOKUP(A160,'Numéro licences'!$H$4:$I$47,2) -> DECELLE Hubert | C160: Aller-Retour | Z160: 38 | BN160: =SUM(D160:BM160) -> 38 | BO160: Km renseignés | BP160: =SUM(BN160+BN161) -> 551 | BR160: 0 | CH160: =SUM(BQ160:CG160) -> 0 | CI160: Km renseignés | CJ160: =SUM(CH160+CH161) -> 200 | CK160: Km renseignés | CL160: =SUM(BP160+CJ160) -> 751
C161: Ronde | Z161: 513 | BN161: =SUM(D161:BM161) -> 513 | BO161: Km confirmés | BP161: =SUM(D163:BM163) -> 0 | BR161: 200 | CH161: =SUM(BQ161:CG161) -> 200 | CI161: Km confirmés | CJ161: =SUM(BQ163:CG163) -> 0 | CK161: Km confirmés | CL161: =SUM(CJ161+BP161) -> 0
D162: 0 | E162: 0 | F162: 0 | G162: 0 | H162: 0 | I162: 0 | J162: 0 | K162: 0 | L162: 0 | M162: 0 | N162: 0 | O162: 0 | P162: 0 | Q162: 0 | R162: 0 | S162: 0 | T162: 0 | U162: 0 | V162: 0 | W162: 0 | X162: 0 | Y162: 0 | Z162: 0 | AA162: 0 | AB162: 0 | AC162: 0 | AD162: 0 | AE162: 0 | AF162: 0 | AG162: 0 | AH162: 0 | AI162: 0 | AJ162: 0 | AK162: 0 | AL162: 0 | AM162: 0 | AN162: 0 | AO162: 0 | AP162: 0 | AQ162: 0 | AR162: 0 | AS162: 0 | AT162: 0 | AU162: 0 | AV162: 0 | AW162: 0 | AX162: 0 | AY162: 0 | AZ162: 0 | BA162: 0 | BB162: 0 | BC162: 0 | BD162: 0 | BE162: 0 | BF162: 0 | BG162: 0 | BH162: 0 | BI162: 0 | BJ162: 0 | BK162: 0 | BL162: 0 | BM162: 0 | BO162: Rondes confirmées | BP162: =SUM(C162:BM162) -> 0 | BQ162: 0 | BR162: 0 | BS162: 0 | BT162: 0 | BU162: 0 | BV162: 0 | BW162: 0 | BX162: 0 | BY162: 0 | BZ162: 0 | CA162: 0 | CB162: 0 | CC162: 0 | CD162: 0 | CE162: 0 | CF162: 0 | CG162: 0 | CI162: Rondes confirmées | CJ162: =SUM(BQ162:CH162) -> 0 | CK162: Rondes confirmées | CL162: =SUM(CJ162+BP162) -> 0
D163: =SUM((D160+D161)*D162) -> 0 | E163: 0 | F163: 0 | G163: 0 | H163: 0 | I163: 0 | J163: 0 | K163: 0 | L163: 0 | M163: 0 | N163: 0 | O163: 0 | P163: 0 | Q163: 0 | R163: 0 | S163: 0 | T163: 0 | U163: 0 | V163: 0 | W163: 0 | X163: 0 | Y163: 0 | Z163: 0 | AA163: 0 | AB163: 0 | AC163: 0 | AD163: 0 | AE163: 0 | AF163: 0 | AG163: 0 | AH163: 0 | AI163: 0 | AJ163: 0 | AK163: 0 | AL163: 0 | AM163: 0 | AN163: 0 | AO163: 0 | AP163: 0 | AQ163: 0 | AR163: 0 | AS163: 0 | AT163: 0 | AU163: 0 | AV163: 0 | AW163: 0 | AX163: 0 | AY163: 0 | AZ163: 0 | BA163: 0 | BB163: 0 | BC163: 0 | BD163: 0 | BE163: 0 | BF163: 0 | BG163: 0 | BH163: 0 | BI163: 0 | BJ163: =SUM((BJ160+BJ161)*BJ162) -> 0 | BK163: =SUM((BK160+BK161)*BK162) -> 0 | BL163: 0 | BM163: 0 | BO163: Rondes effectuées | BP163: =COUNTIF(D160:BM160,">0") -> 1 | BQ163: =SUM((BQ160+BQ161)*BQ162) -> 0 | BR163: 0 | BS163: 0 | BT163: 0 | BU163: 0 | BV163: 0 | BW163: 0 | BX163: 0 | BY163: 0 | BZ163: 0 | CA163: 0 | CB163: 0 | CC163: 0 | CD163: 0 | CE163: 0 | CF163: 0 | CG163: 0 | CI163: Rondes Effectuées | CJ163: =COUNTIF(BQ160:CG160,">0") -> 0 | CK163: Rondes effectuées | CL163: =SUM(CJ163+BP163) -> 1
A164: 40 | B164: =VLOOKUP(A164,'Numéro licences'!$H$4:$I$47,2) -> 0 | C164: Aller-Retour | BN164: =SUM(D164:BM164) -> 0 | BO164: Km renseignés | BP164: =SUM(BN164+BN165) -> 0 | CH164: =SUM(BQ164:CG164) -> 0 | CI164: Km renseignés | CJ164: =SUM(CH164+CH165) -> 0 | CK164: Km renseignés | CL164: =SUM(BP164+CJ164) -> 0
C165: Ronde | BN165: =SUM(D165:BM165) -> 0 | BO165: Km confirmés | BP165: =SUM(D167:BM167) -> 0 | CH165: =SUM(BQ165:CG165) -> 0 | CI165: Km confirmés | CJ165: =SUM(BQ167:CG167) -> 0 | CK165: Km confirmés | CL165: =SUM(CJ165+BP165) -> 0
D166: 0 | E166: 0 | F166: 0 | G166: 0 | H166: 0 | I166: 0 | J166: 0 | K166: 0 | L166: 0 | M166: 0 | N166: 0 | O166: 0 | P166: 0 | Q166: 0 | R166: 0 | S166: 0 | T166: 0 | U166: 0 | V166: 0 | W166: 0 | X166: 0 | Y166: 0 | Z166: 0 | AA166: 0 | AB166: 0 | AC166: 0 | AD166: 0 | AE166: 0 | AF166: 0 | AG166: 0 | AH166: 0 | AI166: 0 | AJ166: 0 | AK166: 0 | AL166: 0 | AM166: 0 | AN166: 0 | AO166: 0 | AP166: 0 | AQ166: 0 | AR166: 0 | AS166: 0 | AT166: 0 | AU166: 0 | AV166: 0 | AW166: 0 | AX166: 0 | AY166: 0 | AZ166: 0 | BA166: 0 | BB166: 0 | BC166: 0 | BD166: 0 | BE166: 0 | BF166: 0 | BG166: 0 | BH166: 0 | BI166: 0 | BJ166: 0 | BK166: 0 | BL166: 0 | BM166: 0 | BO166: Rondes confirmées | BP166: =SUM(C166:BM166) -> 0 | BQ166: 0 | BR166: 0 | BS166: 0 | BT166: 0 | BU166: 0 | BV166: 0 | BW166: 0 | BX166: 0 | BY166: 0 | BZ166: 0 | CA166: 0 | CB166: 0 | CC166: 0 | CD166: 0 | CE166: 0 | CF166: 0 | CG166: 0 | CI166: Rondes confirmées | CJ166: =SUM(BQ166:CH166) -> 0 | CK166: Rondes confirmées | CL166: =SUM(CJ166+BP166) -> 0
D167: =SUM((D164+D165)*D166) -> 0 | E167: 0 | F167: 0 | G167: 0 | H167: 0 | I167: 0 | J167: 0 | K167: 0 | L167: 0 | M167: 0 | N167: 0 | O167: 0 | P167: 0 | Q167: 0 | R167: 0 | S167: 0 | T167: 0 | U167: 0 | V167: 0 | W167: 0 | X167: 0 | Y167: 0 | Z167: 0 | AA167: 0 | AB167: 0 | AC167: 0 | AD167: 0 | AE167: 0 | AF167: 0 | AG167: 0 | AH167: 0 | AI167: 0 | AJ167: 0 | AK167: 0 | AL167: 0 | AM167: 0 | AN167: 0 | AO167: 0 | AP167: 0 | AQ167: 0 | AR167: 0 | AS167: 0 | AT167: 0 | AU167: 0 | AV167: 0 | AW167: 0 | AX167: 0 | AY167: 0 | AZ167: 0 | BA167: 0 | BB167: 0 | BC167: 0 | BD167: 0 | BE167: 0 | BF167: 0 | BG167: 0 | BH167: 0 | BI167: 0 | BJ167: 0 | BK167: =SUM((BK164+BK165)*BK166) -> 0 | BL167: 0 | BM167: 0 | BO167: Rondes effectuées | BP167: =COUNTIF(D164:BM164,">0") -> 0 | BQ167: =SUM((BQ164+BQ165)*BQ166) -> 0 | BR167: 0 | BS167: 0 | BT167: 0 | BU167: 0 | BV167: 0 | BW167: 0 | BX167: 0 | BY167: 0 | BZ167: 0 | CA167: 0 | CB167: 0 | CC167: 0 | CD167: 0 | CE167: 0 | CF167: 0 | CG167: 0 | CI167: Rondes Effectuées | CJ167: =COUNTIF(BQ164:CG164,">0") -> 0 | CK167: Rondes effectuées | CL167: =SUM(CJ167+BP167) -> 0
A168: 41 | B168: =VLOOKUP(A168,'Numéro licences'!$H$4:$I$47,2) -> 0 | C168: Aller-Retour | BN168: =SUM(D168:BM168) -> 0 | BO168: Km renseignés | BP168: =SUM(BN168+BN169) -> 0 | CH168: =SUM(BQ168:CG168) -> 0 | CI168: Km renseignés | CJ168: =SUM(CH168+CH169) -> 0 | CK168: Km renseignés | CL168: =SUM(BP168+CJ168) -> 0
C169: Ronde | BN169: =SUM(D169:BM169) -> 0 | BO169: Km confirmés | BP169: =SUM(D171:BM171) -> 0 | CH169: =SUM(BQ169:CG169) -> 0 | CI169: Km confirmés | CJ169: =SUM(BQ171:CG171) -> 0 | CK169: Km confirmés | CL169: =SUM(CJ169+BP169) -> 0
D170: 0 | E170: 0 | F170: 0 | G170: 0 | H170: 0 | I170: 0 | J170: 0 | K170: 0 | L170: 0 | M170: 0 | N170: 0 | O170: 0 | P170: 0 | Q170: 0 | R170: 0 | S170: 0 | T170: 0 | U170: 0 | V170: 0 | W170: 0 | X170: 0 | Y170: 0 | Z170: 0 | AA170: 0 | AB170: 0 | AC170: 0 | AD170: 0 | AE170: 0 | AF170: 0 | AG170: 0 | AH170: 0 | AI170: 0 | AJ170: 0 | AK170: 0 | AL170: 0 | AM170: 0 | AN170: 0 | AO170: 0 | AP170: 0 | AQ170: 0 | AR170: 0 | AS170: 0 | AT170: 0 | AU170: 0 | AV170: 0 | AW170: 0 | AX170: 0 | AY170: 0 | AZ170: 0 | BA170: 0 | BB170: 0 | BC170: 0 | BD170: 0 | BE170: 0 | BF170: 0 | BG170: 0 | BH170: 0 | BI170: 0 | BJ170: 0 | BK170: 0 | BL170: 0 | BM170: 0 | BO170: Rondes confirmées | BP170: =SUM(C170:BM170) -> 0 | BQ170: 0 | BR170: 0 | BS170: 0 | BT170: 0 | BU170: 0 | BV170: 0 | BW170: 0 | BX170: 0 | BY170: 0 | BZ170: 0 | CA170: 0 | CB170: 0 | CC170: 0 | CD170: 0 | CE170: 0 | CF170: 0 | CG170: 0 | CI170: Rondes confirmées | CJ170: =SUM(BQ170:CH170) -> 0 | CK170: Rondes confirmées | CL170: =SUM(CJ170+BP170) -> 0
D171: =SUM((D168+D169)*D170) -> 0 | E171: 0 | F171: 0 | G171: 0 | H171: 0 | I171: 0 | J171: 0 | K171: 0 | L171: 0 | M171: 0 | N171: 0 | O171: 0 | P171: 0 | Q171: 0 | R171: 0 | S171: 0 | T171: 0 | U171: 0 | V171: 0 | W171: 0 | X171: 0 | Y171: 0 | Z171: 0 | AA171: 0 | AB171: 0 | AC171: 0 | AD171: 0 | AE171: 0 | AF171: 0 | AG171: 0 | AH171: 0 | AI171: 0 | AJ171: 0 | AK171: 0 | AL171: 0 | AM171: 0 | AN171: 0 | AO171: 0 | AP171: 0 | AQ171: 0 | AR171: 0 | AS171: 0 | AT171: 0 | AU171: 0 | AV171: 0 | AW171: 0 | AX171: 0 | AY171: 0 | AZ171: 0 | BA171: 0 | BB171: 0 | BC171: 0 | BD171: 0 | BE171: 0 | BF171: 0 | BG171: 0 | BH171: 0 | BI171: 0 | BJ171: =SUM((BJ168+BJ169)*BJ170) -> 0 | BK171: =SUM((BK168+BK169)*BK170) -> 0 | BL171: 0 | BM171: 0 | BO171: Rondes effectuées | BP171: =COUNTIF(D168:BM168,">0") -> 0 | BQ171: =SUM((BQ168+BQ169)*BQ170) -> 0 | BR171: 0 | BS171: 0 | BT171: 0 | BU171: 0 | BV171: 0 | BW171: 0 | BX171: 0 | BY171: 0 | BZ171: 0 | CA171: 0 | CB171: 0 | CC171: 0 | CD171: 0 | CE171: 0 | CF171: 0 | CG171: 0 | CI171: Rondes Effectuées | CJ171: =COUNTIF(BQ168:CG168,">0") -> 0 | CK171: Rondes effectuées | CL171: =SUM(CJ171+BP171) -> 0
A172: 42 | B172: =VLOOKUP(A172,'Numéro licences'!$H$4:$I$47,2) -> 0 | C172: Aller-Retour | BN172: =SUM(D172:BM172) -> 0 | BO172: Km renseignés | BP172: =SUM(BN172+BN173) -> 0 | CH172: =SUM(BQ172:CG172) -> 0 | CI172: Km renseignés | CJ172: =SUM(CH172+CH173) -> 0 | CK172: Km renseignés | CL172: =SUM(BP172+CJ172) -> 0
C173: Ronde | BN173: =SUM(D173:BM173) -> 0 | BO173: Km confirmés | BP173: =SUM(D175:BM175) -> 0 | CH173: =SUM(BQ173:CG173) -> 0 | CI173: Km confirmés | CJ173: =SUM(BQ175:CG175) -> 0 | CK173: Km confirmés | CL173: =SUM(CJ173+BP173) -> 0
D174: 0 | E174: 0 | F174: 0 | G174: 0 | H174: 0 | I174: 0 | J174: 0 | K174: 0 | L174: 0 | M174: 0 | N174: 0 | O174: 0 | P174: 0 | Q174: 0 | R174: 0 | S174: 0 | T174: 0 | U174: 0 | V174: 0 | W174: 0 | X174: 0 | Y174: 0 | Z174: 0 | AA174: 0 | AB174: 0 | AC174: 0 | AD174: 0 | AE174: 0 | AF174: 0 | AG174: 0 | AH174: 0 | AI174: 0 | AJ174: 0 | AK174: 0 | AL174: 0 | AM174: 0 | AN174: 0 | AO174: 0 | AP174: 0 | AQ174: 0 | AR174: 0 | AS174: 0 | AT174: 0 | AU174: 0 | AV174: 0 | AW174: 0 | AX174: 0 | AY174: 0 | AZ174: 0 | BA174: 0 | BB174: 0 | BC174: 0 | BD174: 0 | BE174: 0 | BF174: 0 | BG174: 0 | BH174: 0 | BI174: 0 | BJ174: 0 | BK174: 0 | BL174: 0 | BM174: 0 | BO174: Rondes confirmées | BP174: =SUM(C174:BM174) -> 0 | BQ174: 0 | BR174: 0 | BS174: 0 | BT174: 0 | BU174: 0 | BV174: 0 | BW174: 0 | BX174: 0 | BY174: 0 | BZ174: 0 | CA174: 0 | CB174: 0 | CC174: 0 | CD174: 0 | CE174: 0 | CF174: 0 | CG174: 0 | CI174: Rondes confirmées | CJ174: =SUM(BQ174:CH174) -> 0 | CK174: Rondes confirmées | CL174: =SUM(CJ174+BP174) -> 0
D175: =SUM((D172+D173)*D174) -> 0 | E175: 0 | F175: 0 | G175: 0 | H175: 0 | I175: 0 | J175: 0 | K175: 0 | L175: 0 | M175: 0 | N175: 0 | O175: 0 | P175: 0 | Q175: 0 | R175: 0 | S175: 0 | T175: 0 | U175: 0 | V175: 0 | W175: 0 | X175: 0 | Y175: 0 | Z175: 0 | AA175: 0 | AB175: 0 | AC175: 0 | AD175: 0 | AE175: 0 | AF175: 0 | AG175: 0 | AH175: 0 | AI175: 0 | AJ175: 0 | AK175: 0 | AL175: 0 | AM175: 0 | AN175: 0 | AO175: 0 | AP175: 0 | AQ175: 0 | AR175: 0 | AS175: 0 | AT175: 0 | AU175: 0 | AV175: 0 | AW175: 0 | AX175: 0 | AY175: 0 | AZ175: 0 | BA175: 0 | BB175: 0 | BC175: 0 | BD175: 0 | BE175: 0 | BF175: 0 | BG175: 0 | BH175: 0 | BI175: 0 | BJ175: =SUM((BJ172+BJ173)*BJ174) -> 0 | BK175: =SUM((BK172+BK173)*BK174) -> 0 | BL175: 0 | BM175: 0 | BO175: Rondes effectuées | BP175: =COUNTIF(D172:BM172,">0") -> 0 | BQ175: =SUM((BQ172+BQ173)*BQ174) -> 0 | BR175: 0 | BS175: 0 | BT175: 0 | BU175: 0 | BV175: 0 | BW175: 0 | BX175: 0 | BY175: 0 | BZ175: 0 | CA175: 0 | CB175: 0 | CC175: 0 | CD175: 0 | CE175: 0 | CF175: 0 | CG175: 0 | CI175: Rondes Effectuées | CJ175: =COUNTIF(BQ172:CG172,">0") -> 0 | CK175: Rondes effectuées | CL175: =SUM(CJ175+BP175) -> 0
A176: 43 | B176: =VLOOKUP(A176,'Numéro licences'!$H$4:$I$47,2) -> 0 | C176: Aller-Retour | BN176: =SUM(D176:BM176) -> 0 | BO176: Km renseignés | BP176: =SUM(BN176+BN177) -> 0 | CH176: =SUM(BQ176:CG176) -> 0 | CI176: Km renseignés | CJ176: =SUM(CH176+CH177) -> 0 | CK176: Km renseignés | CL176: =SUM(BP176+CJ176) -> 0
C177: Ronde | BN177: =SUM(D177:BM177) -> 0 | BO177: Km confirmés | BP177: =SUM(D179:BM179) -> 0 | CH177: =SUM(BQ177:CG177) -> 0 | CI177: Km confirmés | CJ177: =SUM(BQ179:CG179) -> 0 | CK177: Km confirmés | CL177: =SUM(CJ177+BP177) -> 0
D178: 0 | E178: 0 | F178: 0 | G178: 0 | H178: 0 | I178: 0 | J178: 0 | K178: 0 | L178: 0 | M178: 0 | N178: 0 | O178: 0 | P178: 0 | Q178: 0 | R178: 0 | S178: 0 | T178: 0 | U178: 0 | V178: 0 | W178: 0 | X178: 0 | Y178: 0 | Z178: 0 | AA178: 0 | AB178: 0 | AC178: 0 | AD178: 0 | AE178: 0 | AF178: 0 | AG178: 0 | AH178: 0 | AI178: 0 | AJ178: 0 | AK178: 0 | AL178: 0 | AM178: 0 | AN178: 0 | AO178: 0 | AP178: 0 | AQ178: 0 | AR178: 0 | AS178: 0 | AT178: 0 | AU178: 0 | AV178: 0 | AW178: 0 | AX178: 0 | AY178: 0 | AZ178: 0 | BA178: 0 | BB178: 0 | BC178: 0 | BD178: 0 | BE178: 0 | BF178: 0 | BG178: 0 | BH178: 0 | BI178: 0 | BJ178: 0 | BK178: 0 | BL178: 0 | BM178: 0 | BO178: Rondes confirmées | BP178: =SUM(C178:BM178) -> 0 | BQ178: 0 | BR178: 0 | BS178: 0 | BT178: 0 | BU178: 0 | BV178: 0 | BW178: 0 | BX178: 0 | BY178: 0 | BZ178: 0 | CA178: 0 | CB178: 0 | CC178: 0 | CD178: 0 | CE178: 0 | CF178: 0 | CG178: 0 | CI178: Rondes confirmées | CJ178: =SUM(BQ178:CH178) -> 0 | CK178: Rondes confirmées | CL178: =SUM(CJ178+BP178) -> 0
D179: =SUM((D176+D177)*D178) -> 0 | E179: 0 | F179: 0 | G179: 0 | H179: 0 | I179: 0 | J179: 0 | K179: 0 | L179: 0 | M179: 0 | N179: 0 | O179: 0 | P179: 0 | Q179: 0 | R179: 0 | S179: 0 | T179: 0 | U179: 0 | V179: 0 | W179: 0 | X179: 0 | Y179: 0 | Z179: 0 | AA179: 0 | AB179: 0 | AC179: 0 | AD179: 0 | AE179: 0 | AF179: 0 | AG179: 0 | AH179: 0 | AI179: 0 | AJ179: 0 | AK179: 0 | AL179: 0 | AM179: 0 | AN179: 0 | AO179: 0 | AP179: 0 | AQ179: 0 | AR179: 0 | AS179: 0 | AT179: 0 | AU179: 0 | AV179: 0 | AW179: 0 | AX179: 0 | AY179: 0 | AZ179: 0 | BA179: 0 | BB179: 0 | BC179: 0 | BD179: 0 | BE179: 0 | BF179: 0 | BG179: 0 | BH179: 0 | BI179: 0 | BJ179: =SUM((BJ176+BJ177)*BJ178) -> 0 | BK179: =SUM((BK176+BK177)*BK178) -> 0 | BL179: 0 | BM179: 0 | BO179: Rondes effectuées | BP179: =COUNTIF(D176:BM176,">0") -> 0 | BQ179: =SUM((BQ176+BQ177)*BQ178) -> 0 | BR179: 0 | BS179: 0 | BT179: 0 | BU179: 0 | BV179: 0 | BW179: 0 | BX179: 0 | BY179: 0 | BZ179: 0 | CA179: 0 | CB179: 0 | CC179: 0 | CD179: 0 | CE179: 0 | CF179: 0 | CG179: 0 | CI179: Rondes Effectuées | CJ179: =COUNTIF(BQ176:CG176,">0") -> 0 | CK179: Rondes effectuées | CL179: =SUM(CJ179+BP179) -> 0
A180: 44 | B180: =VLOOKUP(A180,'Numéro licences'!$H$4:$I$47,2) -> 0 | C180: Aller-Retour | BN180: =SUM(D180:BM180) -> 0 | BO180: Km renseignés | BP180: =SUM(BN180+BN181) -> 0 | CH180: =SUM(BQ180:CG180) -> 0 | CI180: Km renseignés | CJ180: =SUM(CH180+CH181) -> 0 | CK180: Km renseignés | CL180: =SUM(BP180+CJ180) -> 0
C181: Ronde | BN181: =SUM(D181:BM181) -> 0 | BO181: Km confirmés | BP181: =SUM(D183:BM183) -> 0 | CH181: =SUM(BQ181:CG181) -> 0 | CI181: Km confirmés | CJ181: =SUM(BQ183:CG183) -> 0 | CK181: Km confirmés | CL181: =SUM(CJ181+BP181) -> 0
D182: 0 | E182: 0 | F182: 0 | G182: 0 | H182: 0 | I182: 0 | J182: 0 | K182: 0 | L182: 0 | M182: 0 | N182: 0 | O182: 0 | P182: 0 | Q182: 0 | R182: 0 | S182: 0 | T182: 0 | U182: 0 | V182: 0 | W182: 0 | X182: 0 | Y182: 0 | Z182: 0 | AA182: 0 | AB182: 0 | AC182: 0 | AD182: 0 | AE182: 0 | AF182: 0 | AG182: 0 | AH182: 0 | AI182: 0 | AJ182: 0 | AK182: 0 | AL182: 0 | AM182: 0 | AN182: 0 | AO182: 0 | AP182: 0 | AQ182: 0 | AR182: 0 | AS182: 0 | AT182: 0 | AU182: 0 | AV182: 0 | AW182: 0 | AX182: 0 | AY182: 0 | AZ182: 0 | BA182: 0 | BB182: 0 | BC182: 0 | BD182: 0 | BE182: 0 | BF182: 0 | BG182: 0 | BH182: 0 | BI182: 0 | BJ182: 0 | BK182: 0 | BL182: 0 | BM182: 0 | BO182: Rondes confirmées | BP182: =SUM(C182:BM182) -> 0 | BQ182: 0 | BR182: 0 | BS182: 0 | BT182: 0 | BU182: 0 | BV182: 0 | BW182: 0 | BX182: 0 | BY182: 0 | BZ182: 0 | CA182: 0 | CB182: 0 | CC182: 0 | CD182: 0 | CE182: 0 | CF182: 0 | CG182: 0 | CI182: Rondes confirmées | CJ182: =SUM(BQ182:CH182) -> 0 | CK182: Rondes confirmées | CL182: =SUM(CJ182+BP182) -> 0
D183: =SUM((D180+D181)*D182) -> 0 | E183: 0 | F183: 0 | G183: 0 | H183: 0 | I183: 0 | J183: 0 | K183: 0 | L183: 0 | M183: 0 | N183: 0 | O183: 0 | P183: 0 | Q183: 0 | R183: 0 | S183: 0 | T183: 0 | U183: 0 | V183: 0 | W183: 0 | X183: 0 | Y183: 0 | Z183: 0 | AA183: 0 | AB183: 0 | AC183: 0 | AD183: 0 | AE183: 0 | AF183: 0 | AG183: 0 | AH183: 0 | AI183: 0 | AJ183: 0 | AK183: 0 | AL183: 0 | AM183: 0 | AN183: 0 | AO183: 0 | AP183: 0 | AQ183: 0 | AR183: 0 | AS183: 0 | AT183: 0 | AU183: 0 | AV183: 0 | AW183: 0 | AX183: 0 | AY183: 0 | AZ183: 0 | BA183: 0 | BB183: 0 | BC183: 0 | BD183: 0 | BE183: 0 | BF183: 0 | BG183: 0 | BH183: 0 | BI183: 0 | BJ183: =SUM((BJ180+BJ181)*BJ182) -> 0 | BK183: =SUM((BK180+BK181)*BK182) -> 0 | BL183: 0 | BM183: 0 | BO183: Rondes effectuées | BP183: =COUNTIF(D180:BM180,">0") -> 0 | BQ183: =SUM((BQ180+BQ181)*BQ182) -> 0 | BR183: 0 | BS183: 0 | BT183: 0 | BU183: 0 | BV183: 0 | BW183: 0 | BX183: 0 | BY183: 0 | BZ183: 0 | CA183: 0 | CB183: 0 | CC183: 0 | CD183: 0 | CE183: 0 | CF183: 0 | CG183: 0 | CI183: Rondes Effectuées | CJ183: =COUNTIF(BQ180:CG180,">0") -> 0 | CK183: Rondes effectuées | CL183: =SUM(CJ183+BP183) -> 0
A184: 45 | B184: =VLOOKUP(A184,'Numéro licences'!$H$4:$I$47,2) -> 0 | C184: Aller-Retour | BN184: =SUM(D184:BM184) -> 0 | BO184: Km renseignés | BP184: =SUM(BN184+BN185) -> 0 | CH184: =SUM(BQ184:CG184) -> 0 | CI184: Km renseignés | CJ184: =SUM(CH184+CH185) -> 0 | CK184: Km renseignés | CL184: =SUM(BP184+CJ184) -> 0
C185: Ronde | BN185: =SUM(D185:BM185) -> 0 | BO185: Km confirmés | BP185: =SUM(D187:BM187) -> 0 | CH185: =SUM(BQ185:CG185) -> 0 | CI185: Km confirmés | CJ185: =SUM(BQ187:CG187) -> 0 | CK185: Km confirmés | CL185: =SUM(CJ185+BP185) -> 0
D186: 0 | E186: 0 | F186: 0 | G186: 0 | H186: 0 | I186: 0 | J186: 0 | K186: 0 | L186: 0 | M186: 0 | N186: 0 | O186: 0 | P186: 0 | Q186: 0 | R186: 0 | S186: 0 | T186: 0 | U186: 0 | V186: 0 | W186: 0 | X186: 0 | Y186: 0 | Z186: 0 | AA186: 0 | AB186: 0 | AC186: 0 | AD186: 0 | AE186: 0 | AF186: 0 | AG186: 0 | AH186: 0 | AI186: 0 | AJ186: 0 | AK186: 0 | AL186: 0 | AM186: 0 | AN186: 0 | AO186: 0 | AP186: 0 | AQ186: 0 | AR186: 0 | AS186: 0 | AT186: 0 | AU186: 0 | AV186: 0 | AW186: 0 | AX186: 0 | AY186: 0 | AZ186: 0 | BA186: 0 | BB186: 0 | BC186: 0 | BD186: 0 | BE186: 0 | BF186: 0 | BG186: 0 | BH186: 0 | BI186: 0 | BJ186: 0 | BK186: 0 | BL186: 0 | BM186: 0 | BO186: Rondes confirmées | BP186: =SUM(C186:BM186) -> 0 | BQ186: 0 | BR186: 0 | BS186: 0 | BT186: 0 | BU186: 0 | BV186: 0 | BW186: 0 | BX186: 0 | BY186: 0 | BZ186: 0 | CA186: 0 | CB186: 0 | CC186: 0 | CD186: 0 | CE186: 0 | CF186: 0 | CG186: 0 | CI186: Rondes confirmées | CJ186: =SUM(BQ186:CH186) -> 0 | CK186: Rondes confirmées | CL186: =SUM(CJ186+BP186) -> 0
D187: =SUM((D184+D185)*D186) -> 0 | E187: 0 | F187: 0 | G187: 0 | H187: 0 | I187: 0 | J187: 0 | K187: 0 | L187: 0 | M187: 0 | N187: 0 | O187: 0 | P187: 0 | Q187: 0 | R187: 0 | S187: 0 | T187: 0 | U187: 0 | V187: 0 | W187: 0 | X187: 0 | Y187: 0 | Z187: 0 | AA187: 0 | AB187: 0 | AC187: 0 | AD187: 0 | AE187: 0 | AF187: 0 | AG187: 0 | AH187: 0 | AI187: 0 | AJ187: 0 | AK187: 0 | AL187: 0 | AM187: 0 | AN187: 0 | AO187: 0 | AP187: 0 | AQ187: 0 | AR187: 0 | AS187: 0 | AT187: 0 | AU187: 0 | AV187: 0 | AW187: 0 | AX187: 0 | AY187: 0 | AZ187: 0 | BA187: 0 | BB187: 0 | BC187: 0 | BD187: 0 | BE187: 0 | BF187: 0 | BG187: 0 | BH187: 0 | BI187: 0 | BJ187: =SUM((BJ184+BJ185)*BJ186) -> 0 | BK187: =SUM((BK184+BK185)*BK186) -> 0 | BL187: 0 | BM187: 0 | BO187: Rondes effectuées | BP187: =COUNTIF(D184:BM184,">0") -> 0 | BQ187: =SUM((BQ184+BQ185)*BQ186) -> 0 | BR187: 0 | BS187: 0 | BT187: 0 | BU187: 0 | BV187: 0 | BW187: 0 | BX187: 0 | BY187: 0 | BZ187: 0 | CA187: 0 | CB187: 0 | CC187: 0 | CD187: 0 | CE187: 0 | CF187: 0 | CG187: 0 | CI187: Rondes Effectuées | CJ187: =COUNTIF(BQ184:CG184,">0") -> 0 | CK187: Rondes effectuées | CL187: =SUM(CJ187+BP187) -> 0
A188: 46 | B188: =VLOOKUP(A188,'Numéro licences'!$H$4:$I$47,2) -> 0 | C188: Aller-Retour | BN188: =SUM(D188:BM188) -> 0 | BO188: Km renseignés | BP188: =SUM(BN188+BN189) -> 0 | CH188: =SUM(BQ188:CG188) -> 0 | CI188: Km renseignés | CJ188: =SUM(CH188+CH189) -> 0 | CK188: Km renseignés | CL188: =SUM(BP188+CJ188) -> 0
C189: Ronde | BN189: =SUM(D189:BM189) -> 0 | BO189: Km confirmés | BP189: =SUM(D191:BM191) -> 0 | CH189: =SUM(BQ189:CG189) -> 0 | CI189: Km confirmés | CJ189: =SUM(BQ191:CG191) -> 0 | CK189: Km confirmés | CL189: =SUM(CJ189+BP189) -> 0
D190: 0 | E190: 0 | F190: 0 | G190: 0 | H190: 0 | I190: 0 | J190: 0 | K190: 0 | L190: 0 | M190: 0 | N190: 0 | O190: 0 | P190: 0 | Q190: 0 | R190: 0 | S190: 0 | T190: 0 | U190: 0 | V190: 0 | W190: 0 | X190: 0 | Y190: 0 | Z190: 0 | AA190: 0 | AB190: 0 | AC190: 0 | AD190: 0 | AE190: 0 | AF190: 0 | AG190: 0 | AH190: 0 | AI190: 0 | AJ190: 0 | AK190: 0 | AL190: 0 | AM190: 0 | AN190: 0 | AO190: 0 | AP190: 0 | AQ190: 0 | AR190: 0 | AS190: 0 | AT190: 0 | AU190: 0 | AV190: 0 | AW190: 0 | AX190: 0 | AY190: 0 | AZ190: 0 | BA190: 0 | BB190: 0 | BC190: 0 | BD190: 0 | BE190: 0 | BF190: 0 | BG190: 0 | BH190: 0 | BI190: 0 | BJ190: 0 | BK190: 0 | BL190: 0 | BM190: 0 | BO190: Rondes confirmées | BP190: =SUM(C190:BM190) -> 0 | BQ190: 0 | BR190: 0 | BS190: 0 | BT190: 0 | BU190: 0 | BV190: 0 | BW190: 0 | BX190: 0 | BY190: 0 | BZ190: 0 | CA190: 0 | CB190: 0 | CC190: 0 | CD190: 0 | CE190: 0 | CF190: 0 | CG190: 0 | CI190: Rondes confirmées | CJ190: =SUM(BQ190:CH190) -> 0 | CK190: Rondes confirmées | CL190: =SUM(CJ190+BP190) -> 0
D191: =SUM((D188+D189)*D190) -> 0 | E191: 0 | F191: 0 | G191: 0 | H191: 0 | I191: 0 | J191: 0 | K191: 0 | L191: 0 | M191: 0 | N191: 0 | O191: 0 | P191: 0 | Q191: 0 | R191: 0 | S191: 0 | T191: 0 | U191: 0 | V191: 0 | W191: 0 | X191: 0 | Y191: 0 | Z191: 0 | AA191: 0 | AB191: 0 | AC191: 0 | AD191: 0 | AE191: 0 | AF191: 0 | AG191: 0 | AH191: 0 | AI191: 0 | AJ191: 0 | AK191: 0 | AL191: 0 | AM191: 0 | AN191: 0 | AO191: 0 | AP191: 0 | AQ191: 0 | AR191: 0 | AS191: 0 | AT191: 0 | AU191: 0 | AV191: 0 | AW191: 0 | AX191: 0 | AY191: 0 | AZ191: 0 | BA191: 0 | BB191: 0 | BC191: 0 | BD191: 0 | BE191: 0 | BF191: 0 | BG191: 0 | BH191: 0 | BI191: 0 | BJ191: =SUM((BJ188+BJ189)*BJ190) -> 0 | BK191: =SUM((BK188+BK189)*BK190) -> 0 | BL191: 0 | BM191: 0 | BO191: Rondes effectuées | BP191: =COUNTIF(D188:BM188,">0") -> 0 | BQ191: =SUM((BQ188+BQ189)*BQ190) -> 0 | BR191: 0 | BS191: 0 | BT191: 0 | BU191: 0 | BV191: 0 | BW191: 0 | BX191: 0 | BY191: 0 | BZ191: 0 | CA191: 0 | CB191: 0 | CC191: 0 | CD191: 0 | CE191: 0 | CF191: 0 | CG191: 0 | CI191: Rondes Effectuées | CJ191: =COUNTIF(BQ188:CG188,">0") -> 0 | CK191: Rondes effectuées | CL191: =SUM(CJ191+BP191) -> 0
C192: Nat.Pirates-Hors/FMB
C193: Inconnu ou non-confirmé
C195: Concentres | D195: =COUNTIF(D8:D191,D5) -> 0 | E195: =COUNTIF(E8:E191,E5) -> 0 | F195: =COUNTIF(F8:F191,F5) -> 0 | G195: 0 | H195: 0 | I195: 0 | J195: 93 | K195: 0 | L195: 0 | M195: 0 | N195: 0 | O195: 0 | P195: 0 | Q195: 0 | R195: 0 | S195: 0 | T195: 0 | U195: 0 | V195: 5 | W195: 0 | X195: 4 | Y195: 0 | Z195: 10 | AA195: 0 | AB195: 0 | AC195: 92 | AD195: 0 | AE195: 0 | AF195: 5 | AG195: 7 | AH195: 4 | AI195: 0 | AJ195: 0 | AK195: 9 | AL195: 3 | AM195: 3 | AN195: 0 | AO195: 0 | AP195: 3 | AQ195: 0 | AR195: 0 | AS195: 0 | AT195: 5 | AU195: 0 | AV195: 5 | AW195: 1 | AX195: 2 | AY195: 0 | AZ195: 8 | BA195: 0 | BB195: 7 | BC195: 0 | BD195: 0 | BE195: 3 | BF195: 2 | BG195: 0 | BH195: 4 | BI195: =COUNTIF(BI8:BI191,BI5) -> 0 | BJ195: 0 | BK195: =COUNTIF(BK8:BK191,BK5) -> 3 | BL195: 4 | BM195: 7 | BN195: =SUM(D195:BM195) -> 289 | BO195: Concentres | BQ195: 6 | BR195: 93 | BS195: 6 | BT195: 6 | BU195: =COUNTIF(BU8:BU191,BU5) -> 92 | BV195: 92 | BW195: 0 | BX195: 0 | BY195: 0 | BZ195: 0 | CA195: 0 | CB195: 0 | CC195: 0 | CD195: 0 | CE195: 0 | CF195: 0 | CG195: 0 | CH195: =SUM(BQ195:CG195) -> 295 | CI195: Concentres | CK195: Concentres | CL195: =SUM(CH195+BN195) -> 584
C196: Rondes | D196: =COUNTIF(D9:D192,D6) -> 92 | E196: =COUNTIF(E9:E192,E6) -> 92 | F196: =COUNTIF(F9:F192,F6) -> 92 | G196: 92 | H196: 92 | I196: 92 | J196: 93 | K196: 92 | L196: 92 | M196: 92 | N196: 92 | O196: 92 | P196: 92 | Q196: 92 | R196: 92 | S196: 92 | T196: 92 | U196: 92 | V196: 5 | W196: 92 | X196: 4 | Y196: 92 | Z196: 10 | AA196: 92 | AB196: 92 | AC196: 18 | AD196: 92 | AE196: 92 | AF196: 5 | AG196: 4 | AH196: 4 | AI196: 92 | AJ196: 92 | AK196: 6 | AL196: 3 | AM196: 3 | AN196: 92 | AO196: 92 | AP196: 3 | AQ196: 92 | AR196: 92 | AS196: 92 | AT196: 3 | AU196: 92 | AV196: 2 | AW196: 1 | AX196: 0 | AY196: 0 | AZ196: 6 | BA196: 0 | BB196: 7 | BC196: 0 | BD196: 0 | BE196: 3 | BF196: 2 | BG196: 0 | BH196: 4 | BI196: 92 | BJ196: 3 | BK196: =COUNTIF(BK9:BK192,BK6) -> 2 | BL196: 4 | BM196: 5 | BN196: =SUM(D196:BM196) -> 3144 | BO196: Rondes | BQ196: 6 | BR196: 19 | BS196: 6 | BT196: 6 | BU196: =COUNTIF(BU9:BU192,BU6) -> 92 | BV196: 92 | BW196: 0 | BX196: 0 | BY196: 0 | BZ196: 0 | CA196: 0 | CB196: 0 | CC196: 0 | CD196: 0 | CE196: 0 | CF196: 0 | CG196: 0 | CH196: =SUM(BQ196:CG196) -> 221 | CI196: Rondes | CK196: Rondes | CL196: =SUM(CH196+BN196) -> 3365
B201: Colonne1
A202: 1 | B202: BALLION Pierre
A203: =SUM(A202+1) -> 2 | B203: BERDOYES Yannick
A204: =SUM(A203+1) -> 3 | B204: CLAISSE Jean-Luc
A205: 4 | B205: DAVIN Philippe
... 42 more rows

Sheet Passagers Nat
D1: 1 | E1: =SUM(D1+1) -> 2 | F1: =SUM(E1+1) -> 3 | G1: 4 | H1: 5 | I1: 6 | J1: 7 | K1: 8 | L1: 9 | M1: 10 | N1: 11 | O1: 12 | P1: 13 | Q1: 14 | R1: 15 | S1: 16 | T1: 17 | U1: 18 | V1: 19 | W1: 20 | X1: 21 | Y1: 22 | Z1: 23 | AA1: 24 | AB1: 25 | AC1: 26 | AD1: 27 | AE1: 28 | AF1: 29 | AG1: 30 | AH1: 31 | AI1: 32 | AJ1: 33 | AK1: 34 | AL1: 35 | AM1: 36 | AN1: 37 | AO1: 38 | AP1: 39 | AQ1: 40 | AR1: 41 | AS1: 42 | AT1: 43 | AU1: 44 | AV1: 45 | AW1: 46 | AX1: 47 | AY1: 48 | AZ1: 49 | BA1: 50 | BB1: 51 | BC1: 52 | BD1: 53 | BE1: 54 | BF1: 55 | BG1: 56 | BH1: 57 | BI1: 58 | BJ1: 59 | BK1: =SUM(BJ1+1) -> 60 | BL1: =SUM(BK1+1) -> 61 | BM1: =SUM(BL1+1) -> 62
D2: 902 | E2: 531 | F2: 516 | G2: 103 | H2: 206 | I2: 904 | J2: 713 | K2: 912 | L2: 721 | M2: 730 | N2: 726 | O2: 426 | P2: 716 | Q2: 533 | R2: 549 | S2: 806 | T2: 126 | U2: 427 | V2: 729 | W2: 721 | X2: 729 | Y2: 419 | Z2: 0 | AA2: 312 | AB2: 508 | AC2: 713 | AD2: 137 | AE2: 705 | AF2: 516 | AG2: 703 | AH2: 531 | AI2: 903 | AJ2: 427 | AK2: 710 | AL2: 921 | AM2: 614 | AN2: 810 | AO2: 103 | AP2: 818 | AQ2: 920 | AR2: 922 | AS2: 406 | AT2: 902 | AU2: 138 | AV2: 730 | AW2: 426 | AX2: 703 | AY2: 908 | AZ2: 705 | BA2: 136 | BB2: 729 | BC2: 907 | BD2: 137 | BE2: 531 | BF2: 126 | BG2: 910 | BH2: 422 | BI2: 427 | BJ2: 332 | BK2: 508 | BL2: 332 | BM2: 710
D3: 2021-02-14 | E3: 2021-02-28 | F3: 2021-03-07 | G3: 2021-03-14 | H3: 2021-03-14 | I3: 2021-03-20 | J3: 2021-03-21 | K3: 2021-03-28 | L3: 2021-04-04 | M3: 2021-04-05 | N3: 2021-04-10 | O3: 2021-04-11 | P3: 2021-04-18 | Q3: 2021-04-25 | R3: 2021-05-01 | S3: 2021-05-01 | T3: 2021-05-02 | U3: 2021-05-09 | V3: 2021-05-16 | W3: 2021-05-23 | X3: 2021-05-24 | Y3: 2021-05-29 | Z3: 2021-06-05 | AA3: 2021-06-12 | AB3: 2021-06-20 | AC3: 2021-06-26 | AD3: 2021-06-27 | AE3: 2021-06-27 | AF3: 2021-07-03 | AG3: 2021-07-04 | AH3: 2021-07-10 | AI3: 2021-07-17 | AJ3: 2021-07-18 | AK3: 2021-07-21 | AL3: 2021-07-24 | AM3: 2021-07-31 | AN3: 2021-08-01 | AO3: 2021-08-08 | AP3: 2021-08-14 | AQ3: 2021-08-14 | AR3: 2021-08-21 | AS3: 2021-08-22 | AT3: 2021-08-28 | AU3: 2021-08-28 | AV3: 2021-08-29 | AW3: 2021-09-04 | AX3: 2021-09-05 | AY3: 2021-09-11 | AZ3: 2021-09-12 | BA3: 2021-09-18 | BB3: 2021-09-19 | BC3: 2021-09-19 | BD3: 2021-09-25 | BE3: 2021-09-26 | BF3: 2021-10-02 | BG3: 2021-10-03 | BH3: 2021-10-10 | BI3: 2021-10-17 | BJ3: 2021-10-31 | BK3: 2021-11-01 | BL3: 2021-11-07 | BM3: 2021-11-11 | BQ3: 2021-05-09 | BR3: 2021-06-06 | BS3: 2021-06-27 | BT3: 2021-10-17
D4: =VLOOKUP(D2,'Kilomètre AR'!$A$1:$B$58,2) -> AMC GIJVERINKHOVE | E4: =VLOOKUP(E2,'Kilomètre AR'!$A$1:$B$58,2) -> MC HOESELT | F4: =VLOOKUP(F2,'Kilomètre AR'!$A$1:$B$58,2) -> MC LOTUS Bilzen | G4: =VLOOKUP(G2,'Kilomètre AR'!$A$1:$B$58,2) -> KAMC HERENTALS | H4: =VLOOKUP(H2,'Kilomètre AR'!$A$1:$B$58,2) -> MC L'EQUIPE Bruxelles | I4: =VLOOKUP(I2,'Kilomètre AR'!$A$1:$B$58,2) -> KAMC MENEN | J4: =VLOOKUP(J2,'Kilomètre AR'!$A$1:$B$58,2) -> MC ST SERVAIS | K4: =VLOOKUP(K2,'Kilomètre AR'!$A$1:$B$58,2) -> MTC ZEDELGEM | L4: =VLOOKUP(L2,'Kilomètre AR'!$A$1:$B$58,2) -> MC LES PETITS GRIS Warisoulx | M4: =VLOOKUP(M2,'Kilomètre AR'!$A$1:$B$58,2) -> MC LES 4 & CO Assesse | N4: =VLOOKUP(N2,'Kilomètre AR'!$A$1:$B$58,2) -> MC BIKE AND TRIKE BELGIUM Dhuy | O4: =VLOOKUP(O2,'Kilomètre AR'!$A$1:$B$58,2) -> MTC WELKENRAEDT | P4: =VLOOKUP(P2,'Kilomètre AR'!$A$1:$B$58,2) -> AMC FLOREFFE | Q4: =VLOOKUP(Q2,'Kilomètre AR'!$A$1:$B$58,2) -> MTC 13 Leopoldsburg | R4: =VLOOKUP(R2,'Kilomètre AR'!$A$1:$B$58,2) -> MTC WELLEN Wellen | S4: =VLOOKUP(S2,'Kilomètre AR'!$A$1:$B$58,2) -> MC SCHELDELAND Wichelen | T4: =VLOOKUP(T2,'Kilomètre AR'!$A$1:$B$58,2) -> MTC TOERVRIENDEN Brasschaat | U4: =VLOOKUP(U2,'Kilomètre AR'!$A$1:$B$58,2) -> MC ZEBUS Flémalle | V4: =VLOOKUP(V2,'Kilomètre AR'!$A$1:$B$58,2) -> VIROINVAL MOTOR SPORT Dourbes | W4: =VLOOKUP(W2,'Kilomètre AR'!$A$1:$B$58,2) -> MC LES PETITS GRIS Warisoulx | X4: =VLOOKUP(X2,'Kilomètre AR'!$A$1:$B$58,2) -> VIROINVAL MOTOR SPORT Dourbes | Y4: =VLOOKUP(Y2,'Kilomètre AR'!$A$1:$B$58,2) -> AMC ST VITH | Z4: =VLOOKUP(Z2,'Kilomètre AR'!$A$1:$B$58,2) -> RONDE FMB | AA4: =VLOOKUP(AA2,'Kilomètre AR'!$A$1:$B$58,2) -> MC RESSAIX | AB4: =VLOOKUP(AB2,'Kilomètre AR'!$A$1:$B$58,2) -> AMC KOERSEL | AC4: =VLOOKUP(AC2,'Kilomètre AR'!$A$1:$B$58,2) -> MC ST SERVAIS | AD4: =VLOOKUP(AD2,'Kilomètre AR'!$A$1:$B$58,2) -> MTC YELLS ARMY Berchem | AE4: =VLOOKUP(AE2,'Kilomètre AR'!$A$1:$B$58,2) -> MC DINANT | AF4: =VLOOKUP(AF2,'Kilomètre AR'!$A$1:$B$58,2) -> MC LOTUS Bilzen | AG4: =VLOOKUP(AG2,'Kilomètre AR'!$A$1:$B$58,2) -> R CINEY MC | AH4: =VLOOKUP(AH2,'Kilomètre AR'!$A$1:$B$58,2) -> MC HOESELT | AI4: =VLOOKUP(AI2,'Kilomètre AR'!$A$1:$B$58,2) -> AMSC LEIELAND Wervik | AJ4: =VLOOKUP(AJ2,'Kilomètre AR'!$A$1:$B$58,2) -> MC ZEBUS Flémalle | AK4: =VLOOKUP(AK2,'Kilomètre AR'!$A$1:$B$58,2) -> MC MOLIGNARD Warnant | AL4: =VLOOKUP(AL2,'Kilomètre AR'!$A$1:$B$58,2) -> MTC VRIJBOS Houthulst | AM4: =VLOOKUP(AM2,'Kilomètre AR'!$A$1:$B$58,2) -> MC CHEVY RACING Libramont-Chevigny | AN4: =VLOOKUP(AN2,'Kilomètre AR'!$A$1:$B$58,2) -> BMW MC VLAANDEREN Lede | AO4: =VLOOKUP(AO2,'Kilomètre AR'!$A$1:$B$58,2) -> KAMC HERENTALS | AP4: =VLOOKUP(AP2,'Kilomètre AR'!$A$1:$B$58,2) -> MTC VLAANDEREN Aalst | AQ4: =VLOOKUP(AQ2,'Kilomètre AR'!$A$1:$B$58,2) -> WESTHOEK BIKERS Houtem | AR4: =VLOOKUP(AR2,'Kilomètre AR'!$A$1:$B$58,2) -> MTC REDBONE Wevezele | AS4: =VLOOKUP(AS2,'Kilomètre AR'!$A$1:$B$58,2) -> RAMC EUPEN | AT4: =VLOOKUP(AT2,'Kilomètre AR'!$A$1:$B$58,2) -> AMC GIJVERINKHOVE | AU4: =VLOOKUP(AU2,'Kilomètre AR'!$A$1:$B$58,2) -> MC TIGRIS PANTERA Brasschaat | AV4: =VLOOKUP(AV2,'Kilomètre AR'!$A$1:$B$58,2) -> MC LES 4 & CO Assesse | AW4: =VLOOKUP(AW2,'Kilomètre AR'!$A$1:$B$58,2) -> MTC WELKENRAEDT | AX4: =VLOOKUP(AX2,'Kilomètre AR'!$A$1:$B$58,2) -> R CINEY MC | AY4: =VLOOKUP(AY2,'Kilomètre AR'!$A$1:$B$58,2) -> AMC POPERINGE | AZ4: =VLOOKUP(AZ2,'Kilomètre AR'!$A$1:$B$58,2) -> MC DINANT | BA4: =VLOOKUP(BA2,'Kilomètre AR'!$A$1:$B$58,2) -> MTC AMIGO'S Schoten | BB4: =VLOOKUP(BB2,'Kilomètre AR'!$A$1:$B$58,2) -> VIROINVAL MOTOR SPORT Dourbes | BC4: =VLOOKUP(BC2,'Kilomètre AR'!$A$1:$B$58,2) -> KV OSTEND MS | BD4: =VLOOKUP(BD2,'Kilomètre AR'!$A$1:$B$58,2) -> MTC YELLS ARMY Berchem | BE4: =VLOOKUP(BE2,'Kilomètre AR'!$A$1:$B$58,2) -> MC HOESELT | BF4: =VLOOKUP(BF2,'Kilomètre AR'!$A$1:$B$58,2) -> MTC TOERVRIENDEN Brasschaat | BG4: =VLOOKUP(BG2,'Kilomètre AR'!$A$1:$B$58,2) -> AMC EENDRACHT TORHOUT | BH4: =VLOOKUP(BH2,'Kilomètre AR'!$A$1:$B$58,2) -> MC THEUX-FRANCHIMONT | BI4: =VLOOKUP(BI2,'Kilomètre AR'!$A$1:$B$58,2) -> MC ZEBUS Flémalle | BJ4: =VLOOKUP(BJ2,'Kilomètre AR'!$A$1:$B$58,2) -> MC BUTZ BIKERS 95 Ecaussinnes | BK4: =VLOOKUP(BK2,'Kilomètre AR'!$A$1:$B$58,2) -> AMC KOERSEL | BL4: =VLOOKUP(BL2,'Kilomètre AR'!$A$1:$B$58,2) -> MC BUTZ BIKERS 95 Ecaussinnes | BM4: =VLOOKUP(BM2,'Kilomètre AR'!$A$1:$B$58,2) -> MC MOLIGNARD Warnant | BQ4: MC Theux | BR4: MCSS | BS4: MCSS - DINANT | BT4: Moto Retro Flemalle
B5: Aller-Retour | D5: =VLOOKUP(D2,'Kilomètre AR'!$A$1:$D$58,4) -> 380 | E5: =VLOOKUP(E2,'Kilomètre AR'!$A$1:$D$58,4) -> 140 | F5: =VLOOKUP(F2,'Kilomètre AR'!$A$1:$D$58,4) -> 148 | G5: =VLOOKUP(G2,'Kilomètre AR'!$A$1:$D$58,4) -> 190 | H5: =VLOOKUP(H2,'Kilomètre AR'!$A$1:$D$58,4) -> 116 | I5: =VLOOKUP(I2,'Kilomètre AR'!$A$1:$D$58,4) -> 296 | J5: =VLOOKUP(J2,'Kilomètre AR'!$A$1:$D$58,4) -> 0 | K5: =VLOOKUP(K2,'Kilomètre AR'!$A$1:$D$58,4) -> 312 | L5: =VLOOKUP(L2,'Kilomètre AR'!$A$1:$D$58,4) -> 20 | M5: =VLOOKUP(M2,'Kilomètre AR'!$A$1:$D$58,4) -> 38 | N5: =VLOOKUP(N2,'Kilomètre AR'!$A$1:$D$58,4) -> 34 | O5: =VLOOKUP(O2,'Kilomètre AR'!$A$1:$D$58,4) -> 186 | P5: =VLOOKUP(P2,'Kilomètre AR'!$A$1:$D$58,4) -> 20 | Q5: =VLOOKUP(Q2,'Kilomètre AR'!$A$1:$D$58,4) -> 184 | R5: =VLOOKUP(R2,'Kilomètre AR'!$A$1:$D$58,4) -> 130 | S5: =VLOOKUP(S2,'Kilomètre AR'!$A$1:$D$58,4) -> 194 | T5: =VLOOKUP(T2,'Kilomètre AR'!$A$1:$D$58,4) -> 218 | U5: =VLOOKUP(U2,'Kilomètre AR'!$A$1:$D$58,4) -> 104 | V5: =VLOOKUP(V2,'Kilomètre AR'!$A$1:$D$58,4) -> 124 | W5: =VLOOKUP(W2,'Kilomètre AR'!$A$1:$D$58,4) -> 20 | X5: =VLOOKUP(X2,'Kilomètre AR'!$A$1:$D$58,4) -> 124 | Y5: =VLOOKUP(Y2,'Kilomètre AR'!$A$1:$D$58,4) -> 262 | Z5: 38 | AA5: 1645 | AB5: =VLOOKUP(AB2,'Kilomètre AR'!$A$1:$D$58,4) -> 176 | AC5: =VLOOKUP(AC2,'Kilomètre AR'!$A$1:$D$58,4) -> 0 | AD5: =VLOOKUP(AD2,'Kilomètre AR'!$A$1:$D$58,4) -> 192 | AE5: =VLOOKUP(AE2,'Kilomètre AR'!$A$1:$D$58,4) -> 60 | AF5: =VLOOKUP(AF2,'Kilomètre AR'!$A$1:$D$58,4) -> 148 | AG5: =VLOOKUP(AG2,'Kilomètre AR'!$A$1:$D$58,4) -> 60 | AH5: =VLOOKUP(AH2,'Kilomètre AR'!$A$1:$D$58,4) -> 140 | AI5: =VLOOKUP(AI2,'Kilomètre AR'!$A$1:$D$58,4) -> 296 | AJ5: =VLOOKUP(AJ2,'Kilomètre AR'!$A$1:$D$58,4) -> 104 | AK5: =VLOOKUP(AK2,'Kilomètre AR'!$A$1:$D$58,4) -> 52 | AL5: =VLOOKUP(AL2,'Kilomètre AR'!$A$1:$D$58,4) -> 344 | AM5: =VLOOKUP(AM2,'Kilomètre AR'!$A$1:$D$58,4) -> 162 | AN5: =VLOOKUP(AN2,'Kilomètre AR'!$A$1:$D$58,4) -> 184 | AO5: =VLOOKUP(AO2,'Kilomètre AR'!$A$1:$D$58,4) -> 190 | AP5: =VLOOKUP(AP2,'Kilomètre AR'!$A$1:$D$58,4) -> 176 | AQ5: =VLOOKUP(AQ2,'Kilomètre AR'!$A$1:$D$58,4) -> 386 | AR5: =VLOOKUP(AR2,'Kilomètre AR'!$A$1:$D$58,4) -> 292 | AS5: =VLOOKUP(AS2,'Kilomètre AR'!$A$1:$D$58,4) -> 194 | AT5: =VLOOKUP(AT2,'Kilomètre AR'!$A$1:$D$58,4) -> 380 | AU5: =VLOOKUP(AU2,'Kilomètre AR'!$A$1:$D$58,4) -> 218 | AV5: =VLOOKUP(AV2,'Kilomètre AR'!$A$1:$D$58,4) -> 38 | AW5: =VLOOKUP(AW2,'Kilomètre AR'!$A$1:$D$58,4) -> 186 | AX5: =VLOOKUP(AX2,'Kilomètre AR'!$A$1:$D$58,4) -> 60 | AY5: =VLOOKUP(AY2,'Kilomètre AR'!$A$1:$D$58,4) -> 356 | AZ5: =VLOOKUP(AZ2,'Kilomètre AR'!$A$1:$D$58,4) -> 60 | BA5: =VLOOKUP(BA2,'Kilomètre AR'!$A$1:$D$58,4) -> 208 | BB5: =VLOOKUP(BB2,'Kilomètre AR'!$A$1:$D$58,4) -> 124 | BC5: =VLOOKUP(BC2,'Kilomètre AR'!$A$1:$D$58,4) -> 344 | BD5: =VLOOKUP(BD2,'Kilomètre AR'!$A$1:$D$58,4) -> 192 | BE5: =VLOOKUP(BE2,'Kilomètre AR'!$A$1:$D$58,4) -> 140 | BF5: =VLOOKUP(BF2,'Kilomètre AR'!$A$1:$D$58,4) -> 218 | BG5: =VLOOKUP(BG2,'Kilomètre AR'!$A$1:$D$58,4) -> 324 | BH5: =VLOOKUP(BH2,'Kilomètre AR'!$A$1:$D$58,4) -> 166 | BI5: =VLOOKUP(BI2,'Kilomètre AR'!$A$1:$D$58,4) -> 104 | BJ5: =VLOOKUP(BJ2,'Kilomètre AR'!$A$1:$D$58,4) -> 108 | BK5: =VLOOKUP(BK2,'Kilomètre AR'!$A$1:$D$58,4) -> 176 | BL5: =VLOOKUP(BL2,'Kilomètre AR'!$A$1:$D$58,4) -> 108 | BM5: =VLOOKUP(BM2,'Kilomètre AR'!$A$1:$D$58,4) -> 52 | BQ5: 166 | BR5: 0 | BS5: 79 | BT5: 36 | BU5: -1 | BV5: -1 | BW5: -1 | BX5: -1 | BY5: -1 | BZ5: -1 | CA5: -1 | CB5: -1 | CC5: -1 | CD5: -1 | CE5: -1 | CF5: -1 | CG5: -1 | CN5: NATIONAL
B6: Ronde | V6: 215 | X6: 195 | Z6: 513 | AC6: 200 | AF6: 200 | AG6: 210 | AH6: 180 | AK6: 200 | AL6: 300 | AM6: 220 | AP6: 250 | AT6: 220 | AV6: 220 | AW6: 166 | AX6: 220 | AY6: 165 | AZ6: 194 | BA6: 180 | BB6: 180 | BC6: 165 | BD6: 150 | BE6: 165 | BF6: 170 | BG6: 160 | BH6: 220 | BJ6: 165 | BK6: 140 | BL6: 150 | BM6: 130 | BQ6: 216 | BR6: 200 | BS6: 186 | BT6: 120 | BU6: -1 | BV6: -1 | BW6: -1 | BX6: -1 | BY6: -1 | BZ6: -1 | CA6: -1 | CB6: -1 | CC6: -1 | CD6: -1 | CE6: -1 | CF6: -1 | CG6: -1
D7: ANNULEE COVID-19 | E7: ANNULEE COVID-19 | F7: ANNULEE COVID-19 | G7: ANNULEE COVID-19 | H7: ANNULEE COVID-19 | I7: ANNULEE COVID-19 | J7: ANNULEE COVID-19 | K7: ANNULEE COVID-19 | L7: ANNULEE COVID-19 | M7: ANNULEE COVID-19 | N7: ANNULEE COVID-19 | O7: ANNULEE COVID-19 | P7: ANNULEE COVID-19 | Q7: ANNULEE COVID-19 | R7: ANNULEE COVID-19 | S7: ANNULEE COVID-19 | T7: ANNULEE COVID-19 | U7: ANNULEE COVID-19 | W7: ANNULEE COVID-19 | Y7: ANNULEE COVID-19 | AA7: ANNULEE COVID-19 | AD7: ANNULEE COVID-19 | AE7: ANNULEE COVID-19 | AI7: ANNULEE COVID-19 | AJ7: ANNULEE COVID-19 | AN7: Hors Championnat | AO7: ANNULEE COVID-19 | AQ7: ANNULEE COVID-19 | AR7: ANNULEE COVID-19 | AS7: ANNULEE COVID-19 | AT7: Inter | AU7: ANNULEE COVID-19 | AW7: Inter | BH7: Hors Championnat | BI7: Annulée | BJ7: 174 Km A/R !! Adresse Salle déportée | BN7: Sous-Total FMB | BP7: Total FMB | CH7: Sous-Totaux Pirates | CJ7: Total Pirates | CL7: TOTAL | CP7: FMB | CQ7: Hors FMB | CR7: Total
A8: 1 | B8: =VLOOKUP(A8,'Numéro licences'!$A$4:$B$32,2) -> BRIATTE Joëlle | C8: Aller-Retour | BN8: =SUM(D8:BM8) -> 0 | BO8: Km renseignés | BP8: =SUM(BN8+BN9) -> 0 | CH8: =SUM(BQ8:CG8) -> 0 | CI8: Km renseignés | CJ8: =SUM(CH8+CH9) -> 0 | CK8: Km renseignés | CL8: =SUM(BP8+CJ8) -> 0 | CN8: 1 | CO8: =VLOOKUP(CN8,A8:B188,2) -> BRIATTE Joëlle | CP8: =SUM(BP8) -> 0 | CQ8: =SUM(CJ8) -> 0 | CR8: =SUM(CP8+CQ8) -> 0
C9: Ronde | BN9: =SUM(D9:BM9) -> 0 | BO9: Km confirmés | BP9: =SUM(D11:BM11) -> 0 | CH9: =SUM(BQ9:CG9) -> 0 | CI9: Km confirmés | CJ9: =SUM(BQ11:CG11) -> 0 | CK9: Km confirmés | CL9: =SUM(CJ9+BP9) -> 0 | CN9: 2 | CO9: =VLOOKUP(CN9,A8:B188,2) -> DEL FABBRO Laurence | CP9: =SUM(BP12) -> 200 | CQ9: =SUM(CJ12) -> 0 | CR9: =SUM(CP9+CQ9) -> 200
D10: 0 | E10: 0 | F10: 0 | G10: 0 | H10: 0 | I10: 0 | J10: 0 | K10: 0 | L10: 0 | M10: 0 | N10: 0 | O10: 0 | P10: 0 | Q10: 0 | R10: 0 | S10: 0 | T10: 0 | U10: 0 | V10: 0 | W10: 0 | X10: 0 | Y10: 0 | Z10: 0 | AA10: 0 | AB10: 0 | AC10: 0 | AD10: 0 | AE10: 0 | AF10: 0 | AG10: 0 | AH10: 0 | AI10: 0 | AJ10: 0 | AK10: 0 | AL10: 0 | AM10: 0 | AN10: 0 | AO10: 0 | AP10: 0 | AQ10: 0 | AR10: 0 | AS10: 0 | AT10: 0 | AU10: 0 | AV10: 0 | AW10: 0 | AX10: 0 | AY10: 0 | AZ10: 0 | BA10: 0 | BB10: 0 | BC10: 0 | BD10: 0 | BE10: 0 | BF10: 0 | BG10: 0 | BH10: 0 | BI10: 0 | BJ10: 0 | BK10: 0 | BL10: 0 | BM10: 0 | BO10: Rondes confirmées | BP10: =SUM(C10:BM10) -> 0 | BQ10: 0 | BR10: 0 | BS10: 0 | BT10: 0 | BU10: 0 | BV10: 0 | BW10: 0 | BX10: 0 | BY10: 0 | BZ10: 0 | CA10: 0 | CB10: 0 | CC10: 0 | CD10: 0 | CE10: 0 | CF10: 0 | CG10: 0 | CI10: Rondes confirmées | CJ10: =SUM(BQ10:CH10) -> 0 | CK10: Rondes confirmées | CL10: =SUM(CJ10+BP10) -> 0 | CN10: 3 | CO10: =VLOOKUP(CN10,A8:B188,2) -> ERVEN France | CP10: =SUM(BP16) -> 252 | CQ10: =SUM(CJ16) -> 265 | CR10: =SUM(CP10+CQ10) -> 517
D11: =SUM((D8+D9)*D10) -> 0 | E11: 0 | F11: 0 | G11: 0 | H11: 0 | I11: 0 | J11: 0 | K11: 0 | L11: 0 | M11: 0 | N11: 0 | O11: 0 | P11: 0 | Q11: 0 | R11: 0 | S11: 0 | T11: 0 | U11: 0 | V11: 0 | W11: 0 | X11: 0 | Y11: 0 | Z11: 0 | AA11: 0 | AB11: 0 | AC11: 0 | AD11: 0 | AE11: 0 | AF11: 0 | AG11: 0 | AH11: 0 | AI11: 0 | AJ11: 0 | AK11: 0 | AL11: 0 | AM11: 0 | AN11: 0 | AO11: 0 | AP11: 0 | AQ11: 0 | AR11: 0 | AS11: 0 | AT11: 0 | AU11: 0 | AV11: 0 | AW11: 0 | AX11: 0 | AY11: 0 | AZ11: 0 | BA11: 0 | BB11: 0 | BC11: 0 | BD11: 0 | BE11: 0 | BF11: 0 | BG11: 0 | BH11: 0 | BI11: 0 | BJ11: 0 | BK11: =SUM((BK8+BK9)*BK10) -> 0 | BL11: 0 | BM11: 0 | BO11: Rondes effectuées | BP11: =COUNTIF(D8:BM8,">0") -> 0 | BQ11: =SUM((BQ8+BQ9)*BQ10) -> 0 | BR11: 0 | BS11: 0 | BT11: 0 | BU11: 0 | BV11: 0 | BW11: 0 | BX11: 0 | BY11: 0 | BZ11: 0 | CA11: 0 | CB11: 0 | CC11: 0 | CD11: 0 | CE11: 0 | CF11: 0 | CG11: 0 | CI11: Rondes Effectuées | CJ11: =COUNTIF(BQ8:CG8,">0") -> 0 | CK11: Rondes effectuées | CL11: =SUM(CJ11+BP11) -> 0 | CN11: 4 | CO11: =VLOOKUP(CN11,A8:B188,2) -> FIEVET Nathalie | CP11: =SUM(BP20) -> 0 | CQ11: =SUM(CJ20) -> 0 | CR11: 0
A12: 2 | B12: =VLOOKUP(A12,'Numéro licences'!$A$4:$B$32,2) -> DEL FABBRO Laurence | C12: Aller-Retour | AC12: 0 | BN12: =SUM(D12:BM12) -> 0 | BO12: Km renseignés | BP12: =SUM(BN12+BN13) -> 200 | CH12: =SUM(BQ12:CG12) -> 0 | CI12: Km renseignés | CJ12: =SUM(CH12+CH13) -> 0 | CK12: Km renseignés | CL12: =SUM(BP12+CJ12) -> 200 | CN12: 5 | CO12: =VLOOKUP(CN12,A8:B188,2) -> GIAUX Annie | CP12: =SUM(BP24) -> 690 | CQ12: =SUM(CJ24) -> 156 | CR12: 846
C13: Ronde | AC13: 200 | BN13: =SUM(D13:BM13) -> 200 | BO13: Km confirmés | BP13: =SUM(D15:BM15) -> 0 | CH13: =SUM(BQ13:CG13) -> 0 | CI13: Km confirmés | CJ13: =SUM(BQ15:CG15) -> 0 | CK13: Km confirmés | CL13: =SUM(CJ13+BP13) -> 0 | CN13: 6 | CO13: =VLOOKUP(CN13,A8:B188,2) -> GOFFIN Guillaume | CP13: =SUM(BP28) -> 0 | CQ13: =SUM(CJ28) -> 0 | CR13: 0
D14: 0 | E14: 0 | F14: 0 | G14: 0 | H14: 0 | I14: 0 | J14: 0 | K14: 0 | L14: 0 | M14: 0 | N14: 0 | O14: 0 | P14: 0 | Q14: 0 | R14: 0 | S14: 0 | T14: 0 | U14: 0 | V14: 0 | W14: 0 | X14: 0 | Y14: 0 | Z14: 0 | AA14: 0 | AB14: 0 | AC14: 0 | AD14: 0 | AE14: 0 | AF14: 0 | AG14: 0 | AH14: 0 | AI14: 0 | AJ14: 0 | AK14: 0 | AL14: 0 | AM14: 0 | AN14: 0 | AO14: 0 | AP14: 0 | AQ14: 0 | AR14: 0 | AS14: 0 | AT14: 0 | AU14: 0 | AV14: 0 | AW14: 0 | AX14: 0 | AY14: 0 | AZ14: 0 | BA14: 0 | BB14: 0 | BC14: 0 | BD14: 0 | BE14: 0 | BF14: 0 | BG14: 0 | BH14: 0 | BI14: 0 | BJ14: 0 | BK14: 0 | BL14: 0 | BM14: 0 | BO14: Rondes confirmées | BP14: =SUM(C14:BM14) -> 0 | BQ14: 0 | BR14: 0 | BS14: 0 | BT14: 0 | BU14: 0 | BV14: 0 | BW14: 0 | BX14: 0 | BY14: 0 | BZ14: 0 | CA14: 0 | CB14: 0 | CC14: 0 | CD14: 0 | CE14: 0 | CF14: 0 | CG14: 0 | CI14: Rondes confirmées | CJ14: =SUM(BQ14:CH14) -> 0 | CK14: Rondes confirmées | CL14: =SUM(CJ14+BP14) -> 0 | CN14: 7 | CO14: =VLOOKUP(CN14,A8:B188,2) -> GREGORICS Kathy | CP14: =SUM(BP32) -> 200 | CQ14: =SUM(CJ32) -> 0 | CR14: 200
D15: =SUM((D12+D13)*D14) -> 0 | E15: 0 | F15: 0 | G15: 0 | H15: 0 | I15: 0 | J15: 0 | K15: 0 | L15: 0 | M15: 0 | N15: 0 | O15: 0 | P15: 0 | Q15: 0 | R15: 0 | S15: 0 | T15: 0 | U15: 0 | V15: 0 | W15: 0 | X15: 0 | Y15: 0 | Z15: 0 | AA15: 0 | AB15: 0 | AC15: 0 | AD15: 0 | AE15: 0 | AF15: 0 | AG15: 0 | AH15: 0 | AI15: 0 | AJ15: 0 | AK15: 0 | AL15: 0 | AM15: 0 | AN15: 0 | AO15: 0 | AP15: 0 | AQ15: 0 | AR15: 0 | AS15: 0 | AT15: 0 | AU15: 0 | AV15: 0 | AW15: 0 | AX15: 0 | AY15: 0 | AZ15: 0 | BA15: 0 | BB15: 0 | BC15: 0 | BD15: 0 | BE15: 0 | BF15: 0 | BG15: 0 | BH15: 0 | BI15: 0 | BJ15: 0 | BK15: =SUM((BK12+BK13)*BK14) -> 0 | BL15: 0 | BM15: 0 | BO15: Rondes effectuées | BP15: =COUNTIF(D12:BM12,">0") -> 0 | BQ15: =SUM((BQ12+BQ13)*BQ14) -> 0 | BR15: 0 | BS15: 0 | BT15: 0 | BU15: 0 | BV15: 0 | BW15: 0 | BX15: 0 | BY15: 0 | BZ15: 0 | CA15: 0 | CB15: 0 | CC15: 0 | CD15: 0 | CE15: 0 | CF15: 0 | CG15: 0 | CI15: Rondes Effectuées | CJ15: =COUNTIF(BQ12:CG12,">0") -> 0 | CK15: Rondes effectuées | CL15: =SUM(CJ15+BP15) -> 0 | CN15: 8 | CO15: =VLOOKUP(CN15,A8:B188,2) -> GRIGNET Audrey | CP15: =SUM(BP36) -> 0 | CQ15: =SUM(CJ36) -> 0 | CR15: 0
A16: 3 | B16: =VLOOKUP(A16,'Numéro licences'!$A$4:$B$32,2) -> ERVEN France | C16: Aller-Retour | AK16: 52 | BN16: =SUM(D16:BM16) -> 52 | BO16: Km renseignés | BP16: =SUM(BN16+BN17) -> 252 | BS16: 79 | CH16: =SUM(BQ16:CG16) -> 79 | CI16: Km renseignés | CJ16: =SUM(CH16+CH17) -> 265 | CK16: Km renseignés | CL16: =SUM(BP16+CJ16) -> 517 | CN16: 9 | CO16: =VLOOKUP(CN16,A8:B188,2) -> LAMBILLON Anne | CP16: =SUM(BP40) -> 200 | CQ16: =SUM(CJ40) -> 0 | CR16: 200
C17: Ronde | AK17: 200 | BN17: =SUM(D17:BM17) -> 200 | BO17: Km confirmés | BP17: =SUM(D19:BM19) -> 0 | BS17: 186 | CH17: =SUM(BQ17:CG17) -> 186 | CI17: Km confirmés | CJ17: =SUM(BQ19:CG19) -> 0 | CK17: Km confirmés | CL17: =SUM(CJ17+BP17) -> 0 | CN17: 10 | CO17: =VLOOKUP(CN17,A8:B188,2) -> LAMIROY Anne | CP17: =SUM(BP44) -> 0 | CQ17: =SUM(CJ44) -> 0 | CR17: 0
D18: 0 | E18: 0 | F18: 0 | G18: 0 | H18: 0 | I18: 0 | J18: 0 | K18: 0 | L18: 0 | M18: 0 | N18: 0 | O18: 0 | P18: 0 | Q18: 0 | R18: 0 | S18: 0 | T18: 0 | U18: 0 | V18: 0 | W18: 0 | X18: 0 | Y18: 0 | Z18: 0 | AA18: 0 | AB18: 0 | AC18: 0 | AD18: 0 | AE18: 0 | AF18: 0 | AG18: 0 | AH18: 0 | AI18: 0 | AJ18: 0 | AK18: 0 | AL18: 0 | AM18: 0 | AN18: 0 | AO18: 0 | AP18: 0 | AQ18: 0 | AR18: 0 | AS18: 0 | AT18: 0 | AU18: 0 | AV18: 0 | AW18: 0 | AX18: 0 | AY18: 0 | AZ18: 0 | BA18: 0 | BB18: 0 | BC18: 0 | BD18: 0 | BE18: 0 | BF18: 0 | BG18: 0 | BH18: 0 | BI18: 0 | BJ18: 0 | BK18: 0 | BL18: 0 | BM18: 0 | BO18: Rondes confirmées | BP18: =SUM(C18:BM18) -> 0 | BQ18: 0 | BR18: 0 | BS18: 0 | BT18: 0 | BU18: 0 | BV18: 0 | BW18: 0 | BX18: 0 | BY18: 0 | BZ18: 0 | CA18: 0 | CB18: 0 | CC18: 0 | CD18: 0 | CE18: 0 | CF18: 0 | CG18: 0 | CI18: Rondes confirmées | CJ18: =SUM(BQ18:CH18) -> 0 | CK18: Rondes confirmées | CL18: =SUM(CJ18+BP18) -> 0 | CN18: 11 | CO18: =VLOOKUP(CN18,A8:B188,2) -> LEROY Laure | CP18: =SUM(BP48) -> 112 | CQ18: =SUM(CJ48) -> 0 | CR18: 112
D19: =SUM((D16+D17)*D18) -> 0 | E19: 0 | F19: 0 | G19: 0 | H19: 0 | I19: 0 | J19: 0 | K19: 0 | L19: 0 | M19: 0 | N19: 0 | O19: 0 | P19: 0 | Q19: 0 | R19: 0 | S19: 0 | T19: 0 | U19: 0 | V19: 0 | W19: 0 | X19: 0 | Y19: 0 | Z19: 0 | AA19: 0 | AB19: 0 | AC19: 0 | AD19: 0 | AE19: 0 | AF19: 0 | AG19: 0 | AH19: 0 | AI19: 0 | AJ19: 0 | AK19: 0 | AL19: 0 | AM19: 0 | AN19: 0 | AO19: 0 | AP19: 0 | AQ19: 0 | AR19: 0 | AS19: 0 | AT19: 0 | AU19: 0 | AV19: 0 | AW19: 0 | AX19: 0 | AY19: 0 | AZ19: 0 | BA19: 0 | BB19: 0 | BC19: 0 | BD19: 0 | BE19: 0 | BF19: 0 | BG19: 0 | BH19: 0 | BI19: 0 | BJ19: 0 | BK19: =SUM((BK16+BK17)*BK18) -> 0 | BL19: 0 | BM19: 0 | BO19: Rondes effectuées | BP19: =COUNTIF(D16:BM16,">0") -> 1 | BQ19: =SUM((BQ16+BQ17)*BQ18) -> 0 | BR19: 0 | BS19: 0 | BT19: 0 | BU19: 0 | BV19: 0 | BW19: 0 | BX19: 0 | BY19: 0 | BZ19: 0 | CA19: 0 | CB19: 0 | CC19: 0 | CD19: 0 | CE19: 0 | CF19: 0 | CG19: 0 | CI19: Rondes Effectuées | CJ19: =COUNTIF(BQ16:CG16,">0") -> 1 | CK19: Rondes effectuées | CL19: =SUM(CJ19+BP19) -> 2 | CN19: 12 | CO19: =VLOOKUP(CN19,A8:B188,2) -> NICLOUX Christine | CP19: =SUM(BP52) -> 0 | CQ19: =SUM(CJ52) -> 0 | CR19: 0
A20: 4 | B20: =VLOOKUP(A20,'Numéro licences'!$A$4:$B$32,2) -> FIEVET Nathalie | C20: Aller-Retour | BN20: =SUM(D20:BM20) -> 0 | BO20: Km renseignés | BP20: =SUM(BN20+BN21) -> 0 | CH20: =SUM(BQ20:CG20) -> 0 | CI20: Km renseignés | CJ20: =SUM(CH20+CH21) -> 0 | CK20: Km renseignés | CL20: =SUM(BP20+CJ20) -> 0 | CN20: 13 | CO20: =VLOOKUP(CN20,A8:B188,2) -> PONT Patricia | CP20: =SUM(BP56) -> 7515 | CQ20: =SUM(CJ56) -> 1003 | CR20: 8518
C21: Ronde | BN21: =SUM(D21:BM21) -> 0 | BO21: Km confirmés | BP21: =SUM(D23:BM23) -> 0 | CH21: =SUM(BQ21:CG21) -> 0 | CI21: Km confirmés | CJ21: =SUM(BQ23:CG23) -> 0 | CK21: Km confirmés | CL21: =SUM(CJ21+BP21) -> 0 | CN21: 14 | CO21: =VLOOKUP(CN21,A8:B188,2) -> THOMAS Isabelle | CP21: =SUM(BP60) -> 0 | CQ21: =SUM(CJ60) -> 0 | CR21: 0
D22: 0 | E22: 0 | F22: 0 | G22: 0 | H22: 0 | I22: 0 | J22: 0 | K22: 0 | L22: 0 | M22: 0 | N22: 0 | O22: 0 | P22: 0 | Q22: 0 | R22: 0 | S22: 0 | T22: 0 | U22: 0 | V22: 0 | W22: 0 | X22: 0 | Y22: 0 | Z22: 0 | AA22: 0 | AB22: 0 | AC22: 0 | AD22: 0 | AE22: 0 | AF22: 0 | AG22: 0 | AH22: 0 | AI22: 0 | AJ22: 0 | AK22: 0 | AL22: 0 | AM22: 0 | AN22: 0 | AO22: 0 | AP22: 0 | AQ22: 0 | AR22: 0 | AS22: 0 | AT22: 0 | AU22: 0 | AV22: 0 | AW22: 0 | AX22: 0 | AY22: 0 | AZ22: 0 | BA22: 0 | BB22: 0 | BC22: 0 | BD22: 0 | BE22: 0 | BF22: 0 | BG22: 0 | BH22: 0 | BI22: 0 | BJ22: 0 | BK22: 0 | BL22: 0 | BM22: 0 | BO22: Rondes confirmées | BP22: =SUM(C22:BM22) -> 0 | BQ22: 0 | BR22: 0 | BS22: 0 | BT22: 0 | BU22: 0 | BV22: 0 | BW22: 0 | BX22: 0 | BY22: 0 | BZ22: 0 | CA22: 0 | CB22: 0 | CC22: 0 | CD22: 0 | CE22: 0 | CF22: 0 | CG22: 0 | CI22: Rondes confirmées | CJ22: =SUM(BQ22:CH22) -> 0 | CK22: Rondes confirmées | CL22: =SUM(CJ22+BP22) -> 0 | CN22: 15 | CO22: =VLOOKUP(CN22,A8:B188,2) -> 0 | CP22: =SUM(BP64) -> 0 | CQ22: =SUM(CJ64) -> 0 | CR22: 0
D23: =SUM((D20+D21)*D22) -> 0 | E23: 0 | F23: 0 | G23: 0 | H23: 0 | I23: 0 | J23: 0 | K23: 0 | L23: 0 | M23: 0 | N23: 0 | O23: 0 | P23: 0 | Q23: 0 | R23: 0 | S23: 0 | T23: 0 | U23: 0 | V23: 0 | W23: 0 | X23: 0 | Y23: 0 | Z23: 0 | AA23: 0 | AB23: 0 | AC23: 0 | AD23: 0 | AE23: 0 | AF23: 0 | AG23: 0 | AH23: 0 | AI23: 0 | AJ23: 0 | AK23: 0 | AL23: 0 | AM23: 0 | AN23: 0 | AO23: 0 | AP23: 0 | AQ23: 0 | AR23: 0 | AS23: 0 | AT23: 0 | AU23: 0 | AV23: 0 | AW23: 0 | AX23: 0 | AY23: 0 | AZ23: 0 | BA23: 0 | BB23: 0 | BC23: 0 | BD23: 0 | BE23: 0 | BF23: 0 | BG23: 0 | BH23: 0 | BI23: 0 | BJ23: 0 | BK23: =SUM((BK20+BK21)*BK22) -> 0 | BL23: 0 | BM23: 0 | BO23: Rondes effectuées | BP23: =COUNTIF(D20:BM20,">0") -> 0 | BQ23: =SUM((BQ20+BQ21)*BQ22) -> 0 | BR23: 0 | BS23: 0 | BT23: 0 | BU23: 0 | BV23: 0 | BW23: 0 | BX23: 0 | BY23: 0 | BZ23: 0 | CA23: 0 | CB23: 0 | CC23: 0 | CD23: 0 | CE23: 0 | CF23: 0 | CG23: 0 | CI23: Rondes Effectuées | CJ23: =COUNTIF(BQ20:CG20,">0") -> 0 | CK23: Rondes effectuées | CL23: =SUM(CJ23+BP23) -> 0 | CN23: 16 | CO23: =VLOOKUP(CN23,A8:B188,2) -> 0 | CP23: =SUM(BP68) -> 0 | CQ23: =SUM(CJ68) -> 0 | CR23: 0
A24: 5 | B24: =VLOOKUP(A24,'Numéro licences'!$A$4:$B$32,2) -> GIAUX Annie | C24: Aller-Retour | BB24: 124 | BH24: 166 | BN24: =SUM(D24:BM24) -> 290 | BO24: Km renseignés | BP24: =SUM(BN24+BN25) -> 690 | BT24: 36 | CH24: =SUM(BQ24:CG24) -> 36 | CI24: Km renseignés | CJ24: =SUM(CH24+CH25) -> 156 | CK24: Km renseignés | CL24: =SUM(BP24+CJ24) -> 846 | CN24: 17 | CO24: =VLOOKUP(CN24,A8:B188,2) -> 0 | CP24: =SUM(BP72) -> 0 | CQ24: =SUM(CJ72) -> 0 | CR24: 0
C25: Ronde | BB25: 180 | BH25: 220 | BN25: =SUM(D25:BM25) -> 400 | BO25: Km confirmés | BP25: =SUM(D27:BM27) -> 0 | BT25: 120 | CH25: =SUM(BQ25:CG25) -> 120 | CI25: Km confirmés | CJ25: =SUM(BQ27:CG27) -> 0 | CK25: Km confirmés | CL25: =SUM(CJ25+BP25) -> 0 | CN25: 18 | CO25: =VLOOKUP(CN25,A8:B188,2) -> 0 | CP25: =SUM(BP76) -> 0 | CQ25: =SUM(CJ76) -> 0 | CR25: 0
D26: 0 | E26: 0 | F26: 0 | G26: 0 | H26: 0 | I26: 0 | J26: 0 | K26: 0 | L26: 0 | M26: 0 | N26: 0 | O26: 0 | P26: 0 | Q26: 0 | R26: 0 | S26: 0 | T26: 0 | U26: 0 | V26: 0 | W26: 0 | X26: 0 | Y26: 0 | Z26: 0 | AA26: 0 | AB26: 0 | AC26: 0 | AD26: 0 | AE26: 0 | AF26: 0 | AG26: 0 | AH26: 0 | AI26: 0 | AJ26: 0 | AK26: 0 | AL26: 0 | AM26: 0 | AN26: 0 | AO26: 0 | AP26: 0 | AQ26: 0 | AR26: 0 | AS26: 0 | AT26: 0 | AU26: 0 | AV26: 0 | AW26: 0 | AX26: 0 | AY26: 0 | AZ26: 0 | BA26: 0 | BB26: 0 | BC26: 0 | BD26: 0 | BE26: 0 | BF26: 0 | BG26: 0 | BH26: 0 | BI26: 0 | BJ26: 0 | BK26: 0 | BL26: 0 | BM26: 0 | BO26: Rondes confirmées | BP26: =SUM(C26:BM26) -> 0 | BQ26: 0 | BR26: 0 | BS26: 0 | BT26: 0 | BU26: 0 | BV26: 0 | BW26: 0 | BX26: 0 | BY26: 0 | BZ26: 0 | CA26: 0 | CB26: 0 | CC26: 0 | CD26: 0 | CE26: 0 | CF26: 0 | CG26: 0 | CI26: Rondes confirmées | CJ26: =SUM(BQ26:CH26) -> 0 | CK26: Rondes confirmées | CL26: =SUM(CJ26+BP26) -> 0 | CN26: 19 | CO26: =VLOOKUP(CN26,A8:B188,2) -> 0 | CP26: =SUM(BP80) -> 0 | CQ26: =SUM(CJ80) -> 0 | CR26: 0
D27: =SUM((D24+D25)*D26) -> 0 | E27: 0 | F27: 0 | G27: 0 | H27: 0 | I27: 0 | J27: 0 | K27: 0 | L27: 0 | M27: 0 | N27: 0 | O27: 0 | P27: 0 | Q27: 0 | R27: 0 | S27: 0 | T27: 0 | U27: 0 | V27: 0 | W27: 0 | X27: 0 | Y27: 0 | Z27: 0 | AA27: 0 | AB27: 0 | AC27: 0 | AD27: 0 | AE27: 0 | AF27: 0 | AG27: 0 | AH27: 0 | AI27: 0 | AJ27: 0 | AK27: 0 | AL27: 0 | AM27: 0 | AN27: 0 | AO27: 0 | AP27: 0 | AQ27: 0 | AR27: 0 | AS27: 0 | AT27: 0 | AU27: 0 | AV27: 0 | AW27: 0 | AX27: 0 | AY27: 0 | AZ27: 0 | BA27: 0 | BB27: 0 | BC27: 0 | BD27: 0 | BE27: 0 | BF27: 0 | BG27: 0 | BH27: 0 | BI27: 0 | BJ27: 0 | BK27: =SUM((BK24+BK25)*BK26) -> 0 | BL27: 0 | BM27: 0 | BO27: Rondes effectuées | BP27: =COUNTIF(D24:BM24,">0") -> 2 | BQ27: =SUM((BQ24+BQ25)*BQ26) -> 0 | BR27: 0 | BS27: 0 | BT27: 0 | BU27: 0 | BV27: 0 | BW27: 0 | BX27: 0 | BY27: 0 | BZ27: 0 | CA27: 0 | CB27: 0 | CC27: 0 | CD27: 0 | CE27: 0 | CF27: 0 | CG27: 0 | CI27: Rondes Effectuées | CJ27: =COUNTIF(BQ24:CG24,">0") -> 1 | CK27: Rondes effectuées | CL27: =SUM(CJ27+BP27) -> 3 | CN27: 20 | CO27: =VLOOKUP(CN27,A8:B188,2) -> 0 | CP27: =SUM(BP84) -> 0 | CQ27: =SUM(CJ84) -> 0 | CR27: 0
A28: 6 | B28: =VLOOKUP(A28,'Numéro licences'!$A$4:$B$32,2) -> GOFFIN Guillaume | C28: Aller-Retour | BN28: =SUM(D28:BM28) -> 0 | BO28: Km renseignés | BP28: =SUM(BN28+BN29) -> 0 | CH28: =SUM(BQ28:CG28) -> 0 | CI28: Km renseignés | CJ28: =SUM(CH28+CH29) -> 0 | CK28: Km renseignés | CL28: =SUM(BP28+CJ28) -> 0 | CN28: 21 | CO28: =VLOOKUP(CN28,A8:B188,2) -> 0 | CP28: =SUM(BP88) -> 0 | CQ28: =SUM(CJ88) -> 0 | CR28: 0
C29: Ronde | BN29: =SUM(D29:BM29) -> 0 | BO29: Km confirmés | BP29: =SUM(D31:BM31) -> 0 | CH29: =SUM(BQ29:CG29) -> 0 | CI29: Km confirmés | CJ29: =SUM(BQ31:CG31) -> 0 | CK29: Km confirmés | CL29: =SUM(CJ29+BP29) -> 0 | CN29: 22 | CO29: =VLOOKUP(CN29,A8:B188,2) -> 0 | CP29: =SUM(BP92) -> 0 | CQ29: =SUM(CJ92) -> 0 | CR29: 0
D30: 0 | E30: 0 | F30: 0 | G30: 0 | H30: 0 | I30: 0 | J30: 0 | K30: 0 | L30: 0 | M30: 0 | N30: 0 | O30: 0 | P30: 0 | Q30: 0 | R30: 0 | S30: 0 | T30: 0 | U30: 0 | V30: 0 | W30: 0 | X30: 0 | Y30: 0 | Z30: 0 | AA30: 0 | AB30: 0 | AC30: 0 | AD30: 0 | AE30: 0 | AF30: 0 | AG30: 0 | AH30: 0 | AI30: 0 | AJ30: 0 | AK30: 0 | AL30: 0 | AM30: 0 | AN30: 0 | AO30: 0 | AP30: 0 | AQ30: 0 | AR30: 0 | AS30: 0 | AT30: 0 | AU30: 0 | AV30: 0 | AW30: 0 | AX30: 0 | AY30: 0 | AZ30: 0 | BA30: 0 | BB30: 0 | BC30: 0 | BD30: 0 | BE30: 0 | BF30: 0 | BG30: 0 | BH30: 0 | BI30: 0 | BJ30: 0 | BK30: 0 | BL30: 0 | BM30: 0 | BO30: Rondes confirmées | BP30: =SUM(C30:BM30) -> 0 | BQ30: 0 | BR30: 0 | BS30: 0 | BT30: 0 | BU30: 0 | BV30: 0 | BW30: 0 | BX30: 0 | BY30: 0 | BZ30: 0 | CA30: 0 | CB30: 0 | CC30: 0 | CD30: 0 | CE30: 0 | CF30: 0 | CG30: 0 | CI30: Rondes confirmées | CJ30: =SUM(BQ30:CH30) -> 0 | CK30: Rondes confirmées | CL30: =SUM(CJ30+BP30) -> 0 | CN30: 23 | CO30: =VLOOKUP(CN30,A8:B188,2) -> 0 | CP30: =SUM(BP96) -> 0 | CQ30: =SUM(CJ96) -> 0 | CR30: 0
D31: =SUM((D28+D29)*D30) -> 0 | E31: 0 | F31: 0 | G31: 0 | H31: 0 | I31: 0 | J31: 0 | K31: 0 | L31: 0 | M31: 0 | N31: 0 | O31: 0 | P31: 0 | Q31: 0 | R31: 0 | S31: 0 | T31: 0 | U31: 0 | V31: 0 | W31: 0 | X31: 0 | Y31: 0 | Z31: 0 | AA31: 0 | AB31: 0 | AC31: 0 | AD31: 0 | AE31: 0 | AF31: 0 | AG31: 0 | AH31: 0 | AI31: 0 | AJ31: 0 | AK31: 0 | AL31: 0 | AM31: 0 | AN31: 0 | AO31: 0 | AP31: 0 | AQ31: 0 | AR31: 0 | AS31: 0 | AT31: 0 | AU31: 0 | AV31: 0 | AW31: 0 | AX31: 0 | AY31: 0 | AZ31: 0 | BA31: 0 | BB31: 0 | BC31: 0 | BD31: 0 | BE31: 0 | BF31: 0 | BG31: 0 | BH31: 0 | BI31: 0 | BJ31: 0 | BK31: =SUM((BK28+BK29)*BK30) -> 0 | BL31: 0 | BM31: 0 | BO31: Rondes effectuées | BP31: =COUNTIF(D28:BM28,">0") -> 0 | BQ31: =SUM((BQ28+BQ29)*BQ30) -> 0 | BR31: 0 | BS31: 0 | BT31: 0 | BU31: 0 | BV31: 0 | BW31: 0 | BX31: 0 | BY31: 0 | BZ31: 0 | CA31: 0 | CB31: 0 | CC31: 0 | CD31: 0 | CE31: 0 | CF31: 0 | CG31: 0 | CI31: Rondes Effectuées | CJ31: =COUNTIF(BQ28:CG28,">0") -> 0 | CK31: Rondes effectuées | CL31: =SUM(CJ31+BP31) -> 0 | CN31: 24 | CO31: =VLOOKUP(CN31,A8:B188,2) -> 0 | CP31: =SUM(BP100) -> 0 | CQ31: =SUM(CJ100) -> 0 | CR31: 0
A32: 7 | B32: =VLOOKUP(A32,'Numéro licences'!$A$4:$B$32,2) -> GREGORICS Kathy | C32: Aller-Retour | AC32: 0 | BN32: =SUM(D32:BM32) -> 0 | BO32: Km renseignés | BP32: =SUM(BN32+BN33) -> 200 | CH32: =SUM(BQ32:CG32) -> 0 | CI32: Km renseignés | CJ32: =SUM(CH32+CH33) -> 0 | CK32: Km renseignés | CL32: =SUM(BP32+CJ32) -> 200 | CN32: 25 | CO32: =VLOOKUP(CN32,A8:B188,2) -> 0 | CP32: =SUM(BP104) -> 0 | CQ32: =SUM(CJ104) -> 0 | CR32: 0
C33: Ronde | AC33: 200 | BN33: =SUM(D33:BM33) -> 200 | BO33: Km confirmés | BP33: =SUM(D35:BM35) -> 0 | CH33: =SUM(BQ33:CG33) -> 0 | CI33: Km confirmés | CJ33: =SUM(BQ35:CG35) -> 0 | CK33: Km confirmés | CL33: =SUM(CJ33+BP33) -> 0 | CN33: 26 | CO33: =VLOOKUP(CN33,A8:B188,2) -> 0 | CP33: =SUM(BP108) -> 0 | CQ33: =SUM(CJ108) -> 0 | CR33: 0
D34: 0 | E34: 0 | F34: 0 | G34: 0 | H34: 0 | I34: 0 | J34: 0 | K34: 0 | L34: 0 | M34: 0 | N34: 0 | O34: 0 | P34: 0 | Q34: 0 | R34: 0 | S34: 0 | T34: 0 | U34: 0 | V34: 0 | W34: 0 | X34: 0 | Y34: 0 | Z34: 0 | AA34: 0 | AB34: 0 | AC34: 0 | AD34: 0 | AE34: 0 | AF34: 0 | AG34: 0 | AH34: 0 | AI34: 0 | AJ34: 0 | AK34: 0 | AL34: 0 | AM34: 0 | AN34: 0 | AO34: 0 | AP34: 0 | AQ34: 0 | AR34: 0 | AS34: 0 | AT34: 0 | AU34: 0 | AV34: 0 | AW34: 0 | AX34: 0 | AY34: 0 | AZ34: 0 | BA34: 0 | BB34: 0 | BC34: 0 | BD34: 0 | BE34: 0 | BF34: 0 | BG34: 0 | BH34: 0 | BI34: 0 | BJ34: 0 | BK34: 0 | BL34: 0 | BM34: 0 | BO34: Rondes confirmées | BP34: =SUM(C34:BM34) -> 0 | BQ34: 0 | BR34: 0 | BS34: 0 | BT34: 0 | BU34: 0 | BV34: 0 | BW34: 0 | BX34: 0 | BY34: 0 | BZ34: 0 | CA34: 0 | CB34: 0 | CC34: 0 | CD34: 0 | CE34: 0 | CF34: 0 | CG34: 0 | CI34: Rondes confirmées | CJ34: =SUM(BQ34:CH34) -> 0 | CK34: Rondes confirmées | CL34: =SUM(CJ34+BP34) -> 0 | CN34: 27 | CO34: =VLOOKUP(CN34,A8:B188,2) -> 0 | CP34: =SUM(BP112) -> 0 | CQ34: =SUM(CJ112) -> 0 | CR34: 0
D35: =SUM((D32+D33)*D34) -> 0 | E35: 0 | F35: 0 | G35: 0 | H35: 0 | I35: 0 | J35: 0 | K35: 0 | L35: 0 | M35: 0 | N35: 0 | O35: 0 | P35: 0 | Q35: 0 | R35: 0 | S35: 0 | T35: 0 | U35: 0 | V35: 0 | W35: 0 | X35: 0 | Y35: 0 | Z35: 0 | AA35: 0 | AB35: 0 | AC35: 0 | AD35: 0 | AE35: 0 | AF35: 0 | AG35: 0 | AH35: 0 | AI35: 0 | AJ35: 0 | AK35: 0 | AL35: 0 | AM35: 0 | AN35: 0 | AO35: 0 | AP35: 0 | AQ35: 0 | AR35: 0 | AS35: 0 | AT35: 0 | AU35: 0 | AV35: 0 | AW35: 0 | AX35: 0 | AY35: 0 | AZ35: 0 | BA35: 0 | BB35: 0 | BC35: 0 | BD35: 0 | BE35: 0 | BF35: 0 | BG35: 0 | BH35: 0 | BI35: 0 | BJ35: 0 | BK35: =SUM((BK32+BK33)*BK34) -> 0 | BL35: 0 | BM35: 0 | BO35: Rondes effectuées | BP35: =COUNTIF(D32:BM32,">0") -> 0 | BQ35: =SUM((BQ32+BQ33)*BQ34) -> 0 | BR35: 0 | BS35: 0 | BT35: 0 | BU35: 0 | BV35: 0 | BW35: 0 | BX35: 0 | BY35: 0 | BZ35: 0 | CA35: 0 | CB35: 0 | CC35: 0 | CD35: 0 | CE35: 0 | CF35: 0 | CG35: 0 | CI35: Rondes Effectuées | CJ35: =COUNTIF(BQ32:CG32,">0") -> 0 | CK35: Rondes effectuées | CL35: =SUM(CJ35+BP35) -> 0 | CN35: 28 | CO35: =VLOOKUP(CN35,A8:B188,2) -> 0 | CP35: =SUM(BP116) -> 0 | CQ35: =SUM(CJ116) -> 0 | CR35: 0
A36: 8 | B36: =VLOOKUP(A36,'Numéro licences'!$A$4:$B$32,2) -> GRIGNET Audrey | C36: Aller-Retour | BN36: =SUM(D36:BM36) -> 0 | BO36: Km renseignés | BP36: =SUM(BN36+BN37) -> 0 | CH36: =SUM(BQ36:CG36) -> 0 | CI36: Km renseignés | CJ36: =SUM(CH36+CH37) -> 0 | CK36: Km renseignés | CL36: =SUM(BP36+CJ36) -> 0 | CN36: 29 | CO36: =VLOOKUP(CN36,A8:B188,2) -> 0 | CP36: =SUM(BP120) -> 0 | CQ36: =SUM(CJ120) -> 0 | CR36: 0
C37: Ronde | BN37: =SUM(D37:BM37) -> 0 | BO37: Km confirmés | BP37: =SUM(D39:BM39) -> 0 | CH37: =SUM(BQ37:CG37) -> 0 | CI37: Km confirmés | CJ37: =SUM(BQ39:CG39) -> 0 | CK37: Km confirmés | CL37: =SUM(CJ37+BP37) -> 0
D38: 0 | E38: 0 | F38: 0 | G38: 0 | H38: 0 | I38: 0 | J38: 0 | K38: 0 | L38: 0 | M38: 0 | N38: 0 | O38: 0 | P38: 0 | Q38: 0 | R38: 0 | S38: 0 | T38: 0 | U38: 0 | V38: 0 | W38: 0 | X38: 0 | Y38: 0 | Z38: 0 | AA38: 0 | AB38: 0 | AC38: 0 | AD38: 0 | AE38: 0 | AF38: 0 | AG38: 0 | AH38: 0 | AI38: 0 | AJ38: 0 | AK38: 0 | AL38: 0 | AM38: 0 | AN38: 0 | AO38: 0 | AP38: 0 | AQ38: 0 | AR38: 0 | AS38: 0 | AT38: 0 | AU38: 0 | AV38: 0 | AW38: 0 | AX38: 0 | AY38: 0 | AZ38: 0 | BA38: 0 | BB38: 0 | BC38: 0 | BD38: 0 | BE38: 0 | BF38: 0 | BG38: 0 | BH38: 0 | BI38: 0 | BJ38: 0 | BK38: 0 | BL38: 0 | BM38: 0 | BO38: Rondes confirmées | BP38: =SUM(C38:BM38) -> 0 | BQ38: 0 | BR38: 0 | BS38: 0 | BT38: 0 | BU38: 0 | BV38: 0 | BW38: 0 | BX38: 0 | BY38: 0 | BZ38: 0 | CA38: 0 | CB38: 0 | CC38: 0 | CD38: 0 | CE38: 0 | CF38: 0 | CG38: 0 | CI38: Rondes confirmées | CJ38: =SUM(BQ38:CH38) -> 0 | CK38: Rondes confirmées | CL38: =SUM(CJ38+BP38) -> 0
D39: =SUM((D36+D37)*D38) -> 0 | E39: 0 | F39: 0 | G39: 0 | H39: 0 | I39: 0 | J39: 0 | K39: 0 | L39: 0 | M39: 0 | N39: 0 | O39: 0 | P39: 0 | Q39: 0 | R39: 0 | S39: 0 | T39: 0 | U39: 0 | V39: 0 | W39: 0 | X39: 0 | Y39: 0 | Z39: 0 | AA39: 0 | AB39: 0 | AC39: 0 | AD39: 0 | AE39: 0 | AF39: 0 | AG39: 0 | AH39: 0 | AI39: 0 | AJ39: 0 | AK39: 0 | AL39: 0 | AM39: 0 | AN39: 0 | AO39: 0 | AP39: 0 | AQ39: 0 | AR39: 0 | AS39: 0 | AT39: 0 | AU39: 0 | AV39: 0 | AW39: 0 | AX39: 0 | AY39: 0 | AZ39: 0 | BA39: 0 | BB39: 0 | BC39: 0 | BD39: 0 | BE39: 0 | BF39: 0 | BG39: 0 | BH39: 0 | BI39: 0 | BJ39: 0 | BK39: =SUM((BK36+BK37)*BK38) -> 0 | BL39: 0 | BM39: 0 | BO39: Rondes effectuées | BP39: =COUNTIF(D36:BM36,">0") -> 0 | BQ39: =SUM((BQ36+BQ37)*BQ38) -> 0 | BR39: 0 | BS39: 0 | BT39: 0 | BU39: 0 | BV39: 0 | BW39: 0 | BX39: 0 | BY39: 0 | BZ39: 0 | CA39: 0 | CB39: 0 | CC39: 0 | CD39: 0 | CE39: 0 | CF39: 0 | CG39: 0 | CI39: Rondes Effectuées | CJ39: =COUNTIF(BQ36:CG36,">0") -> 0 | CK39: Rondes effectuées | CL39: =SUM(CJ39+BP39) -> 0
A40: 9 | B40: =VLOOKUP(A40,'Numéro licences'!$A$4:$B$32,2) -> LAMBILLON Anne | C40: Aller-Retour | AC40: 0 | BN40: =SUM(D40:BM40) -> 0 | BO40: Km renseignés | BP40: =SUM(BN40+BN41) -> 200 | CH40: =SUM(BQ40:CG40) -> 0 | CI40: Km renseignés | CJ40: =SUM(CH40+CH41) -> 0 | CK40: Km renseignés | CL40: =SUM(BP40+CJ40) -> 200
C41: Ronde | AC41: 200 | BN41: =SUM(D41:BM41) -> 200 | BO41: Km confirmés | BP41: =SUM(D43:BM43) -> 0 | CH41: =SUM(BQ41:CG41) -> 0 | CI41: Km confirmés | CJ41: =SUM(BQ43:CG43) -> 0 | CK41: Km confirmés | CL41: =SUM(CJ41+BP41) -> 0
D42: 0 | E42: 0 | F42: 0 | G42: 0 | H42: 0 | I42: 0 | J42: 0 | K42: 0 | L42: 0 | M42: 0 | N42: 0 | O42: 0 | P42: 0 | Q42: 0 | R42: 0 | S42: 0 | T42: 0 | U42: 0 | V42: 0 | W42: 0 | X42: 0 | Y42: 0 | Z42: 0 | AA42: 0 | AB42: 0 | AC42: 0 | AD42: 0 | AE42: 0 | AF42: 0 | AG42: 0 | AH42: 0 | AI42: 0 | AJ42: 0 | AK42: 0 | AL42: 0 | AM42: 0 | AN42: 0 | AO42: 0 | AP42: 0 | AQ42: 0 | AR42: 0 | AS42: 0 | AT42: 0 | AU42: 0 | AV42: 0 | AW42: 0 | AX42: 0 | AY42: 0 | AZ42: 0 | BA42: 0 | BB42: 0 | BC42: 0 | BD42: 0 | BE42: 0 | BF42: 0 | BG42: 0 | BH42: 0 | BI42: 0 | BJ42: 0 | BK42: 0 | BL42: 0 | BM42: 0 | BO42: Rondes confirmées | BP42: =SUM(C42:BM42) -> 0 | BQ42: 0 | BR42: 0 | BS42: 0 | BT42: 0 | BU42: 0 | BV42: 0 | BW42: 0 | BX42: 0 | BY42: 0 | BZ42: 0 | CA42: 0 | CB42: 0 | CC42: 0 | CD42: 0 | CE42: 0 | CF42: 0 | CG42: 0 | CI42: Rondes confirmées | CJ42: =SUM(BQ42:CH42) -> 0 | CK42: Rondes confirmées | CL42: =SUM(CJ42+BP42) -> 0 | CP42: =SUM(CP9:CP36) -> 9169 | CQ42: =SUM(CQ9:CQ36) -> 1424 | CR42: =SUM(CR8:CR36) -> 10593
D43: =SUM((D40+D41)*D42) -> 0 | E43: 0 | F43: 0 | G43: 0 | H43: 0 | I43: 0 | J43: 0 | K43: 0 | L43: 0 | M43: 0 | N43: 0 | O43: 0 | P43: 0 | Q43: 0 | R43: 0 | S43: 0 | T43: 0 | U43: 0 | V43: 0 | W43: 0 | X43: 0 | Y43: 0 | Z43: 0 | AA43: 0 | AB43: 0 | AC43: 0 | AD43: 0 | AE43: 0 | AF43: 0 | AG43: 0 | AH43: 0 | AI43: 0 | AJ43: 0 | AK43: 0 | AL43: 0 | AM43: 0 | AN43: 0 | AO43: 0 | AP43: 0 | AQ43: 0 | AR43: 0 | AS43: 0 | AT43: 0 | AU43: 0 | AV43: 0 | AW43: 0 | AX43: 0 | AY43: 0 | AZ43: 0 | BA43: 0 | BB43: 0 | BC43: 0 | BD43: 0 | BE43: 0 | BF43: 0 | BG43: 0 | BH43: 0 | BI43: 0 | BJ43: 0 | BK43: =SUM((BK40+BK41)*BK42) -> 0 | BL43: 0 | BM43: 0 | BO43: Rondes effectuées | BP43: =COUNTIF(D40:BM40,">0") -> 0 | BQ43: =SUM((BQ40+BQ41)*BQ42) -> 0 | BR43: 0 | BS43: 0 | BT43: 0 | BU43: 0 | BV43: 0 | BW43: 0 | BX43: 0 | BY43: 0 | BZ43: 0 | CA43: 0 | CB43: 0 | CC43: 0 | CD43: 0 | CE43: 0 | CF43: 0 | CG43: 0 | CI43: Rondes Effectuées | CJ43: =COUNTIF(BQ40:CG40,">0") -> 0 | CK43: Rondes effectuées | CL43: =SUM(CJ43+BP43) -> 0 | CP43: =SUM(CP42/CR42) -> 0.8655716039 | CQ43: =SUM(CQ42/CR42) -> 0.1344283961
A44: 10 | B44: =VLOOKUP(A44,'Numéro licences'!$A$4:$B$32,2) -> LAMIROY Anne | C44: Aller-Retour | BN44: =SUM(D44:BM44) -> 0 | BO44: Km renseignés | BP44: =SUM(BN44+BN45) -> 0 | CH44: =SUM(BQ44:CG44) -> 0 | CI44: Km renseignés | CJ44: =SUM(CH44+CH45) -> 0 | CK44: Km renseignés | CL44: =SUM(BP44+CJ44) -> 0 | CP44: FMB | CQ44: Hors FMB
C45: Ronde | BN45: =SUM(D45:BM45) -> 0 | BO45: Km confirmés | BP45: =SUM(D47:BM47) -> 0 | CH45: =SUM(BQ45:CG45) -> 0 | CI45: Km confirmés | CJ45: =SUM(BQ47:CG47) -> 0 | CK45: Km confirmés | CL45: =SUM(CJ45+BP45) -> 0
D46: 0 | E46: 0 | F46: 0 | G46: 0 | H46: 0 | I46: 0 | J46: 0 | K46: 0 | L46: 0 | M46: 0 | N46: 0 | O46: 0 | P46: 0 | Q46: 0 | R46: 0 | S46: 0 | T46: 0 | U46: 0 | V46: 0 | W46: 0 | X46: 0 | Y46: 0 | Z46: 0 | AA46: 0 | AB46: 0 | AC46: 0 | AD46: 0 | AE46: 0 | AF46: 0 | AG46: 0 | AH46: 0 | AI46: 0 | AJ46: 0 | AK46: 0 | AL46: 0 | AM46: 0 | AN46: 0 | AO46: 0 | AP46: 0 | AQ46: 0 | AR46: 0 | AS46: 0 | AT46: 0 | AU46: 0 | AV46: 0 | AW46: 0 | AX46: 0 | AY46: 0 | AZ46: 0 | BA46: 0 | BB46: 0 | BC46: 0 | BD46: 0 | BE46: 0 | BF46: 0 | BG46: 0 | BH46: 0 | BI46: 0 | BJ46: 0 | BK46: 0 | BL46: 0 | BM46: 0 | BO46: Rondes confirmées | BP46: =SUM(C46:BM46) -> 0 | BQ46: 0 | BR46: 0 | BS46: 0 | BT46: 0 | BU46: 0 | BV46: 0 | BW46: 0 | BX46: 0 | BY46: 0 | BZ46: 0 | CA46: 0 | CB46: 0 | CC46: 0 | CD46: 0 | CE46: 0 | CF46: 0 | CG46: 0 | CI46: Rondes confirmées | CJ46: =SUM(BQ46:CH46) -> 0 | CK46: Rondes confirmées | CL46: =SUM(CJ46+BP46) -> 0
D47: =SUM((D44+D45)*D46) -> 0 | E47: 0 | F47: 0 | G47: 0 | H47: 0 | I47: 0 | J47: 0 | K47: 0 | L47: 0 | M47: 0 | N47: 0 | O47: 0 | P47: 0 | Q47: 0 | R47: 0 | S47: 0 | T47: 0 | U47: 0 | V47: 0 | W47: 0 | X47: 0 | Y47: 0 | Z47: 0 | AA47: 0 | AB47: 0 | AC47: 0 | AD47: 0 | AE47: 0 | AF47: 0 | AG47: 0 | AH47: 0 | AI47: 0 | AJ47: 0 | AK47: 0 | AL47: 0 | AM47: 0 | AN47: 0 | AO47: 0 | AP47: 0 | AQ47: 0 | AR47: 0 | AS47: 0 | AT47: 0 | AU47: 0 | AV47: 0 | AW47: 0 | AX47: 0 | AY47: 0 | AZ47: 0 | BA47: 0 | BB47: 0 | BC47: 0 | BD47: 0 | BE47: 0 | BF47: 0 | BG47: 0 | BH47: 0 | BI47: 0 | BJ47: 0 | BK47: =SUM((BK44+BK45)*BK46) -> 0 | BL47: 0 | BM47: 0 | BO47: Rondes effectuées | BP47: =COUNTIF(D44:BM44,">0") -> 0 | BQ47: =SUM((BQ44+BQ45)*BQ46) -> 0 | BR47: 0 | BS47: 0 | BT47: 0 | BU47: 0 | BV47: 0 | BW47: 0 | BX47: 0 | BY47: 0 | BZ47: 0 | CA47: 0 | CB47: 0 | CC47: 0 | CD47: 0 | CE47: 0 | CF47: 0 | CG47: 0 | CI47: Rondes Effectuées | CJ47: =COUNTIF(BQ44:CG44,">0") -> 0 | CK47: Rondes effectuées | CL47: =SUM(CJ47+BP47) -> 0
A48: 11 | B48: =VLOOKUP(A48,'Numéro licences'!$A$4:$B$32,2) -> LEROY Laure | C48: Aller-Retour | AG48: 60 | AK48: 52 | BN48: =SUM(D48:BM48) -> 112 | BO48: Km renseignés | BP48: =SUM(BN48+BN49) -> 112 | CH48: =SUM(BQ48:CG48) -> 0 | CI48: Km renseignés | CJ48: =SUM(CH48+CH49) -> 0 | CK48: Km renseignés | CL48: =SUM(BP48+CJ48) -> 112
C49: Ronde | AG49: 0 | AK49: 0 | BN49: =SUM(D49:BM49) -> 0 | BO49: Km confirmés | BP49: =SUM(D51:BM51) -> 0 | CH49: =SUM(BQ49:CG49) -> 0 | CI49: Km confirmés | CJ49: =SUM(BQ51:CG51) -> 0 | CK49: Km confirmés | CL49: =SUM(CJ49+BP49) -> 0
D50: 0 | E50: 0 | F50: 0 | G50: 0 | H50: 0 | I50: 0 | J50: 0 | K50: 0 | L50: 0 | M50: 0 | N50: 0 | O50: 0 | P50: 0 | Q50: 0 | R50: 0 | S50: 0 | T50: 0 | U50: 0 | V50: 0 | W50: 0 | X50: 0 | Y50: 0 | Z50: 0 | AA50: 0 | AB50: 0 | AC50: 0 | AD50: 0 | AE50: 0 | AF50: 0 | AG50: 0 | AH50: 0 | AI50: 0 | AJ50: 0 | AK50: 0 | AL50: 0 | AM50: 0 | AN50: 0 | AO50: 0 | AP50: 0 | AQ50: 0 | AR50: 0 | AS50: 0 | AT50: 0 | AU50: 0 | AV50: 0 | AW50: 0 | AX50: 0 | AY50: 0 | AZ50: 0 | BA50: 0 | BB50: 0 | BC50: 0 | BD50: 0 | BE50: 0 | BF50: 0 | BG50: 0 | BH50: 0 | BI50: 0 | BJ50: 0 | BK50: 0 | BL50: 0 | BM50: 0 | BO50: Rondes confirmées | BP50: =SUM(C50:BM50) -> 0 | BQ50: 0 | BR50: 0 | BS50: 0 | BT50: 0 | BU50: 0 | BV50: 0 | BW50: 0 | BX50: 0 | BY50: 0 | BZ50: 0 | CA50: 0 | CB50: 0 | CC50: 0 | CD50: 0 | CE50: 0 | CF50: 0 | CG50: 0 | CI50: Rondes confirmées | CJ50: =SUM(BQ50:CH50) -> 0 | CK50: Rondes confirmées | CL50: =SUM(CJ50+BP50) -> 0
D51: =SUM((D48+D49)*D50) -> 0 | E51: 0 | F51: 0 | G51: 0 | H51: 0 | I51: 0 | J51: 0 | K51: 0 | L51: 0 | M51: 0 | N51: 0 | O51: 0 | P51: 0 | Q51: 0 | R51: 0 | S51: 0 | T51: 0 | U51: 0 | V51: 0 | W51: 0 | X51: 0 | Y51: 0 | Z51: 0 | AA51: 0 | AB51: 0 | AC51: 0 | AD51: 0 | AE51: 0 | AF51: 0 | AG51: 0 | AH51: 0 | AI51: 0 | AJ51: 0 | AK51: 0 | AL51: 0 | AM51: 0 | AN51: 0 | AO51: 0 | AP51: 0 | AQ51: 0 | AR51: 0 | AS51: 0 | AT51: 0 | AU51: 0 | AV51: 0 | AW51: 0 | AX51: 0 | AY51: 0 | AZ51: 0 | BA51: 0 | BB51: 0 | BC51: 0 | BD51: 0 | BE51: 0 | BF51: 0 | BG51: 0 | BH51: 0 | BI51: 0 | BJ51: 0 | BK51: =SUM((BK48+BK49)*BK50) -> 0 | BL51: 0 | BM51: 0 | BO51: Rondes effectuées | BP51: =COUNTIF(D48:BM48,">0") -> 2 | BQ51: =SUM((BQ48+BQ49)*BQ50) -> 0 | BR51: 0 | BS51: 0 | BT51: 0 | BU51: 0 | BV51: 0 | BW51: 0 | BX51: 0 | BY51: 0 | BZ51: 0 | CA51: 0 | CB51: 0 | CC51: 0 | CD51: 0 | CE51: 0 | CF51: 0 | CG51: 0 | CI51: Rondes Effectuées | CJ51: =COUNTIF(BQ48:CG48,">0") -> 0 | CK51: Rondes effectuées | CL51: =SUM(CJ51+BP51) -> 2
A52: 12 | B52: =VLOOKUP(A52,'Numéro licences'!$A$4:$B$32,2) -> NICLOUX Christine | C52: Aller-Retour | BN52: =SUM(D52:BM52) -> 0 | BO52: Km renseignés | BP52: =SUM(BN52+BN53) -> 0 | CH52: =SUM(BQ52:CG52) -> 0 | CI52: Km renseignés | CJ52: =SUM(CH52+CH53) -> 0 | CK52: Km renseignés | CL52: =SUM(BP52+CJ52) -> 0
C53: Ronde | BN53: =SUM(D53:BM53) -> 0 | BO53: Km confirmés | BP53: =SUM(D55:BM55) -> 0 | CH53: =SUM(BQ53:CG53) -> 0 | CI53: Km confirmés | CJ53: =SUM(BQ55:CG55) -> 0 | CK53: Km confirmés | CL53: =SUM(CJ53+BP53) -> 0
D54: 0 | E54: 0 | F54: 0 | G54: 0 | H54: 0 | I54: 0 | J54: 0 | K54: 0 | L54: 0 | M54: 0 | N54: 0 | O54: 0 | P54: 0 | Q54: 0 | R54: 0 | S54: 0 | T54: 0 | U54: 0 | V54: 0 | W54: 0 | X54: 0 | Y54: 0 | Z54: 0 | AA54: 0 | AB54: 0 | AC54: 0 | AD54: 0 | AE54: 0 | AF54: 0 | AG54: 0 | AH54: 0 | AI54: 0 | AJ54: 0 | AK54: 0 | AL54: 0 | AM54: 0 | AN54: 0 | AO54: 0 | AP54: 0 | AQ54: 0 | AR54: 0 | AS54: 0 | AT54: 0 | AU54: 0 | AV54: 0 | AW54: 0 | AX54: 0 | AY54: 0 | AZ54: 0 | BA54: 0 | BB54: 0 | BC54: 0 | BD54: 0 | BE54: 0 | BF54: 0 | BG54: 0 | BH54: 0 | BI54: 0 | BJ54: 0 | BK54: 0 | BL54: 0 | BM54: 0 | BO54: Rondes confirmées | BP54: 0 | BQ54: 0 | BR54: 0 | BS54: 0 | BT54: 0 | BU54: 0 | BV54: 0 | BW54: 0 | BX54: 0 | BY54: 0 | BZ54: 0 | CA54: 0 | CB54: 0 | CC54: 0 | CD54: 0 | CE54: 0 | CF54: 0 | CG54: 0 | CI54: Rondes confirmées | CJ54: =SUM(BQ54:CH54) -> 0 | CK54: Rondes confirmées | CL54: =SUM(CJ54+BP54) -> 0
D55: =SUM((D52+D53)*D54) -> 0 | E55: 0 | F55: 0 | G55: 0 | H55: 0 | I55: 0 | J55: 0 | K55: 0 | L55: 0 | M55: 0 | N55: 0 | O55: 0 | P55: 0 | Q55: 0 | R55: 0 | S55: 0 | T55: 0 | U55: 0 | V55: 0 | W55: 0 | X55: 0 | Y55: 0 | Z55: 0 | AA55: 0 | AB55: 0 | AC55: 0 | AD55: 0 | AE55: 0 | AF55: 0 | AG55: 0 | AH55: 0 | AI55: 0 | AJ55: 0 | AK55: 0 | AL55: 0 | AM55: 0 | AN55: 0 | AO55: 0 | AP55: 0 | AQ55: 0 | AR55: 0 | AS55: 0 | AT55: 0 | AU55: 0 | AV55: 0 | AW55: 0 | AX55: 0 | AY55: 0 | AZ55: 0 | BA55: 0 | BB55: 0 | BC55: 0 | BD55: 0 | BE55: 0 | BF55: 0 | BG55: 0 | BH55: 0 | BI55: 0 | BJ55: 0 | BK55: =SUM((BK52+BK53)*BK54) -> 0 | BL55: 0 | BM55: 0 | BO55: Rondes effectuées | BP55: =COUNTIF(D52:BM52,">0") -> 0 | BQ55: =SUM((BQ52+BQ53)*BQ54) -> 0 | BR55: 0 | BS55: 0 | BT55: 0 | BU55: 0 | BV55: 0 | BW55: 0 | BX55: 0 | BY55: 0 | BZ55: 0 | CA55: 0 | CB55: 0 | CC55: 0 | CD55: 0 | CE55: 0 | CF55: 0 | CG55: 0 | CI55: Rondes Effectuées | CJ55: =COUNTIF(BQ52:CG52,">0") -> 0 | CK55: Rondes effectuées | CL55: =SUM(CJ55+BP55) -> 0
A56: 13 | B56: =VLOOKUP(A56,'Numéro licences'!$A$4:$B$32,2) -> PONT Patricia | C56: Aller-Retour | V56: 124 | X56: 124 | Z56: 38 | AC56: 0 | AF56: 148 | AG56: 60 | AH56: 140 | AK56: 52 | AL56: 344 | AM56: 162 | AP56: 176 | AT56: 380 | AW56: 186 | AZ56: 60 | BB56: 124 | BE56: 140 | BF56: 218 | BH56: 166 | BJ56: 174 | BK56: 176 | BL56: 108 | BM56: 52 | BN56: =SUM(D56:BM56) -> 3152 | BO56: Km renseignés | BP56: =SUM(BN56+BN57) -> 7515 | BQ56: 166 | BR56: 0 | BS56: 79 | BT56: 36 | CH56: =SUM(BQ56:CG56) -> 281 | CI56: Km renseignés | CJ56: =SUM(CH56+CH57) -> 1003 | CK56: Km renseignés | CL56: =SUM(BP56+CJ56) -> 8518
C57: Ronde | V57: 215 | X57: 195 | Z57: 513 | AC57: 200 | AF57: 200 | AG57: 210 | AH57: 180 | AK57: 200 | AL57: 300 | AM57: 220 | AP57: 250 | AT57: 0 | AW57: 166 | AZ57: 194 | BB57: 180 | BE57: 165 | BF57: 170 | BH57: 220 | BJ57: 165 | BK57: 140 | BL57: 150 | BM57: 130 | BN57: =SUM(D57:BM57) -> 4363 | BO57: Km confirmés | BP57: =SUM(D59:BM59) -> 7515 | BQ57: 216 | BR57: 200 | BS57: 186 | BT57: 120 | CH57: =SUM(BQ57:CG57) -> 722 | CI57: Km confirmés | CJ57: =SUM(BQ59:CG59) -> 1003 | CK57: Km confirmés | CL57: =SUM(CJ57+BP57) -> 8518
D58: 0 | E58: 0 | F58: 0 | G58: 0 | H58: 0 | I58: 0 | J58: 0 | K58: 0 | L58: 0 | M58: 0 | N58: 0 | O58: 0 | P58: 0 | Q58: 0 | R58: 0 | S58: 0 | T58: 0 | U58: 0 | V58: 1 | W58: 0 | X58: 1 | Y58: 0 | Z58: 1 | AA58: 0 | AB58: 0 | AC58: 1 | AD58: 0 | AE58: 0 | AF58: 1 | AG58: 1 | AH58: 1 | AI58: 0 | AJ58: 0 | AK58: 1 | AL58: 1 | AM58: 1 | AN58: 0 | AO58: 0 | AP58: 1 | AQ58: 0 | AR58: 0 | AS58: 0 | AT58: 1 | AU58: 0 | AV58: 0 | AW58: 1 | AX58: 0 | AY58: 0 | AZ58: 1 | BA58: 0 | BB58: 1 | BC58: 0 | BD58: 0 | BE58: 1 | BF58: 1 | BG58: 0 | BH58: 1 | BI58: 0 | BJ58: 1 | BK58: 1 | BL58: 1 | BM58: 1 | BO58: Rondes confirmées | BP58: =SUM(C58:BM58) -> 22 | BQ58: 1 | BR58: 1 | BS58: 1 | BT58: 1 | BU58: 0 | BV58: 0 | BW58: 0 | BX58: 0 | BY58: 0 | BZ58: 0 | CA58: 0 | CB58: 0 | CC58: 0 | CD58: 0 | CE58: 0 | CF58: 0 | CG58: 0 | CI58: Rondes confirmées | CJ58: =SUM(BQ58:CH58) -> 4 | CK58: Rondes confirmées | CL58: =SUM(CJ58+BP58) -> 26
D59: =SUM((D56+D57)*D58) -> 0 | E59: 0 | F59: 0 | G59: 0 | H59: 0 | I59: 0 | J59: 0 | K59: 0 | L59: 0 | M59: 0 | N59: 0 | O59: 0 | P59: 0 | Q59: 0 | R59: 0 | S59: 0 | T59: 0 | U59: 0 | V59: 339 | W59: 0 | X59: 319 | Y59: 0 | Z59: 551 | AA59: 0 | AB59: 0 | AC59: 200 | AD59: 0 | AE59: 0 | AF59: 348 | AG59: 270 | AH59: 320 | AI59: 0 | AJ59: 0 | AK59: 252 | AL59: 644 | AM59: 382 | AN59: 0 | AO59: 0 | AP59: 426 | AQ59: 0 | AR59: 0 | AS59: 0 | AT59: 380 | AU59: 0 | AV59: 0 | AW59: 352 | AX59: 0 | AY59: 0 | AZ59: 254 | BA59: 0 | BB59: 304 | BC59: 0 | BD59: 0 | BE59: 305 | BF59: 388 | BG59: 0 | BH59: 386 | BI59: 0 | BJ59: =SUM((BJ56+BJ57)*BJ58) -> 339 | BK59: 316 | BL59: 258 | BM59: 182 | BO59: Rondes effectuées | BP59: =COUNTIF(D56:BM56,">0") -> 21 | BQ59: =SUM((BQ56+BQ57)*BQ58) -> 382 | BR59: 200 | BS59: 265 | BT59: 156 | BU59: 0 | BV59: 0 | BW59: 0 | BX59: 0 | BY59: 0 | BZ59: 0 | CA59: 0 | CB59: 0 | CC59: 0 | CD59: 0 | CE59: 0 | CF59: 0 | CG59: 0 | CI59: Rondes Effectuées | CJ59: =COUNTIF(BQ56:CG56,">0") -> 3 | CK59: Rondes effectuées | CL59: =SUM(CJ59+BP59) -> 24
A60: 14 | B60: =VLOOKUP(A60,'Numéro licences'!$A$4:$B$32,2) -> THOMAS Isabelle | C60: Aller-Retour | BN60: =SUM(D60:BM60) -> 0 | BO60: Km renseignés | BP60: =SUM(BN60+BN61) -> 0 | CH60: =SUM(BQ60:CG60) -> 0 | CI60: Km renseignés | CJ60: =SUM(CH60+CH61) -> 0 | CK60: Km renseignés | CL60: =SUM(BP60+CJ60) -> 0
C61: Ronde | BN61: =SUM(D61:BM61) -> 0 | BO61: Km confirmés | BP61: =SUM(D63:BM63) -> 0 | CH61: =SUM(BQ61:CG61) -> 0 | CI61: Km confirmés | CJ61: =SUM(BQ63:CG63) -> 0 | CK61: Km confirmés | CL61: =SUM(CJ61+BP61) -> 0
D62: 0 | E62: 0 | F62: 0 | G62: 0 | H62: 0 | I62: 0 | J62: 0 | K62: 0 | L62: 0 | M62: 0 | N62: 0 | O62: 0 | P62: 0 | Q62: 0 | R62: 0 | S62: 0 | T62: 0 | U62: 0 | V62: 0 | W62: 0 | X62: 0 | Y62: 0 | Z62: 0 | AA62: 0 | AB62: 0 | AC62: 0 | AD62: 0 | AE62: 0 | AF62: 0 | AG62: 0 | AH62: 0 | AI62: 0 | AJ62: 0 | AK62: 0 | AL62: 0 | AM62: 0 | AN62: 0 | AO62: 0 | AP62: 0 | AQ62: 0 | AR62: 0 | AS62: 0 | AT62: 0 | AU62: 0 | AV62: 0 | AW62: 0 | AX62: 0 | AY62: 0 | AZ62: 0 | BA62: 0 | BB62: 0 | BC62: 0 | BD62: 0 | BE62: 0 | BF62: 0 | BG62: 0 | BH62: 0 | BI62: 0 | BJ62: 0 | BK62: 0 | BL62: 0 | BM62: 0 | BO62: Rondes confirmées | BP62: =SUM(C62:BM62) -> 0 | BQ62: 0 | BR62: 0 | BS62: 0 | BT62: 0 | BU62: 0 | BV62: 0 | BW62: 0 | BX62: 0 | BY62: 0 | BZ62: 0 | CA62: 0 | CB62: 0 | CC62: 0 | CD62: 0 | CE62: 0 | CF62: 0 | CG62: 0 | CI62: Rondes confirmées | CJ62: =SUM(BQ62:CH62) -> 0 | CK62: Rondes confirmées | CL62: =SUM(CJ62+BP62) -> 0
D63: =SUM((D60+D61)*D62) -> 0 | E63: 0 | F63: 0 | G63: 0 | H63: 0 | I63: 0 | J63: 0 | K63: 0 | L63: 0 | M63: 0 | N63: 0 | O63: 0 | P63: 0 | Q63: 0 | R63: 0 | S63: 0 | T63: 0 | U63: 0 | V63: 0 | W63: 0 | X63: 0 | Y63: 0 | Z63: 0 | AA63: 0 | AB63: 0 | AC63: 0 | AD63: 0 | AE63: 0 | AF63: 0 | AG63: 0 | AH63: 0 | AI63: 0 | AJ63: 0 | AK63: 0 | AL63: 0 | AM63: 0 | AN63: 0 | AO63: 0 | AP63: 0 | AQ63: 0 | AR63: 0 | AS63: 0 | AT63: 0 | AU63: 0 | AV63: 0 | AW63: 0 | AX63: 0 | AY63: 0 | AZ63: 0 | BA63: 0 | BB63: 0 | BC63: 0 | BD63: 0 | BE63: 0 | BF63: 0 | BG63: 0 | BH63: 0 | BI63: 0 | BJ63: 0 | BK63: =SUM((BK60+BK61)*BK62) -> 0 | BL63: 0 | BM63: 0 | BO63: Rondes effectuées | BP63: =COUNTIF(D60:BM60,">0") -> 0 | BQ63: =SUM((BQ60+BQ61)*BQ62) -> 0 | BR63: 0 | BS63: 0 | BT63: 0 | BU63: 0 | BV63: 0 | BW63: 0 | BX63: 0 | BY63: 0 | BZ63: 0 | CA63: 0 | CB63: 0 | CC63: 0 | CD63: 0 | CE63: 0 | CF63: 0 | CG63: 0 | CI63: Rondes Effectuées | CJ63: =COUNTIF(BQ60:CG60,">0") -> 0 | CK63: Rondes effectuées | CL63: =SUM(CJ63+BP63) -> 0
A64: 15 | B64: =VLOOKUP(A64,'Numéro licences'!$A$4:$B$32,2) -> 0 | C64: Aller-Retour | BN64: =SUM(D64:BM64) -> 0 | BO64: Km renseignés | BP64: =SUM(BN64+BN65) -> 0 | CH64: =SUM(BQ64:CG64) -> 0 | CI64: Km renseignés | CJ64: =SUM(CH64+CH65) -> 0 | CK64: Km renseignés | CL64: =SUM(BP64+CJ64) -> 0
C65: Ronde | BN65: =SUM(D65:BM65) -> 0 | BO65: Km confirmés | BP65: =SUM(D67:BM67) -> 0 | CH65: =SUM(BQ65:CG65) -> 0 | CI65: Km confirmés | CJ65: =SUM(BQ67:CG67) -> 0 | CK65: Km confirmés | CL65: =SUM(CJ65+BP65) -> 0
D66: 0 | E66: 0 | F66: 0 | G66: 0 | H66: 0 | I66: 0 | J66: 0 | K66: 0 | L66: 0 | M66: 0 | N66: 0 | O66: 0 | P66: 0 | Q66: 0 | R66: 0 | S66: 0 | T66: 0 | U66: 0 | V66: 0 | W66: 0 | X66: 0 | Y66: 0 | Z66: 0 | AA66: 0 | AB66: 0 | AC66: 0 | AD66: 0 | AE66: 0 | AF66: 0 | AG66: 0 | AH66: 0 | AI66: 0 | AJ66: 0 | AK66: 0 | AL66: 0 | AM66: 0 | AN66: 0 | AO66: 0 | AP66: 0 | AQ66: 0 | AR66: 0 | AS66: 0 | AT66: 0 | AU66: 0 | AV66: 0 | AW66: 0 | AX66: 0 | AY66: 0 | AZ66: 0 | BA66: 0 | BB66: 0 | BC66: 0 | BD66: 0 | BE66: 0 | BF66: 0 | BG66: 0 | BH66: 0 | BI66: 0 | BJ66: 0 | BK66: 0 | BL66: 0 | BM66: 0 | BO66: Rondes confirmées | BP66: =SUM(C66:BM66) -> 0 | BQ66: 0 | BR66: 0 | BS66: 0 | BT66: 0 | BU66: 0 | BV66: 0 | BW66: 0 | BX66: 0 | BY66: 0 | BZ66: 0 | CA66: 0 | CB66: 0 | CC66: 0 | CD66: 0 | CE66: 0 | CF66: 0 | CG66: 0 | CI66: Rondes confirmées | CJ66: =SUM(BQ66:CH66) -> 0 | CK66: Rondes confirmées | CL66: =SUM(CJ66+BP66) -> 0
D67: =SUM((D64+D65)*D66) -> 0 | E67: 0 | F67: 0 | G67: 0 | H67: 0 | I67: 0 | J67: 0 | K67: 0 | L67: 0 | M67: 0 | N67: 0 | O67: 0 | P67: 0 | Q67: 0 | R67: 0 | S67: 0 | T67: 0 | U67: 0 | V67: 0 | W67: 0 | X67: 0 | Y67: 0 | Z67: 0 | AA67: 0 | AB67: 0 | AC67: 0 | AD67: 0 | AE67: 0 | AF67: 0 | AG67: 0 | AH67: 0 | AI67: 0 | AJ67: 0 | AK67: 0 | AL67: 0 | AM67: 0 | AN67: 0 | AO67: 0 | AP67: 0 | AQ67: 0 | AR67: 0 | AS67: 0 | AT67: 0 | AU67: 0 | AV67: 0 | AW67: 0 | AX67: 0 | AY67: 0 | AZ67: 0 | BA67: 0 | BB67: 0 | BC67: 0 | BD67: 0 | BE67: 0 | BF67: 0 | BG67: 0 | BH67: 0 | BI67: 0 | BJ67: 0 | BK67: =SUM((BK64+BK65)*BK66) -> 0 | BL67: 0 | BM67: 0 | BO67: Rondes effectuées | BP67: =COUNTIF(D64:BM64,">0") -> 0 | BQ67: =SUM((BQ64+BQ65)*BQ66) -> 0 | BR67: 0 | BS67: 0 | BT67: 0 | BU67: 0 | BV67: 0 | BW67: 0 | BX67: 0 | BY67: 0 | BZ67: 0 | CA67: 0 | CB67: 0 | CC67: 0 | CD67: 0 | CE67: 0 | CF67: 0 | CG67: 0 | CI67: Rondes Effectuées | CJ67: =COUNTIF(BQ64:CG64,">0") -> 0 | CK67: Rondes effectuées | CL67: =SUM(CJ67+BP67) -> 0
A68: 16 | B68: =VLOOKUP(A68,'Numéro licences'!$A$4:$B$32,2) -> 0 | C68: Aller-Retour | BN68: =SUM(D68:BM68) -> 0 | BO68: Km renseignés | BP68: =SUM(BN68+BN69) -> 0 | CH68: =SUM(BQ68:CG68) -> 0 | CI68: Km renseignés | CJ68: =SUM(CH68+CH69) -> 0 | CK68: Km renseignés | CL68: =SUM(BP68+CJ68) -> 0
C69: Ronde | BN69: =SUM(D69:BM69) -> 0 | BO69: Km confirmés | BP69: =SUM(D71:BM71) -> 0 | CH69: =SUM(BQ69:CG69) -> 0 | CI69: Km confirmés | CJ69: =SUM(BQ71:CG71) -> 0 | CK69: Km confirmés | CL69: =SUM(CJ69+BP69) -> 0
D70: 0 | E70: 0 | F70: 0 | G70: 0 | H70: 0 | I70: 0 | J70: 0 | K70: 0 | L70: 0 | M70: 0 | N70: 0 | O70: 0 | P70: 0 | Q70: 0 | R70: 0 | S70: 0 | T70: 0 | U70: 0 | V70: 0 | W70: 0 | X70: 0 | Y70: 0 | Z70: 0 | AA70: 0 | AB70: 0 | AC70: 0 | AD70: 0 | AE70: 0 | AF70: 0 | AG70: 0 | AH70: 0 | AI70: 0 | AJ70: 0 | AK70: 0 | AL70: 0 | AM70: 0 | AN70: 0 | AO70: 0 | AP70: 0 | AQ70: 0 | AR70: 0 | AS70: 0 | AT70: 0 | AU70: 0 | AV70: 0 | AW70: 0 | AX70: 0 | AY70: 0 | AZ70: 0 | BA70: 0 | BB70: 0 | BC70: 0 | BD70: 0 | BE70: 0 | BF70: 0 | BG70: 0 | BH70: 0 | BI70: 0 | BJ70: 0 | BK70: 0 | BL70: 0 | BM70: 0 | BO70: Rondes confirmées | BP70: =SUM(C70:BM70) -> 0 | BQ70: 0 | BR70: 0 | BS70: 0 | BT70: 0 | BU70: 0 | BV70: 0 | BW70: 0 | BX70: 0 | BY70: 0 | BZ70: 0 | CA70: 0 | CB70: 0 | CC70: 0 | CD70: 0 | CE70: 0 | CF70: 0 | CG70: 0 | CI70: Rondes confirmées | CJ70: =SUM(BQ70:CH70) -> 0 | CK70: Rondes confirmées | CL70: =SUM(CJ70+BP70) -> 0
D71: =SUM((D68+D69)*D70) -> 0 | E71: 0 | F71: 0 | G71: 0 | H71: 0 | I71: 0 | J71: 0 | K71: 0 | L71: 0 | M71: 0 | N71: 0 | O71: 0 | P71: 0 | Q71: 0 | R71: 0 | S71: 0 | T71: 0 | U71: 0 | V71: 0 | W71: 0 | X71: 0 | Y71: 0 | Z71: 0 | AA71: 0 | AB71: 0 | AC71: 0 | AD71: 0 | AE71: 0 | AF71: 0 | AG71: 0 | AH71: 0 | AI71: 0 | AJ71: 0 | AK71: 0 | AL71: 0 | AM71: 0 | AN71: 0 | AO71: 0 | AP71: 0 | AQ71: 0 | AR71: 0 | AS71: 0 | AT71: 0 | AU71: 0 | AV71: 0 | AW71: 0 | AX71: 0 | AY71: 0 | AZ71: 0 | BA71: 0 | BB71: 0 | BC71: 0 | BD71: 0 | BE71: 0 | BF71: 0 | BG71: 0 | BH71: 0 | BI71: 0 | BJ71: 0 | BK71: =SUM((BK68+BK69)*BK70) -> 0 | BL71: 0 | BM71: 0 | BO71: Rondes effectuées | BP71: =COUNTIF(D68:BM68,">0") -> 0 | BQ71: =SUM((BQ68+BQ69)*BQ70) -> 0 | BR71: 0 | BS71: 0 | BT71: 0 | BU71: 0 | BV71: 0 | BW71: 0 | BX71: 0 | BY71: 0 | BZ71: 0 | CA71: 0 | CB71: 0 | CC71: 0 | CD71: 0 | CE71: 0 | CF71: 0 | CG71: 0 | CI71: Rondes Effectuées | CJ71: =COUNTIF(BQ68:CG68,">0") -> 0 | CK71: Rondes effectuées | CL71: =SUM(CJ71+BP71) -> 0
A72: 17 | B72: =VLOOKUP(A72,'Numéro licences'!$A$4:$B$32,2) -> 0 | C72: Aller-Retour | BN72: =SUM(D72:BM72) -> 0 | BO72: Km renseignés | BP72: =SUM(BN72+BN73) -> 0 | CH72: =SUM(BQ72:CG72) -> 0 | CI72: Km renseignés | CJ72: =SUM(CH72+CH73) -> 0 | CK72: Km renseignés | CL72: =SUM(BP72+CJ72) -> 0
C73: Ronde | BN73: =SUM(D73:BM73) -> 0 | BO73: Km confirmés | BP73: =SUM(D75:BM75) -> 0 | CH73: =SUM(BQ73:CG73) -> 0 | CI73: Km confirmés | CJ73: =SUM(BQ75:CG75) -> 0 | CK73: Km confirmés | CL73: =SUM(CJ73+BP73) -> 0
D74: 0 | E74: 0 | F74: 0 | G74: 0 | H74: 0 | I74: 0 | J74: 0 | K74: 0 | L74: 0 | M74: 0 | N74: 0 | O74: 0 | P74: 0 | Q74: 0 | R74: 0 | S74: 0 | T74: 0 | U74: 0 | V74: 0 | W74: 0 | X74: 0 | Y74: 0 | Z74: 0 | AA74: 0 | AB74: 0 | AC74: 0 | AD74: 0 | AE74: 0 | AF74: 0 | AG74: 0 | AH74: 0 | AI74: 0 | AJ74: 0 | AK74: 0 | AL74: 0 | AM74: 0 | AN74: 0 | AO74: 0 | AP74: 0 | AQ74: 0 | AR74: 0 | AS74: 0 | AT74: 0 | AU74: 0 | AV74: 0 | AW74: 0 | AX74: 0 | AY74: 0 | AZ74: 0 | BA74: 0 | BB74: 0 | BC74: 0 | BD74: 0 | BE74: 0 | BF74: 0 | BG74: 0 | BH74: 0 | BI74: 0 | BJ74: 0 | BK74: 0 | BL74: 0 | BM74: 0 | BO74: Rondes confirmées | BP74: =SUM(C74:BM74) -> 0 | BQ74: 0 | BR74: 0 | BS74: 0 | BT74: 0 | BU74: 0 | BV74: 0 | BW74: 0 | BX74: 0 | BY74: 0 | BZ74: 0 | CA74: 0 | CB74: 0 | CC74: 0 | CD74: 0 | CE74: 0 | CF74: 0 | CG74: 0 | CI74: Rondes confirmées | CJ74: =SUM(BQ74:CH74) -> 0 | CK74: Rondes confirmées | CL74: =SUM(CJ74+BP74) -> 0
D75: =SUM((D72+D73)*D74) -> 0 | E75: 0 | F75: 0 | G75: 0 | H75: 0 | I75: 0 | J75: 0 | K75: 0 | L75: 0 | M75: 0 | N75: 0 | O75: 0 | P75: 0 | Q75: 0 | R75: 0 | S75: 0 | T75: 0 | U75: 0 | V75: 0 | W75: 0 | X75: 0 | Y75: 0 | Z75: 0 | AA75: 0 | AB75: 0 | AC75: 0 | AD75: 0 | AE75: 0 | AF75: 0 | AG75: 0 | AH75: 0 | AI75: 0 | AJ75: 0 | AK75: 0 | AL75: 0 | AM75: 0 | AN75: 0 | AO75: 0 | AP75: 0 | AQ75: 0 | AR75: 0 | AS75: 0 | AT75: 0 | AU75: 0 | AV75: 0 | AW75: 0 | AX75: 0 | AY75: 0 | AZ75: 0 | BA75: 0 | BB75: 0 | BC75: 0 | BD75: 0 | BE75: 0 | BF75: 0 | BG75: 0 | BH75: 0 | BI75: 0 | BJ75: 0 | BK75: =SUM((BK72+BK73)*BK74) -> 0 | BL75: 0 | BM75: 0 | BO75: Rondes effectuées | BP75: =COUNTIF(D72:BM72,">0") -> 0 | BQ75: =SUM((BQ72+BQ73)*BQ74) -> 0 | BR75: 0 | BS75: 0 | BT75: 0 | BU75: 0 | BV75: 0 | BW75: 0 | BX75: 0 | BY75: 0 | BZ75: 0 | CA75: 0 | CB75: 0 | CC75: 0 | CD75: 0 | CE75: 0 | CF75: 0 | CG75: 0 | CI75: Rondes Effectuées | CJ75: =COUNTIF(BQ72:CG72,">0") -> 0 | CK75: Rondes effectuées | CL75: =SUM(CJ75+BP75) -> 0
A76: 18 | B76: =VLOOKUP(A76,'Numéro licences'!$A$4:$B$32,2) -> 0 | C76: Aller-Retour | BN76: =SUM(D76:BM76) -> 0 | BO76: Km renseignés | BP76: =SUM(BN76+BN77) -> 0 | CH76: =SUM(BQ76:CG76) -> 0 | CI76: Km renseignés | CJ76: =SUM(CH76+CH77) -> 0 | CK76: Km renseignés | CL76: =SUM(BP76+CJ76) -> 0
C77: Ronde | BN77: =SUM(D77:BM77) -> 0 | BO77: Km confirmés | BP77: =SUM(D79:BM79) -> 0 | CH77: =SUM(BQ77:CG77) -> 0 | CI77: Km confirmés | CJ77: =SUM(BQ79:CG79) -> 0 | CK77: Km confirmés | CL77: =SUM(CJ77+BP77) -> 0
D78: 0 | E78: 0 | F78: 0 | G78: 0 | H78: 0 | I78: 0 | J78: 0 | K78: 0 | L78: 0 | M78: 0 | N78: 0 | O78: 0 | P78: 0 | Q78: 0 | R78: 0 | S78: 0 | T78: 0 | U78: 0 | V78: 0 | W78: 0 | X78: 0 | Y78: 0 | Z78: 0 | AA78: 0 | AB78: 0 | AC78: 0 | AD78: 0 | AE78: 0 | AF78: 0 | AG78: 0 | AH78: 0 | AI78: 0 | AJ78: 0 | AK78: 0 | AL78: 0 | AM78: 0 | AN78: 0 | AO78: 0 | AP78: 0 | AQ78: 0 | AR78: 0 | AS78: 0 | AT78: 0 | AU78: 0 | AV78: 0 | AW78: 0 | AX78: 0 | AY78: 0 | AZ78: 0 | BA78: 0 | BB78: 0 | BC78: 0 | BD78: 0 | BE78: 0 | BF78: 0 | BG78: 0 | BH78: 0 | BI78: 0 | BJ78: 0 | BK78: 0 | BL78: 0 | BM78: 0 | BO78: Rondes confirmées | BP78: =SUM(C78:BM78) -> 0 | BQ78: 0 | BR78: 0 | BS78: 0 | BT78: 0 | BU78: 0 | BV78: 0 | BW78: 0 | BX78: 0 | BY78: 0 | BZ78: 0 | CA78: 0 | CB78: 0 | CC78: 0 | CD78: 0 | CE78: 0 | CF78: 0 | CG78: 0 | CI78: Rondes confirmées | CJ78: =SUM(BQ78:CH78) -> 0 | CK78: Rondes confirmées | CL78: =SUM(CJ78+BP78) -> 0
D79: =SUM((D76+D77)*D78) -> 0 | E79: 0 | F79: 0 | G79: 0 | H79: 0 | I79: 0 | J79: 0 | K79: 0 | L79: 0 | M79: 0 | N79: 0 | O79: 0 | P79: 0 | Q79: 0 | R79: 0 | S79: 0 | T79: 0 | U79: 0 | V79: 0 | W79: 0 | X79: 0 | Y79: 0 | Z79: 0 | AA79: 0 | AB79: 0 | AC79: 0 | AD79: 0 | AE79: 0 | AF79: 0 | AG79: 0 | AH79: 0 | AI79: 0 | AJ79: 0 | AK79: 0 | AL79: 0 | AM79: 0 | AN79: 0 | AO79: 0 | AP79: 0 | AQ79: 0 | AR79: 0 | AS79: 0 | AT79: 0 | AU79: 0 | AV79: 0 | AW79: 0 | AX79: 0 | AY79: 0 | AZ79: 0 | BA79: 0 | BB79: 0 | BC79: 0 | BD79: 0 | BE79: 0 | BF79: 0 | BG79: 0 | BH79: 0 | BI79: 0 | BJ79: 0 | BK79: =SUM((BK76+BK77)*BK78) -> 0 | BL79: 0 | BM79: 0 | BO79: Rondes effectuées | BP79: =COUNTIF(D76:BM76,">0") -> 0 | BQ79: =SUM((BQ76+BQ77)*BQ78) -> 0 | BR79: 0 | BS79: 0 | BT79: 0 | BU79: 0 | BV79: 0 | BW79: 0 | BX79: 0 | BY79: 0 | BZ79: 0 | CA79: 0 | CB79: 0 | CC79: 0 | CD79: 0 | CE79: 0 | CF79: 0 | CG79: 0 | CI79: Rondes Effectuées | CJ79: =COUNTIF(BQ76:CG76,">0") -> 0 | CK79: Rondes effectuées | CL79: =SUM(CJ79+BP79) -> 0
A80: 19 | B80: =VLOOKUP(A80,'Numéro licences'!$A$4:$B$32,2) -> 0 | C80: Aller-Retour | BN80: =SUM(D80:BM80) -> 0 | BO80: Km renseignés | BP80: =SUM(BN80+BN81) -> 0 | CH80: =SUM(BQ80:CG80) -> 0 | CI80: Km renseignés | CJ80: =SUM(CH80+CH81) -> 0 | CK80: Km renseignés | CL80: =SUM(BP80+CJ80) -> 0
C81: Ronde | BN81: =SUM(D81:BM81) -> 0 | BO81: Km confirmés | BP81: =SUM(D83:BM83) -> 0 | CH81: =SUM(BQ81:CG81) -> 0 | CI81: Km confirmés | CJ81: =SUM(BQ83:CG83) -> 0 | CK81: Km confirmés | CL81: =SUM(CJ81+BP81) -> 0
D82: 0 | E82: 0 | F82: 0 | G82: 0 | H82: 0 | I82: 0 | J82: 0 | K82: 0 | L82: 0 | M82: 0 | N82: 0 | O82: 0 | P82: 0 | Q82: 0 | R82: 0 | S82: 0 | T82: 0 | U82: 0 | V82: 0 | W82: 0 | X82: 0 | Y82: 0 | Z82: 0 | AA82: 0 | AB82: 0 | AC82: 0 | AD82: 0 | AE82: 0 | AF82: 0 | AG82: 0 | AH82: 0 | AI82: 0 | AJ82: 0 | AK82: 0 | AL82: 0 | AM82: 0 | AN82: 0 | AO82: 0 | AP82: 0 | AQ82: 0 | AR82: 0 | AS82: 0 | AT82: 0 | AU82: 0 | AV82: 0 | AW82: 0 | AX82: 0 | AY82: 0 | AZ82: 0 | BA82: 0 | BB82: 0 | BC82: 0 | BD82: 0 | BE82: 0 | BF82: 0 | BG82: 0 | BH82: 0 | BI82: 0 | BJ82: 0 | BK82: 0 | BL82: 0 | BM82: 0 | BO82: Rondes confirmées | BP82: =SUM(C82:BM82) -> 0 | BQ82: 0 | BR82: 0 | BS82: 0 | BT82: 0 | BU82: 0 | BV82: 0 | BW82: 0 | BX82: 0 | BY82: 0 | BZ82: 0 | CA82: 0 | CB82: 0 | CC82: 0 | CD82: 0 | CE82: 0 | CF82: 0 | CG82: 0 | CI82: Rondes confirmées | CJ82: =SUM(BQ82:CH82) -> 0 | CK82: Rondes confirmées | CL82: =SUM(CJ82+BP82) -> 0
D83: =SUM((D80+D81)*D82) -> 0 | E83: 0 | F83: 0 | G83: 0 | H83: 0 | I83: 0 | J83: 0 | K83: 0 | L83: 0 | M83: 0 | N83: 0 | O83: 0 | P83: 0 | Q83: 0 | R83: 0 | S83: 0 | T83: 0 | U83: 0 | V83: 0 | W83: 0 | X83: 0 | Y83: 0 | Z83: 0 | AA83: 0 | AB83: 0 | AC83: 0 | AD83: 0 | AE83: 0 | AF83: 0 | AG83: 0 | AH83: 0 | AI83: 0 | AJ83: 0 | AK83: 0 | AL83: 0 | AM83: 0 | AN83: 0 | AO83: 0 | AP83: 0 | AQ83: 0 | AR83: 0 | AS83: 0 | AT83: 0 | AU83: 0 | AV83: 0 | AW83: 0 | AX83: 0 | AY83: 0 | AZ83: 0 | BA83: 0 | BB83: 0 | BC83: 0 | BD83: 0 | BE83: 0 | BF83: 0 | BG83: 0 | BH83: 0 | BI83: 0 | BJ83: 0 | BK83: =SUM((BK80+BK81)*BK82) -> 0 | BL83: 0 | BM83: 0 | BO83: Rondes effectuées | BP83: =COUNTIF(D80:BM80,">0") -> 0 | BQ83: =SUM((BQ80+BQ81)*BQ82) -> 0 | BR83: 0 | BS83: 0 | BT83: 0 | BU83: 0 | BV83: 0 | BW83: 0 | BX83: 0 | BY83: 0 | BZ83: 0 | CA83: 0 | CB83: 0 | CC83: 0 | CD83: 0 | CE83: 0 | CF83: 0 | CG83: 0 | CI83: Rondes Effectuées | CJ83: =COUNTIF(BQ80:CG80,">0") -> 0 | CK83: Rondes effectuées | CL83: =SUM(CJ83+BP83) -> 0
A84: 20 | B84: =VLOOKUP(A84,'Numéro licences'!$A$4:$B$32,2) -> 0 | C84: Aller-Retour | BN84: =SUM(D84:BM84) -> 0 | BO84: Km renseignés | BP84: =SUM(BN84+BN85) -> 0 | CH84: =SUM(BQ84:CG84) -> 0 | CI84: Km renseignés | CJ84: =SUM(CH84+CH85) -> 0 | CK84: Km renseignés | CL84: =SUM(BP84+CJ84) -> 0
C85: Ronde | BN85: =SUM(D85:BM85) -> 0 | BO85: Km confirmés | BP85: =SUM(D87:BM87) -> 0 | CH85: =SUM(BQ85:CG85) -> 0 | CI85: Km confirmés | CJ85: =SUM(BQ87:CG87) -> 0 | CK85: Km confirmés | CL85: =SUM(CJ85+BP85) -> 0
D86: 0 | E86: 0 | F86: 0 | G86: 0 | H86: 0 | I86: 0 | J86: 0 | K86: 0 | L86: 0 | M86: 0 | N86: 0 | O86: 0 | P86: 0 | Q86: 0 | R86: 0 | S86: 0 | T86: 0 | U86: 0 | V86: 0 | W86: 0 | X86: 0 | Y86: 0 | Z86: 0 | AA86: 0 | AB86: 0 | AC86: 0 | AD86: 0 | AE86: 0 | AF86: 0 | AG86: 0 | AH86: 0 | AI86: 0 | AJ86: 0 | AK86: 0 | AL86: 0 | AM86: 0 | AN86: 0 | AO86: 0 | AP86: 0 | AQ86: 0 | AR86: 0 | AS86: 0 | AT86: 0 | AU86: 0 | AV86: 0 | AW86: 0 | AX86: 0 | AY86: 0 | AZ86: 0 | BA86: 0 | BB86: 0 | BC86: 0 | BD86: 0 | BE86: 0 | BF86: 0 | BG86: 0 | BH86: 0 | BI86: 0 | BJ86: 0 | BK86: 0 | BL86: 0 | BM86: 0 | BO86: Rondes confirmées | BP86: =SUM(C86:BM86) -> 0 | BQ86: 0 | BR86: 0 | BS86: 0 | BT86: 0 | BU86: 0 | BV86: 0 | BW86: 0 | BX86: 0 | BY86: 0 | BZ86: 0 | CA86: 0 | CB86: 0 | CC86: 0 | CD86: 0 | CE86: 0 | CF86: 0 | CG86: 0 | CI86: Rondes confirmées | CJ86: =SUM(BQ86:CH86) -> 0 | CK86: Rondes confirmées | CL86: =SUM(CJ86+BP86) -> 0
